Workbook

Sheet Menu
B2: Menu Principal | F2: Bienvenue Mercator | J2: ? | L2: 1..max | M2: i
B4: Définir les Options concernant le Roadbook | D4: ► | F4: ="Distance Course = "&TEXT(MR_Total_Distance,"#.##0")&" mètres" -> Distance Course = 170.000 mètres | G4: =MR_Nbr_Etapes&" Etape"&IF(MR_Nbr_Etapes>1,"s","") -> 1 Etape | I4: ="Roadbook défini le "&TEXT(MR_Date_Création,"JJ-MM-AAAA")&" à "&TEXT(MR_Date_Création,"hh:mm") -> Roadbook défini le 20-06-2012 à 10:30 | O4: Mode Roadbook
O5: TRUE
B6: Définir les Options concernant le Coureur | D6: ► | F6: ="Temps de Course (Pauses)" -> Temps de Course (Pauses) | G6: =CONCATENATE(TEXT(ME_Total_Course_HP,"[HH]:MM")," (",TEXT(ME_Total_Pauses,"[HH]:MM"),")") -> 41:10 (03:50) | I6: Tracé défini le 17-06-2012 à 14:21
B8: Finaliser le Tableau des Passages | D8: ► | I8: ="Tableur V "&P_Version_Num&" du "&TEXT(P_Version_Date,"JJ-MM-AAAA")&", par Mercator" -> Tableur V 0.7 du 29-05-2012, par Mercator
B10: Finaliser le Tableau Graphique | D10: ► | I10: D:\Mes Documents GPS\Données GPS\Plans\Courses\Ronda dels Cims\Version 0.1
B12: Introduire les Temps de Course Effectifs | D12: ► | I12: =M_Error_Texte -> 
B16: Définir le Nom du Tracé / de la Course ► | F16: Ronda dels Cims | O16: Données Graphe | R16: Erreurs
O17: Long - Min | P17: =ROUNDUP(TC_Delta_Long_Min,0) -> -9 | S17: =IF(M_Input_Mode_Roadbook,FALSE,(TA_Nbr_Points>TA_Maximum_Points)) -> FALSE | T17: ="? Maximum "&TA_Maximum_Points&" Points de Trace ?" -> 
B18: Définir le Préfixe des Fichiers Générés ► | F18: 2012-07-06 - RDC - 170 km - | O18: Long - Max | P18: =ROUNDUP(TC_Delta_Long_Max,0) -> 18 | S18: =(WA_Nbr_WP>WA_Maximum_WP) -> FALSE | T18: ="? Maximum "&WA_Maximum_WP&" WayPoints ?" -> ? Maximum 1000 WayPoints ?
O19: Lat - Min | P19: =ROUNDUP(TC_Delta_Lat_Min,0) -> -13 | S19: FALSE
B20: Charger une Trace au format Oziexplorer | D20: ► | F20: 2012-07-06 - RDC - 170 km - Trace.plt | G20: 3957 points | O20: Lat - Max | P20: =ROUNDUP(TC_Delta_Lat_Max,0) -> 10 | S20: FALSE
O21: Amplitude | P21: =MAX(P$18-P$17,P$20-P$19) -> 27 | R21: Total | S21: =OR(S17:S20) -> FALSE | T21: =IF(M_Error_Any,VLOOKUP(TRUE,S17:T20,2,FALSE),"") -> 
B22: Ajouter une Trace au format Oziexplorer | D22: ► | G22: 3957 points | O22: Any Erreur | P22: =ISERROR(SUM(P17:P21)) -> FALSE
O23: Axe X - Min | P23: =IF(P$22,-10,P$17-INT((P$21-(P$18-P$17))/2)) -> -9
B24: Charger les Points au format Oziexplorer | D24: ► | F24: 2012-07-06 - RDC - 170 km - Points.wpt | G24: 62 points | O24: Axe X - Max | P24: =IF(P$22,10,P23+P$21) -> 18
O25: Axe Y - Min | P25: =IF(P$22,-10,P$19-INT((P$21-(P$20-P$19))/2)) -> -15
F26: Nombre de Points Accrochés à la Trace | G26: 62 points | O26: Axe Y - Max | P26: =IF(P$22,10,P25+P$21) -> 12
B28: Définir les Options concernant le Tracé | D28: ► | F28: Distance Totale = 170.000 mètres | G28: 3957 points
B30: Définir les Options concernant le Profil | D30: ► | F30: Distance Equivalente = 295.825 mètres | G30: 13.848 m ▲ 13.833 m ▼
B34: Créer un Fichier Oziexplorer de Bornage | D34: ► | F34: Nombre de Bornes | G34: 169
B36: Définir les Cartes utilisées pour les Plans | D36: ► | F36: Nombre de Cartes Chargées | G36: 1
B38: Définir et Découper les Plans | D38: ► | F38: Nombre de Plans Définis | G38: 1 plans
B40: Créer les Inserts de Profils sur Plans | D40: ► | F40: Nombre d'Insert de Profil | G40: 1 inserts
B42: Ajouter les Inserts sur les Plans | D42: ► | F42: Types des Inserts | G42: None ▪ Logo ▪ None

Sheet Menu Roadbook
B2: Roadbook Course | I2: ►► | N2: CALC | Q2: OK | S2: i | U2: Barrières et Ravitos | AI2: Date | AN2: ◄◄
B4: Nombre Maximum de Points | E4: 250 | I4: # | J4: Départ Etape | Q4: Distance | R4: Dénivelé + | S4: Dénivelé - | U4: ∆ Les données du Roadbook sont déjà définies. Normalement vous ne devez pas les changer … | AQ4: Point De | AR4: Point A | AT4: Points Existants au Départ et à l'Arrivée
I5: 0
B6: Nombre de Points | E6: =RC_Nbr_Points -> 63 | I6: =I5+1 -> 1 | J6: =OFFSET($C$51,1+MAX(1,$AQ6-1),0) -> RDC - Ordino | Q6: =OFFSET($AZ$51,1+$AR6,0)-OFFSET($AZ$51,1+$AQ6-1,0) -> 169999.991 | R6: =OFFSET($BA$51,1+$AR6,0)-OFFSET($BA$51,1+$AQ6-1,0) -> 13847.54545 | S6: =OFFSET($BB$51,1+$AR6,0)-OFFSET($BB$51,1+$AQ6-1,0) -> -13832.51712 | AQ6: =MATCH($I6,OFFSET($O$51,2,0,MR_Nbr_Points),0) -> 1 | AR6: =IF($I6=MR_Nbr_Etapes,MR_Nbr_Points,AQ7-1) -> 63 | AT6: =VLOOKUP(1,TC_Table,COLUMN('Trace Construction'!$DD$12)-COLUMN('Trace Construction'!$B$12)+1,TRUE) -> 6
B7: Nombre de Points Supprimés | E7: =COUNTIF(OFFSET(MR_Header_X,2,0,MR_Nbr_Points),FALSE) -> 0 | I7: =I6+1 -> 2 | J7: =OFFSET($C$51,1+MAX(1,$AQ7-1),0) ->  | Q7: =OFFSET($AZ$51,1+$AR7,0)-OFFSET($AZ$51,1+$AQ7-1,0) ->  | R7: =OFFSET($BA$51,1+$AR7,0)-OFFSET($BA$51,1+$AQ7-1,0) ->  | S7: =OFFSET($BB$51,1+$AR7,0)-OFFSET($BB$51,1+$AQ7-1,0) ->  | AT7: =VLOOKUP(TC_Nbr_Points,TC_Table,COLUMN('Trace Construction'!$DD$12)-COLUMN('Trace Construction'!$B$12)+1,TRUE) -> 
B8: Nombre de Points Cachés | E8: =COUNTIF(OFFSET(MR_Header_Visible,2,0,MR_Nbr_Points),FALSE) -> 0 | I8: 3
B9: Nombre de Points Roadbook | E9: =MAX(OFFSET($K$51,2,0,MR_Nbr_Points)) -> 63 | I9: 4
B10: Date de Création | E10: 2012-06-20T10:30:57 | I10: 5
I11: 6
B12: Lieu de Départ de la Course | E12: Ordino | I12: 7 | AT12: Lune
B13: Lieu d'Arrivée de la Course | E13: Ordino | I13: 8 | AT13: Nouvelle Lune + 0 (Local Time) | AV13: =datetime_NouvelleLune(YEAR(MR_Input_Jour),MONTH(MR_Input_Jour))+MR_Input_Delta_TU -> 2012-06-19T17:07:02.997 | AW13: =datetime_NouvelleLune(YEAR(RI_Date),MONTH(RI_Date)) -> 1900-02-01T01:19:56.168 | AX13: 1900-02-01T01:19:56.168
B14: Jour du Départ | E14: 2012-07-06 | I14: 9 | AT14: Nouvelle Lune + 1 (Local Time) | AV14: =datetime_NouvelleLune(YEAR(MR_Input_Jour),MONTH(MR_Input_Jour)+1)+MR_Input_Delta_TU -> 2012-07-19T06:29:01.728 | AW14: 1900-02-01T01:19:56.168 | AX14: 1900-02-01T01:19:56.168
B15: Heure du Départ | E15: 08:00:00 | I15: 10 | AT15: Nouvelle Lune + 2 (Local Time) | AV15: =datetime_NouvelleLune(YEAR(MR_Input_Jour),MONTH(MR_Input_Jour)+2)+MR_Input_Delta_TU -> 2012-08-17T17:57:53.718 | AW15: 1900-02-01T01:19:56.168 | AX15: 1900-02-01T01:19:56.168
B16: Avance ou Retard sur le TU | E16: 02:00:00 | I16: 11 | AT16: Nuit Course | AV16: =MR_Input_Jour+IF(MR_Input_Heure<$E$18,1/60/24,1-1/60/24) -> 2012-07-06T23:59:00 | AW16: 1900-02-01T01:19:56.168 | AX16: 1900-02-01T01:19:56.168
B17: Début du Crépuscule Civil | E17: =time_Leversoleil(MR_Input_Jour,TC_Latitude_Moyenne,TC_Longitude_Moyenne,MR_Input_Delta_TU*24,P_Angle_Crépuscule) -> 05:49:15.886 | I17: 12 | AT17: Nouvelle Lune Avant | AV17: =IF(AV16>AV14,AV14,AV13) -> 2012-06-19T17:07:02.997 | AW17: 1900-02-01T01:19:56.168 | AX17: 1900-02-01T01:19:56.168
B18: Lever du Soleil | E18: =time_Leversoleil(MR_Input_Jour,TC_Latitude_Moyenne,TC_Longitude_Moyenne,MR_Input_Delta_TU*24,P_Angle_LeverCoucher) -> 06:23:38.861 | I18: 13 | AT18: Nouvelle Lune Après | AV18: =IF(AV16>AV14,AV15,AV14) -> 2012-07-19T06:29:01.728 | AW18: 1900-02-01T01:19:56.168 | AX18: 1900-02-01T01:19:56.168
B19: Coucher du Soleil | E19: =time_Couchersoleil(MR_Input_Jour,TC_Latitude_Moyenne,TC_Longitude_Moyenne,MR_Input_Delta_TU*24,P_Angle_LeverCoucher) -> 21:33:43.082 | I19: 14 | AT19: % Cycle Lunaire | AV19: =(AV16-AV17)/(AV18-AV17) -> 0.5848400551 | AW19: 32.05551121 | AX19: 32.05551121
B20: Fin du Crépuscule Civil | E20: =time_Couchersoleil(MR_Input_Jour,TC_Latitude_Moyenne,TC_Longitude_Moyenne,MR_Input_Delta_TU*24,P_Angle_Crépuscule) -> 22:08:06.057 | I20: 15 | AT20: Phase | AV20: =ROUND(AV19*4,0) -> 2 | AW20: 32.05551121 | AX20: 32.05551121
B21: Durée de la Nuit | E21: =MOD(E18+1-E19,1) -> 08:49:55.778 | I21: 16 | AT21: Nom Phase | AV21: =CHOOSE(AV20+1,"Nouvelle Lune","Premier Quartier","Pleine Lune","Dernier Quartier","Nouvelle Lune") -> Pleine Lune | AW21: 32.05551121 | AX21: 32.05551121
I22: 17 | AT22: Nom Phase Court | AV22: =CHOOSE(AV20+1,"NL","PQ","PL","DQ","NL") -> PL | AW22: 32.05551121 | AX22: 32.05551121
B23: ▼ Ajouter un Point si nécessaire ▼ | I23: 18 | U23: Sauver les Infos | AT23: Date Approx Phase | AV23: =AV17+AV20*25%*(AV18-AV17) -> 2012-07-04T11:48:02.362 | AW23: 1900-02-01T01:19:56.168 | AX23: 1900-02-01T01:19:56.168
B24: Au Départ ► | I24: 19
B25: A l'Arrivée ► | D25: RDC - Arrivée | I25: 20
B26: Début de Segment ► | I26: 21 | U26: Restaurer les Infos
B27: Bornes Majeures ► | I27: 22
I28: 23
I29: 24
B30: Nombre Maximum Etapes | E30: 40 | I30: 25
I31: 26
I32: 27
I33: 28
I34: 29
I35: 30
I36: 31
I37: 32
I38: 33
I39: 34
I40: 35
I41: 36
I42: 37
I43: 38
I44: 39
I45: 40 | AR45: -1
I46: =MAX(OFFSET($O$51,2,0,MR_Nbr_Points)) -> 1 | J46: Total | Q46: =SUM(OFFSET(Q$4,2,0,MR_Nbr_Etapes)) -> 169999.991 | R46: =SUM(OFFSET(R$4,2,0,MR_Nbr_Etapes)) -> 13847.54545 | S46: =SUM(OFFSET(S$4,2,0,MR_Nbr_Etapes)) -> -13832.51712
B47: ▼ Réinitialiser toutes les Données ▼ | R47: + ▼ | S47: - ▲
I49: " | J49: " | M49: ▼ Définition des Etapes ▼ | U49: ▼ Barrières In ▼ | X49: ▼ Barrières Out ▼ | AA49: ▼ Ravitos ▼ | AH49: ▼ Courabilité ▼ | AQ49: Trace Complète | AZ49: Trace Roadbook
AQ50: =COLUMN('Roadbook Construction'!$D$13)-COLUMN('Roadbook Construction'!$B$13)+1 -> 3 | AR50: =COLUMN('Roadbook Construction'!$H$13)-COLUMN('Roadbook Construction'!$B$13)+1 -> 7 | AS50: =COLUMN('Roadbook Construction'!$I$13)-COLUMN('Roadbook Construction'!$B$13)+1 -> 8 | AT50: =COLUMN('Roadbook Construction'!$J$13)-COLUMN('Roadbook Construction'!$B$13)+1 -> 9 | AU50: =COLUMN('Roadbook Construction'!$K$13)-COLUMN('Roadbook Construction'!$B$13)+1 -> 10 | AV50: =COLUMN('Roadbook Construction'!$L$13)-COLUMN('Roadbook Construction'!$B$13)+1 -> 11 | AW50: =COLUMN('Roadbook Construction'!$M$13)-COLUMN('Roadbook Construction'!$B$13)+1 -> 12 | AX50: =COLUMN('Roadbook Construction'!$N$13)-COLUMN('Roadbook Construction'!$B$13)+1 -> 13 | AY50: =COLUMN('Roadbook Construction'!$O$13)-COLUMN('Roadbook Construction'!$B$13)+1 -> 14 | BL50: =COLUMN('Roadbook Construction'!$AQ$13)-COLUMN('Roadbook Construction'!$B$13)+1 -> 42 | BM50: =COLUMN('Roadbook Construction'!$AR$13)-COLUMN('Roadbook Construction'!$B$13)+1 -> 43 | BN50: =COLUMN('Roadbook Construction'!$AS$13)-COLUMN('Roadbook Construction'!$B$13)+1 -> 44 | BO50: =COLUMN('Roadbook Construction'!$W$13)-COLUMN('Roadbook Construction'!$B$13)+1 -> 22 | BP50: =COLUMN('Roadbook Construction'!$X$13)-COLUMN('Roadbook Construction'!$B$13)+1 -> 23 | BT50: Valeurs RBB Backup
B51: Point | C51: Nom | G51: Altitude | I51: X | J51: Visible | K51: N | M51: Jour | N51: Heure | O51: E | P51: Départ Etape | Q51: Dist Etape | R51: D+ Etape | S51: D- Etape | U51: T Max | V51: Barrière In | X51: T Max | Y51: Barrière Out | AA51: E | AB51: L | AC51: C | AD51: BV | AE51: Sacs | AF51: Lits | AH51: % | AI51: 100 | AJ51: 98 | AK51: 95 | AL51: 92 | AM51: 88 | AN51: 80 | AO51: 70 | AQ51: =OFFSET(RC_Header_Table,0,AQ50-1,1,1) -> Dist Totale | AR51: Tot D + | AS51: Tot D - | AT51: Tot Dist ▼ | AU51: Tot Dist ≡ ▼ | AV51: Tot Dist ► | AW51: Tot Dist ≡ ► | AX51: Tot Dist ▲ | AY51: Tot Dist ≡ ▲ | AZ51: =AQ51 -> Dist Totale | BA51: =AR51 -> Tot D + | BB51: Tot D - | BC51: Tot Dist ▼ | BD51: Tot Dist ≡ ▼ | BE51: Tot Dist ► | BF51: Tot Dist ≡ ► | BG51: Tot Dist ▲ | BH51: Tot Dist ≡ ▲ | BI51: Début Etape | BJ51: Nom | BK51: Altitude | BL51: =OFFSET(RC_Header_Table,0,BL50-1,1,1) -> Alt Min | BM51: =OFFSET(RC_Header_Table,0,BM50-1,1,1) -> Alt Max | BN51: =OFFSET(RC_Header_Table,0,BN50-1,1,1) -> Alt Moy | BO51: =OFFSET(RC_Header_Table,0,BO50-1,1,1) -> Latitude | BP51: =OFFSET(RC_Header_Table,0,BP50-1,1,1) -> Longitude | BR51: Export | BT51: Match | BU51: =$I51 -> X | BV51: =$J51 -> Visible | BW51: =$M51 -> Jour | BX51: =$N51 -> Heure | BY51: =$U51 -> T Max | BZ51: =$X51 -> T Max | CA51: =$AA51 -> E | CB51: =$AB51 -> L | CC51: =$AC51 -> C | CD51: =$AD51 -> BV | CE51: =$AE51 -> Sacs | CF51: =$AF51 -> Lits | CG51: =$AH51 -> %
B52: 0 | C52: =COLUMN('Roadbook Construction'!$Z$13)-COLUMN('Roadbook Construction'!$B$13)+1 -> 25 | G52: =COLUMN('Roadbook Construction'!$Y$13)-COLUMN('Roadbook Construction'!$B$13)+1 -> 24 | K52: 0 | O52: 1 | Q52: 0 | R52: 0 | S52: 0 | AI52: 1 | AJ52: 0.98 | AK52: 0.95 | AL52: 0.92 | AM52: 0.88 | AN52: 0.8 | AO52: 0.7 | AQ52: 0 | AR52: 0 | AS52: 0 | AT52: 0 | AU52: 0 | AV52: 0 | AW52: 0 | AX52: 0 | AY52: 0 | AZ52: 0 | BA52: 0 | BB52: 0 | BC52: 0 | BD52: 0 | BE52: 0 | BF52: 0 | BG52: 0 | BH52: 0 | BI52: =MR_Input_Jour+MR_Input_Heure -> 2012-07-06T08:00:00 | BR52: =CONCATENATE(M_Input_Préfixe,"Backup Roadbook (",TEXT(NOW(),"AAAA-MM-JJ HH-MM"),").txt") -> 2012-07-06 - RDC - 170 km - Backup Roadbook (2012-06-22 13-51).txt | BU52: =COLUMN('RB Backup'!$D$1)-COLUMN('RB Backup'!$A$1)+1 -> 4 | BV52: =COLUMN('RB Backup'!$E$1)-COLUMN('RB Backup'!$A$1)+1 -> 5 | BW52: =COLUMN('RB Backup'!$F$1)-COLUMN('RB Backup'!$A$1)+1 -> 6 | BX52: =COLUMN('RB Backup'!$G$1)-COLUMN('RB Backup'!$A$1)+1 -> 7 | BY52: =COLUMN('RB Backup'!$H$1)-COLUMN('RB Backup'!$A$1)+1 -> 8 | BZ52: =COLUMN('RB Backup'!$I$1)-COLUMN('RB Backup'!$A$1)+1 -> 9 | CA52: =COLUMN('RB Backup'!$J$1)-COLUMN('RB Backup'!$A$1)+1 -> 10 | CB52: =COLUMN('RB Backup'!$K$1)-COLUMN('RB Backup'!$A$1)+1 -> 11 | CC52: =COLUMN('RB Backup'!$L$1)-COLUMN('RB Backup'!$A$1)+1 -> 12 | CD52: =COLUMN('RB Backup'!$M$1)-COLUMN('RB Backup'!$A$1)+1 -> 13 | CE52: =COLUMN('RB Backup'!$N$1)-COLUMN('RB Backup'!$A$1)+1 -> 14 | CF52: =COLUMN('RB Backup'!$O$1)-COLUMN('RB Backup'!$A$1)+1 -> 15 | CG52: =COLUMN('RB Backup'!$P$1)-COLUMN('RB Backup'!$A$1)+1 -> 16
B53: =B52+1 -> 1 | C53: =VLOOKUP($B53,RC_Table,C$52,TRUE) -> RDC - Ordino | G53: =VLOOKUP($B53,RC_Table,G$52,TRUE) -> 1280 | I53: TRUE | J53: TRUE | K53: =K52+IF(AND(I53,J53),1,0) -> 1 | O53: =O52+IF(AND($I52,$M52<>"",$N52<>""),1,0) -> 1 | P53: =IF(AND($I53,$M53<>"",$N53<>""),MR_Input_Jour+$M53-1+$N53,"") ->  | Q53: =IF($I53,($AQ53-$AQ52),0)+IF($O53=$O52,Q52,0) -> 0.001 | R53: =IF($I53,($AR53-$AR52),0)+IF($O53=$O52,R52,0) -> 0 | S53: =IF($I53,($AS53-$AS52),0)+IF($O53=$O52,S52,0) -> 0 | V53: =IF($U53<>"",$BI53+$U53,"") ->  | Y53: =IF($X53<>"",$BI53+$X53,"") ->  | AA53: FALSE | AB53: FALSE | AC53: FALSE | AD53: FALSE | AE53: FALSE | AF53: FALSE | AH53: 0.92 | AQ53: =VLOOKUP($B53,RC_Table,AQ$50,TRUE) -> 0.001 | AR53: 0 | AS53: 0 | AT53: 0 | AU53: 0 | AV53: 0.001 | AW53: 0.001 | AX53: 0 | AY53: 0 | AZ53: =AZ52+IF($I53,AQ53-AQ52,0) -> 0.001 | BA53: 0 | BB53: 0 | BC53: 0 | BD53: 0 | BE53: 0.001 | BF53: 0.001 | BG53: 0 | BH53: 0 | BI53: =IF($O53<>$O52,$P52,BI52) -> 2012-07-06T08:00:00 | BJ53: =$C53 -> RDC - Ordino | BK53: =$G53 -> 1280 | BL53: =VLOOKUP($B53,RC_Table,BL$50,TRUE) -> 1280.329003 | BM53: 1280.329003 | BN53: 1280.329003 | BO53: 42,556846 | BP53: 1,533385 | BR53: =CONCATENATE(TEXT($B53,"0"),",",SUBSTITUTE($C53,",",";"),",",IF($B53=1,"X",SUBSTITUTE($C52,",",";"))," >>> ",SUBSTITUTE($C53,",",";"),",",TEXT($I53,"0"),",",TEXT($J53,"0"),",",IF(ISBLANK($M53),"X",TEXT($M53,"0")),",",IF(ISBLANK($N53),"X",TEXT($N53,"[HH]:MM")),",",IF(ISBLANK($U53),"X",TEXT($U53,"[HH]:MM")),",",IF(ISBLANK($X53),"X",TEXT($X53,"[HH]:MM")),",",TEXT($AA53,"0"),",",TEXT($AB53,"0"),",",TEXT($AC53,"0"),",",TEXT($AD53,"0"),",",TEXT($AE53,"0"),",",TEXT($AF53,"0"),",",TEXT($AH53,"0%")) -> 1,RDC - Ordino,X >>> RDC - Ordino,TRUE,TRUE,X,X,X,X,FALSE,FALSE,FALSE,FALSE,FALSE,FALSE,92% | BT53: =MATCH(CONCATENATE(IF($B53=1,"X",SUBSTITUTE($C52,",",";"))," >>> ",SUBSTITUTE($C53,",",";")),RBB_Liste_De_A,0) -> 1 | BU53: =VLOOKUP($BT53,RBB_Table,BU$52,FALSE) -> TRUE | BV53: TRUE | BW53: X | BX53: X | BY53: X | BZ53: X | CA53: TRUE | CB53: TRUE | CC53: TRUE | CD53: TRUE | CE53: TRUE | CF53: TRUE | CG53: 0.92
B54: =B53+1 -> 2 | C54: RDC - Camp Remugat | G54: 1630 | I54: TRUE | J54: TRUE | K54: =K53+IF(AND(I54,J54),1,0) -> 2 | O54: 1 | Q54: 5528.438797 | R54: 561.0370323 | S54: -215.0742705 | Y54: =IF($X54<>"",$BI54+$X54,"") ->  | AA54: FALSE | AB54: FALSE | AC54: FALSE | AD54: FALSE | AE54: FALSE | AF54: FALSE | AH54: 0.92 | AQ54: 5528.438797 | AR54: 561.0370323 | AS54: -215.0742705 | AT54: 1610.03804 | AU54: 1985.996516 | AV54: 0.001 | AW54: 0.001 | AX54: 3918.399758 | AY54: 7739.48206 | AZ54: =AZ53+IF($I54,AQ54-AQ53,0) -> 5528.438797 | BA54: =BA53+IF($I54,AR54-AR53,0) -> 561.0370323 | BB54: =BB53+IF($I54,AS54-AS53,0) -> -215.0742705 | BC54: =BC53+IF($I54,AT54-AT53,0) -> 1610.03804 | BD54: =BD53+IF($I54,AU54-AU53,0) -> 1985.996516 | BE54: =BE53+IF($I54,AV54-AV53,0) -> 0.001 | BF54: =BF53+IF($I54,AW54-AW53,0) -> 0.001 | BG54: =BG53+IF($I54,AX54-AX53,0) -> 3918.399758 | BH54: =BH53+IF($I54,AY54-AY53,0) -> 7739.48206 | BI54: 2012-07-06T08:00:00 | BJ54: =$C54 -> RDC - Camp Remugat | BK54: =$G54 -> 1630 | BL54: 1280.329003 | BM54: 1626.291764 | BN54: 1435.030309 | BO54: 42,562045 | BP54: 1,537952 | BR54: =CONCATENATE(TEXT($B54,"0"),",",SUBSTITUTE($C54,",",";"),",",IF($B54=1,"X",SUBSTITUTE($C53,",",";"))," >>> ",SUBSTITUTE($C54,",",";"),",",TEXT($I54,"0"),",",TEXT($J54,"0"),",",IF(ISBLANK($M54),"X",TEXT($M54,"0")),",",IF(ISBLANK($N54),"X",TEXT($N54,"[HH]:MM")),",",IF(ISBLANK($U54),"X",TEXT($U54,"[HH]:MM")),",",IF(ISBLANK($X54),"X",TEXT($X54,"[HH]:MM")),",",TEXT($AA54,"0"),",",TEXT($AB54,"0"),",",TEXT($AC54,"0"),",",TEXT($AD54,"0"),",",TEXT($AE54,"0"),",",TEXT($AF54,"0"),",",TEXT($AH54,"0%")) -> 2,RDC - Camp Remugat,RDC - Ordino >>> RDC - Camp Remugat,TRUE,TRUE,X,X,X,X,FALSE,FALSE,FALSE,FALSE,FALSE,FALSE,92% | BT54: 2 | BU54: TRUE | BV54: TRUE | BW54: X | BX54: X | BY54: X | BZ54: X | CA54: FALSE | CB54: FALSE | CC54: FALSE | CD54: FALSE | CE54: FALSE | CF54: FALSE | CG54: 0.92
B55: 3 | C55: RDC - Ensegur | G55: 1890 | I55: TRUE | J55: TRUE | K55: 3 | O55: 1 | Q55: 11637.8227 | R55: 1293.375398 | S55: -680.6985838 | AA55: FALSE | AB55: FALSE | AC55: FALSE | AD55: FALSE | AE55: FALSE | AF55: FALSE | AH55: 0.88 | AQ55: 11637.8227 | AR55: 1293.375398 | AS55: -680.6985838 | AT55: 4293.250736 | AU55: 5672.218858 | AV55: 0.001 | AW55: 0.001 | AX55: 7344.570968 | AY55: 16795.1078 | AZ55: 11637.8227 | BA55: 1293.375398 | BB55: -680.6985838 | BC55: 4293.250736 | BD55: 5672.218858 | BE55: 0.001 | BF55: 0.001 | BG55: 7344.570968 | BH55: 16795.1078 | BI55: 2012-07-06T08:00:00 | BJ55: RDC - Ensegur | BK55: 1890 | BL55: 1464.10172 | BM55: 1975.008797 | BN55: 1711.44904 | BO55: 42,589140 | BP55: 1,544834 | BR55: 3,RDC - Ensegur,RDC - Camp Remugat >>> RDC - Ensegur,TRUE,TRUE,X,X,X,X,FALSE,FALSE,FALSE,FALSE,FALSE,FALSE,88% | BT55: 3 | BU55: TRUE | BV55: TRUE | BW55: X | BX55: X | BY55: X | BZ55: X | CA55: FALSE | CB55: FALSE | CC55: FALSE | CD55: FALSE | CE55: FALSE | CF55: FALSE | CG55: 0.88
B56: 4 | C56: Coll d'Arenes | G56: 2550 | I56: TRUE | J56: TRUE | K56: 4 | O56: 1 | Q56: 14561.97329 | R56: 1948.089535 | S56: -681.2929438 | AA56: FALSE | AB56: FALSE | AC56: FALSE | AD56: FALSE | AE56: FALSE | AF56: FALSE | AH56: 0.88 | AQ56: 14561.97329 | AR56: 1948.089535 | AS56: -681.2929438 | AT56: 4332.17196 | AU56: 5709.693578 | AV56: 0.001 | AW56: 0.001 | AX56: 10229.80033 | AY56: 24609.40252 | AZ56: 14561.97329 | BA56: 1948.089535 | BB56: -681.2929438 | BC56: 4332.17196 | BD56: 5709.693578 | BE56: 0.001 | BF56: 0.001 | BG56: 10229.80033 | BH56: 24609.40252 | BI56: 2012-07-06T08:00:00 | BJ56: Coll d'Arenes | BK56: 2550 | BL56: 1893.005816 | BM56: 2547.125593 | BN56: 2206.843128 | BO56: 42,594853 | BP56: 1,574918 | BR56: 4,Coll d'Arenes,RDC - Ensegur >>> Coll d'Arenes,TRUE,TRUE,X,X,X,X,FALSE,FALSE,FALSE,FALSE,FALSE,FALSE,88% | BT56: 4 | BU56: TRUE | BV56: TRUE | BW56: X | BX56: X | BY56: X | BZ56: X | CA56: FALSE | CB56: FALSE | CC56: FALSE | CD56: FALSE | CE56: FALSE | CF56: FALSE | CG56: 0.88
B57: 5 | C57: RDC - Collada Ferreroles | G57: 2532 | I57: TRUE | J57: TRUE | K57: 5 | O57: 1 | Q57: 16313.02375 | R57: 2056.598718 | S57: -805.6119555 | AA57: FALSE | AB57: FALSE | AC57: FALSE | AD57: FALSE | AE57: FALSE | AF57: FALSE | AH57: 0.88 | AQ57: 16313.02375 | AR57: 2056.598718 | AS57: -805.6119555 | AT57: 4960.486741 | AU57: 6520.091912 | AV57: 0.001 | AW57: 0.001 | AX57: 11352.53601 | AY57: 26312.10643 | AZ57: 16313.02375 | BA57: 2056.598718 | BB57: -805.6119555 | BC57: 4960.486741 | BD57: 6520.091912 | BE57: 0.001 | BF57: 0.001 | BG57: 11352.53601 | BH57: 26312.10643 | BI57: 2012-07-06T08:00:00 | BJ57: RDC - Collada Ferreroles | BK57: 2532 | BL57: 2495.38744 | BM57: 2619.706452 | BN57: 2561.528892 | BO57: 42,606427 | BP57: 1,569241 | BR57: 5,RDC - Collada Ferreroles,Coll d'Arenes >>> RDC - Collada Ferreroles,TRUE,TRUE,X,X,X,X,FALSE,FALSE,FALSE,FALSE,FALSE,FALSE,88% | BT57: 5 | BU57: TRUE | BV57: TRUE | BW57: X | BX57: X | BY57: X | BZ57: X | CA57: FALSE | CB57: FALSE | CC57: FALSE | CD57: FALSE | CE57: FALSE | CF57: FALSE | CG57: 0.88
B58: 6 | C58: RDC - Refuge Sorteny - Aller | G58: 1962 | I58: TRUE | J58: TRUE | K58: 6 | O58: 1 | Q58: 19264.86729 | R58: 2058.580826 | S58: -1376.314933 | AA58: TRUE | AB58: TRUE | AC58: FALSE | AD58: FALSE | AE58: FALSE | AF58: FALSE | AH58: 0.8 | AQ58: 19264.86729 | AR58: 2058.580826 | AS58: -1376.314933 | AT58: 7823.784573 | AU58: 10642.63443 | AV58: 0.001 | AW58: 0.001 | AX58: 11441.08172 | AY58: 26407.30883 | AZ58: 19264.86729 | BA58: 2058.580826 | BB58: -1376.314933 | BC58: 7823.784573 | BD58: 10642.63443 | BE58: 0.001 | BF58: 0.001 | BG58: 11441.08172 | BH58: 26407.30883 | BI58: 2012-07-06T08:00:00 | BJ58: RDC - Refuge Sorteny - Aller | BK58: 1962 | BL58: 1962.451747 | BM58: 2531.315765 | BN58: 2233.357576 | BO58: 42,622442 | BP58: 1,564311 | BR58: 6,RDC - Refuge Sorteny - Aller,RDC - Collada Ferreroles >>> RDC - Refuge Sorteny - Aller,TRUE,TRUE,X,X,X,X,TRUE,TRUE,FALSE,FALSE,FALSE,FALSE,80% | BT58: 6 | BU58: TRUE | BV58: TRUE | BW58: X | BX58: X | BY58: X | BZ58: X | CA58: TRUE | CB58: TRUE | CC58: TRUE | CD58: FALSE | CE58: FALSE | CF58: FALSE | CG58: 0.8
B59: 7 | C59: RDC - Rialp | G59: 1980 | I59: TRUE | J59: TRUE | K59: 7 | O59: 1 | Q59: 21964.97481 | R59: 2276.364282 | S59: -1576.472013 | AA59: FALSE | AB59: FALSE | AC59: FALSE | AD59: FALSE | AE59: FALSE | AF59: FALSE | AH59: 0.88 | AQ59: 21964.97481 | AR59: 2276.364282 | AS59: -1576.472013 | AT59: 8506.236217 | AU59: 11968.09325 | AV59: 0.001 | AW59: 0.001 | AX59: 13458.7376 | AY59: 29679.89327 | AZ59: 21964.97481 | BA59: 2276.364282 | BB59: -1576.472013 | BC59: 8506.236217 | BD59: 11968.09325 | BE59: 0.001 | BF59: 0.001 | BG59: 13458.7376 | BH59: 29679.89327 | BI59: 2012-07-06T08:00:00 | BJ59: RDC - Rialp | BK59: 1980 | BL59: 1857.20228 | BM59: 2056.0538 | BN59: 1950.305039 | BO59: 42,640373 | BP59: 1,561214 | BR59: 7,RDC - Rialp,RDC - Refuge Sorteny - Aller >>> RDC - Rialp,TRUE,TRUE,X,X,X,X,FALSE,FALSE,FALSE,FALSE,FALSE,FALSE,88% | BT59: 7 | BU59: TRUE | BV59: TRUE | BW59: X | BX59: X | BY59: X | BZ59: X | CA59: FALSE | CB59: FALSE | CC59: FALSE | CD59: FALSE | CE59: FALSE | CF59: FALSE | CG59: 0.88
B60: 8 | C60: RDC - Portella Rialb | G60: 2508 | I60: TRUE | J60: TRUE | K60: 8 | O60: 1 | Q60: 24824.34597 | R60: 2803.984308 | S60: -1580.206938 | AA60: FALSE | AB60: FALSE | AC60: FALSE | AD60: FALSE | AE60: FALSE | AF60: FALSE | AH60: 0.88 | AQ60: 24824.34597 | AR60: 2803.984308 | AS60: -1580.206938 | AT60: 8633.317336 | AU60: 12088.33158 | AV60: 0.001 | AW60: 0.001 | AX60: 16191.02763 | AY60: 36174.75023 | AZ60: 24824.34597 | BA60: 2803.984308 | BB60: -1580.206938 | BC60: 8633.317336 | BD60: 12088.33158 | BE60: 0.001 | BF60: 0.001 | BG60: 16191.02763 | BH60: 36174.75023 | BI60: 2012-07-06T08:00:00 | BJ60: RDC - Portella Rialb | BK60: 2508 | BL60: 1980.221271 | BM60: 2504.106373 | BN60: 2199.506035 | BO60: 42,640330 | BP60: 1,536466 | BR60: 8,RDC - Portella Rialb,RDC - Rialp >>> RDC - Portella Rialb,TRUE,TRUE,X,X,X,X,FALSE,FALSE,FALSE,FALSE,FALSE,FALSE,88% | BT60: 8 | BU60: TRUE | BV60: TRUE | BW60: X | BX60: X | BY60: X | BZ60: X | CA60: FALSE | CB60: FALSE | CC60: FALSE | CD60: FALSE | CE60: FALSE | CF60: FALSE | CG60: 0.88
B61: 9 | C61: RDC - Lac Esbalçat | G61: 2300 | I61: TRUE | J61: TRUE | K61: 9 | O61: 1 | Q61: 28412.3481 | R61: 3106.933252 | S61: -2088.172555 | AA61: FALSE | AB61: FALSE | AC61: FALSE | AD61: FALSE | AE61: FALSE | AF61: FALSE | AH61: 0.88 | AQ61: 28412.3481 | AR61: 3106.933252 | AS61: -2088.172555 | AT61: 11024.10284 | AU61: 15683.75711 | AV61: 0.001 | AW61: 0.001 | AX61: 17388.24426 | AY61: 39864.53687 | AZ61: 28412.3481 | BA61: 3106.933252 | BB61: -2088.172555 | BC61: 11024.10284 | BD61: 15683.75711 | BE61: 0.001 | BF61: 0.001 | BG61: 17388.24426 | BH61: 39864.53687 | BI61: 2012-07-06T08:00:00 | BJ61: RDC - Lac Esbalçat | BK61: 2300 | BL61: 2019.33556 | BM61: 2504.106373 | BN61: 2190.001797 | BO61: 42,639423 | BP61: 1,513180 | BR61: 9,RDC - Lac Esbalçat,RDC - Portella Rialb >>> RDC - Lac Esbalçat,TRUE,TRUE,X,X,X,X,FALSE,FALSE,FALSE,FALSE,FALSE,FALSE,88% | BT61: 9 | BU61: TRUE | BV61: TRUE | BW61: X | BX61: X | BY61: X | BZ61: X | CA61: FALSE | CB61: FALSE | CC61: FALSE | CD61: FALSE | CE61: FALSE | CF61: FALSE | CG61: 0.88
B62: 10 | C62: RDC - Coma d'Arcalis | G62: 2200 | I62: TRUE | J62: TRUE | K62: 10 | O62: 1 | Q62: 31358.76647 | R62: 3216.716313 | S62: -2296.005125 | AA62: TRUE | AB62: TRUE | AC62: TRUE | AD62: FALSE | AE62: FALSE | AF62: FALSE | AH62: 0.88 | AQ62: 31358.76647 | AR62: 3216.716313 | AS62: -2296.005125 | AT62: 12470.18728 | AU62: 17484.13006 | AV62: 0.001 | AW62: 0.001 | AX62: 18888.57819 | AY62: 42099.30099 | AZ62: 31358.76647 | BA62: 3216.716313 | BB62: -2296.005125 | BC62: 12470.18728 | BD62: 17484.13006 | BE62: 0.001 | BF62: 0.001 | BG62: 18888.57819 | BH62: 42099.30099 | BI62: 2012-07-06T08:00:00 | BJ62: RDC - Coma d'Arcalis | BK62: 2200 | BL62: 2092.521478 | BM62: 2300.017151 | BN62: 2203.74391 | BO62: 42,632057 | BP62: 1,481951 | BR62: 10,RDC - Coma d'Arcalis,RDC - Lac Esbalçat >>> RDC - Coma d'Arcalis,TRUE,TRUE,X,X,X,X,TRUE,TRUE,TRUE,FALSE,FALSE,FALSE,88% | BT62: 10 | BU62: TRUE | BV62: TRUE | BW62: X | BX62: X | BY62: X | BZ62: X | CA62: TRUE | CB62: TRUE | CC62: TRUE | CD62: FALSE | CE62: FALSE | CF62: FALSE | CG62: 0.88
B63: 11 | C63: RDC - Angonella | G63: 2300 | I63: TRUE | J63: TRUE | K63: 11 | O63: 1 | Q63: 35837.21341 | R63: 3732.488014 | S63: -2708.648277 | AA63: FALSE | AB63: FALSE | AC63: FALSE | AD63: FALSE | AE63: FALSE | AF63: FALSE | AH63: 0.88 | AQ63: 35837.21341 | AR63: 3732.488014 | AS63: -2708.648277 | AT63: 14349.87163 | AU63: 20559.20819 | AV63: 0.001 | AW63: 0.001 | AX63: 21487.34078 | AY63: 48609.12185 | AZ63: 35837.21341 | BA63: 3732.488014 | BB63: -2708.648277 | BC63: 14349.87163 | BD63: 20559.20819 | BE63: 0.001 | BF63: 0.001 | BG63: 21487.34078 | BH63: 48609.12185 | BI63: 2012-07-06T08:00:00 | BJ63: RDC - Angonella | BK63: 2300 | BL63: 2201.040191 | BM63: 2710.61688 | BN63: 2421.059234 | BO63: 42,606068 | BP63: 1,490607 | BR63: 11,RDC - Angonella,RDC - Coma d'Arcalis >>> RDC - Angonella,TRUE,TRUE,X,X,X,X,FALSE,FALSE,FALSE,FALSE,FALSE,FALSE,88% | BT63: 11 | BU63: TRUE | BV63: TRUE | BW63: X | BX63: X | BY63: X | BZ63: X | CA63: FALSE | CB63: FALSE | CC63: FALSE | CD63: FALSE | CE63: FALSE | CF63: FALSE | CG63: 0.88
B64: 12 | C64: RDC - Pic Clot del Cavall | G64: 2612 | I64: TRUE | J64: TRUE | K64: 12 | O64: 1 | Q64: 37710.35103 | R64: 4091.556635 | S64: -2761.679284 | AA64: FALSE | AB64: FALSE | AC64: FALSE | AD64: FALSE | AE64: FALSE | AF64: FALSE | AH64: 0.8 | AQ64: 37710.35103 | AR64: 4091.556635 | AS64: -2761.679284 | AT64: 14620.57196 | AU64: 20967.43833 | AV64: 0.001 | AW64: 0.001 | AX64: 23089.77807 | AY64: 52933.91788 | AZ64: 37710.35103 | BA64: 4091.556635 | BB64: -2761.679284 | BC64: 14620.57196 | BD64: 20967.43833 | BE64: 0.001 | BF64: 0.001 | BG64: 23089.77807 | BH64: 52933.91788 | BI64: 2012-07-06T08:00:00 | BJ64: RDC - Pic Clot del Cavall | BK64: 2612 | BL64: 2304.168739 | BM64: 2610.307416 | BN64: 2483.888115 | BO64: 42,594799 | BP64: 1,495820 | BR64: 12,RDC - Pic Clot del Cavall,RDC - Angonella >>> RDC - Pic Clot del Cavall,TRUE,TRUE,X,X,X,X,FALSE,FALSE,FALSE,FALSE,FALSE,FALSE,80% | BT64: 12 | BU64: TRUE | BV64: TRUE | BW64: X | BX64: X | BY64: X | BZ64: X | CA64: FALSE | CB64: FALSE | CC64: FALSE | CD64: FALSE | CE64: FALSE | CF64: FALSE | CG64: 0.8
B65: 13 | C65: RDC - Bordes Prats Nous | G65: 2010 | I65: TRUE | J65: TRUE | K65: 13 | O65: 1 | Q65: 39927.07985 | R65: 4091.556635 | S65: -3360.271 | AA65: FALSE | AB65: FALSE | AC65: FALSE | AD65: FALSE | AE65: FALSE | AF65: FALSE | AH65: 0.88 | AQ65: 39927.07985 | AR65: 4091.556635 | AS65: -3360.271 | AT65: 16837.30078 | AU65: 24834.6395 | AV65: 0.001 | AW65: 0.001 | AX65: 23089.77807 | AY65: 52933.91788 | AZ65: 39927.07985 | BA65: 4091.556635 | BB65: -3360.271 | BC65: 16837.30078 | BD65: 24834.6395 | BE65: 0.001 | BF65: 0.001 | BG65: 23089.77807 | BH65: 52933.91788 | BI65: =IF($O65<>$O64,$P64,BI64) -> 2012-07-06T08:00:00 | BJ65: RDC - Bordes Prats Nous | BK65: 2010 | BL65: 2011.614638 | BM65: 2610.206354 | BN65: 2284.976288 | BO65: 42,584163 | BP65: 1,486132 | BR65: 13,RDC - Bordes Prats Nous,RDC - Pic Clot del Cavall >>> RDC - Bordes Prats Nous,TRUE,TRUE,X,X,X,X,FALSE,FALSE,FALSE,FALSE,FALSE,FALSE,88% | BT65: 13 | BU65: TRUE | BV65: TRUE | BW65: X | BX65: X | BY65: X | BZ65: X | CA65: FALSE | CB65: FALSE | CC65: FALSE | CD65: FALSE | CE65: FALSE | CF65: FALSE | CG65: 0.88
B66: 14 | C66: RDC - Refuge - Pla de l'Estany | G66: 2060 | I66: TRUE | J66: TRUE | K66: 14 | O66: 1 | Q66: 42924.63378 | R66: 4264.418387 | S66: -3483.251426 | AA66: TRUE | AB66: TRUE | AC66: TRUE | AD66: FALSE | AE66: FALSE | AF66: FALSE | AH66: 0.88 | AQ66: 42924.63378 | AR66: 4264.418387 | AS66: -3483.251426 | AT66: 18111.15536 | AU66: 26225.70865 | AV66: 0.1162596214 | AW66: 0.1162596214 | AX66: 24813.36216 | AY66: 55644.80208 | AZ66: 42924.63378 | BA66: 4264.418387 | BB66: -3483.251426 | BC66: 18111.15536 | BD66: 26225.70865 | BE66: 0.1162596214 | BF66: 0.1162596214 | BG66: 24813.36216 | BH66: 55644.80208 | BI66: =IF($O66<>$O65,$P65,BI65) -> 2012-07-06T08:00:00 | BJ66: RDC - Refuge - Pla de l'Estany | BK66: 2060 | BL66: 2008.619909 | BM66: 2071.93388 | BN66: 2037.839189 | BO66: 42,593977 | BP66: 1,460825 | BR66: 14,RDC - Refuge - Pla de l'Estany,RDC - Bordes Prats Nous >>> RDC - Refuge - Pla de l'Estany,TRUE,TRUE,X,X,X,X,TRUE,TRUE,TRUE,FALSE,FALSE,FALSE,88% | BT66: 14 | BU66: TRUE | BV66: TRUE | BW66: X | BX66: X | BY66: X | BZ66: X | CA66: TRUE | CB66: TRUE | CC66: TRUE | CD66: FALSE | CE66: FALSE | CF66: FALSE | CG66: 0.88
B67: 15 | C67: RDC - Pic del Comapedrosa | G67: 2942 | I67: TRUE | J67: TRUE | K67: 15 | O67: 1 | Q67: 45489.20765 | R67: 5142.768558 | S67: -3483.251426 | AA67: FALSE | AB67: FALSE | AC67: FALSE | AD67: FALSE | AE67: FALSE | AF67: FALSE | AH67: 0.7 | AQ67: 45489.20765 | AR67: 5142.768558 | AS67: -3483.251426 | AT67: 18111.15536 | AU67: 26225.70865 | AV67: 0.1162596214 | AW67: 0.1162596214 | AX67: 27377.93603 | AY67: 65738.18375 | AZ67: 45489.20765 | BA67: 5142.768558 | BB67: -3483.251426 | BC67: 18111.15536 | BD67: 26225.70865 | BE67: 0.1162596214 | BF67: 0.1162596214 | BG67: 27377.93603 | BH67: 65738.18375 | BI67: 2012-07-06T08:00:00 | BJ67: RDC - Pic del Comapedrosa | BK67: 2942 | BL67: 2061.495963 | BM67: 2939.846134 | BN67: 2503.973139 | BO67: 42,591738 | BP67: 1,443687 | BR67: 15,RDC - Pic del Comapedrosa,RDC - Refuge - Pla de l'Estany >>> RDC - Pic del Comapedrosa,TRUE,TRUE,X,X,X,X,FALSE,FALSE,FALSE,FALSE,FALSE,FALSE,70% | BT67: 15 | BU67: TRUE | BV67: TRUE | BW67: X | BX67: X | BY67: X | BZ67: X | CA67: FALSE | CB67: FALSE | CC67: FALSE | CD67: FALSE | CE67: FALSE | CF67: FALSE | CG67: 0.7
B68: 16 | C68: RDC - Estany Negre | G68: 2640 | I68: TRUE | J68: TRUE | K68: 16 | O68: 1 | Q68: =IF($I68,($AQ68-$AQ67),0)+IF($O68=$O67,Q67,0) -> 46574.85627 | R68: =IF($I68,($AR68-$AR67),0)+IF($O68=$O67,R67,0) -> 5142.768558 | S68: =IF($I68,($AS68-$AS67),0)+IF($O68=$O67,S67,0) -> -3783.389107 | V68: =IF($U68<>"",$BI68+$U68,"") ->  | AA68: FALSE | AB68: FALSE | AC68: FALSE | AD68: FALSE | AE68: FALSE | AF68: FALSE | AH68: 0.7 | AQ68: 46574.85627 | AR68: 5142.768558 | AS68: -3783.389107 | AT68: 19196.80398 | AU68: 28300.51944 | AV68: 0.1162596214 | AW68: 0.1162596214 | AX68: 27377.93603 | AY68: 65738.18375 | AZ68: 46574.85627 | BA68: 5142.768558 | BB68: -3783.389107 | BC68: 19196.80398 | BD68: 28300.51944 | BE68: 0.1162596214 | BF68: 0.1162596214 | BG68: 27377.93603 | BH68: 65738.18375 | BI68: 2012-07-06T08:00:00 | BJ68: RDC - Estany Negre | BK68: 2640 | BL68: 2639.708454 | BM68: 2939.846134 | BN68: 2738.021875 | BO68: 42,587865 | BP68: 1,438289 | BR68: 16,RDC - Estany Negre,RDC - Pic del Comapedrosa >>> RDC - Estany Negre,TRUE,TRUE,X,X,X,X,FALSE,FALSE,FALSE,FALSE,FALSE,FALSE,70% | BT68: 16 | BU68: TRUE | BV68: TRUE | BW68: X | BX68: X | BY68: X | BZ68: X | CA68: FALSE | CB68: FALSE | CC68: FALSE | CD68: FALSE | CE68: FALSE | CF68: FALSE | CG68: =VLOOKUP($BT68,RBB_Table,CG$52,FALSE) -> 0.7
B69: 17 | C69: RDC - Refuge Comapedrosa | G69: 2260 | I69: TRUE | J69: TRUE | K69: 17 | O69: =O68+IF(AND($I68,$M68<>"",$N68<>""),1,0) -> 1 | Q69: =IF($I69,($AQ69-$AQ68),0)+IF($O69=$O68,Q68,0) -> 49149.49564 | R69: =IF($I69,($AR69-$AR68),0)+IF($O69=$O68,R68,0) -> 5180.704394 | S69: =IF($I69,($AS69-$AS68),0)+IF($O69=$O68,S68,0) -> -4200.071845 | V69: =IF($U69<>"",$BI69+$U69,"") ->  | AA69: TRUE | AB69: TRUE | AC69: TRUE | AD69: FALSE | AE69: FALSE | AF69: FALSE | AH69: 0.88 | AQ69: 49149.49564 | AR69: 5180.704394 | AS69: -4200.071845 | AT69: 21451.37925 | AU69: 31466.49869 | AV69: 0.1162596214 | AW69: 0.1162596214 | AX69: 27698.00013 | AY69: 66304.06146 | AZ69: 49149.49564 | BA69: 5180.704394 | BB69: -4200.071845 | BC69: 21451.37925 | BD69: 31466.49869 | BE69: 0.1162596214 | BF69: 0.1162596214 | BG69: 27698.00013 | BH69: 66304.06146 | BI69: 2012-07-06T08:00:00 | BJ69: RDC - Refuge Comapedrosa | BK69: 2260 | BL69: 2260.961551 | BM69: 2639.708454 | BN69: 2421.868189 | BO69: 42,579059 | BP69: 1,449327 | BR69: 17,RDC - Refuge Comapedrosa,RDC - Estany Negre >>> RDC - Refuge Comapedrosa,TRUE,TRUE,X,X,X,X,TRUE,TRUE,TRUE,FALSE,FALSE,FALSE,88% | BT69: 17 | BU69: TRUE | BV69: TRUE | BW69: X | BX69: X | BY69: X | BZ69: X | CA69: TRUE | CB69: TRUE | CC69: TRUE | CD69: FALSE | CE69: FALSE | CF69: FALSE | CG69: 0.88
B70: 18 | C70: RDC - Portella de Sanfons | G70: 2592 | I70: TRUE | J70: TRUE | K70: 18 | O70: =O69+IF(AND($I69,$M69<>"",$N69<>""),1,0) -> 1 | Q70: 50876.81498 | R70: 5509.105893 | S70: -4201.802759 | AA70: FALSE | AB70: FALSE | AC70: FALSE | AD70: FALSE | AE70: FALSE | AF70: FALSE | AH70: 0.88 | AQ70: 50876.81498 | AR70: 5509.105893 | AS70: -4201.802759 | AT70: 21460.79012 | AU70: 31477.80521 | AV70: 0.1162596214 | AW70: 0.1162596214 | AX70: 29415.9086 | AY70: 70402.3543 | AZ70: 50876.81498 | BA70: 5509.105893 | BB70: -4201.802759 | BC70: 21460.79012 | BD70: 31477.80521 | BE70: 0.1162596214 | BF70: 0.1162596214 | BG70: 29415.9086 | BH70: 70402.3543 | BI70: 2012-07-06T08:00:00 | BJ70: RDC - Portella de Sanfons | BK70: 2592 | BL70: 2260.961551 | BM70: 2587.632136 | BN70: 2412.74235 | BO70: 42,573094 | BP70: 1,436875 | BR70: 18,RDC - Portella de Sanfons,RDC - Refuge Comapedrosa >>> RDC - Portella de Sanfons,TRUE,TRUE,X,X,X,X,FALSE,FALSE,FALSE,FALSE,FALSE,FALSE,88% | BT70: 18 | BU70: TRUE | BV70: TRUE | BW70: X | BX70: X | BY70: X | BZ70: X | CA70: FALSE | CB70: FALSE | CC70: FALSE | CD70: FALSE | CE70: FALSE | CF70: FALSE | CG70: 0.88
B71: 19 | C71: RDC - Port Negre | G71: 2474 | I71: TRUE | J71: TRUE | K71: 19 | O71: 1 | Q71: 52101.26244 | R71: 5521.206453 | S71: -4327.833442 | AA71: FALSE | AB71: FALSE | AC71: FALSE | AD71: FALSE | AE71: FALSE | AF71: FALSE | AH71: 0.88 | AQ71: 52101.26244 | AR71: 5521.206453 | AS71: -4327.833442 | AT71: 22434.68157 | AU71: 32563.16173 | AV71: 0.1162596214 | AW71: 0.1162596214 | AX71: 29666.46462 | AY71: 70701.41077 | AZ71: 52101.26244 | BA71: 5521.206453 | BB71: -4327.833442 | BC71: 22434.68157 | BD71: 32563.16173 | BE71: 0.1162596214 | BF71: 0.1162596214 | BG71: 29666.46462 | BH71: 70701.41077 | BI71: 2012-07-06T08:00:00 | BJ71: RDC - Port Negre | BK71: 2474 | BL71: 2473.702013 | BM71: 2587.632136 | BN71: 2510.740889 | BO71: 42,566138 | BP71: 1,445514 | BR71: 19,RDC - Port Negre,RDC - Portella de Sanfons >>> RDC - Port Negre,TRUE,TRUE,X,X,X,X,FALSE,FALSE,FALSE,FALSE,FALSE,FALSE,88% | BT71: 19 | BU71: TRUE | BV71: TRUE | BW71: X | BX71: X | BY71: X | BZ71: X | CA71: FALSE | CB71: FALSE | CC71: FALSE | CD71: FALSE | CE71: FALSE | CF71: FALSE | CG71: 0.88
B72: 20 | C72: RDC - Coll de la Botella | G72: 2047 | I72: TRUE | J72: TRUE | K72: 20 | O72: 1 | Q72: 55622.22587 | R72: 5530.408216 | S72: -4761.303137 | AA72: TRUE | AB72: TRUE | AC72: TRUE | AD72: FALSE | AE72: FALSE | AF72: FALSE | AH72: 0.88 | AQ72: 55622.22587 | AR72: 5530.408216 | AS72: -4761.303137 | AT72: 25607.97859 | AU72: 36255.90768 | AV72: 0.1162596214 | AW72: 0.1162596214 | AX72: 30014.13101 | AY72: 71086.62818 | AZ72: 55622.22587 | BA72: 5530.408216 | BB72: -4761.303137 | BC72: 25607.97859 | BD72: 36255.90768 | BE72: 0.1162596214 | BF72: 0.1162596214 | BG72: 30014.13101 | BH72: 71086.62818 | BI72: 2012-07-06T08:00:00 | BJ72: RDC - Coll de la Botella | BK72: 2047 | BL72: 2049.30383 | BM72: 2473.702013 | BN72: 2216.402608 | BO72: 42,544783 | BP72: 1,453130 | BR72: 20,RDC - Coll de la Botella,RDC - Port Negre >>> RDC - Coll de la Botella,TRUE,TRUE,X,X,X,X,TRUE,TRUE,TRUE,FALSE,FALSE,FALSE,88% | BT72: 20 | BU72: TRUE | BV72: TRUE | BW72: X | BX72: X | BY72: X | BZ72: X | CA72: TRUE | CB72: TRUE | CC72: TRUE | CD72: FALSE | CE72: FALSE | CF72: FALSE | CG72: 0.88
B73: 21 | C73: RDC - Collada Montaner | G73: 2084 | I73: TRUE | J73: TRUE | K73: 21 | O73: 1 | Q73: 59961.38788 | R73: 5749.617341 | S73: -4940.105088 | AA73: FALSE | AB73: FALSE | AC73: FALSE | AD73: FALSE | AE73: FALSE | AF73: FALSE | AH73: 0.88 | AQ73: =VLOOKUP($B73,RC_Table,AQ$50,TRUE) -> 59961.38788 | AR73: 5749.617341 | AS73: -4940.105088 | AT73: 27994.40821 | AU73: 38689.16395 | AV73: 0.1162596214 | AW73: 0.1162596214 | AX73: 31966.86341 | AY73: 74415.15022 | AZ73: 59961.38788 | BA73: 5749.617341 | BB73: -4940.105088 | BC73: 27994.40821 | BD73: 38689.16395 | BE73: 0.1162596214 | BF73: 0.1162596214 | BG73: 31966.86341 | BH73: 74415.15022 | BI73: 2012-07-06T08:00:00 | BJ73: RDC - Collada Montaner | BK73: 2084 | BL73: 2049.434081 | BM73: 2162.400086 | BN73: 2128.444407 | BO73: 42,516318 | BP73: 1,464666 | BR73: 21,RDC - Collada Montaner,RDC - Coll de la Botella >>> RDC - Collada Montaner,TRUE,TRUE,X,X,X,X,FALSE,FALSE,FALSE,FALSE,FALSE,FALSE,88% | BT73: 21 | BU73: =VLOOKUP($BT73,RBB_Table,BU$52,FALSE) -> TRUE | BV73: TRUE | BW73: X | BX73: X | BY73: X | BZ73: X | CA73: FALSE | CB73: FALSE | CC73: FALSE | CD73: FALSE | CE73: FALSE | CF73: FALSE | CG73: 0.88
B74: 22 | C74: RDC - Pic d'Enclar | G74: 2380 | I74: TRUE | J74: TRUE | K74: 22 | O74: 1 | Q74: 60786.39955 | R74: 6035.462971 | S74: -4940.105088 | AA74: FALSE | AB74: FALSE | AC74: FALSE | AD74: FALSE | AE74: FALSE | AF74: FALSE | AH74: 0.88 | AQ74: 60786.39955 | AR74: 6035.462971 | AS74: -4940.105088 | AT74: 27994.40821 | AU74: 38689.16395 | AV74: 0.1162596214 | AW74: 0.1162596214 | AX74: 32791.87508 | AY74: 77661.95831 | AZ74: 60786.39955 | BA74: 6035.462971 | BB74: -4940.105088 | BC74: 27994.40821 | BD74: 38689.16395 | BE74: 0.1162596214 | BF74: 0.1162596214 | BG74: 32791.87508 | BH74: 77661.95831 | BI74: 2012-07-06T08:00:00 | BJ74: RDC - Pic d'Enclar | BK74: 2380 | BL74: 2089.841256 | BM74: 2375.686886 | BN74: 2208.81826 | BO74: 42,509882 | BP74: 1,467567 | BR74: 22,RDC - Pic d'Enclar,RDC - Collada Montaner >>> RDC - Pic d'Enclar,TRUE,TRUE,X,X,X,X,FALSE,FALSE,FALSE,FALSE,FALSE,FALSE,88% | BT74: 22 | BU74: TRUE | BV74: TRUE | BW74: X | BX74: X | BY74: X | BZ74: X | CA74: FALSE | CB74: FALSE | CC74: FALSE | CD74: FALSE | CE74: FALSE | CF74: FALSE | CG74: 0.88
B75: 23 | C75: RDC - Bony de la Pica | G75: 2406 | I75: TRUE | J75: TRUE | K75: 23 | O75: 1 | Q75: 61701.24509 | R75: 6113.748706 | S75: -4990.670894 | AA75: FALSE | AB75: FALSE | AC75: FALSE | AD75: FALSE | AE75: FALSE | AF75: FALSE | AH75: 0.88 | AQ75: 61701.24509 | AR75: 6113.748706 | AS75: -4990.670894 | AT75: 28402.23861 | AU75: 39098.93673 | AV75: 0.1162596214 | AW75: 0.1162596214 | AX75: 33298.89022 | AY75: 78648.86755 | AZ75: 61701.24509 | BA75: 6113.748706 | BB75: -4990.670894 | BC75: 28402.23861 | BD75: 39098.93673 | BE75: 0.1162596214 | BF75: 0.1162596214 | BG75: 33298.89022 | BH75: 78648.86755 | BI75: 2012-07-06T08:00:00 | BJ75: RDC - Bony de la Pica | BK75: 2406 | BL75: 2330.02836 | BM75: 2403.406815 | BN75: 2361.60494 | BO75: 42,504460 | BP75: 1,460204 | BR75: 23,RDC - Bony de la Pica,RDC - Pic d'Enclar >>> RDC - Bony de la Pica,TRUE,TRUE,X,X,X,X,FALSE,FALSE,FALSE,FALSE,FALSE,FALSE,88% | BT75: 23 | BU75: TRUE | BV75: TRUE | BW75: X | BX75: X | BY75: X | BZ75: X | CA75: FALSE | CB75: FALSE | CC75: FALSE | CD75: FALSE | CE75: FALSE | CF75: FALSE | CG75: 0.88
B76: 24 | C76: RDC - Les Comes | G76: 2100 | I76: TRUE | J76: TRUE | K76: 24 | O76: 1 | Q76: 63053.25849 | R76: 6131.564266 | S76: -5312.011875 | AA76: FALSE | AB76: FALSE | AC76: FALSE | AD76: FALSE | AE76: FALSE | AF76: FALSE | AH76: 0.7 | AQ76: 63053.25849 | AR76: 6131.564266 | AS76: -5312.011875 | AT76: 29635.74389 | AU76: 41248.65749 | AV76: 0.1162596214 | AW76: 0.1162596214 | AX76: 33417.39834 | AY76: 78896.16645 | AZ76: 63053.25849 | BA76: 6131.564266 | BB76: -5312.011875 | BC76: 29635.74389 | BD76: 41248.65749 | BE76: 0.1162596214 | BF76: 0.1162596214 | BG76: 33417.39834 | BH76: 78896.16645 | BI76: 2012-07-06T08:00:00 | BJ76: RDC - Les Comes | BK76: 2100 | BL76: 2099.881393 | BM76: 2403.406815 | BN76: 2215.666757 | BO76: 42,497710 | BP76: 1,469843 | BR76: 24,RDC - Les Comes,RDC - Bony de la Pica >>> RDC - Les Comes,TRUE,TRUE,X,X,X,X,FALSE,FALSE,FALSE,FALSE,FALSE,FALSE,70% | BT76: 24 | BU76: TRUE | BV76: TRUE | BW76: X | BX76: X | BY76: X | BZ76: X | CA76: FALSE | CB76: FALSE | CC76: FALSE | CD76: FALSE | CE76: FALSE | CF76: FALSE | CG76: 0.7
B77: 25 | C77: RDC - Aixàs | G77: 1530 | I77: TRUE | J77: TRUE | K77: 25 | O77: 1 | Q77: 65031.59684 | R77: 6137.101466 | S77: -5888.393877 | AA77: FALSE | AB77: FALSE | AC77: FALSE | AD77: FALSE | AE77: FALSE | AF77: FALSE | AH77: 0.88 | AQ77: 65031.59684 | AR77: 6137.101466 | AS77: -5888.393877 | AT77: 31550.6324 | AU77: 45072.18199 | AV77: 0.1162596214 | AW77: 0.1162596214 | AX77: 33480.84819 | AY77: 78987.00859 | AZ77: 65031.59684 | BA77: 6137.101466 | BB77: -5888.393877 | BC77: 31550.6324 | BD77: 45072.18199 | BE77: 0.1162596214 | BF77: 0.1162596214 | BG77: 33480.84819 | BH77: 78987.00859 | BI77: 2012-07-06T08:00:00 | BJ77: RDC - Aixàs | BK77: 1530 | BL77: 1529.036592 | BM77: 2099.881393 | BN77: 1770.550723 | BO77: 42,486205 | BP77: 1,467363 | BR77: 25,RDC - Aixàs,RDC - Les Comes >>> RDC - Aixàs,TRUE,TRUE,X,X,X,X,FALSE,FALSE,FALSE,FALSE,FALSE,FALSE,88% | BT77: 25 | BU77: TRUE | BV77: TRUE | BW77: X | BX77: X | BY77: X | BZ77: X | CA77: FALSE | CB77: FALSE | CC77: FALSE | CD77: FALSE | CE77: FALSE | CF77: FALSE | CG77: 0.88
B78: 26 | C78: RDC - Coll Jovell | G78: 1582 | I78: TRUE | J78: TRUE | K78: 26 | O78: 1 | Q78: 66169.09296 | R78: 6251.203372 | S78: -5950.98805 | AA78: FALSE | AB78: FALSE | AC78: FALSE | AD78: FALSE | AE78: FALSE | AF78: FALSE | AH78: 0.88 | AQ78: 66169.09296 | AR78: 6251.203372 | AS78: -5950.98805 | AT78: 32145.71779 | AU78: 45713.86092 | AV78: 0.1162596214 | AW78: 0.1162596214 | AX78: 34023.25892 | AY78: 80456.21709 | AZ78: 66169.09296 | BA78: 6251.203372 | BB78: -5950.98805 | BC78: 32145.71779 | BD78: 45713.86092 | BE78: 0.1162596214 | BF78: 0.1162596214 | BG78: 34023.25892 | BH78: 80456.21709 | BI78: 2012-07-06T08:00:00 | BJ78: RDC - Coll Jovell | BK78: 1582 | BL78: 1470.327026 | BM78: 1580.544324 | BN78: 1507.383601 | BO78: 42,485279 | BP78: 1,476967 | BR78: 26,RDC - Coll Jovell,RDC - Aixàs >>> RDC - Coll Jovell,TRUE,TRUE,X,X,X,X,FALSE,FALSE,FALSE,FALSE,FALSE,FALSE,88% | BT78: 26 | BU78: TRUE | BV78: TRUE | BW78: X | BX78: X | BY78: X | BZ78: X | CA78: FALSE | CB78: FALSE | CC78: FALSE | CD78: FALSE | CE78: FALSE | CF78: FALSE | CG78: 0.88
B79: 27 | C79: RDC - Margineda | G79: 948 | I79: TRUE | J79: TRUE | K79: 27 | O79: 1 | Q79: 68992.57523 | R79: 6323.268513 | S79: -6653.791822 | X79: 1.041666667 | Y79: 2012-07-07T09:00:00 | AA79: TRUE | AB79: TRUE | AC79: TRUE | AD79: TRUE | AE79: TRUE | AF79: FALSE | AH79: 0.88 | AQ79: 68992.57523 | AR79: 6323.268513 | AS79: -6653.791822 | AT79: 34468.29235 | AU79: 50394.84314 | AV79: 0.1162596214 | AW79: 0.1162596214 | AX79: 34524.16661 | AY79: 81482.92359 | AZ79: 68992.57523 | BA79: 6323.268513 | BB79: -6653.791822 | BC79: 34468.29235 | BD79: 50394.84314 | BE79: 0.1162596214 | BF79: 0.1162596214 | BG79: 34524.16661 | BH79: 81482.92359 | BI79: 2012-07-06T08:00:00 | BJ79: RDC - Margineda | BK79: 948 | BL79: 949.805694 | BM79: 1580.544324 | BN79: 1279.734356 | BO79: 42,487321 | BP79: 1,491384 | BR79: 27,RDC - Margineda,RDC - Coll Jovell >>> RDC - Margineda,TRUE,TRUE,X,X,X,25:00,TRUE,TRUE,TRUE,TRUE,TRUE,FALSE,88% | BT79: 27 | BU79: TRUE | BV79: TRUE | BW79: X | BX79: X | BY79: X | BZ79: 1.041666667 | CA79: TRUE | CB79: TRUE | CC79: TRUE | CD79: TRUE | CE79: TRUE | CF79: FALSE | CG79: 0.88
B80: 28 | C80: RDC - Collet Marti | G80: 1450 | I80: TRUE | J80: TRUE | K80: 28 | O80: 1 | Q80: 73491.55039 | R80: 7006.133312 | S80: -6834.362424 | AA80: FALSE | AB80: FALSE | AC80: FALSE | AD80: FALSE | AE80: FALSE | AF80: FALSE | AH80: 0.88 | AQ80: 73491.55039 | AR80: 7006.133312 | AS80: -6834.362424 | AT80: 35876.87184 | AU80: 52096.6604 | AV80: 0.1162596214 | AW80: 0.1162596214 | AX80: 37614.56229 | AY80: 90138.69349 | AZ80: 73491.55039 | BA80: 7006.133312 | BB80: -6834.362424 | BC80: 35876.87184 | BD80: 52096.6604 | BE80: 0.1162596214 | BF80: 0.1162596214 | BG80: 37614.56229 | BH80: 90138.69349 | BI80: 2012-07-06T08:00:00 | BJ80: RDC - Collet Marti | BK80: 1450 | BL80: 931.5958 | BM80: 1478.559826 | BN80: 1107.470092 | BO80: 42,473026 | BP80: 1,467835 | BR80: 28,RDC - Collet Marti,RDC - Margineda >>> RDC - Collet Marti,TRUE,TRUE,X,X,X,X,FALSE,FALSE,FALSE,FALSE,FALSE,FALSE,88% | BT80: 28 | BU80: TRUE | BV80: TRUE | BW80: X | BX80: X | BY80: X | BZ80: X | CA80: FALSE | CB80: FALSE | CC80: FALSE | CD80: FALSE | CE80: FALSE | CF80: FALSE | CG80: 0.88
B81: 29 | C81: RDC - Coll de la Gallina | G81: 1910 | I81: TRUE | J81: TRUE | K81: 29 | O81: 1 | Q81: 77417.7068 | R81: 7487.362259 | S81: -6860.278379 | AA81: FALSE | AB81: FALSE | AC81: FALSE | AD81: FALSE | AE81: FALSE | AF81: FALSE | AH81: 0.88 | AQ81: 77417.7068 | AR81: 7487.362259 | AS81: -6860.278379 | AT81: 36293.93387 | AU81: 52506.86769 | AV81: 74.16151471 | AW81: 74.16151471 | AX81: 41049.61142 | AY81: 96798.05012 | AZ81: 77417.7068 | BA81: 7487.362259 | BB81: -6860.278379 | BC81: 36293.93387 | BD81: 52506.86769 | BE81: 74.16151471 | BF81: 74.16151471 | BG81: 41049.61142 | BH81: 96798.05012 | BI81: 2012-07-06T08:00:00 | BJ81: RDC - Coll de la Gallina | BK81: 1910 | BL81: 1452.09989 | BM81: 1907.771791 | BN81: 1695.522448 | BO81: 42,459359 | BP81: 1,450247 | BR81: 29,RDC - Coll de la Gallina,RDC - Collet Marti >>> RDC - Coll de la Gallina,TRUE,TRUE,X,X,X,X,FALSE,FALSE,FALSE,FALSE,FALSE,FALSE,88% | BT81: 29 | BU81: TRUE | BV81: TRUE | BW81: X | BX81: X | BY81: X | BZ81: X | CA81: FALSE | CB81: FALSE | CC81: FALSE | CD81: FALSE | CE81: FALSE | CF81: FALSE | CG81: 0.88
B82: 30 | C82: RDC - Fontaneda | G82: 1300 | I82: TRUE | J82: TRUE | K82: 30 | O82: 1 | Q82: 81438.11344 | R82: 7530.638779 | S82: -7510.973802 | AA82: FALSE | AB82: FALSE | AC82: FALSE | AD82: FALSE | AE82: FALSE | AF82: FALSE | AH82: 0.88 | AQ82: 81438.11344 | AR82: 7530.638779 | AS82: -7510.973802 | AT82: 39955.31079 | AU82: 57296.9812 | AV82: 74.16151471 | AW82: 74.16151471 | AX82: 41408.64114 | AY82: 97449.16146 | AZ82: 81438.11344 | BA82: 7530.638779 | BB82: -7510.973802 | BC82: 39955.31079 | BD82: 57296.9812 | BE82: 74.16151471 | BF82: 74.16151471 | BG82: 41408.64114 | BH82: 97449.16146 | BI82: 2012-07-06T08:00:00 | BJ82: RDC - Fontaneda | BK82: 1300 | BL82: 1299.993979 | BM82: 1907.412883 | BN82: 1607.146593 | BO82: 42,454473 | BP82: 1,464074 | BR82: 30,RDC - Fontaneda,RDC - Coll de la Gallina >>> RDC - Fontaneda,TRUE,TRUE,X,X,X,X,FALSE,FALSE,FALSE,FALSE,FALSE,FALSE,88% | BT82: 30 | BU82: TRUE | BV82: TRUE | BW82: X | BX82: X | BY82: X | BZ82: X | CA82: FALSE | CB82: FALSE | CC82: FALSE | CD82: FALSE | CE82: FALSE | CF82: FALSE | CG82: 0.88
B83: 31 | C83: RDC - Sant Julia de Loria | G83: 890 | I83: TRUE | J83: TRUE | K83: 31 | O83: 1 | Q83: 84507.17114 | R83: 7583.767639 | S83: -7974.211407 | AA83: FALSE | AB83: FALSE | AC83: FALSE | AD83: FALSE | AE83: FALSE | AF83: FALSE | AH83: 0.88 | AQ83: 84507.17114 | AR83: 7583.767639 | AS83: -7974.211407 | AT83: 42544.927 | AU83: 60694.50414 | AV83: 74.16151471 | AW83: 74.16151471 | AX83: 41888.08263 | AY83: 98252.21223 | AZ83: 84507.17114 | BA83: 7583.767639 | BB83: -7974.211407 | BC83: 42544.927 | BD83: 60694.50414 | BE83: 74.16151471 | BF83: 74.16151471 | BG83: 41888.08263 | BH83: 98252.21223 | BI83: 2012-07-06T08:00:00 | BJ83: RDC - Sant Julia de Loria | BK83: 890 | BL83: 889.8852342 | BM83: 1299.993979 | BN83: 1067.514203 | BO83: 42,458529 | BP83: 1,488134 | BR83: 31,RDC - Sant Julia de Loria,RDC - Fontaneda >>> RDC - Sant Julia de Loria,TRUE,TRUE,X,X,X,X,FALSE,FALSE,FALSE,FALSE,FALSE,FALSE,88% | BT83: 31 | BU83: TRUE | BV83: TRUE | BW83: X | BX83: X | BY83: X | BZ83: X | CA83: FALSE | CB83: FALSE | CC83: FALSE | CD83: FALSE | CE83: FALSE | CF83: FALSE | CG83: 0.88
B84: 32 | C84: RDC - Auvinyà | G84: 1230 | I84: TRUE | J84: TRUE | K84: 32 | O84: 1 | Q84: 86427.44456 | R84: 7937.212203 | S84: -7989.613021 | AA84: FALSE | AB84: FALSE | AC84: FALSE | AD84: FALSE | AE84: FALSE | AF84: FALSE | AH84: 0.88 | AQ84: 86427.44456 | AR84: 7937.212203 | AS84: -7989.613021 | AT84: 42962.28548 | AU84: 61092.91708 | AV84: 74.16151471 | AW84: 74.16151471 | AX84: 43390.99757 | AY84: 102570.7752 | AZ84: 86427.44456 | BA84: 7937.212203 | BB84: -7989.613021 | BC84: 42962.28548 | BD84: 61092.91708 | BE84: 74.16151471 | BF84: 74.16151471 | BG84: 43390.99757 | BH84: 102570.7752 | BI84: 2012-07-06T08:00:00 | BJ84: RDC - Auvinyà | BK84: 1230 | BL84: 883.3126602 | BM84: 1227.928184 | BN84: 1005.169432 | BO84: 42,453557 | BP84: =VLOOKUP($B84,RC_Table,BP$50,TRUE) -> 1,495418 | BR84: 32,RDC - Auvinyà,RDC - Sant Julia de Loria >>> RDC - Auvinyà,TRUE,TRUE,X,X,X,X,FALSE,FALSE,FALSE,FALSE,FALSE,FALSE,88% | BT84: 32 | BU84: TRUE | BV84: TRUE | BW84: X | BX84: X | BY84: X | BZ84: X | CA84: FALSE | CB84: FALSE | CC84: FALSE | CD84: FALSE | CE84: FALSE | CF84: FALSE | CG84: 0.88
B85: 33 | C85: RDC - Coma Bella | G85: 1390 | I85: TRUE | J85: TRUE | K85: 33 | O85: 1 | Q85: 88018.62332 | R85: 8113.297301 | S85: -8001.801371 | AA85: TRUE | AB85: TRUE | AC85: TRUE | AD85: FALSE | AE85: FALSE | AF85: FALSE | AH85: 0.88 | AQ85: 88018.62332 | AR85: 8113.297301 | AS85: -8001.801371 | AT85: 43203.04515 | AU85: 61322.92971 | AV85: 74.16151471 | AW85: 74.16151471 | AX85: 44741.41665 | AY85: 105135.4516 | AZ85: 88018.62332 | BA85: 8113.297301 | BB85: -8001.801371 | BC85: 43203.04515 | BD85: 61322.92971 | BE85: 74.16151471 | BF85: 74.16151471 | BG85: 44741.41665 | BH85: 105135.4516 | BI85: 2012-07-06T08:00:00 | BJ85: RDC - Coma Bella | BK85: 1390 | BL85: 1227.928184 | BM85: 1394.83592 | BN85: 1313.011351 | BO85: 42,444516 | BP85: 1,494378 | BR85: 33,RDC - Coma Bella,RDC - Auvinyà >>> RDC - Coma Bella,TRUE,TRUE,X,X,X,X,TRUE,TRUE,TRUE,FALSE,FALSE,FALSE,88% | BT85: 33 | BU85: TRUE | BV85: TRUE | BW85: X | BX85: X | BY85: X | BZ85: X | CA85: TRUE | CB85: TRUE | CC85: TRUE | CD85: FALSE | CE85: FALSE | CF85: FALSE | CG85: 0.88
B86: 34 | C86: RDC - Pardella | G86: 1480 | I86: TRUE | J86: TRUE | K86: 34 | O86: 1 | Q86: 94699.45026 | R86: 8661.357516 | S86: -8463.773455 | AA86: FALSE | AB86: FALSE | AC86: FALSE | AD86: FALSE | AE86: FALSE | AF86: FALSE | AH86: 0.88 | AQ86: 94699.45026 | AR86: 8661.357516 | AS86: -8463.773455 | AT86: 46336.06565 | AU86: 65192.09127 | AV86: 74.16151471 | AW86: 74.16151471 | AX86: 48289.2231 | AY86: 112678.6385 | AZ86: 94699.45026 | BA86: 8661.357516 | BB86: -8463.773455 | BC86: 46336.06565 | BD86: 65192.09127 | BE86: 74.16151471 | BF86: 74.16151471 | BG86: 48289.2231 | BH86: 112678.6385 | BI86: 2012-07-06T08:00:00 | BJ86: RDC - Pardella | BK86: 1480 | BL86: 1194.41468 | BM86: 1570.485329 | BN86: 1386.967826 | BO86: 42,463514 | BP86: 1,517233 | BR86: 34,RDC - Pardella,RDC - Coma Bella >>> RDC - Pardella,TRUE,TRUE,X,X,X,X,FALSE,FALSE,FALSE,FALSE,FALSE,FALSE,88% | BT86: 34 | BU86: TRUE | BV86: TRUE | BW86: X | BX86: X | BY86: X | BZ86: X | CA86: FALSE | CB86: FALSE | CC86: FALSE | CD86: FALSE | CE86: FALSE | CF86: FALSE | CG86: 0.88
B87: 35 | C87: RDC - Cortals de Manyat | G87: 1650 | I87: TRUE | J87: TRUE | K87: 35 | O87: 1 | Q87: 99081.20588 | R87: 9158.321791 | S87: -8788.131241 | AA87: FALSE | AB87: FALSE | AC87: FALSE | AD87: FALSE | AE87: FALSE | AF87: FALSE | AH87: 0.88 | AQ87: 99081.20588 | AR87: 9158.321791 | AS87: -8788.131241 | AT87: 48324.03889 | AU87: 67716.4032 | AV87: 74.16151471 | AW87: 74.16151471 | AX87: 50683.00547 | AY87: 118812.418 | AZ87: 99081.20588 | BA87: 9158.321791 | BB87: -8788.131241 | BC87: 48324.03889 | BD87: 67716.4032 | BE87: 74.16151471 | BF87: 74.16151471 | BG87: 50683.00547 | BH87: 118812.418 | BI87: 2012-07-06T08:00:00 | BJ87: RDC - Cortals de Manyat | BK87: 1650 | BL87: 1271.11252 | BM87: 1650.519553 | BN87: 1394.430248 | BO87: 42,480401 | BP87: 1,510621 | BR87: 35,RDC - Cortals de Manyat,RDC - Pardella >>> RDC - Cortals de Manyat,TRUE,TRUE,X,X,X,X,FALSE,FALSE,FALSE,FALSE,FALSE,FALSE,88% | BT87: 35 | BU87: TRUE | BV87: TRUE | BW87: X | BX87: X | BY87: X | BZ87: X | CA87: FALSE | CB87: FALSE | CC87: FALSE | CD87: FALSE | CE87: FALSE | CF87: FALSE | CG87: 0.88
B88: 36 | C88: RDC - Caulla | G88: 2150 | I88: TRUE | J88: TRUE | K88: 36 | O88: 1 | Q88: 101243.8178 | R88: 9656.325506 | S88: -8788.131241 | AA88: FALSE | AB88: FALSE | AC88: FALSE | AD88: FALSE | AE88: FALSE | AF88: FALSE | AH88: 0.88 | AQ88: 101243.8178 | AR88: 9656.325506 | AS88: -8788.131241 | AT88: 48324.03889 | AU88: 67716.4032 | AV88: 74.16151471 | AW88: 74.16151471 | AX88: 52845.61738 | AY88: 124692.144 | AZ88: 101243.8178 | BA88: 9656.325506 | BB88: -8788.131241 | BC88: 48324.03889 | BD88: 67716.4032 | BE88: 74.16151471 | BF88: 74.16151471 | BG88: 52845.61738 | BH88: 124692.144 | BI88: 2012-07-06T08:00:00 | BJ88: RDC - Caulla | BK88: 2150 | BL88: 1650.519553 | BM88: 2148.523268 | BN88: 1890.763207 | BO88: 42,480636 | BP88: 1,532704 | BR88: 36,RDC - Caulla,RDC - Cortals de Manyat >>> RDC - Caulla,TRUE,TRUE,X,X,X,X,FALSE,FALSE,FALSE,FALSE,FALSE,FALSE,88% | BT88: 36 | BU88: TRUE | BV88: TRUE | BW88: X | BX88: X | BY88: X | BZ88: X | CA88: FALSE | CB88: FALSE | CC88: FALSE | CD88: FALSE | CE88: FALSE | CF88: FALSE | CG88: =VLOOKUP($BT88,RBB_Table,CG$52,FALSE) -> 0.88
B89: 37 | C89: RDC - Refuge de Prat Primer | G89: 2240 | I89: TRUE | J89: TRUE | K89: 37 | O89: 1 | Q89: 103243.0159 | R89: 9789.460608 | S89: -8828.413673 | AA89: FALSE | AB89: FALSE | AC89: FALSE | AD89: FALSE | AE89: FALSE | AF89: FALSE | AH89: 0.88 | AQ89: 103243.0159 | AR89: 9789.460608 | AS89: -8828.413673 | AT89: 48836.43524 | AU89: 68213.04684 | AV89: 74.16151471 | AW89: 74.16151471 | AX89: 54332.41911 | AY89: 126993.9498 | AZ89: 103243.0159 | BA89: 9789.460608 | BB89: -8828.413673 | BC89: 48836.43524 | BD89: 68213.04684 | BE89: 74.16151471 | BF89: 74.16151471 | BG89: 54332.41911 | BH89: 126993.9498 | BI89: 2012-07-06T08:00:00 | BJ89: RDC - Refuge de Prat Primer | BK89: 2240 | BL89: 2148.523268 | BM89: 2265.807 | BN89: 2210.470733 | BO89: 42,478472 | BP89: 1,550268 | BR89: 37,RDC - Refuge de Prat Primer,RDC - Caulla >>> RDC - Refuge de Prat Primer,TRUE,TRUE,X,X,X,X,FALSE,FALSE,FALSE,FALSE,FALSE,FALSE,88% | BT89: 37 | BU89: TRUE | BV89: TRUE | BW89: X | BX89: X | BY89: X | BZ89: X | CA89: FALSE | CB89: FALSE | CC89: FALSE | CD89: FALSE | CE89: FALSE | CF89: FALSE | CG89: 0.88
B90: 38 | C90: RDC - Coll Bou Mort | G90: 2501 | I90: TRUE | J90: TRUE | K90: 38 | O90: 1 | Q90: 104325.453 | R90: 10043.65039 | S90: -8828.604277 | AA90: FALSE | AB90: FALSE | AC90: FALSE | AD90: FALSE | AE90: FALSE | AF90: FALSE | AH90: 0.88 | AQ90: 104325.453 | AR90: 10043.65039 | AS90: -8828.604277 | AT90: 48852.52326 | AU90: 68228.6566 | AV90: 74.16151471 | AW90: 74.16151471 | AX90: 55398.76824 | AY90: 130028.8008 | AZ90: 104325.453 | BA90: 10043.65039 | BB90: -8828.604277 | BC90: 48852.52326 | BD90: 68228.6566 | BE90: 74.16151471 | BF90: 74.16151471 | BG90: 55398.76824 | BH90: 130028.8008 | BI90: 2012-07-06T08:00:00 | BJ90: RDC - Coll Bou Mort | BK90: 2501 | BL90: 2241.375937 | BM90: 2495.565719 | BN90: 2361.84193 | BO90: 42,472649 | BP90: 1,556754 | BR90: 38,RDC - Coll Bou Mort,RDC - Refuge de Prat Primer >>> RDC - Coll Bou Mort,TRUE,TRUE,X,X,X,X,FALSE,FALSE,FALSE,FALSE,FALSE,FALSE,88% | BT90: 38 | BU90: TRUE | BV90: TRUE | BW90: X | BX90: X | BY90: X | BZ90: X | CA90: FALSE | CB90: FALSE | CC90: FALSE | CD90: FALSE | CE90: FALSE | CF90: FALSE | CG90: 0.88
B91: 39 | C91: RDC - Refuge de Claror | G91: 2290 | I91: TRUE | J91: TRUE | K91: 39 | O91: 1 | Q91: 105121.3391 | R91: 10043.65039 | S91: -9036.690364 | AA91: FALSE | AB91: FALSE | AC91: FALSE | AD91: FALSE | AE91: FALSE | AF91: FALSE | AH91: 0.8 | AQ91: 105121.3391 | AR91: 10043.65039 | AS91: -9036.690364 | AT91: 49648.40938 | AU91: 69586.76448 | AV91: 74.16151471 | AW91: 74.16151471 | AX91: 55398.76824 | AY91: 130028.8008 | AZ91: 105121.3391 | BA91: 10043.65039 | BB91: -9036.690364 | BC91: 49648.40938 | BD91: 69586.76448 | BE91: 74.16151471 | BF91: 74.16151471 | BG91: 55398.76824 | BH91: 130028.8008 | BI91: 2012-07-06T08:00:00 | BJ91: RDC - Refuge de Claror | BK91: 2290 | BL91: 2287.289028 | BM91: 2495.375115 | BN91: 2372.773581 | BO91: 42,470072 | BP91: 1,563929 | BR91: 39,RDC - Refuge de Claror,RDC - Coll Bou Mort >>> RDC - Refuge de Claror,TRUE,TRUE,X,X,X,X,FALSE,FALSE,FALSE,FALSE,FALSE,FALSE,80% | BT91: 39 | BU91: TRUE | BV91: TRUE | BW91: X | BX91: X | BY91: X | BZ91: X | CA91: FALSE | CB91: FALSE | CC91: FALSE | CD91: FALSE | CE91: FALSE | CF91: FALSE | CG91: 0.8
B92: 40 | C92: RDC - Nou | G92: 2240 | I92: TRUE | J92: TRUE | K92: 40 | O92: 1 | Q92: 106576.5584 | R92: 10089.16554 | S92: -9130.20613 | AA92: FALSE | AB92: FALSE | AC92: FALSE | AD92: FALSE | AE92: FALSE | AF92: FALSE | AH92: 0.88 | AQ92: 106576.5584 | AR92: 10089.16554 | AS92: -9130.20613 | AT92: 50464.02758 | AU92: 70442.68214 | AV92: 74.16151471 | AW92: 74.16151471 | AX92: 56038.36927 | AY92: 130935.9342 | AZ92: 106576.5584 | BA92: 10089.16554 | BB92: -9130.20613 | BC92: 50464.02758 | BD92: 70442.68214 | BE92: 74.16151471 | BF92: 74.16151471 | BG92: 56038.36927 | BH92: 130935.9342 | BI92: 2012-07-06T08:00:00 | BJ92: RDC - Nou | BK92: 2240 | BL92: 2194.54052 | BM92: 2287.289028 | BN92: 2227.372952 | BO92: 42,475203 | BP92: 1,575017 | BR92: 40,RDC - Nou,RDC - Refuge de Claror >>> RDC - Nou,TRUE,TRUE,X,X,X,X,FALSE,FALSE,FALSE,FALSE,FALSE,FALSE,88% | BT92: 40 | BU92: TRUE | BV92: TRUE | BW92: X | BX92: X | BY92: X | BZ92: X | CA92: FALSE | CB92: FALSE | CC92: FALSE | CD92: FALSE | CE92: FALSE | CF92: FALSE | CG92: 0.88
B93: 41 | C93: RDC - Refuge de Perafita | G93: 2200 | I93: TRUE | J93: TRUE | K93: 41 | O93: 1 | Q93: 107349.8821 | R93: 10105.75751 | S93: -9186.09631 | AA93: TRUE | AB93: TRUE | AC93: TRUE | AD93: FALSE | AE93: FALSE | AF93: FALSE | AH93: 0.88 | AQ93: =VLOOKUP($B93,RC_Table,AQ$50,TRUE) -> 107349.8821 | AR93: 10105.75751 | AS93: -9186.09631 | AT93: 50955.93928 | AU93: 70943.15119 | AV93: 74.16151471 | AW93: 74.16151471 | AX93: 56319.78132 | AY93: 131285.889 | AZ93: 107349.8821 | BA93: 10105.75751 | BB93: -9186.09631 | BC93: 50955.93928 | BD93: 70943.15119 | BE93: 74.16151471 | BF93: 74.16151471 | BG93: 56319.78132 | BH93: 131285.889 | BI93: 2012-07-06T08:00:00 | BJ93: RDC - Refuge de Perafita | BK93: 2200 | BL93: 2185.176887 | BM93: 2239.288416 | BN93: 2203.209298 | BO93: 42,479698 | BP93: 1,578268 | BR93: 41,RDC - Refuge de Perafita,RDC - Nou >>> RDC - Refuge de Perafita,TRUE,TRUE,X,X,X,X,TRUE,TRUE,TRUE,FALSE,FALSE,FALSE,88% | BT93: 41 | BU93: =VLOOKUP($BT93,RBB_Table,BU$52,FALSE) -> TRUE | BV93: TRUE | BW93: X | BX93: X | BY93: X | BZ93: X | CA93: TRUE | CB93: TRUE | CC93: TRUE | CD93: FALSE | CE93: FALSE | CF93: FALSE | CG93: 0.88
B94: 42 | C94: RDC - Collada Maiana | G94: 2424 | I94: TRUE | J94: TRUE | K94: 42 | O94: 1 | Q94: 109310.693 | R94: 10330.05582 | S94: -9187.85907 | AA94: FALSE | AB94: FALSE | AC94: FALSE | AD94: FALSE | AE94: FALSE | AF94: FALSE | AH94: 0.88 | AQ94: 109310.693 | AR94: 10330.05582 | AS94: -9187.85907 | AT94: 51013.22096 | AU94: 70996.8115 | AV94: 74.16151471 | AW94: 74.16151471 | AX94: 58223.31051 | AY94: 134534.7283 | AZ94: 109310.693 | BA94: 10330.05582 | BB94: -9187.85907 | BC94: 51013.22096 | BD94: 70996.8115 | BE94: 74.16151471 | BF94: 74.16151471 | BG94: 58223.31051 | BH94: 134534.7283 | BI94: 2012-07-06T08:00:00 | BJ94: RDC - Collada Maiana | BK94: 2424 | BL94: 2199.990199 | BM94: 2422.525749 | BN94: 2335.70875 | BO94: 42,478787 | BP94: 1,598672 | BR94: 42,RDC - Collada Maiana,RDC - Refuge de Perafita >>> RDC - Collada Maiana,TRUE,TRUE,X,X,X,X,FALSE,FALSE,FALSE,FALSE,FALSE,FALSE,88% | BT94: 42 | BU94: TRUE | BV94: TRUE | BW94: X | BX94: X | BY94: X | BZ94: X | CA94: FALSE | CB94: FALSE | CC94: FALSE | CD94: FALSE | CE94: FALSE | CF94: FALSE | CG94: 0.88
B95: 43 | C95: RDC - Estall Serrer | G95: 2035 | I95: TRUE | J95: TRUE | K95: 43 | O95: 1 | Q95: 111179.6567 | R95: 10330.05582 | S95: -9572.501587 | AA95: FALSE | AB95: FALSE | AC95: FALSE | AD95: FALSE | AE95: FALSE | AF95: FALSE | AH95: 0.88 | AQ95: 111179.6567 | AR95: 10330.05582 | AS95: -9572.501587 | AT95: 52882.18465 | AU95: 73587.8158 | AV95: 74.16151471 | AW95: 74.16151471 | AX95: 58223.31051 | AY95: 134534.7283 | AZ95: 111179.6567 | BA95: 10330.05582 | BB95: -9572.501587 | BC95: 52882.18465 | BD95: 73587.8158 | BE95: 74.16151471 | BF95: 74.16151471 | BG95: 58223.31051 | BH95: 134534.7283 | BI95: 2012-07-06T08:00:00 | BJ95: RDC - Estall Serrer | BK95: 2035 | BL95: 2037.883231 | BM95: 2422.525749 | BN95: 2247.23404 | BO95: 42,486486 | BP95: 1,614001 | BR95: 43,RDC - Estall Serrer,RDC - Collada Maiana >>> RDC - Estall Serrer,TRUE,TRUE,X,X,X,X,FALSE,FALSE,FALSE,FALSE,FALSE,FALSE,88% | BT95: 43 | BU95: TRUE | BV95: TRUE | BW95: X | BX95: X | BY95: X | BZ95: X | CA95: FALSE | CB95: FALSE | CC95: FALSE | CD95: FALSE | CE95: FALSE | CF95: FALSE | CG95: 0.88
B96: 44 | C96: RDC - Riu dels Orris | G96: 2235 | I96: TRUE | J96: TRUE | K96: 44 | O96: 1 | Q96: 113779.9444 | R96: 10532.69999 | S96: -9578.620515 | AA96: FALSE | AB96: FALSE | AC96: FALSE | AD96: FALSE | AE96: FALSE | AF96: FALSE | AH96: 0.88 | AQ96: 113779.9444 | AR96: 10532.69999 | AS96: -9578.620515 | AT96: 53164.30028 | AU96: 73861.78539 | AV96: 74.16151471 | AW96: 74.16151471 | AX96: 60541.48261 | AY96: 137903.5058 | AZ96: 113779.9444 | BA96: 10532.69999 | BB96: -9578.620515 | BC96: 53164.30028 | BD96: 73861.78539 | BE96: 74.16151471 | BF96: 74.16151471 | BG96: 60541.48261 | BH96: 137903.5058 | BI96: 2012-07-06T08:00:00 | BJ96: RDC - Riu dels Orris | BK96: 2235 | BL96: 2037.883231 | BM96: 2234.40848 | BN96: 2140.261063 | BO96: 42,485139 | BP96: 1,639777 | BR96: 44,RDC - Riu dels Orris,RDC - Estall Serrer >>> RDC - Riu dels Orris,TRUE,TRUE,X,X,X,X,FALSE,FALSE,FALSE,FALSE,FALSE,FALSE,88% | BT96: 44 | BU96: TRUE | BV96: TRUE | BW96: X | BX96: X | BY96: X | BZ96: X | CA96: FALSE | CB96: FALSE | CC96: FALSE | CD96: FALSE | CE96: FALSE | CF96: FALSE | CG96: 0.88
B97: 45 | C97: RDC - Refuge de Illa | G97: 2485 | I97: TRUE | J97: TRUE | K97: 45 | O97: 1 | Q97: 116406.5718 | R97: 10792.14137 | S97: -9587.022835 | X97: 1.75 | Y97: 2012-07-08T02:00:00 | AA97: TRUE | AB97: TRUE | AC97: TRUE | AD97: FALSE | AE97: FALSE | AF97: FALSE | AH97: 0.88 | AQ97: 116406.5718 | AR97: 10792.14137 | AS97: -9587.022835 | AT97: 53418.3215 | AU97: 74101.29694 | AV97: 74.16151471 | AW97: 74.16151471 | AX97: 62914.08882 | AY97: 141791.0363 | AZ97: 116406.5718 | BA97: 10792.14137 | BB97: -9587.022835 | BC97: 53418.3215 | BD97: 74101.29694 | BE97: 74.16151471 | BF97: 74.16151471 | BG97: 62914.08882 | BH97: 141791.0363 | BI97: 2012-07-06T08:00:00 | BJ97: RDC - Refuge de Illa | BK97: 2485 | BL97: 2234.40848 | BM97: 2485.447534 | BN97: 2378.154962 | BO97: 42,494983 | BP97: 1,656411 | BR97: 45,RDC - Refuge de Illa,RDC - Riu dels Orris >>> RDC - Refuge de Illa,TRUE,TRUE,X,X,X,42:00,TRUE,TRUE,TRUE,FALSE,FALSE,FALSE,88% | BT97: 45 | BU97: TRUE | BV97: TRUE | BW97: X | BX97: X | BY97: X | BZ97: 1.75 | CA97: TRUE | CB97: TRUE | CC97: TRUE | CD97: FALSE | CE97: FALSE | CF97: FALSE | CG97: 0.88
B98: 46 | C98: RDC - Port Vallcivera | G98: 2540 | I98: TRUE | J98: TRUE | K98: 46 | O98: 1 | Q98: 117139.8776 | R98: 10851.50459 | S98: -9593.73664 | AA98: FALSE | AB98: FALSE | AC98: FALSE | AD98: FALSE | AE98: FALSE | AF98: FALSE | AH98: 0.88 | AQ98: 117139.8776 | AR98: 10851.50459 | AS98: -9593.73664 | AT98: 53748.72982 | AU98: 74417.55772 | AV98: 74.16151471 | AW98: 74.16151471 | AX98: 63316.98631 | AY98: 142559.9796 | AZ98: 117139.8776 | BA98: 10851.50459 | BB98: -9593.73664 | BC98: 53748.72982 | BD98: 74417.55772 | BE98: 74.16151471 | BF98: 74.16151471 | BG98: 63316.98631 | BH98: 142559.9796 | BI98: 2012-07-06T08:00:00 | BJ98: RDC - Port Vallcivera | BK98: 2540 | BL98: 2485.447534 | BM98: 2544.81076 | BN98: 2529.234789 | BO98: 42,493520 | BP98: 1,663057 | BR98: 46,RDC - Port Vallcivera,RDC - Refuge de Illa >>> RDC - Port Vallcivera,TRUE,TRUE,X,X,X,X,FALSE,FALSE,FALSE,FALSE,FALSE,FALSE,88% | BT98: 46 | BU98: TRUE | BV98: TRUE | BW98: X | BX98: X | BY98: X | BZ98: X | CA98: FALSE | CB98: FALSE | CC98: FALSE | CD98: FALSE | CE98: FALSE | CF98: FALSE | CG98: 0.88
B99: 47 | C99: RDC - Cabana Esparvers | G99: 2046 | I99: TRUE | J99: TRUE | K99: 47 | O99: 1 | Q99: 121049.614 | R99: 10852.28691 | S99: -10083.80863 | AA99: FALSE | AB99: FALSE | AC99: FALSE | AD99: FALSE | AE99: FALSE | AF99: FALSE | AH99: 0.88 | AQ99: 121049.614 | AR99: 10852.28691 | AS99: -10083.80863 | AT99: 57590.53814 | AU99: 78777.51324 | AV99: 74.16151471 | AW99: 74.16151471 | AX99: 63384.91436 | AY99: 142630.2727 | AZ99: 121049.614 | BA99: 10852.28691 | BB99: -10083.80863 | BC99: 57590.53814 | BD99: 78777.51324 | BE99: 74.16151471 | BF99: 74.16151471 | BG99: 63384.91436 | BH99: 142630.2727 | BI99: 2012-07-06T08:00:00 | BJ99: RDC - Cabana Esparvers | BK99: 2046 | BL99: 2048.807288 | BM99: 2538.096956 | BN99: 2259.471123 | BO99: 42,485139 | BP99: 1,704272 | BR99: 47,RDC - Cabana Esparvers,RDC - Port Vallcivera >>> RDC - Cabana Esparvers,TRUE,TRUE,X,X,X,X,FALSE,FALSE,FALSE,FALSE,FALSE,FALSE,88% | BT99: 47 | BU99: TRUE | BV99: TRUE | BW99: X | BX99: X | BY99: X | BZ99: X | CA99: FALSE | CB99: FALSE | CC99: FALSE | CD99: FALSE | CE99: FALSE | CF99: FALSE | CG99: 0.88
B100: 48 | C100: RDC - Portella Blanca | G100: 2516 | I100: TRUE | J100: TRUE | K100: 48 | O100: 1 | Q100: 124852.3504 | R100: 11318.50459 | S100: -10083.80863 | AA100: FALSE | AB100: FALSE | AC100: FALSE | AD100: FALSE | AE100: FALSE | AF100: FALSE | AH100: 0.88 | AQ100: 124852.3504 | AR100: 11318.50459 | AS100: -10083.80863 | AT100: 57590.53814 | AU100: 78777.51324 | AV100: 74.16151471 | AW100: 74.16151471 | AX100: 67187.65072 | AY100: 149254.8781 | AZ100: 124852.3504 | BA100: 11318.50459 | BB100: -10083.80863 | BC100: 57590.53814 | BD100: 78777.51324 | BE100: 74.16151471 | BF100: 74.16151471 | BG100: 67187.65072 | BH100: 149254.8781 | BI100: 2012-07-06T08:00:00 | BJ100: RDC - Portella Blanca | BK100: 2516 | BL100: 2048.807288 | BM100: 2515.02497 | BN100: 2272.854109 | BO100: 42,504608 | BP100: 1,725703 | BR100: 48,RDC - Portella Blanca,RDC - Cabana Esparvers >>> RDC - Portella Blanca,TRUE,TRUE,X,X,X,X,FALSE,FALSE,FALSE,FALSE,FALSE,FALSE,88% | BT100: 48 | BU100: TRUE | BV100: TRUE | BW100: X | BX100: X | BY100: X | BZ100: X | CA100: FALSE | CB100: FALSE | CC100: FALSE | CD100: FALSE | CE100: FALSE | CF100: FALSE | CG100: 0.88
B101: 49 | C101: RDC - Coll dels Isards | G101: 2552 | I101: TRUE | J101: TRUE | K101: 49 | O101: 1 | Q101: 126508.3153 | R101: 11410.25955 | S101: -10137.47833 | AA101: FALSE | AB101: FALSE | AC101: FALSE | AD101: FALSE | AE101: FALSE | AF101: FALSE | AH101: 0.88 | AQ101: 126508.3153 | AR101: 11410.25955 | AS101: -10137.47833 | AT101: 58382.40882 | AU101: 79514.20222 | AV101: 74.16151471 | AW101: 74.16151471 | AX101: 68051.74497 | AY101: 150621.2046 | AZ101: 126508.3153 | BA101: 11410.25955 | BB101: -10137.47833 | BC101: 58382.40882 | BD101: 79514.20222 | BE101: 74.16151471 | BF101: 74.16151471 | BG101: 68051.74497 | BH101: 150621.2046 | BI101: 2012-07-06T08:00:00 | BJ101: RDC - Coll dels Isards | BK101: 2552 | BL101: 2488.80376 | BM101: 2580.55872 | BN101: 2536.208198 | BO101: 42,517219 | BP101: 1,730285 | BR101: 49,RDC - Coll dels Isards,RDC - Portella Blanca >>> RDC - Coll dels Isards,TRUE,TRUE,X,X,X,X,FALSE,FALSE,FALSE,FALSE,FALSE,FALSE,88% | BT101: 49 | BU101: TRUE | BV101: TRUE | BW101: X | BX101: X | BY101: X | BZ101: X | CA101: FALSE | CB101: FALSE | CC101: FALSE | CD101: FALSE | CE101: FALSE | CF101: FALSE | CG101: 0.88
B102: 50 | C102: RDC - Abelletes | G102: 2250 | I102: TRUE | J102: TRUE | K102: 50 | O102: 1 | Q102: 128385.3379 | R102: 11451.49988 | S102: -10481.9344 | AA102: FALSE | AB102: FALSE | AC102: FALSE | AD102: FALSE | AE102: FALSE | AF102: FALSE | AH102: 0.88 | AQ102: 128385.3379 | AR102: 11451.49988 | AS102: -10481.9344 | AT102: 59898.43071 | AU102: 81784.86857 | AV102: 74.16151471 | AW102: 74.16151471 | AX102: 68412.74571 | AY102: 151233.6895 | AZ102: 128385.3379 | BA102: 11451.49988 | BB102: -10481.9344 | BC102: 59898.43071 | BD102: 81784.86857 | BE102: 74.16151471 | BF102: 74.16151471 | BG102: 68412.74571 | BH102: 151233.6895 | BI102: 2012-07-06T08:00:00 | BJ102: RDC - Abelletes | BK102: 2250 | BL102: 2249.894484 | BM102: 2576.966787 | BN102: 2454.551813 | BO102: 42,530032 | BP102: 1,733041 | BR102: 50,RDC - Abelletes,RDC - Coll dels Isards >>> RDC - Abelletes,TRUE,TRUE,X,X,X,X,FALSE,FALSE,FALSE,FALSE,FALSE,FALSE,88% | BT102: 50 | BU102: TRUE | BV102: TRUE | BW102: X | BX102: X | BY102: X | BZ102: X | CA102: FALSE | CB102: FALSE | CC102: FALSE | CD102: FALSE | CE102: FALSE | CF102: FALSE | CG102: 0.88
B103: 51 | C103: RDC - Pas de la Casa | G103: 2080 | I103: TRUE | J103: TRUE | K103: 51 | O103: 1 | Q103: 130147.7576 | R103: 11451.698 | S103: -10651.78696 | AA103: TRUE | AB103: TRUE | AC103: TRUE | AD103: TRUE | AE103: TRUE | AF103: FALSE | AH103: 0.88 | AQ103: 130147.7576 | AR103: 11451.698 | AS103: -10651.78696 | AT103: 61652.66421 | AU103: 83513.63558 | AV103: 74.16151471 | AW103: 74.16151471 | AX103: 68420.93189 | AY103: 151242.5296 | AZ103: 130147.7576 | BA103: 11451.698 | BB103: -10651.78696 | BC103: 61652.66421 | BD103: 83513.63558 | BE103: 74.16151471 | BF103: 74.16151471 | BG103: 68420.93189 | BH103: 151242.5296 | BI103: 2012-07-06T08:00:00 | BJ103: RDC - Pas de la Casa | BK103: 2080 | BL103: 2080.240043 | BM103: 2249.894484 | BN103: 2156.778332 | BO103: 42,544537 | BP103: 1,734456 | BR103: 51,RDC - Pas de la Casa,RDC - Abelletes >>> RDC - Pas de la Casa,TRUE,TRUE,X,X,X,X,TRUE,TRUE,TRUE,TRUE,TRUE,FALSE,88% | BT103: 51 | BU103: TRUE | BV103: TRUE | BW103: X | BX103: X | BY103: X | BZ103: X | CA103: TRUE | CB103: TRUE | CC103: TRUE | CD103: TRUE | CE103: TRUE | CF103: FALSE | CG103: 0.88
B104: 52 | C104: RDC - Rebaixant del Maia | G104: 1850 | I104: TRUE | J104: TRUE | K104: 52 | O104: 1 | Q104: 133025.8095 | R104: 11492.96466 | S104: -10920.19262 | AA104: FALSE | AB104: FALSE | AC104: FALSE | AD104: FALSE | AE104: FALSE | AF104: FALSE | AH104: 0.88 | AQ104: 133025.8095 | AR104: 11492.96466 | AS104: -10920.19262 | AT104: 64061.93471 | AU104: 86131.69032 | AV104: 74.16151471 | AW104: 74.16151471 | AX104: 68889.71325 | AY104: 151949.5954 | AZ104: 133025.8095 | BA104: 11492.96466 | BB104: -10920.19262 | BC104: 64061.93471 | BD104: 86131.69032 | BE104: 74.16151471 | BF104: 74.16151471 | BG104: 68889.71325 | BH104: 151949.5954 | BI104: 2012-07-06T08:00:00 | BJ104: RDC - Rebaixant del Maia | BK104: 1850 | BL104: 1853.101045 | BM104: 2080.240043 | BN104: 1982.433405 | BO104: 42,563905 | BP104: 1,746970 | BR104: 52,RDC - Rebaixant del Maia,RDC - Pas de la Casa >>> RDC - Rebaixant del Maia,TRUE,TRUE,X,X,X,X,FALSE,FALSE,FALSE,FALSE,FALSE,FALSE,88% | BT104: 52 | BU104: TRUE | BV104: TRUE | BW104: X | BX104: X | BY104: X | BZ104: X | CA104: FALSE | CB104: FALSE | CC104: FALSE | CD104: FALSE | CE104: FALSE | CF104: FALSE | CG104: 0.88
B105: 53 | C105: RDC - Pas de les Vaques | G105: 2575 | I105: TRUE | J105: TRUE | K105: 53 | O105: 1 | Q105: 138245.1144 | R105: 12234.73173 | S105: -10942.04229 | AA105: FALSE | AB105: FALSE | AC105: FALSE | AD105: FALSE | AE105: FALSE | AF105: FALSE | AH105: 0.88 | AQ105: 138245.1144 | AR105: 12234.73173 | AS105: -10942.04229 | AT105: 64422.49858 | AU105: 86480.60782 | AV105: 74.16151471 | AW105: 74.16151471 | AX105: 73748.45433 | AY105: 161721.1133 | AZ105: 138245.1144 | BA105: 12234.73173 | BB105: -10942.04229 | BC105: 64422.49858 | BD105: 86480.60782 | BE105: 74.16151471 | BF105: 74.16151471 | BG105: 73748.45433 | BH105: 161721.1133 | BI105: 2012-07-06T08:00:00 | BJ105: RDC - Pas de les Vaques | BK105: 2575 | BL105: 1853.101045 | BM105: 2573.018442 | BN105: 2222.536437 | BO105: 42,580031 | BP105: 1,701187 | BR105: 53,RDC - Pas de les Vaques,RDC - Rebaixant del Maia >>> RDC - Pas de les Vaques,TRUE,TRUE,X,X,X,X,FALSE,FALSE,FALSE,FALSE,FALSE,FALSE,88% | BT105: 53 | BU105: TRUE | BV105: TRUE | BW105: X | BX105: X | BY105: X | BZ105: X | CA105: FALSE | CB105: FALSE | CC105: FALSE | CD105: FALSE | CE105: FALSE | CF105: FALSE | CG105: 0.88
B106: 54 | C106: RDC - Siscaró | G106: 2150 | I106: TRUE | J106: TRUE | K106: 54 | O106: 1 | Q106: 140299.2878 | R106: 12235.39957 | S106: -11365.29162 | AA106: FALSE | AB106: FALSE | AC106: FALSE | AD106: FALSE | AE106: FALSE | AF106: FALSE | AH106: 0.88 | AQ106: 140299.2878 | AR106: 12235.39957 | AS106: -11365.29162 | AT106: 66468.6512 | AU106: 89559.7855 | AV106: 74.16151471 | AW106: 74.16151471 | AX106: 73756.47511 | AY106: 161732.1827 | AZ106: 140299.2878 | BA106: 12235.39957 | BB106: -11365.29162 | BC106: 66468.6512 | BD106: 89559.7855 | BE106: 74.16151471 | BF106: 74.16151471 | BG106: 73756.47511 | BH106: 161732.1827 | BI106: 2012-07-06T08:00:00 | BJ106: RDC - Siscaró | BK106: 2150 | BL106: 2150.436949 | BM106: 2573.018442 | BN106: 2337.97806 | BO106: 42,595042 | BP106: 1,703560 | BR106: 54,RDC - Siscaró,RDC - Pas de les Vaques >>> RDC - Siscaró,TRUE,TRUE,X,X,X,X,FALSE,FALSE,FALSE,FALSE,FALSE,FALSE,88% | BT106: 54 | BU106: TRUE | BV106: TRUE | BW106: X | BX106: X | BY106: X | BZ106: X | CA106: FALSE | CB106: FALSE | CC106: FALSE | CD106: FALSE | CE106: FALSE | CF106: FALSE | CG106: 0.88
B107: 55 | C107: RDC - Inclès | G107: 1836 | I107: TRUE | J107: TRUE | K107: 55 | O107: 1 | Q107: 142210.9811 | R107: 12235.39957 | S107: -11677.01889 | X107: 2.083333333 | Y107: 2012-07-08T10:00:00 | AA107: TRUE | AB107: TRUE | AC107: TRUE | AD107: FALSE | AE107: FALSE | AF107: FALSE | AH107: 0.88 | AQ107: 142210.9811 | AR107: 12235.39957 | AS107: -11677.01889 | AT107: 68380.34452 | AU107: 91939.929 | AV107: 74.16151471 | AW107: 74.16151471 | AX107: 73756.47511 | AY107: 161732.1827 | AZ107: 142210.9811 | BA107: 12235.39957 | BB107: -11677.01889 | BC107: 68380.34452 | BD107: 91939.929 | BE107: 74.16151471 | BF107: 74.16151471 | BG107: 73756.47511 | BH107: 161732.1827 | BI107: 2012-07-06T08:00:00 | BJ107: RDC - Inclès | BK107: 1836 | BL107: 1838.709682 | BM107: 2150.436949 | BN107: 1999.995356 | BO107: 42,602183 | BP107: 1,687709 | BR107: 55,RDC - Inclès,RDC - Siscaró >>> RDC - Inclès,TRUE,TRUE,X,X,X,50:00,TRUE,TRUE,TRUE,FALSE,FALSE,FALSE,88% | BT107: 55 | BU107: TRUE | BV107: TRUE | BW107: X | BX107: X | BY107: X | BZ107: 2.083333333 | CA107: TRUE | CB107: TRUE | CC107: TRUE | CD107: FALSE | CE107: FALSE | CF107: FALSE | CG107: 0.88
B108: 56 | C108: RDC - Refuge de Cabana sorda | G108: 2312 | I108: TRUE | J108: TRUE | K108: 56 | O108: 1 | Q108: 145749.2011 | R108: 12713.02293 | S108: -11684.33242 | AA108: FALSE | AB108: FALSE | AC108: FALSE | AD108: FALSE | AE108: FALSE | AF108: FALSE | AH108: 0.88 | AQ108: 145749.2011 | AR108: 12713.02293 | AS108: -11684.33242 | AT108: 68582.71739 | AU108: 92130.41127 | AV108: 74.16151471 | AW108: 74.16151471 | AX108: 77092.32222 | AY108: 168271.9501 | AZ108: 145749.2011 | BA108: 12713.02293 | BB108: -11684.33242 | BC108: 68582.71739 | BD108: 92130.41127 | BE108: 74.16151471 | BF108: 74.16151471 | BG108: 77092.32222 | BH108: 168271.9501 | BI108: 2012-07-06T08:00:00 | BJ108: RDC - Refuge de Cabana sorda | BK108: 2312 | BL108: 1837.222906 | BM108: 2309.019505 | BN108: 2067.202027 | BO108: 42,611435 | BP108: 1,672387 | BR108: 56,RDC - Refuge de Cabana sorda,RDC - Inclès >>> RDC - Refuge de Cabana sorda,TRUE,TRUE,X,X,X,X,FALSE,FALSE,FALSE,FALSE,FALSE,FALSE,88% | BT108: 56 | BU108: TRUE | BV108: TRUE | BW108: X | BX108: X | BY108: X | BZ108: X | CA108: FALSE | CB108: FALSE | CC108: FALSE | CD108: FALSE | CE108: FALSE | CF108: FALSE | CG108: =VLOOKUP($BT108,RBB_Table,CG$52,FALSE) -> 0.88
B109: 57 | C109: RDC - Cresta Cabana Sorda | G109: 2657 | I109: TRUE | J109: TRUE | K109: 57 | O109: 1 | Q109: 147211.5589 | R109: 13070.36784 | S109: -11699.983 | AA109: FALSE | AB109: FALSE | AC109: FALSE | AD109: FALSE | AE109: FALSE | AF109: FALSE | AH109: 0.88 | AQ109: 147211.5589 | AR109: 13070.36784 | AS109: -11699.983 | AT109: 68680.34567 | AU109: 92250.79937 | AV109: 74.16151471 | AW109: 74.16151471 | AX109: 78457.0517 | AY109: 172553.2155 | AZ109: 147211.5589 | BA109: 13070.36784 | BB109: -11699.983 | BC109: 68680.34567 | BD109: 92250.79937 | BE109: 74.16151471 | BF109: 74.16151471 | BG109: 78457.0517 | BH109: 172553.2155 | BI109: 2012-07-06T08:00:00 | BJ109: RDC - Cresta Cabana Sorda | BK109: 2657 | BL109: 2309.019505 | BM109: 2650.713837 | BN109: 2436.25392 | BO109: 42,611560 | BP109: 1,662286 | BR109: 57,RDC - Cresta Cabana Sorda,RDC - Refuge de Cabana sorda >>> RDC - Cresta Cabana Sorda,TRUE,TRUE,X,X,X,X,FALSE,FALSE,FALSE,FALSE,FALSE,FALSE,88% | BT109: 57 | BU109: TRUE | BV109: TRUE | BW109: X | BX109: X | BY109: X | BZ109: X | CA109: FALSE | CB109: FALSE | CC109: FALSE | CD109: FALSE | CE109: FALSE | CF109: FALSE | CG109: 0.88
B110: 58 | C110: RDC - Refuge de Coms de Jan | G110: 2219 | I110: TRUE | J110: TRUE | K110: 58 | O110: 1 | Q110: 149793.1777 | R110: 13100.63765 | S110: -12163.49652 | AA110: TRUE | AB110: TRUE | AC110: TRUE | AD110: FALSE | AE110: FALSE | AF110: FALSE | AH110: 0.88 | AQ110: 149793.1777 | AR110: 13100.63765 | AS110: -12163.49652 | AT110: 70858.74478 | AU110: 95517.64075 | AV110: 74.16151471 | AW110: 74.16151471 | AX110: 78860.27138 | AY110: 173109.1899 | AZ110: 149793.1777 | BA110: 13100.63765 | BB110: -12163.49652 | BC110: 70858.74478 | BD110: 95517.64075 | BE110: 74.16151471 | BF110: 74.16151471 | BG110: 78860.27138 | BH110: 173109.1899 | BI110: 2012-07-06T08:00:00 | BJ110: RDC - Refuge de Coms de Jan | BK110: 2219 | BL110: 2204.873638 | BM110: 2650.713837 | BN110: 2364.604025 | BO110: 42,618553 | BP110: 1,638865 | BR110: 58,RDC - Refuge de Coms de Jan,RDC - Cresta Cabana Sorda >>> RDC - Refuge de Coms de Jan,TRUE,TRUE,X,X,X,X,TRUE,TRUE,TRUE,FALSE,FALSE,FALSE,88% | BT110: 58 | BU110: TRUE | BV110: TRUE | BW110: X | BX110: X | BY110: X | BZ110: X | CA110: TRUE | CB110: TRUE | CC110: TRUE | CD110: FALSE | CE110: FALSE | CF110: FALSE | CG110: 0.88
B111: 59 | C111: RDC - Collada dels Meners | G111: 2719 | I111: TRUE | J111: TRUE | K111: 59 | O111: 1 | Q111: 153524.0287 | R111: 13682.93299 | S111: -12248.59101 | AA111: FALSE | AB111: FALSE | AC111: FALSE | AD111: FALSE | AE111: FALSE | AF111: FALSE | AH111: 0.88 | AQ111: 153524.0287 | AR111: 13682.93299 | AS111: -12248.59101 | AT111: 71731.5028 | AU111: 96396.41786 | AV111: 74.16151471 | AW111: 74.16151471 | AX111: 81718.36434 | AY111: 180262.5434 | AZ111: 153524.0287 | BA111: 13682.93299 | BB111: -12248.59101 | BC111: 71731.5028 | BD111: 96396.41786 | BE111: 74.16151471 | BF111: 74.16151471 | BG111: 81718.36434 | BH111: 180262.5434 | BI111: 2012-07-06T08:00:00 | BJ111: RDC - Collada dels Meners | BK111: 2719 | BL111: 2179.59451 | BM111: 2714.670976 | BN111: 2427.319625 | BO111: 42,621207 | BP111: 1,606061 | BR111: 59,RDC - Collada dels Meners,RDC - Refuge de Coms de Jan >>> RDC - Collada dels Meners,TRUE,TRUE,X,X,X,X,FALSE,FALSE,FALSE,FALSE,FALSE,FALSE,88% | BT111: 59 | BU111: TRUE | BV111: TRUE | BW111: X | BX111: X | BY111: X | BZ111: X | CA111: FALSE | CB111: FALSE | CC111: FALSE | CD111: FALSE | CE111: FALSE | CF111: FALSE | CG111: 0.88
B112: 60 | C112: RDC - Refuge Sorteny Retour | G112: 1962 | I112: TRUE | J112: TRUE | K112: 60 | O112: 1 | Q112: 157930.6959 | R112: 13700.45899 | S112: -13018.83665 | AA112: TRUE | AB112: TRUE | AC112: FALSE | AD112: FALSE | AE112: FALSE | AF112: FALSE | AH112: 0.88 | AQ112: 157930.6959 | AR112: 13700.45899 | AS112: -13018.83665 | AT112: 75926.68981 | AU112: 102006.2277 | AV112: 74.16151471 | AW112: 74.16151471 | AX112: 81929.8446 | AY112: 180564.4757 | AZ112: 157930.6959 | BA112: 13700.45899 | BB112: -13018.83665 | BC112: 75926.68981 | BD112: 102006.2277 | BE112: 74.16151471 | BF112: 74.16151471 | BG112: 81929.8446 | BH112: 180564.4757 | BI112: 2012-07-06T08:00:00 | BJ112: RDC - Refuge Sorteny Retour | BK112: 1962 | BL112: 1961.951338 | BM112: 2714.670976 | BN112: 2282.067857 | BO112: 42,622994 | BP112: 1,564546 | BR112: 60,RDC - Refuge Sorteny Retour,RDC - Collada dels Meners >>> RDC - Refuge Sorteny Retour,TRUE,TRUE,X,X,X,X,TRUE,TRUE,FALSE,FALSE,FALSE,FALSE,88% | BT112: 60 | BU112: TRUE | BV112: TRUE | BW112: X | BX112: X | BY112: X | BZ112: X | CA112: FALSE | CB112: FALSE | CC112: FALSE | CD112: FALSE | CE112: FALSE | CF112: FALSE | CG112: 0.88
B113: 61 | C113: RDC - El Serrat | G113: 1526 | I113: TRUE | J113: TRUE | K113: 61 | O113: 1 | Q113: 161135.423 | R113: 13717.43635 | S113: -13471.64437 | AA113: FALSE | AB113: FALSE | AC113: FALSE | AD113: FALSE | AE113: FALSE | AF113: FALSE | AH113: 0.92 | AQ113: =VLOOKUP($B113,RC_Table,AQ$50,TRUE) -> 161135.423 | AR113: 13717.43635 | AS113: -13471.64437 | AT113: 78984.03893 | AU113: 105639.4693 | AV113: 74.16151471 | AW113: 74.16151471 | AX113: 82077.22256 | AY113: 180823.4081 | AZ113: 161135.423 | BA113: 13717.43635 | BB113: -13471.64437 | BC113: 78984.03893 | BD113: 105639.4693 | BE113: 74.16151471 | BF113: 74.16151471 | BG113: 82077.22256 | BH113: 180823.4081 | BI113: 2012-07-06T08:00:00 | BJ113: RDC - El Serrat | BK113: 1526 | BL113: 1526.120983 | BM113: 1961.951338 | BN113: 1737.349564 | BO113: 42,617785 | BP113: 1,537021 | BR113: 61,RDC - El Serrat,RDC - Refuge Sorteny Retour >>> RDC - El Serrat,TRUE,TRUE,X,X,X,X,FALSE,FALSE,FALSE,FALSE,FALSE,FALSE,92% | BT113: 61 | BU113: =VLOOKUP($BT113,RBB_Table,BU$52,FALSE) -> TRUE | BV113: TRUE | BW113: X | BX113: X | BY113: X | BZ113: X | CA113: TRUE | CB113: TRUE | CC113: TRUE | CD113: FALSE | CE113: FALSE | CF113: FALSE | CG113: 0.92
B114: 62 | C114: RDC - La Cortinada | G114: 1330 | I114: TRUE | J114: TRUE | K114: 62 | O114: 1 | Q114: 166903.706 | R114: 13783.93502 | S114: -13734.08077 | AA114: FALSE | AB114: FALSE | AC114: FALSE | AD114: FALSE | AE114: FALSE | AF114: FALSE | AH114: 0.92 | AQ114: 166903.706 | AR114: 13783.93502 | AS114: -13734.08077 | AT114: 83411.03091 | AU114: 109899.7177 | AV114: 74.16151471 | AW114: 74.16151471 | AX114: 83418.51354 | AY114: 182519.675 | AZ114: 166903.706 | BA114: 13783.93502 | BB114: -13734.08077 | BC114: 83411.03091 | BD114: 109899.7177 | BE114: 74.16151471 | BF114: 74.16151471 | BG114: 83418.51354 | BH114: 182519.675 | BI114: 2012-07-06T08:00:00 | BJ114: RDC - La Cortinada | BK114: 1330 | BL114: 1330.183246 | BM114: 1526.120983 | BN114: 1420.838523 | BO114: 42,576300 | BP114: 1,518912 | BR114: 62,RDC - La Cortinada,RDC - El Serrat >>> RDC - La Cortinada,TRUE,TRUE,X,X,X,X,FALSE,FALSE,FALSE,FALSE,FALSE,FALSE,92% | BT114: 62 | BU114: TRUE | BV114: TRUE | BW114: X | BX114: X | BY114: X | BZ114: X | CA114: FALSE | CB114: FALSE | CC114: FALSE | CD114: FALSE | CE114: FALSE | CF114: FALSE | CG114: 0.92
B115: 63 | C115: RDC - Arrivée | G115: 1295.357328 | I115: TRUE | J115: TRUE | K115: 63 | O115: 1 | Q115: 169999.991 | R115: 13847.54545 | S115: -13832.51712 | X115: 2.5 | Y115: 2012-07-08T20:00:00 | AA115: TRUE | AB115: TRUE | AC115: TRUE | AD115: TRUE | AE115: TRUE | AF115: TRUE | AH115: 0.92 | AQ115: 169999.991 | AR115: 13847.54545 | AS115: -13832.51712 | AT115: 85103.21594 | AU115: 111539.9819 | AV115: 74.16151471 | AW115: 74.16151471 | AX115: 84822.61351 | AY115: 184210.7517 | AZ115: 169999.991 | BA115: 13847.54545 | BB115: -13832.51712 | BC115: 85103.21594 | BD115: 111539.9819 | BE115: 74.16151471 | BF115: 74.16151471 | BG115: 84822.61351 | BH115: 184210.7517 | BI115: 2012-07-06T08:00:00 | BJ115: RDC - Arrivée | BK115: 1295.357328 | BL115: 1274.64312 | BM115: 1351.83372 | BN115: 1307.634409 | BO115: 42.556764 | BP115: 1.53326 | BR115: 63,RDC - Arrivée,RDC - La Cortinada >>> RDC - Arrivée,TRUE,TRUE,X,X,X,60:00,TRUE,TRUE,TRUE,TRUE,TRUE,TRUE,92% | BT115: 63 | BU115: TRUE | BV115: TRUE | BW115: X | BX115: X | BY115: X | BZ115: 2.5 | CA115: TRUE | CB115: TRUE | CC115: TRUE | CD115: TRUE | CE115: TRUE | CF115: TRUE | CG115: 0.92
B116: 64 | C116: RDC - Arrivée | G116: 1295.357328 | I116: TRUE | J116: TRUE | K116: 64 | O116: 1 | Q116: 169999.991 | R116: 13847.54545 | S116: -13832.51712 | AA116: FALSE | AB116: FALSE | AC116: FALSE | AD116: FALSE | AE116: FALSE | AF116: FALSE | AH116: 1 | AQ116: 169999.991 | AR116: 13847.54545 | AS116: -13832.51712 | AT116: 85103.21594 | AU116: 111539.9819 | AV116: 74.16151471 | AW116: 74.16151471 | AX116: 84822.61351 | AY116: 184210.7517 | AZ116: 169999.991 | BA116: 13847.54545 | BB116: -13832.51712 | BC116: 85103.21594 | BD116: 111539.9819 | BE116: 74.16151471 | BF116: 74.16151471 | BG116: 84822.61351 | BH116: 184210.7517 | BI116: 2012-07-06T08:00:00 | BJ116: RDC - Arrivée | BK116: 1295.357328 | BL116: 1274.64312 | BM116: 1351.83372 | BN116: 1307.634409 | BO116: 42.556764 | BP116: 1.53326 | BR116: 64,RDC - Arrivée,RDC - Arrivée >>> RDC - Arrivée,TRUE,TRUE,X,X,X,X,FALSE,FALSE,FALSE,FALSE,FALSE,FALSE,100%
B117: 65 | C117: =VLOOKUP($B117,RC_Table,C$52,TRUE) -> RDC - Arrivée | G117: =VLOOKUP($B117,RC_Table,G$52,TRUE) -> 1295.357328 | I117: TRUE | J117: TRUE | K117: 65 | O117: 1 | P117: =IF(AND($I117,$M117<>"",$N117<>""),MR_Input_Jour+$M117-1+$N117,"") ->  | Q117: 169999.991 | R117: 13847.54545 | S117: -13832.51712 | AA117: FALSE | AB117: FALSE | AC117: FALSE | AD117: FALSE | AE117: FALSE | AF117: FALSE | AH117: 1 | AQ117: 169999.991 | AR117: 13847.54545 | AS117: -13832.51712 | AT117: 85103.21594 | AU117: 111539.9819 | AV117: 74.16151471 | AW117: 74.16151471 | AX117: 84822.61351 | AY117: 184210.7517 | AZ117: 169999.991 | BA117: 13847.54545 | BB117: -13832.51712 | BC117: 85103.21594 | BD117: 111539.9819 | BE117: 74.16151471 | BF117: 74.16151471 | BG117: 84822.61351 | BH117: 184210.7517 | BI117: 2012-07-06T08:00:00 | BJ117: RDC - Arrivée | BK117: 1295.357328 | BL117: =VLOOKUP($B117,RC_Table,BL$50,TRUE) -> 1274.64312 | BM117: 1351.83372 | BN117: 1307.634409 | BO117: 42.556764 | BP117: 1.53326 | BR117: 65,RDC - Arrivée,RDC - Arrivée >>> RDC - Arrivée,TRUE,TRUE,X,X,X,X,FALSE,FALSE,FALSE,FALSE,FALSE,FALSE,100% | BT117: =MATCH(CONCATENATE(IF($B117=1,"X",SUBSTITUTE($C116,",",";"))," >>> ",SUBSTITUTE($C117,",",";")),RBB_Liste_De_A,0) -> 
B118: =B117+1 -> 66 | C118: RDC - Arrivée | G118: 1295.357328 | I118: TRUE | J118: TRUE | K118: =K117+IF(AND(I118,J118),1,0) -> 66 | O118: 1 | Q118: 169999.991 | R118: 13847.54545 | S118: -13832.51712 | Y118: =IF($X118<>"",$BI118+$X118,"") ->  | AA118: FALSE | AB118: FALSE | AC118: FALSE | AD118: FALSE | AE118: FALSE | AF118: FALSE | AH118: 0.88 | AQ118: 169999.991 | AR118: 13847.54545 | AS118: -13832.51712 | AT118: 85103.21594 | AU118: 111539.9819 | AV118: 74.16151471 | AW118: 74.16151471 | AX118: 84822.61351 | AY118: 184210.7517 | AZ118: =AZ117+IF($I118,AQ118-AQ117,0) -> 169999.991 | BA118: =BA117+IF($I118,AR118-AR117,0) -> 13847.54545 | BB118: =BB117+IF($I118,AS118-AS117,0) -> -13832.51712 | BC118: =BC117+IF($I118,AT118-AT117,0) -> 85103.21594 | BD118: =BD117+IF($I118,AU118-AU117,0) -> 111539.9819 | BE118: =BE117+IF($I118,AV118-AV117,0) -> 74.16151471 | BF118: =BF117+IF($I118,AW118-AW117,0) -> 74.16151471 | BG118: =BG117+IF($I118,AX118-AX117,0) -> 84822.61351 | BH118: =BH117+IF($I118,AY118-AY117,0) -> 184210.7517 | BI118: 2012-07-06T08:00:00 | BJ118: =$C118 -> RDC - Arrivée | BK118: =$G118 -> 1295.357328 | BL118: 1274.64312 | BM118: 1351.83372 | BN118: 1307.634409 | BO118: 42.556764 | BP118: 1.53326 | BR118: =CONCATENATE(TEXT($B118,"0"),",",SUBSTITUTE($C118,",",";"),",",IF($B118=1,"X",SUBSTITUTE($C117,",",";"))," >>> ",SUBSTITUTE($C118,",",";"),",",TEXT($I118,"0"),",",TEXT($J118,"0"),",",IF(ISBLANK($M118),"X",TEXT($M118,"0")),",",IF(ISBLANK($N118),"X",TEXT($N118,"[HH]:MM")),",",IF(ISBLANK($U118),"X",TEXT($U118,"[HH]:MM")),",",IF(ISBLANK($X118),"X",TEXT($X118,"[HH]:MM")),",",TEXT($AA118,"0"),",",TEXT($AB118,"0"),",",TEXT($AC118,"0"),",",TEXT($AD118,"0"),",",TEXT($AE118,"0"),",",TEXT($AF118,"0"),",",TEXT($AH118,"0%")) -> 66,RDC - Arrivée,RDC - Arrivée >>> RDC - Arrivée,TRUE,TRUE,X,X,X,X,FALSE,FALSE,FALSE,FALSE,FALSE,FALSE,88%
B119: 67 | C119: RDC - Arrivée | G119: 1295.357328 | I119: TRUE | J119: FALSE | K119: 66 | O119: 1 | Q119: 169999.991 | R119: 13847.54545 | S119: -13832.51712 | AA119: FALSE | AB119: FALSE | AC119: FALSE | AD119: FALSE | AE119: FALSE | AF119: FALSE | AH119: 0.88 | AQ119: 169999.991 | AR119: 13847.54545 | AS119: -13832.51712 | AT119: 85103.21594 | AU119: 111539.9819 | AV119: 74.16151471 | AW119: 74.16151471 | AX119: 84822.61351 | AY119: 184210.7517 | AZ119: 169999.991 | BA119: 13847.54545 | BB119: -13832.51712 | BC119: 85103.21594 | BD119: 111539.9819 | BE119: 74.16151471 | BF119: 74.16151471 | BG119: 84822.61351 | BH119: 184210.7517 | BI119: 2012-07-06T08:00:00 | BJ119: RDC - Arrivée | BK119: 1295.357328 | BL119: 1274.64312 | BM119: 1351.83372 | BN119: 1307.634409 | BO119: 42.556764 | BP119: 1.53326 | BR119: 67,RDC - Arrivée,RDC - Arrivée >>> RDC - Arrivée,TRUE,FALSE,X,X,X,X,FALSE,FALSE,FALSE,FALSE,FALSE,FALSE,88%
B120: 68 | C120: RDC - Arrivée | G120: 1295.357328 | I120: TRUE | J120: TRUE | K120: 67 | O120: 1 | Q120: 169999.991 | R120: 13847.54545 | S120: -13832.51712 | AA120: FALSE | AB120: FALSE | AC120: FALSE | AD120: FALSE | AE120: FALSE | AF120: FALSE | AH120: 0.8 | AQ120: 169999.991 | AR120: 13847.54545 | AS120: -13832.51712 | AT120: 85103.21594 | AU120: 111539.9819 | AV120: 74.16151471 | AW120: 74.16151471 | AX120: 84822.61351 | AY120: 184210.7517 | AZ120: 169999.991 | BA120: 13847.54545 | BB120: -13832.51712 | BC120: 85103.21594 | BD120: 111539.9819 | BE120: 74.16151471 | BF120: 74.16151471 | BG120: 84822.61351 | BH120: 184210.7517 | BI120: 2012-07-06T08:00:00 | BJ120: RDC - Arrivée | BK120: 1295.357328 | BL120: 1274.64312 | BM120: 1351.83372 | BN120: 1307.634409 | BO120: 42.556764 | BP120: 1.53326 | BR120: 68,RDC - Arrivée,RDC - Arrivée >>> RDC - Arrivée,TRUE,TRUE,X,X,X,X,FALSE,FALSE,FALSE,FALSE,FALSE,FALSE,80%
B121: 69 | C121: RDC - Arrivée | G121: 1295.357328 | I121: TRUE | J121: FALSE | K121: 67 | O121: 1 | Q121: 169999.991 | R121: 13847.54545 | S121: -13832.51712 | AA121: FALSE | AB121: FALSE | AC121: FALSE | AD121: FALSE | AE121: FALSE | AF121: FALSE | AH121: 0.8 | AQ121: 169999.991 | AR121: 13847.54545 | AS121: -13832.51712 | AT121: 85103.21594 | AU121: 111539.9819 | AV121: 74.16151471 | AW121: 74.16151471 | AX121: 84822.61351 | AY121: 184210.7517 | AZ121: 169999.991 | BA121: 13847.54545 | BB121: -13832.51712 | BC121: 85103.21594 | BD121: 111539.9819 | BE121: 74.16151471 | BF121: 74.16151471 | BG121: 84822.61351 | BH121: 184210.7517 | BI121: 2012-07-06T08:00:00 | BJ121: RDC - Arrivée | BK121: 1295.357328 | BL121: 1274.64312 | BM121: 1351.83372 | BN121: 1307.634409 | BO121: 42.556764 | BP121: 1.53326 | BR121: 69,RDC - Arrivée,RDC - Arrivée >>> RDC - Arrivée,TRUE,FALSE,X,X,X,X,FALSE,FALSE,FALSE,FALSE,FALSE,FALSE,80%
B122: 70 | C122: RDC - Arrivée | G122: 1295.357328 | I122: TRUE | J122: TRUE | K122: 68 | O122: 1 | Q122: 169999.991 | R122: 13847.54545 | S122: -13832.51712 | AA122: FALSE | AB122: FALSE | AC122: FALSE | AD122: FALSE | AE122: FALSE | AF122: FALSE | AH122: 0.8 | AQ122: 169999.991 | AR122: 13847.54545 | AS122: -13832.51712 | AT122: 85103.21594 | AU122: 111539.9819 | AV122: 74.16151471 | AW122: 74.16151471 | AX122: 84822.61351 | AY122: 184210.7517 | AZ122: 169999.991 | BA122: 13847.54545 | BB122: -13832.51712 | BC122: 85103.21594 | BD122: 111539.9819 | BE122: 74.16151471 | BF122: 74.16151471 | BG122: 84822.61351 | BH122: 184210.7517 | BI122: 2012-07-06T08:00:00 | BJ122: RDC - Arrivée | BK122: 1295.357328 | BL122: 1274.64312 | BM122: 1351.83372 | BN122: 1307.634409 | BO122: 42.556764 | BP122: 1.53326 | BR122: 70,RDC - Arrivée,RDC - Arrivée >>> RDC - Arrivée,TRUE,TRUE,X,X,X,X,FALSE,FALSE,FALSE,FALSE,FALSE,FALSE,80%
B123: 71 | C123: RDC - Arrivée | G123: 1295.357328 | I123: TRUE | J123: FALSE | K123: 68 | O123: 1 | Q123: 169999.991 | R123: 13847.54545 | S123: -13832.51712 | AA123: FALSE | AB123: FALSE | AC123: FALSE | AD123: FALSE | AE123: FALSE | AF123: FALSE | AH123: 0.88 | AQ123: 169999.991 | AR123: 13847.54545 | AS123: -13832.51712 | AT123: 85103.21594 | AU123: 111539.9819 | AV123: 74.16151471 | AW123: 74.16151471 | AX123: 84822.61351 | AY123: 184210.7517 | AZ123: 169999.991 | BA123: 13847.54545 | BB123: -13832.51712 | BC123: 85103.21594 | BD123: 111539.9819 | BE123: 74.16151471 | BF123: 74.16151471 | BG123: 84822.61351 | BH123: 184210.7517 | BI123: 2012-07-06T08:00:00 | BJ123: RDC - Arrivée | BK123: 1295.357328 | BL123: 1274.64312 | BM123: 1351.83372 | BN123: 1307.634409 | BO123: 42.556764 | BP123: 1.53326 | BR123: 71,RDC - Arrivée,RDC - Arrivée >>> RDC - Arrivée,TRUE,FALSE,X,X,X,X,FALSE,FALSE,FALSE,FALSE,FALSE,FALSE,88%
B124: 72 | C124: RDC - Arrivée | G124: 1295.357328 | I124: TRUE | J124: TRUE | K124: 69 | O124: 1 | Q124: 169999.991 | R124: 13847.54545 | S124: -13832.51712 | AA124: TRUE | AB124: TRUE | AC124: TRUE | AD124: FALSE | AE124: FALSE | AF124: TRUE | AH124: 0.88 | AQ124: 169999.991 | AR124: 13847.54545 | AS124: -13832.51712 | AT124: 85103.21594 | AU124: 111539.9819 | AV124: 74.16151471 | AW124: 74.16151471 | AX124: 84822.61351 | AY124: 184210.7517 | AZ124: 169999.991 | BA124: 13847.54545 | BB124: -13832.51712 | BC124: 85103.21594 | BD124: 111539.9819 | BE124: 74.16151471 | BF124: 74.16151471 | BG124: 84822.61351 | BH124: 184210.7517 | BI124: 2012-07-06T08:00:00 | BJ124: RDC - Arrivée | BK124: 1295.357328 | BL124: 1274.64312 | BM124: 1351.83372 | BN124: 1307.634409 | BO124: 42.556764 | BP124: 1.53326 | BR124: 72,RDC - Arrivée,RDC - Arrivée >>> RDC - Arrivée,TRUE,TRUE,X,X,X,X,TRUE,TRUE,TRUE,FALSE,FALSE,TRUE,88%
B125: 73 | C125: RDC - Arrivée | G125: 1295.357328 | I125: TRUE | J125: TRUE | K125: 70 | O125: 1 | Q125: 169999.991 | R125: 13847.54545 | S125: -13832.51712 | AA125: FALSE | AB125: FALSE | AC125: FALSE | AD125: FALSE | AE125: FALSE | AF125: FALSE | AH125: 0.88 | AQ125: 169999.991 | AR125: 13847.54545 | AS125: -13832.51712 | AT125: 85103.21594 | AU125: 111539.9819 | AV125: 74.16151471 | AW125: 74.16151471 | AX125: 84822.61351 | AY125: 184210.7517 | AZ125: 169999.991 | BA125: 13847.54545 | BB125: -13832.51712 | BC125: 85103.21594 | BD125: 111539.9819 | BE125: 74.16151471 | BF125: 74.16151471 | BG125: 84822.61351 | BH125: 184210.7517 | BI125: 2012-07-06T08:00:00 | BJ125: RDC - Arrivée | BK125: 1295.357328 | BL125: 1274.64312 | BM125: 1351.83372 | BN125: 1307.634409 | BO125: 42.556764 | BP125: 1.53326 | BR125: 73,RDC - Arrivée,RDC - Arrivée >>> RDC - Arrivée,TRUE,TRUE,X,X,X,X,FALSE,FALSE,FALSE,FALSE,FALSE,FALSE,88%
B126: 74 | C126: RDC - Arrivée | G126: 1295.357328 | I126: TRUE | J126: TRUE | K126: 71 | O126: 1 | Q126: 169999.991 | R126: 13847.54545 | S126: -13832.51712 | AA126: TRUE | AB126: TRUE | AC126: FALSE | AD126: FALSE | AE126: FALSE | AF126: FALSE | AH126: 0.88 | AQ126: 169999.991 | AR126: 13847.54545 | AS126: -13832.51712 | AT126: 85103.21594 | AU126: 111539.9819 | AV126: 74.16151471 | AW126: 74.16151471 | AX126: 84822.61351 | AY126: 184210.7517 | AZ126: 169999.991 | BA126: 13847.54545 | BB126: -13832.51712 | BC126: 85103.21594 | BD126: 111539.9819 | BE126: 74.16151471 | BF126: 74.16151471 | BG126: 84822.61351 | BH126: 184210.7517 | BI126: 2012-07-06T08:00:00 | BJ126: RDC - Arrivée | BK126: 1295.357328 | BL126: 1274.64312 | BM126: 1351.83372 | BN126: 1307.634409 | BO126: 42.556764 | BP126: 1.53326 | BR126: 74,RDC - Arrivée,RDC - Arrivée >>> RDC - Arrivée,TRUE,TRUE,X,X,X,X,TRUE,TRUE,FALSE,FALSE,FALSE,FALSE,88%
B127: 75 | C127: RDC - Arrivée | G127: 1295.357328 | I127: TRUE | J127: TRUE | K127: 72 | O127: 1 | Q127: 169999.991 | R127: 13847.54545 | S127: -13832.51712 | AA127: FALSE | AB127: FALSE | AC127: FALSE | AD127: FALSE | AE127: FALSE | AF127: FALSE | AH127: 0.88 | AQ127: 169999.991 | AR127: 13847.54545 | AS127: -13832.51712 | AT127: 85103.21594 | AU127: 111539.9819 | AV127: 74.16151471 | AW127: 74.16151471 | AX127: 84822.61351 | AY127: 184210.7517 | AZ127: 169999.991 | BA127: 13847.54545 | BB127: -13832.51712 | BC127: 85103.21594 | BD127: 111539.9819 | BE127: 74.16151471 | BF127: 74.16151471 | BG127: 84822.61351 | BH127: 184210.7517 | BI127: 2012-07-06T08:00:00 | BJ127: RDC - Arrivée | BK127: 1295.357328 | BL127: 1274.64312 | BM127: 1351.83372 | BN127: 1307.634409 | BO127: 42.556764 | BP127: 1.53326 | BR127: 75,RDC - Arrivée,RDC - Arrivée >>> RDC - Arrivée,TRUE,TRUE,X,X,X,X,FALSE,FALSE,FALSE,FALSE,FALSE,FALSE,88%
B128: 76 | C128: RDC - Arrivée | G128: 1295.357328 | I128: TRUE | J128: TRUE | K128: 73 | O128: 1 | Q128: 169999.991 | R128: 13847.54545 | S128: -13832.51712 | AA128: TRUE | AB128: FALSE | AC128: FALSE | AD128: FALSE | AE128: FALSE | AF128: FALSE | AH128: 0.88 | AQ128: 169999.991 | AR128: 13847.54545 | AS128: -13832.51712 | AT128: 85103.21594 | AU128: 111539.9819 | AV128: 74.16151471 | AW128: 74.16151471 | AX128: 84822.61351 | AY128: 184210.7517 | AZ128: 169999.991 | BA128: 13847.54545 | BB128: -13832.51712 | BC128: 85103.21594 | BD128: 111539.9819 | BE128: 74.16151471 | BF128: 74.16151471 | BG128: 84822.61351 | BH128: 184210.7517 | BI128: 2012-07-06T08:00:00 | BJ128: RDC - Arrivée | BK128: 1295.357328 | BL128: 1274.64312 | BM128: 1351.83372 | BN128: 1307.634409 | BO128: 42.556764 | BP128: 1.53326 | BR128: 76,RDC - Arrivée,RDC - Arrivée >>> RDC - Arrivée,TRUE,TRUE,X,X,X,X,TRUE,FALSE,FALSE,FALSE,FALSE,FALSE,88% | CG128: =VLOOKUP($BT128,RBB_Table,CG$52,FALSE) -> 
B129: 77 | C129: RDC - Arrivée | G129: 1295.357328 | I129: TRUE | J129: TRUE | K129: 74 | O129: 1 | Q129: 169999.991 | R129: 13847.54545 | S129: -13832.51712 | AA129: FALSE | AB129: FALSE | AC129: FALSE | AD129: FALSE | AE129: FALSE | AF129: FALSE | AH129: 0.88 | AQ129: 169999.991 | AR129: 13847.54545 | AS129: -13832.51712 | AT129: 85103.21594 | AU129: 111539.9819 | AV129: 74.16151471 | AW129: 74.16151471 | AX129: 84822.61351 | AY129: 184210.7517 | AZ129: 169999.991 | BA129: 13847.54545 | BB129: -13832.51712 | BC129: 85103.21594 | BD129: 111539.9819 | BE129: 74.16151471 | BF129: 74.16151471 | BG129: 84822.61351 | BH129: 184210.7517 | BI129: 2012-07-06T08:00:00 | BJ129: RDC - Arrivée | BK129: 1295.357328 | BL129: 1274.64312 | BM129: 1351.83372 | BN129: 1307.634409 | BO129: 42.556764 | BP129: 1.53326 | BR129: 77,RDC - Arrivée,RDC - Arrivée >>> RDC - Arrivée,TRUE,TRUE,X,X,X,X,FALSE,FALSE,FALSE,FALSE,FALSE,FALSE,88%
B130: 78 | C130: RDC - Arrivée | G130: 1295.357328 | I130: TRUE | J130: TRUE | K130: 75 | O130: 1 | Q130: 169999.991 | R130: 13847.54545 | S130: -13832.51712 | AA130: FALSE | AB130: FALSE | AC130: FALSE | AD130: FALSE | AE130: FALSE | AF130: FALSE | AH130: 0.88 | AQ130: 169999.991 | AR130: 13847.54545 | AS130: -13832.51712 | AT130: 85103.21594 | AU130: 111539.9819 | AV130: 74.16151471 | AW130: 74.16151471 | AX130: 84822.61351 | AY130: 184210.7517 | AZ130: 169999.991 | BA130: 13847.54545 | BB130: -13832.51712 | BC130: 85103.21594 | BD130: 111539.9819 | BE130: 74.16151471 | BF130: 74.16151471 | BG130: 84822.61351 | BH130: 184210.7517 | BI130: =IF($O130<>$O129,$P129,BI129) -> 2012-07-06T08:00:00 | BJ130: RDC - Arrivée | BK130: 1295.357328 | BL130: 1274.64312 | BM130: 1351.83372 | BN130: 1307.634409 | BO130: 42.556764 | BP130: 1.53326 | BR130: 78,RDC - Arrivée,RDC - Arrivée >>> RDC - Arrivée,TRUE,TRUE,X,X,X,X,FALSE,FALSE,FALSE,FALSE,FALSE,FALSE,88%
B131: 79 | C131: RDC - Arrivée | G131: 1295.357328 | I131: TRUE | J131: FALSE | K131: 75 | O131: 1 | Q131: 169999.991 | R131: 13847.54545 | S131: -13832.51712 | AA131: FALSE | AB131: FALSE | AC131: FALSE | AD131: FALSE | AE131: FALSE | AF131: FALSE | AH131: 0.88 | AQ131: 169999.991 | AR131: 13847.54545 | AS131: -13832.51712 | AT131: 85103.21594 | AU131: 111539.9819 | AV131: 74.16151471 | AW131: 74.16151471 | AX131: 84822.61351 | AY131: 184210.7517 | AZ131: 169999.991 | BA131: 13847.54545 | BB131: -13832.51712 | BC131: 85103.21594 | BD131: 111539.9819 | BE131: 74.16151471 | BF131: 74.16151471 | BG131: 84822.61351 | BH131: 184210.7517 | BI131: 2012-07-06T08:00:00 | BJ131: RDC - Arrivée | BK131: 1295.357328 | BL131: 1274.64312 | BM131: 1351.83372 | BN131: 1307.634409 | BO131: 42.556764 | BP131: 1.53326 | BR131: 79,RDC - Arrivée,RDC - Arrivée >>> RDC - Arrivée,TRUE,FALSE,X,X,X,X,FALSE,FALSE,FALSE,FALSE,FALSE,FALSE,88%
B132: 80 | C132: RDC - Arrivée | G132: 1295.357328 | I132: TRUE | J132: TRUE | K132: 76 | O132: 1 | Q132: 169999.991 | R132: 13847.54545 | S132: -13832.51712 | AA132: TRUE | AB132: TRUE | AC132: TRUE | AD132: FALSE | AE132: FALSE | AF132: TRUE | AH132: 0.88 | AQ132: 169999.991 | AR132: 13847.54545 | AS132: -13832.51712 | AT132: 85103.21594 | AU132: 111539.9819 | AV132: 74.16151471 | AW132: 74.16151471 | AX132: 84822.61351 | AY132: 184210.7517 | AZ132: 169999.991 | BA132: 13847.54545 | BB132: -13832.51712 | BC132: 85103.21594 | BD132: 111539.9819 | BE132: 74.16151471 | BF132: 74.16151471 | BG132: 84822.61351 | BH132: 184210.7517 | BI132: 2012-07-06T08:00:00 | BJ132: RDC - Arrivée | BK132: 1295.357328 | BL132: 1274.64312 | BM132: 1351.83372 | BN132: 1307.634409 | BO132: 42.556764 | BP132: 1.53326 | BR132: 80,RDC - Arrivée,RDC - Arrivée >>> RDC - Arrivée,TRUE,TRUE,X,X,X,X,TRUE,TRUE,TRUE,FALSE,FALSE,TRUE,88%
B133: 81 | C133: RDC - Arrivée | G133: 1295.357328 | I133: TRUE | J133: TRUE | K133: 77 | O133: 1 | Q133: =IF($I133,($AQ133-$AQ132),0)+IF($O133=$O132,Q132,0) -> 169999.991 | R133: =IF($I133,($AR133-$AR132),0)+IF($O133=$O132,R132,0) -> 13847.54545 | S133: =IF($I133,($AS133-$AS132),0)+IF($O133=$O132,S132,0) -> -13832.51712 | V133: =IF($U133<>"",$BI133+$U133,"") ->  | AA133: FALSE | AB133: FALSE | AC133: FALSE | AD133: FALSE | AE133: FALSE | AF133: FALSE | AH133: 0.88 | AQ133: =VLOOKUP($B133,RC_Table,AQ$50,TRUE) -> 169999.991 | AR133: 13847.54545 | AS133: -13832.51712 | AT133: 85103.21594 | AU133: 111539.9819 | AV133: 74.16151471 | AW133: 74.16151471 | AX133: 84822.61351 | AY133: 184210.7517 | AZ133: 169999.991 | BA133: 13847.54545 | BB133: -13832.51712 | BC133: 85103.21594 | BD133: 111539.9819 | BE133: 74.16151471 | BF133: 74.16151471 | BG133: 84822.61351 | BH133: 184210.7517 | BI133: 2012-07-06T08:00:00 | BJ133: RDC - Arrivée | BK133: 1295.357328 | BL133: 1274.64312 | BM133: 1351.83372 | BN133: 1307.634409 | BO133: 42.556764 | BP133: 1.53326 | BR133: 81,RDC - Arrivée,RDC - Arrivée >>> RDC - Arrivée,TRUE,TRUE,X,X,X,X,FALSE,FALSE,FALSE,FALSE,FALSE,FALSE,88% | BU133: =VLOOKUP($BT133,RBB_Table,BU$52,FALSE) -> 
B134: 82 | C134: RDC - Arrivée | G134: 1295.357328 | I134: TRUE | J134: TRUE | K134: 78 | O134: =O133+IF(AND($I133,$M133<>"",$N133<>""),1,0) -> 1 | Q134: 169999.991 | R134: 13847.54545 | S134: -13832.51712 | AA134: TRUE | AB134: TRUE | AC134: FALSE | AD134: FALSE | AE134: FALSE | AF134: FALSE | AH134: 0.88 | AQ134: 169999.991 | AR134: 13847.54545 | AS134: -13832.51712 | AT134: 85103.21594 | AU134: 111539.9819 | AV134: 74.16151471 | AW134: 74.16151471 | AX134: 84822.61351 | AY134: 184210.7517 | AZ134: 169999.991 | BA134: 13847.54545 | BB134: -13832.51712 | BC134: 85103.21594 | BD134: 111539.9819 | BE134: 74.16151471 | BF134: 74.16151471 | BG134: 84822.61351 | BH134: 184210.7517 | BI134: 2012-07-06T08:00:00 | BJ134: RDC - Arrivée | BK134: 1295.357328 | BL134: 1274.64312 | BM134: 1351.83372 | BN134: 1307.634409 | BO134: 42.556764 | BP134: 1.53326 | BR134: 82,RDC - Arrivée,RDC - Arrivée >>> RDC - Arrivée,TRUE,TRUE,X,X,X,X,TRUE,TRUE,FALSE,FALSE,FALSE,FALSE,88%
B135: 83 | C135: RDC - Arrivée | G135: 1295.357328 | I135: TRUE | J135: FALSE | K135: 78 | O135: 1 | Q135: 169999.991 | R135: 13847.54545 | S135: -13832.51712 | AA135: FALSE | AB135: FALSE | AC135: FALSE | AD135: FALSE | AE135: FALSE | AF135: FALSE | AH135: 0.88 | AQ135: 169999.991 | AR135: 13847.54545 | AS135: -13832.51712 | AT135: 85103.21594 | AU135: 111539.9819 | AV135: 74.16151471 | AW135: 74.16151471 | AX135: 84822.61351 | AY135: 184210.7517 | AZ135: 169999.991 | BA135: 13847.54545 | BB135: -13832.51712 | BC135: 85103.21594 | BD135: 111539.9819 | BE135: 74.16151471 | BF135: 74.16151471 | BG135: 84822.61351 | BH135: 184210.7517 | BI135: 2012-07-06T08:00:00 | BJ135: RDC - Arrivée | BK135: 1295.357328 | BL135: 1274.64312 | BM135: 1351.83372 | BN135: 1307.634409 | BO135: 42.556764 | BP135: 1.53326 | BR135: 83,RDC - Arrivée,RDC - Arrivée >>> RDC - Arrivée,TRUE,FALSE,X,X,X,X,FALSE,FALSE,FALSE,FALSE,FALSE,FALSE,88%
B136: 84 | C136: RDC - Arrivée | G136: 1295.357328 | I136: TRUE | J136: TRUE | K136: 79 | O136: 1 | Q136: 169999.991 | R136: 13847.54545 | S136: -13832.51712 | AA136: FALSE | AB136: FALSE | AC136: FALSE | AD136: FALSE | AE136: FALSE | AF136: FALSE | AH136: 0.88 | AQ136: 169999.991 | AR136: 13847.54545 | AS136: -13832.51712 | AT136: 85103.21594 | AU136: 111539.9819 | AV136: 74.16151471 | AW136: 74.16151471 | AX136: 84822.61351 | AY136: 184210.7517 | AZ136: 169999.991 | BA136: 13847.54545 | BB136: -13832.51712 | BC136: 85103.21594 | BD136: 111539.9819 | BE136: 74.16151471 | BF136: 74.16151471 | BG136: 84822.61351 | BH136: 184210.7517 | BI136: 2012-07-06T08:00:00 | BJ136: RDC - Arrivée | BK136: 1295.357328 | BL136: 1274.64312 | BM136: 1351.83372 | BN136: 1307.634409 | BO136: 42.556764 | BP136: 1.53326 | BR136: 84,RDC - Arrivée,RDC - Arrivée >>> RDC - Arrivée,TRUE,TRUE,X,X,X,X,FALSE,FALSE,FALSE,FALSE,FALSE,FALSE,88%
B137: 85 | C137: RDC - Arrivée | G137: 1295.357328 | I137: TRUE | J137: TRUE | K137: 80 | M137: 6 | N137: 07:00:00 | O137: 1 | P137: 2012-07-11T07:00:00 | Q137: 169999.991 | R137: 13847.54545 | S137: -13832.51712 | AA137: TRUE | AB137: TRUE | AC137: TRUE | AD137: FALSE | AE137: FALSE | AF137: TRUE | AH137: 0.88 | AQ137: 169999.991 | AR137: 13847.54545 | AS137: -13832.51712 | AT137: 85103.21594 | AU137: 111539.9819 | AV137: 74.16151471 | AW137: 74.16151471 | AX137: 84822.61351 | AY137: 184210.7517 | AZ137: 169999.991 | BA137: 13847.54545 | BB137: -13832.51712 | BC137: 85103.21594 | BD137: 111539.9819 | BE137: 74.16151471 | BF137: 74.16151471 | BG137: 84822.61351 | BH137: 184210.7517 | BI137: 2012-07-06T08:00:00 | BJ137: RDC - Arrivée | BK137: 1295.357328 | BL137: 1274.64312 | BM137: 1351.83372 | BN137: 1307.634409 | BO137: 42.556764 | BP137: 1.53326 | BR137: 85,RDC - Arrivée,RDC - Arrivée >>> RDC - Arrivée,TRUE,TRUE,6,07:00,X,X,TRUE,TRUE,TRUE,FALSE,FALSE,TRUE,88%
B138: 86 | C138: RDC - Arrivée | G138: 1295.357328 | I138: TRUE | J138: TRUE | K138: 81 | O138: 2 | Q138: 0 | R138: 0 | S138: 0 | AA138: FALSE | AB138: FALSE | AC138: FALSE | AD138: FALSE | AE138: FALSE | AF138: FALSE | AH138: 0.88 | AQ138: 169999.991 | AR138: 13847.54545 | AS138: -13832.51712 | AT138: 85103.21594 | AU138: 111539.9819 | AV138: 74.16151471 | AW138: 74.16151471 | AX138: 84822.61351 | AY138: 184210.7517 | AZ138: 169999.991 | BA138: 13847.54545 | BB138: -13832.51712 | BC138: 85103.21594 | BD138: 111539.9819 | BE138: 74.16151471 | BF138: 74.16151471 | BG138: 84822.61351 | BH138: 184210.7517 | BI138: 2012-07-11T07:00:00 | BJ138: RDC - Arrivée | BK138: 1295.357328 | BL138: 1274.64312 | BM138: 1351.83372 | BN138: 1307.634409 | BO138: 42.556764 | BP138: 1.53326 | BR138: 86,RDC - Arrivée,RDC - Arrivée >>> RDC - Arrivée,TRUE,TRUE,X,X,X,X,FALSE,FALSE,FALSE,FALSE,FALSE,FALSE,88%
B139: 87 | C139: RDC - Arrivée | G139: 1295.357328 | I139: TRUE | J139: TRUE | K139: 82 | O139: 2 | Q139: 0 | R139: 0 | S139: 0 | AA139: FALSE | AB139: FALSE | AC139: FALSE | AD139: FALSE | AE139: FALSE | AF139: FALSE | AH139: 0.8 | AQ139: 169999.991 | AR139: 13847.54545 | AS139: -13832.51712 | AT139: 85103.21594 | AU139: 111539.9819 | AV139: 74.16151471 | AW139: 74.16151471 | AX139: 84822.61351 | AY139: 184210.7517 | AZ139: 169999.991 | BA139: 13847.54545 | BB139: -13832.51712 | BC139: 85103.21594 | BD139: 111539.9819 | BE139: 74.16151471 | BF139: 74.16151471 | BG139: 84822.61351 | BH139: 184210.7517 | BI139: 2012-07-11T07:00:00 | BJ139: RDC - Arrivée | BK139: 1295.357328 | BL139: 1274.64312 | BM139: 1351.83372 | BN139: 1307.634409 | BO139: 42.556764 | BP139: 1.53326 | BR139: 87,RDC - Arrivée,RDC - Arrivée >>> RDC - Arrivée,TRUE,TRUE,X,X,X,X,FALSE,FALSE,FALSE,FALSE,FALSE,FALSE,80%
B140: 88 | C140: RDC - Arrivée | G140: 1295.357328 | I140: TRUE | J140: TRUE | K140: 83 | O140: 2 | Q140: 0 | R140: 0 | S140: 0 | AA140: FALSE | AB140: FALSE | AC140: FALSE | AD140: FALSE | AE140: FALSE | AF140: FALSE | AH140: 0.88 | AQ140: 169999.991 | AR140: 13847.54545 | AS140: -13832.51712 | AT140: 85103.21594 | AU140: 111539.9819 | AV140: 74.16151471 | AW140: 74.16151471 | AX140: 84822.61351 | AY140: 184210.7517 | AZ140: 169999.991 | BA140: 13847.54545 | BB140: -13832.51712 | BC140: 85103.21594 | BD140: 111539.9819 | BE140: 74.16151471 | BF140: 74.16151471 | BG140: 84822.61351 | BH140: 184210.7517 | BI140: 2012-07-11T07:00:00 | BJ140: RDC - Arrivée | BK140: 1295.357328 | BL140: 1274.64312 | BM140: 1351.83372 | BN140: 1307.634409 | BO140: 42.556764 | BP140: 1.53326 | BR140: 88,RDC - Arrivée,RDC - Arrivée >>> RDC - Arrivée,TRUE,TRUE,X,X,X,X,FALSE,FALSE,FALSE,FALSE,FALSE,FALSE,88%
B141: 89 | C141: RDC - Arrivée | G141: 1295.357328 | I141: TRUE | J141: TRUE | K141: 84 | O141: 2 | Q141: 0 | R141: 0 | S141: 0 | AA141: TRUE | AB141: TRUE | AC141: FALSE | AD141: FALSE | AE141: FALSE | AF141: TRUE | AH141: 0.88 | AQ141: 169999.991 | AR141: 13847.54545 | AS141: -13832.51712 | AT141: 85103.21594 | AU141: 111539.9819 | AV141: 74.16151471 | AW141: 74.16151471 | AX141: 84822.61351 | AY141: 184210.7517 | AZ141: 169999.991 | BA141: 13847.54545 | BB141: -13832.51712 | BC141: 85103.21594 | BD141: 111539.9819 | BE141: 74.16151471 | BF141: 74.16151471 | BG141: 84822.61351 | BH141: 184210.7517 | BI141: 2012-07-11T07:00:00 | BJ141: RDC - Arrivée | BK141: 1295.357328 | BL141: 1274.64312 | BM141: 1351.83372 | BN141: 1307.634409 | BO141: 42.556764 | BP141: 1.53326 | BR141: 89,RDC - Arrivée,RDC - Arrivée >>> RDC - Arrivée,TRUE,TRUE,X,X,X,X,TRUE,TRUE,FALSE,FALSE,FALSE,TRUE,88%
B142: 90 | C142: RDC - Arrivée | G142: 1295.357328 | I142: TRUE | J142: TRUE | K142: 85 | O142: 2 | Q142: 0 | R142: 0 | S142: 0 | AA142: FALSE | AB142: FALSE | AC142: FALSE | AD142: FALSE | AE142: FALSE | AF142: FALSE | AH142: 0.8 | AQ142: 169999.991 | AR142: 13847.54545 | AS142: -13832.51712 | AT142: 85103.21594 | AU142: 111539.9819 | AV142: 74.16151471 | AW142: 74.16151471 | AX142: 84822.61351 | AY142: 184210.7517 | AZ142: 169999.991 | BA142: 13847.54545 | BB142: -13832.51712 | BC142: 85103.21594 | BD142: 111539.9819 | BE142: 74.16151471 | BF142: 74.16151471 | BG142: 84822.61351 | BH142: 184210.7517 | BI142: 2012-07-11T07:00:00 | BJ142: RDC - Arrivée | BK142: 1295.357328 | BL142: 1274.64312 | BM142: 1351.83372 | BN142: 1307.634409 | BO142: 42.556764 | BP142: 1.53326 | BR142: 90,RDC - Arrivée,RDC - Arrivée >>> RDC - Arrivée,TRUE,TRUE,X,X,X,X,FALSE,FALSE,FALSE,FALSE,FALSE,FALSE,80%
B143: 91 | C143: RDC - Arrivée | G143: 1295.357328 | I143: TRUE | J143: TRUE | K143: 86 | O143: 2 | Q143: 0 | R143: 0 | S143: 0 | AA143: FALSE | AB143: FALSE | AC143: FALSE | AD143: FALSE | AE143: FALSE | AF143: FALSE | AH143: 0.7 | AQ143: 169999.991 | AR143: 13847.54545 | AS143: -13832.51712 | AT143: 85103.21594 | AU143: 111539.9819 | AV143: 74.16151471 | AW143: 74.16151471 | AX143: 84822.61351 | AY143: 184210.7517 | AZ143: 169999.991 | BA143: 13847.54545 | BB143: -13832.51712 | BC143: 85103.21594 | BD143: 111539.9819 | BE143: 74.16151471 | BF143: 74.16151471 | BG143: 84822.61351 | BH143: 184210.7517 | BI143: 2012-07-11T07:00:00 | BJ143: RDC - Arrivée | BK143: 1295.357328 | BL143: 1274.64312 | BM143: 1351.83372 | BN143: 1307.634409 | BO143: 42.556764 | BP143: 1.53326 | BR143: 91,RDC - Arrivée,RDC - Arrivée >>> RDC - Arrivée,TRUE,TRUE,X,X,X,X,FALSE,FALSE,FALSE,FALSE,FALSE,FALSE,70%
B144: 92 | C144: RDC - Arrivée | G144: 1295.357328 | I144: TRUE | J144: TRUE | K144: 87 | O144: 2 | Q144: 0 | R144: 0 | S144: 0 | AA144: FALSE | AB144: FALSE | AC144: FALSE | AD144: FALSE | AE144: FALSE | AF144: FALSE | AH144: 0.8 | AQ144: 169999.991 | AR144: 13847.54545 | AS144: -13832.51712 | AT144: 85103.21594 | AU144: 111539.9819 | AV144: 74.16151471 | AW144: 74.16151471 | AX144: 84822.61351 | AY144: 184210.7517 | AZ144: 169999.991 | BA144: 13847.54545 | BB144: -13832.51712 | BC144: 85103.21594 | BD144: 111539.9819 | BE144: 74.16151471 | BF144: 74.16151471 | BG144: 84822.61351 | BH144: 184210.7517 | BI144: 2012-07-11T07:00:00 | BJ144: RDC - Arrivée | BK144: 1295.357328 | BL144: 1274.64312 | BM144: 1351.83372 | BN144: 1307.634409 | BO144: 42.556764 | BP144: 1.53326 | BR144: 92,RDC - Arrivée,RDC - Arrivée >>> RDC - Arrivée,TRUE,TRUE,X,X,X,X,FALSE,FALSE,FALSE,FALSE,FALSE,FALSE,80%
B145: 93 | C145: RDC - Arrivée | G145: 1295.357328 | I145: TRUE | J145: TRUE | K145: 88 | M145: 7 | N145: 06:00:00 | O145: 2 | P145: 2012-07-12T06:00:00 | Q145: 0 | R145: 0 | S145: 0 | AA145: TRUE | AB145: TRUE | AC145: TRUE | AD145: FALSE | AE145: FALSE | AF145: TRUE | AH145: 0.88 | AQ145: 169999.991 | AR145: 13847.54545 | AS145: -13832.51712 | AT145: 85103.21594 | AU145: 111539.9819 | AV145: 74.16151471 | AW145: 74.16151471 | AX145: 84822.61351 | AY145: 184210.7517 | AZ145: 169999.991 | BA145: 13847.54545 | BB145: -13832.51712 | BC145: 85103.21594 | BD145: 111539.9819 | BE145: 74.16151471 | BF145: 74.16151471 | BG145: 84822.61351 | BH145: 184210.7517 | BI145: 2012-07-11T07:00:00 | BJ145: RDC - Arrivée | BK145: 1295.357328 | BL145: 1274.64312 | BM145: 1351.83372 | BN145: 1307.634409 | BO145: 42.556764 | BP145: 1.53326 | BR145: 93,RDC - Arrivée,RDC - Arrivée >>> RDC - Arrivée,TRUE,TRUE,7,06:00,X,X,TRUE,TRUE,TRUE,FALSE,FALSE,TRUE,88%
B146: 94 | C146: RDC - Arrivée | G146: 1295.357328 | I146: TRUE | J146: TRUE | K146: 89 | O146: 3 | Q146: 0 | R146: 0 | S146: 0 | AA146: FALSE | AB146: FALSE | AC146: FALSE | AD146: FALSE | AE146: FALSE | AF146: FALSE | AH146: 0.7 | AQ146: 169999.991 | AR146: 13847.54545 | AS146: -13832.51712 | AT146: 85103.21594 | AU146: 111539.9819 | AV146: 74.16151471 | AW146: 74.16151471 | AX146: 84822.61351 | AY146: 184210.7517 | AZ146: 169999.991 | BA146: 13847.54545 | BB146: -13832.51712 | BC146: 85103.21594 | BD146: 111539.9819 | BE146: 74.16151471 | BF146: 74.16151471 | BG146: 84822.61351 | BH146: 184210.7517 | BI146: 2012-07-12T06:00:00 | BJ146: RDC - Arrivée | BK146: 1295.357328 | BL146: 1274.64312 | BM146: 1351.83372 | BN146: 1307.634409 | BO146: 42.556764 | BP146: 1.53326 | BR146: 94,RDC - Arrivée,RDC - Arrivée >>> RDC - Arrivée,TRUE,TRUE,X,X,X,X,FALSE,FALSE,FALSE,FALSE,FALSE,FALSE,70%
B147: 95 | C147: RDC - Arrivée | G147: 1295.357328 | I147: TRUE | J147: FALSE | K147: 89 | O147: 3 | Q147: 0 | R147: 0 | S147: 0 | AA147: FALSE | AB147: FALSE | AC147: FALSE | AD147: FALSE | AE147: FALSE | AF147: FALSE | AH147: 0.7 | AQ147: 169999.991 | AR147: 13847.54545 | AS147: -13832.51712 | AT147: 85103.21594 | AU147: 111539.9819 | AV147: 74.16151471 | AW147: 74.16151471 | AX147: 84822.61351 | AY147: 184210.7517 | AZ147: 169999.991 | BA147: 13847.54545 | BB147: -13832.51712 | BC147: 85103.21594 | BD147: 111539.9819 | BE147: 74.16151471 | BF147: 74.16151471 | BG147: 84822.61351 | BH147: 184210.7517 | BI147: 2012-07-12T06:00:00 | BJ147: RDC - Arrivée | BK147: 1295.357328 | BL147: 1274.64312 | BM147: 1351.83372 | BN147: 1307.634409 | BO147: 42.556764 | BP147: 1.53326 | BR147: 95,RDC - Arrivée,RDC - Arrivée >>> RDC - Arrivée,TRUE,FALSE,X,X,X,X,FALSE,FALSE,FALSE,FALSE,FALSE,FALSE,70%
B148: 96 | C148: RDC - Arrivée | G148: 1295.357328 | I148: TRUE | J148: TRUE | K148: 90 | O148: 3 | Q148: 0 | R148: 0 | S148: 0 | AA148: TRUE | AB148: TRUE | AC148: TRUE | AD148: FALSE | AE148: FALSE | AF148: TRUE | AH148: 0.88 | AQ148: 169999.991 | AR148: 13847.54545 | AS148: -13832.51712 | AT148: 85103.21594 | AU148: 111539.9819 | AV148: 74.16151471 | AW148: 74.16151471 | AX148: 84822.61351 | AY148: 184210.7517 | AZ148: 169999.991 | BA148: 13847.54545 | BB148: -13832.51712 | BC148: 85103.21594 | BD148: 111539.9819 | BE148: 74.16151471 | BF148: 74.16151471 | BG148: 84822.61351 | BH148: 184210.7517 | BI148: 2012-07-12T06:00:00 | BJ148: RDC - Arrivée | BK148: 1295.357328 | BL148: 1274.64312 | BM148: 1351.83372 | BN148: 1307.634409 | BO148: 42.556764 | BP148: =VLOOKUP($B148,RC_Table,BP$50,TRUE) -> 1.53326 | BR148: 96,RDC - Arrivée,RDC - Arrivée >>> RDC - Arrivée,TRUE,TRUE,X,X,X,X,TRUE,TRUE,TRUE,FALSE,FALSE,TRUE,88% | CG148: =VLOOKUP($BT148,RBB_Table,CG$52,FALSE) -> 
B149: 97 | C149: RDC - Arrivée | G149: 1295.357328 | I149: TRUE | J149: FALSE | K149: 90 | O149: 3 | Q149: 0 | R149: 0 | S149: 0 | AA149: TRUE | AB149: TRUE | AC149: TRUE | AD149: FALSE | AE149: FALSE | AF149: TRUE | AH149: 0.88 | AQ149: 169999.991 | AR149: 13847.54545 | AS149: -13832.51712 | AT149: 85103.21594 | AU149: 111539.9819 | AV149: 74.16151471 | AW149: 74.16151471 | AX149: 84822.61351 | AY149: 184210.7517 | AZ149: 169999.991 | BA149: 13847.54545 | BB149: -13832.51712 | BC149: 85103.21594 | BD149: 111539.9819 | BE149: 74.16151471 | BF149: 74.16151471 | BG149: 84822.61351 | BH149: 184210.7517 | BI149: 2012-07-12T06:00:00 | BJ149: RDC - Arrivée | BK149: 1295.357328 | BL149: 1274.64312 | BM149: 1351.83372 | BN149: 1307.634409 | BO149: 42.556764 | BP149: 1.53326 | BR149: 97,RDC - Arrivée,RDC - Arrivée >>> RDC - Arrivée,TRUE,FALSE,X,X,X,X,TRUE,TRUE,TRUE,FALSE,FALSE,TRUE,88%
B150: 98 | C150: RDC - Arrivée | G150: 1295.357328 | I150: TRUE | J150: TRUE | K150: 91 | O150: 3 | Q150: 0 | R150: 0 | S150: 0 | AA150: FALSE | AB150: FALSE | AC150: FALSE | AD150: FALSE | AE150: FALSE | AF150: FALSE | AH150: 0.8 | AQ150: 169999.991 | AR150: 13847.54545 | AS150: -13832.51712 | AT150: 85103.21594 | AU150: 111539.9819 | AV150: 74.16151471 | AW150: 74.16151471 | AX150: 84822.61351 | AY150: 184210.7517 | AZ150: 169999.991 | BA150: 13847.54545 | BB150: -13832.51712 | BC150: 85103.21594 | BD150: 111539.9819 | BE150: 74.16151471 | BF150: 74.16151471 | BG150: 84822.61351 | BH150: 184210.7517 | BI150: 2012-07-12T06:00:00 | BJ150: RDC - Arrivée | BK150: 1295.357328 | BL150: 1274.64312 | BM150: 1351.83372 | BN150: 1307.634409 | BO150: 42.556764 | BP150: 1.53326 | BR150: 98,RDC - Arrivée,RDC - Arrivée >>> RDC - Arrivée,TRUE,TRUE,X,X,X,X,FALSE,FALSE,FALSE,FALSE,FALSE,FALSE,80%
B151: 99 | C151: RDC - Arrivée | G151: 1295.357328 | I151: TRUE | J151: TRUE | K151: 92 | O151: 3 | Q151: 0 | R151: 0 | S151: 0 | AA151: FALSE | AB151: FALSE | AC151: FALSE | AD151: FALSE | AE151: FALSE | AF151: FALSE | AH151: 0.88 | AQ151: 169999.991 | AR151: 13847.54545 | AS151: -13832.51712 | AT151: 85103.21594 | AU151: 111539.9819 | AV151: 74.16151471 | AW151: 74.16151471 | AX151: 84822.61351 | AY151: 184210.7517 | AZ151: 169999.991 | BA151: 13847.54545 | BB151: -13832.51712 | BC151: 85103.21594 | BD151: 111539.9819 | BE151: 74.16151471 | BF151: 74.16151471 | BG151: 84822.61351 | BH151: 184210.7517 | BI151: 2012-07-12T06:00:00 | BJ151: RDC - Arrivée | BK151: 1295.357328 | BL151: 1274.64312 | BM151: 1351.83372 | BN151: 1307.634409 | BO151: 42.556764 | BP151: 1.53326 | BR151: 99,RDC - Arrivée,RDC - Arrivée >>> RDC - Arrivée,TRUE,TRUE,X,X,X,X,FALSE,FALSE,FALSE,FALSE,FALSE,FALSE,88%
B152: 100 | C152: RDC - Arrivée | G152: 1295.357328 | I152: TRUE | J152: TRUE | K152: 93 | O152: 3 | Q152: 0 | R152: 0 | S152: 0 | AA152: FALSE | AB152: FALSE | AC152: FALSE | AD152: FALSE | AE152: FALSE | AF152: FALSE | AH152: 0.88 | AQ152: 169999.991 | AR152: 13847.54545 | AS152: -13832.51712 | AT152: 85103.21594 | AU152: 111539.9819 | AV152: 74.16151471 | AW152: 74.16151471 | AX152: 84822.61351 | AY152: 184210.7517 | AZ152: 169999.991 | BA152: 13847.54545 | BB152: -13832.51712 | BC152: 85103.21594 | BD152: 111539.9819 | BE152: 74.16151471 | BF152: 74.16151471 | BG152: 84822.61351 | BH152: 184210.7517 | BI152: 2012-07-12T06:00:00 | BJ152: RDC - Arrivée | BK152: 1295.357328 | BL152: 1274.64312 | BM152: 1351.83372 | BN152: 1307.634409 | BO152: 42.556764 | BP152: 1.53326 | BR152: 100,RDC - Arrivée,RDC - Arrivée >>> RDC - Arrivée,TRUE,TRUE,X,X,X,X,FALSE,FALSE,FALSE,FALSE,FALSE,FALSE,88%
B153: 101 | C153: RDC - Arrivée | G153: 1295.357328 | I153: TRUE | J153: TRUE | K153: 94 | O153: 3 | Q153: 0 | R153: 0 | S153: 0 | AA153: FALSE | AB153: FALSE | AC153: FALSE | AD153: FALSE | AE153: FALSE | AF153: FALSE | AH153: 0.8 | AQ153: =VLOOKUP($B153,RC_Table,AQ$50,TRUE) -> 169999.991 | AR153: 13847.54545 | AS153: -13832.51712 | AT153: 85103.21594 | AU153: 111539.9819 | AV153: 74.16151471 | AW153: 74.16151471 | AX153: 84822.61351 | AY153: 184210.7517 | AZ153: 169999.991 | BA153: 13847.54545 | BB153: -13832.51712 | BC153: 85103.21594 | BD153: 111539.9819 | BE153: 74.16151471 | BF153: 74.16151471 | BG153: 84822.61351 | BH153: 184210.7517 | BI153: 2012-07-12T06:00:00 | BJ153: RDC - Arrivée | BK153: 1295.357328 | BL153: 1274.64312 | BM153: 1351.83372 | BN153: 1307.634409 | BO153: 42.556764 | BP153: 1.53326 | BR153: 101,RDC - Arrivée,RDC - Arrivée >>> RDC - Arrivée,TRUE,TRUE,X,X,X,X,FALSE,FALSE,FALSE,FALSE,FALSE,FALSE,80% | BU153: =VLOOKUP($BT153,RBB_Table,BU$52,FALSE) -> 
B154: 102 | C154: RDC - Arrivée | G154: 1295.357328 | I154: TRUE | J154: TRUE | K154: 95 | O154: 3 | Q154: 0 | R154: 0 | S154: 0 | AA154: FALSE | AB154: FALSE | AC154: FALSE | AD154: FALSE | AE154: FALSE | AF154: FALSE | AH154: 0.8 | AQ154: 169999.991 | AR154: 13847.54545 | AS154: -13832.51712 | AT154: 85103.21594 | AU154: 111539.9819 | AV154: 74.16151471 | AW154: 74.16151471 | AX154: 84822.61351 | AY154: 184210.7517 | AZ154: 169999.991 | BA154: 13847.54545 | BB154: -13832.51712 | BC154: 85103.21594 | BD154: 111539.9819 | BE154: 74.16151471 | BF154: 74.16151471 | BG154: 84822.61351 | BH154: 184210.7517 | BI154: 2012-07-12T06:00:00 | BJ154: RDC - Arrivée | BK154: 1295.357328 | BL154: 1274.64312 | BM154: 1351.83372 | BN154: 1307.634409 | BO154: 42.556764 | BP154: 1.53326 | BR154: 102,RDC - Arrivée,RDC - Arrivée >>> RDC - Arrivée,TRUE,TRUE,X,X,X,X,FALSE,FALSE,FALSE,FALSE,FALSE,FALSE,80%
B155: 103 | C155: RDC - Arrivée | G155: 1295.357328 | I155: TRUE | J155: TRUE | K155: 96 | M155: 8 | N155: 07:00:00 | O155: 3 | P155: 2012-07-13T07:00:00 | Q155: 0 | R155: 0 | S155: 0 | AA155: TRUE | AB155: TRUE | AC155: TRUE | AD155: FALSE | AE155: FALSE | AF155: TRUE | AH155: 0.88 | AQ155: 169999.991 | AR155: 13847.54545 | AS155: -13832.51712 | AT155: 85103.21594 | AU155: 111539.9819 | AV155: 74.16151471 | AW155: 74.16151471 | AX155: 84822.61351 | AY155: 184210.7517 | AZ155: 169999.991 | BA155: 13847.54545 | BB155: -13832.51712 | BC155: 85103.21594 | BD155: 111539.9819 | BE155: 74.16151471 | BF155: 74.16151471 | BG155: 84822.61351 | BH155: 184210.7517 | BI155: 2012-07-12T06:00:00 | BJ155: RDC - Arrivée | BK155: 1295.357328 | BL155: 1274.64312 | BM155: 1351.83372 | BN155: 1307.634409 | BO155: 42.556764 | BP155: 1.53326 | BR155: 103,RDC - Arrivée,RDC - Arrivée >>> RDC - Arrivée,TRUE,TRUE,8,07:00,X,X,TRUE,TRUE,TRUE,FALSE,FALSE,TRUE,88%
B156: 104 | C156: RDC - Arrivée | G156: 1295.357328 | I156: TRUE | J156: TRUE | K156: 97 | O156: 4 | Q156: 0 | R156: 0 | S156: 0 | AA156: FALSE | AB156: FALSE | AC156: FALSE | AD156: FALSE | AE156: FALSE | AF156: FALSE | AH156: 0.8 | AQ156: 169999.991 | AR156: 13847.54545 | AS156: -13832.51712 | AT156: 85103.21594 | AU156: 111539.9819 | AV156: 74.16151471 | AW156: 74.16151471 | AX156: 84822.61351 | AY156: 184210.7517 | AZ156: 169999.991 | BA156: 13847.54545 | BB156: -13832.51712 | BC156: 85103.21594 | BD156: 111539.9819 | BE156: 74.16151471 | BF156: 74.16151471 | BG156: 84822.61351 | BH156: 184210.7517 | BI156: 2012-07-13T07:00:00 | BJ156: RDC - Arrivée | BK156: 1295.357328 | BL156: 1274.64312 | BM156: 1351.83372 | BN156: 1307.634409 | BO156: 42.556764 | BP156: 1.53326 | BR156: 104,RDC - Arrivée,RDC - Arrivée >>> RDC - Arrivée,TRUE,TRUE,X,X,X,X,FALSE,FALSE,FALSE,FALSE,FALSE,FALSE,80%
B157: 105 | C157: RDC - Arrivée | G157: 1295.357328 | I157: TRUE | J157: TRUE | K157: 98 | O157: 4 | Q157: 0 | R157: 0 | S157: 0 | AA157: FALSE | AB157: FALSE | AC157: FALSE | AD157: FALSE | AE157: FALSE | AF157: FALSE | AH157: 0.8 | AQ157: 169999.991 | AR157: 13847.54545 | AS157: -13832.51712 | AT157: 85103.21594 | AU157: 111539.9819 | AV157: 74.16151471 | AW157: 74.16151471 | AX157: 84822.61351 | AY157: 184210.7517 | AZ157: 169999.991 | BA157: 13847.54545 | BB157: -13832.51712 | BC157: 85103.21594 | BD157: 111539.9819 | BE157: 74.16151471 | BF157: 74.16151471 | BG157: 84822.61351 | BH157: 184210.7517 | BI157: 2012-07-13T07:00:00 | BJ157: RDC - Arrivée | BK157: 1295.357328 | BL157: 1274.64312 | BM157: 1351.83372 | BN157: 1307.634409 | BO157: 42.556764 | BP157: 1.53326 | BR157: 105,RDC - Arrivée,RDC - Arrivée >>> RDC - Arrivée,TRUE,TRUE,X,X,X,X,FALSE,FALSE,FALSE,FALSE,FALSE,FALSE,80%
B158: 106 | C158: RDC - Arrivée | G158: 1295.357328 | I158: TRUE | J158: TRUE | K158: 99 | O158: 4 | Q158: 0 | R158: 0 | S158: 0 | AA158: FALSE | AB158: FALSE | AC158: FALSE | AD158: FALSE | AE158: FALSE | AF158: FALSE | AH158: 0.7 | AQ158: 169999.991 | AR158: 13847.54545 | AS158: -13832.51712 | AT158: 85103.21594 | AU158: 111539.9819 | AV158: 74.16151471 | AW158: 74.16151471 | AX158: 84822.61351 | AY158: 184210.7517 | AZ158: 169999.991 | BA158: 13847.54545 | BB158: -13832.51712 | BC158: 85103.21594 | BD158: 111539.9819 | BE158: 74.16151471 | BF158: 74.16151471 | BG158: 84822.61351 | BH158: 184210.7517 | BI158: 2012-07-13T07:00:00 | BJ158: RDC - Arrivée | BK158: 1295.357328 | BL158: 1274.64312 | BM158: 1351.83372 | BN158: 1307.634409 | BO158: 42.556764 | BP158: 1.53326 | BR158: 106,RDC - Arrivée,RDC - Arrivée >>> RDC - Arrivée,TRUE,TRUE,X,X,X,X,FALSE,FALSE,FALSE,FALSE,FALSE,FALSE,70%
B159: 107 | C159: RDC - Arrivée | G159: 1295.357328 | I159: TRUE | J159: TRUE | K159: 100 | O159: 4 | Q159: 0 | R159: 0 | S159: 0 | AA159: TRUE | AB159: FALSE | AC159: FALSE | AD159: FALSE | AE159: FALSE | AF159: FALSE | AH159: 0.88 | AQ159: 169999.991 | AR159: 13847.54545 | AS159: -13832.51712 | AT159: 85103.21594 | AU159: 111539.9819 | AV159: 74.16151471 | AW159: 74.16151471 | AX159: 84822.61351 | AY159: 184210.7517 | AZ159: 169999.991 | BA159: 13847.54545 | BB159: -13832.51712 | BC159: 85103.21594 | BD159: 111539.9819 | BE159: 74.16151471 | BF159: 74.16151471 | BG159: 84822.61351 | BH159: 184210.7517 | BI159: 2012-07-13T07:00:00 | BJ159: RDC - Arrivée | BK159: 1295.357328 | BL159: 1274.64312 | BM159: 1351.83372 | BN159: 1307.634409 | BO159: 42.556764 | BP159: 1.53326 | BR159: 107,RDC - Arrivée,RDC - Arrivée >>> RDC - Arrivée,TRUE,TRUE,X,X,X,X,TRUE,FALSE,FALSE,FALSE,FALSE,FALSE,88%
B160: 108 | C160: RDC - Arrivée | G160: 1295.357328 | I160: TRUE | J160: TRUE | K160: 101 | O160: 4 | Q160: 0 | R160: 0 | S160: 0 | AA160: TRUE | AB160: TRUE | AC160: FALSE | AD160: FALSE | AE160: FALSE | AF160: TRUE | AH160: 0.88 | AQ160: 169999.991 | AR160: 13847.54545 | AS160: -13832.51712 | AT160: 85103.21594 | AU160: 111539.9819 | AV160: 74.16151471 | AW160: 74.16151471 | AX160: 84822.61351 | AY160: 184210.7517 | AZ160: 169999.991 | BA160: 13847.54545 | BB160: -13832.51712 | BC160: 85103.21594 | BD160: 111539.9819 | BE160: 74.16151471 | BF160: 74.16151471 | BG160: 84822.61351 | BH160: 184210.7517 | BI160: 2012-07-13T07:00:00 | BJ160: RDC - Arrivée | BK160: 1295.357328 | BL160: 1274.64312 | BM160: 1351.83372 | BN160: 1307.634409 | BO160: 42.556764 | BP160: 1.53326 | BR160: 108,RDC - Arrivée,RDC - Arrivée >>> RDC - Arrivée,TRUE,TRUE,X,X,X,X,TRUE,TRUE,FALSE,FALSE,FALSE,TRUE,88%
B161: 109 | C161: RDC - Arrivée | G161: 1295.357328 | I161: TRUE | J161: TRUE | K161: 102 | O161: 4 | Q161: 0 | R161: 0 | S161: 0 | AA161: FALSE | AB161: FALSE | AC161: FALSE | AD161: FALSE | AE161: FALSE | AF161: FALSE | AH161: 0.88 | AQ161: 169999.991 | AR161: 13847.54545 | AS161: -13832.51712 | AT161: 85103.21594 | AU161: 111539.9819 | AV161: 74.16151471 | AW161: 74.16151471 | AX161: 84822.61351 | AY161: 184210.7517 | AZ161: 169999.991 | BA161: 13847.54545 | BB161: -13832.51712 | BC161: 85103.21594 | BD161: 111539.9819 | BE161: 74.16151471 | BF161: 74.16151471 | BG161: 84822.61351 | BH161: 184210.7517 | BI161: 2012-07-13T07:00:00 | BJ161: RDC - Arrivée | BK161: 1295.357328 | BL161: 1274.64312 | BM161: 1351.83372 | BN161: 1307.634409 | BO161: 42.556764 | BP161: 1.53326 | BR161: 109,RDC - Arrivée,RDC - Arrivée >>> RDC - Arrivée,TRUE,TRUE,X,X,X,X,FALSE,FALSE,FALSE,FALSE,FALSE,FALSE,88%
B162: 110 | C162: RDC - Arrivée | G162: 1295.357328 | I162: TRUE | J162: TRUE | K162: 103 | O162: 4 | Q162: 0 | R162: 0 | S162: 0 | AA162: FALSE | AB162: FALSE | AC162: FALSE | AD162: FALSE | AE162: FALSE | AF162: FALSE | AH162: 0.88 | AQ162: 169999.991 | AR162: 13847.54545 | AS162: -13832.51712 | AT162: 85103.21594 | AU162: 111539.9819 | AV162: 74.16151471 | AW162: 74.16151471 | AX162: 84822.61351 | AY162: 184210.7517 | AZ162: 169999.991 | BA162: 13847.54545 | BB162: -13832.51712 | BC162: 85103.21594 | BD162: 111539.9819 | BE162: 74.16151471 | BF162: 74.16151471 | BG162: 84822.61351 | BH162: 184210.7517 | BI162: 2012-07-13T07:00:00 | BJ162: RDC - Arrivée | BK162: 1295.357328 | BL162: 1274.64312 | BM162: 1351.83372 | BN162: 1307.634409 | BO162: 42.556764 | BP162: 1.53326 | BR162: 110,RDC - Arrivée,RDC - Arrivée >>> RDC - Arrivée,TRUE,TRUE,X,X,X,X,FALSE,FALSE,FALSE,FALSE,FALSE,FALSE,88%
B163: 111 | C163: RDC - Arrivée | G163: 1295.357328 | I163: TRUE | J163: TRUE | K163: 104 | O163: 4 | Q163: 0 | R163: 0 | S163: 0 | AA163: FALSE | AB163: FALSE | AC163: FALSE | AD163: FALSE | AE163: FALSE | AF163: FALSE | AH163: 0.88 | AQ163: 169999.991 | AR163: 13847.54545 | AS163: -13832.51712 | AT163: 85103.21594 | AU163: 111539.9819 | AV163: 74.16151471 | AW163: 74.16151471 | AX163: 84822.61351 | AY163: 184210.7517 | AZ163: 169999.991 | BA163: 13847.54545 | BB163: -13832.51712 | BC163: 85103.21594 | BD163: 111539.9819 | BE163: 74.16151471 | BF163: 74.16151471 | BG163: 84822.61351 | BH163: 184210.7517 | BI163: 2012-07-13T07:00:00 | BJ163: RDC - Arrivée | BK163: 1295.357328 | BL163: 1274.64312 | BM163: 1351.83372 | BN163: 1307.634409 | BO163: 42.556764 | BP163: 1.53326 | BR163: 111,RDC - Arrivée,RDC - Arrivée >>> RDC - Arrivée,TRUE,TRUE,X,X,X,X,FALSE,FALSE,FALSE,FALSE,FALSE,FALSE,88%
B164: 112 | C164: RDC - Arrivée | G164: 1295.357328 | I164: TRUE | J164: FALSE | K164: 104 | O164: 4 | Q164: 0 | R164: 0 | S164: 0 | AA164: FALSE | AB164: FALSE | AC164: FALSE | AD164: FALSE | AE164: FALSE | AF164: FALSE | AH164: 0.88 | AQ164: 169999.991 | AR164: 13847.54545 | AS164: -13832.51712 | AT164: 85103.21594 | AU164: 111539.9819 | AV164: 74.16151471 | AW164: 74.16151471 | AX164: 84822.61351 | AY164: 184210.7517 | AZ164: 169999.991 | BA164: 13847.54545 | BB164: -13832.51712 | BC164: 85103.21594 | BD164: 111539.9819 | BE164: 74.16151471 | BF164: 74.16151471 | BG164: 84822.61351 | BH164: 184210.7517 | BI164: 2012-07-13T07:00:00 | BJ164: RDC - Arrivée | BK164: 1295.357328 | BL164: 1274.64312 | BM164: 1351.83372 | BN164: 1307.634409 | BO164: 42.556764 | BP164: 1.53326 | BR164: 112,RDC - Arrivée,RDC - Arrivée >>> RDC - Arrivée,TRUE,FALSE,X,X,X,X,FALSE,FALSE,FALSE,FALSE,FALSE,FALSE,88%
B165: 113 | C165: RDC - Arrivée | G165: 1295.357328 | I165: TRUE | J165: TRUE | K165: 105 | O165: 4 | Q165: 0 | R165: 0 | S165: 0 | AA165: FALSE | AB165: FALSE | AC165: FALSE | AD165: FALSE | AE165: FALSE | AF165: FALSE | AH165: 0.88 | AQ165: 169999.991 | AR165: 13847.54545 | AS165: -13832.51712 | AT165: 85103.21594 | AU165: 111539.9819 | AV165: 74.16151471 | AW165: 74.16151471 | AX165: 84822.61351 | AY165: 184210.7517 | AZ165: 169999.991 | BA165: 13847.54545 | BB165: -13832.51712 | BC165: 85103.21594 | BD165: 111539.9819 | BE165: 74.16151471 | BF165: 74.16151471 | BG165: 84822.61351 | BH165: 184210.7517 | BI165: 2012-07-13T07:00:00 | BJ165: RDC - Arrivée | BK165: 1295.357328 | BL165: 1274.64312 | BM165: 1351.83372 | BN165: 1307.634409 | BO165: 42.556764 | BP165: 1.53326 | BR165: 113,RDC - Arrivée,RDC - Arrivée >>> RDC - Arrivée,TRUE,TRUE,X,X,X,X,FALSE,FALSE,FALSE,FALSE,FALSE,FALSE,88%
B166: 114 | C166: RDC - Arrivée | G166: 1295.357328 | I166: TRUE | J166: TRUE | K166: 106 | O166: 4 | Q166: 0 | R166: 0 | S166: 0 | AA166: TRUE | AB166: TRUE | AC166: TRUE | AD166: FALSE | AE166: FALSE | AF166: TRUE | AH166: 0.88 | AQ166: 169999.991 | AR166: 13847.54545 | AS166: -13832.51712 | AT166: 85103.21594 | AU166: 111539.9819 | AV166: 74.16151471 | AW166: 74.16151471 | AX166: 84822.61351 | AY166: 184210.7517 | AZ166: 169999.991 | BA166: 13847.54545 | BB166: -13832.51712 | BC166: 85103.21594 | BD166: 111539.9819 | BE166: 74.16151471 | BF166: 74.16151471 | BG166: 84822.61351 | BH166: 184210.7517 | BI166: 2012-07-13T07:00:00 | BJ166: RDC - Arrivée | BK166: 1295.357328 | BL166: 1274.64312 | BM166: 1351.83372 | BN166: 1307.634409 | BO166: 42.556764 | BP166: 1.53326 | BR166: 114,RDC - Arrivée,RDC - Arrivée >>> RDC - Arrivée,TRUE,TRUE,X,X,X,X,TRUE,TRUE,TRUE,FALSE,FALSE,TRUE,88%
B167: 115 | C167: RDC - Arrivée | G167: 1295.357328 | I167: TRUE | J167: TRUE | K167: 107 | O167: 4 | Q167: 0 | R167: 0 | S167: 0 | AA167: FALSE | AB167: FALSE | AC167: FALSE | AD167: FALSE | AE167: FALSE | AF167: FALSE | AH167: 1 | AQ167: 169999.991 | AR167: 13847.54545 | AS167: -13832.51712 | AT167: 85103.21594 | AU167: 111539.9819 | AV167: 74.16151471 | AW167: 74.16151471 | AX167: 84822.61351 | AY167: 184210.7517 | AZ167: 169999.991 | BA167: 13847.54545 | BB167: -13832.51712 | BC167: 85103.21594 | BD167: 111539.9819 | BE167: 74.16151471 | BF167: 74.16151471 | BG167: 84822.61351 | BH167: 184210.7517 | BI167: 2012-07-13T07:00:00 | BJ167: RDC - Arrivée | BK167: 1295.357328 | BL167: 1274.64312 | BM167: 1351.83372 | BN167: 1307.634409 | BO167: 42.556764 | BP167: 1.53326 | BR167: 115,RDC - Arrivée,RDC - Arrivée >>> RDC - Arrivée,TRUE,TRUE,X,X,X,X,FALSE,FALSE,FALSE,FALSE,FALSE,FALSE,100%
B168: 116 | C168: RDC - Arrivée | G168: 1295.357328 | I168: TRUE | J168: TRUE | K168: 108 | O168: 4 | Q168: 0 | R168: 0 | S168: 0 | AA168: FALSE | AB168: FALSE | AC168: FALSE | AD168: FALSE | AE168: FALSE | AF168: FALSE | AH168: 1 | AQ168: 169999.991 | AR168: 13847.54545 | AS168: -13832.51712 | AT168: 85103.21594 | AU168: 111539.9819 | AV168: 74.16151471 | AW168: 74.16151471 | AX168: 84822.61351 | AY168: 184210.7517 | AZ168: 169999.991 | BA168: 13847.54545 | BB168: -13832.51712 | BC168: 85103.21594 | BD168: 111539.9819 | BE168: 74.16151471 | BF168: 74.16151471 | BG168: 84822.61351 | BH168: 184210.7517 | BI168: 2012-07-13T07:00:00 | BJ168: RDC - Arrivée | BK168: 1295.357328 | BL168: 1274.64312 | BM168: 1351.83372 | BN168: 1307.634409 | BO168: 42.556764 | BP168: 1.53326 | BR168: 116,RDC - Arrivée,RDC - Arrivée >>> RDC - Arrivée,TRUE,TRUE,X,X,X,X,FALSE,FALSE,FALSE,FALSE,FALSE,FALSE,100% | CG168: =VLOOKUP($BT168,RBB_Table,CG$52,FALSE) -> 
B169: 117 | C169: RDC - Arrivée | G169: 1295.357328 | I169: TRUE | J169: TRUE | K169: 109 | O169: 4 | Q169: 0 | R169: 0 | S169: 0 | AA169: FALSE | AB169: FALSE | AC169: FALSE | AD169: FALSE | AE169: FALSE | AF169: FALSE | AH169: 1 | AQ169: 169999.991 | AR169: 13847.54545 | AS169: -13832.51712 | AT169: 85103.21594 | AU169: 111539.9819 | AV169: 74.16151471 | AW169: 74.16151471 | AX169: 84822.61351 | AY169: 184210.7517 | AZ169: 169999.991 | BA169: 13847.54545 | BB169: -13832.51712 | BC169: 85103.21594 | BD169: 111539.9819 | BE169: 74.16151471 | BF169: 74.16151471 | BG169: 84822.61351 | BH169: 184210.7517 | BI169: 2012-07-13T07:00:00 | BJ169: RDC - Arrivée | BK169: 1295.357328 | BL169: 1274.64312 | BM169: 1351.83372 | BN169: 1307.634409 | BO169: 42.556764 | BP169: 1.53326 | BR169: 117,RDC - Arrivée,RDC - Arrivée >>> RDC - Arrivée,TRUE,TRUE,X,X,X,X,FALSE,FALSE,FALSE,FALSE,FALSE,FALSE,100%
B170: 118 | C170: RDC - Arrivée | G170: 1295.357328 | I170: TRUE | J170: TRUE | K170: 110 | O170: 4 | Q170: 0 | R170: 0 | S170: 0 | AA170: FALSE | AB170: FALSE | AC170: FALSE | AD170: FALSE | AE170: FALSE | AF170: FALSE | AH170: 1 | AQ170: 169999.991 | AR170: 13847.54545 | AS170: -13832.51712 | AT170: 85103.21594 | AU170: 111539.9819 | AV170: 74.16151471 | AW170: 74.16151471 | AX170: 84822.61351 | AY170: 184210.7517 | AZ170: 169999.991 | BA170: 13847.54545 | BB170: -13832.51712 | BC170: 85103.21594 | BD170: 111539.9819 | BE170: 74.16151471 | BF170: 74.16151471 | BG170: 84822.61351 | BH170: 184210.7517 | BI170: 2012-07-13T07:00:00 | BJ170: RDC - Arrivée | BK170: 1295.357328 | BL170: 1274.64312 | BM170: 1351.83372 | BN170: 1307.634409 | BO170: 42.556764 | BP170: 1.53326 | BR170: 118,RDC - Arrivée,RDC - Arrivée >>> RDC - Arrivée,TRUE,TRUE,X,X,X,X,FALSE,FALSE,FALSE,FALSE,FALSE,FALSE,100%
B171: 119 | C171: RDC - Arrivée | G171: 1295.357328 | I171: TRUE | J171: TRUE | K171: 111 | O171: 4 | Q171: 0 | R171: 0 | S171: 0 | AA171: FALSE | AB171: FALSE | AC171: FALSE | AD171: FALSE | AE171: FALSE | AF171: FALSE | AH171: 1 | AQ171: 169999.991 | AR171: 13847.54545 | AS171: -13832.51712 | AT171: 85103.21594 | AU171: 111539.9819 | AV171: 74.16151471 | AW171: 74.16151471 | AX171: 84822.61351 | AY171: 184210.7517 | AZ171: 169999.991 | BA171: 13847.54545 | BB171: -13832.51712 | BC171: 85103.21594 | BD171: 111539.9819 | BE171: 74.16151471 | BF171: 74.16151471 | BG171: 84822.61351 | BH171: 184210.7517 | BI171: 2012-07-13T07:00:00 | BJ171: RDC - Arrivée | BK171: 1295.357328 | BL171: 1274.64312 | BM171: 1351.83372 | BN171: 1307.634409 | BO171: 42.556764 | BP171: 1.53326 | BR171: 119,RDC - Arrivée,RDC - Arrivée >>> RDC - Arrivée,TRUE,TRUE,X,X,X,X,FALSE,FALSE,FALSE,FALSE,FALSE,FALSE,100%
B172: 120 | C172: RDC - Arrivée | G172: 1295.357328 | I172: TRUE | J172: TRUE | K172: 112 | O172: 4 | Q172: 0 | R172: 0 | S172: 0 | AA172: FALSE | AB172: FALSE | AC172: FALSE | AD172: FALSE | AE172: FALSE | AF172: FALSE | AH172: 1 | AQ172: 169999.991 | AR172: 13847.54545 | AS172: -13832.51712 | AT172: 85103.21594 | AU172: 111539.9819 | AV172: 74.16151471 | AW172: 74.16151471 | AX172: 84822.61351 | AY172: 184210.7517 | AZ172: 169999.991 | BA172: 13847.54545 | BB172: -13832.51712 | BC172: 85103.21594 | BD172: 111539.9819 | BE172: 74.16151471 | BF172: 74.16151471 | BG172: 84822.61351 | BH172: 184210.7517 | BI172: 2012-07-13T07:00:00 | BJ172: RDC - Arrivée | BK172: 1295.357328 | BL172: 1274.64312 | BM172: 1351.83372 | BN172: 1307.634409 | BO172: 42.556764 | BP172: 1.53326 | BR172: 120,RDC - Arrivée,RDC - Arrivée >>> RDC - Arrivée,TRUE,TRUE,X,X,X,X,FALSE,FALSE,FALSE,FALSE,FALSE,FALSE,100%
B173: 121 | C173: RDC - Arrivée | G173: 1295.357328 | I173: TRUE | J173: TRUE | K173: 113 | O173: 4 | Q173: 0 | R173: 0 | S173: 0 | AA173: FALSE | AB173: FALSE | AC173: FALSE | AD173: FALSE | AE173: FALSE | AF173: FALSE | AH173: 1 | AQ173: =VLOOKUP($B173,RC_Table,AQ$50,TRUE) -> 169999.991 | AR173: 13847.54545 | AS173: -13832.51712 | AT173: 85103.21594 | AU173: 111539.9819 | AV173: 74.16151471 | AW173: 74.16151471 | AX173: 84822.61351 | AY173: 184210.7517 | AZ173: 169999.991 | BA173: 13847.54545 | BB173: -13832.51712 | BC173: 85103.21594 | BD173: 111539.9819 | BE173: 74.16151471 | BF173: 74.16151471 | BG173: 84822.61351 | BH173: 184210.7517 | BI173: 2012-07-13T07:00:00 | BJ173: RDC - Arrivée | BK173: 1295.357328 | BL173: 1274.64312 | BM173: 1351.83372 | BN173: 1307.634409 | BO173: 42.556764 | BP173: 1.53326 | BR173: 121,RDC - Arrivée,RDC - Arrivée >>> RDC - Arrivée,TRUE,TRUE,X,X,X,X,FALSE,FALSE,FALSE,FALSE,FALSE,FALSE,100% | BU173: =VLOOKUP($BT173,RBB_Table,BU$52,FALSE) -> 
B174: 122 | C174: RDC - Arrivée | G174: 1295.357328 | I174: TRUE | J174: TRUE | K174: 114 | O174: 4 | Q174: 0 | R174: 0 | S174: 0 | AA174: FALSE | AB174: FALSE | AC174: FALSE | AD174: FALSE | AE174: FALSE | AF174: FALSE | AH174: 1 | AQ174: 169999.991 | AR174: 13847.54545 | AS174: -13832.51712 | AT174: 85103.21594 | AU174: 111539.9819 | AV174: 74.16151471 | AW174: 74.16151471 | AX174: 84822.61351 | AY174: 184210.7517 | AZ174: 169999.991 | BA174: 13847.54545 | BB174: -13832.51712 | BC174: 85103.21594 | BD174: 111539.9819 | BE174: 74.16151471 | BF174: 74.16151471 | BG174: 84822.61351 | BH174: 184210.7517 | BI174: 2012-07-13T07:00:00 | BJ174: RDC - Arrivée | BK174: 1295.357328 | BL174: 1274.64312 | BM174: 1351.83372 | BN174: 1307.634409 | BO174: 42.556764 | BP174: 1.53326 | BR174: 122,RDC - Arrivée,RDC - Arrivée >>> RDC - Arrivée,TRUE,TRUE,X,X,X,X,FALSE,FALSE,FALSE,FALSE,FALSE,FALSE,100%
B175: 123 | C175: RDC - Arrivée | G175: 1295.357328 | I175: TRUE | J175: TRUE | K175: 115 | O175: 4 | Q175: 0 | R175: 0 | S175: 0 | AA175: FALSE | AB175: FALSE | AC175: FALSE | AD175: FALSE | AE175: FALSE | AF175: FALSE | AH175: 1 | AQ175: 169999.991 | AR175: 13847.54545 | AS175: -13832.51712 | AT175: 85103.21594 | AU175: 111539.9819 | AV175: 74.16151471 | AW175: 74.16151471 | AX175: 84822.61351 | AY175: 184210.7517 | AZ175: 169999.991 | BA175: 13847.54545 | BB175: -13832.51712 | BC175: 85103.21594 | BD175: 111539.9819 | BE175: 74.16151471 | BF175: 74.16151471 | BG175: 84822.61351 | BH175: 184210.7517 | BI175: 2012-07-13T07:00:00 | BJ175: RDC - Arrivée | BK175: 1295.357328 | BL175: 1274.64312 | BM175: 1351.83372 | BN175: 1307.634409 | BO175: 42.556764 | BP175: 1.53326 | BR175: 123,RDC - Arrivée,RDC - Arrivée >>> RDC - Arrivée,TRUE,TRUE,X,X,X,X,FALSE,FALSE,FALSE,FALSE,FALSE,FALSE,100%
B176: 124 | C176: RDC - Arrivée | G176: 1295.357328 | I176: TRUE | J176: TRUE | K176: 116 | O176: 4 | Q176: 0 | R176: 0 | S176: 0 | AA176: FALSE | AB176: FALSE | AC176: FALSE | AD176: FALSE | AE176: FALSE | AF176: FALSE | AH176: 1 | AQ176: 169999.991 | AR176: 13847.54545 | AS176: -13832.51712 | AT176: 85103.21594 | AU176: 111539.9819 | AV176: 74.16151471 | AW176: 74.16151471 | AX176: 84822.61351 | AY176: 184210.7517 | AZ176: 169999.991 | BA176: 13847.54545 | BB176: -13832.51712 | BC176: 85103.21594 | BD176: 111539.9819 | BE176: 74.16151471 | BF176: 74.16151471 | BG176: 84822.61351 | BH176: 184210.7517 | BI176: 2012-07-13T07:00:00 | BJ176: RDC - Arrivée | BK176: 1295.357328 | BL176: 1274.64312 | BM176: 1351.83372 | BN176: 1307.634409 | BO176: 42.556764 | BP176: 1.53326 | BR176: 124,RDC - Arrivée,RDC - Arrivée >>> RDC - Arrivée,TRUE,TRUE,X,X,X,X,FALSE,FALSE,FALSE,FALSE,FALSE,FALSE,100%
B177: 125 | C177: RDC - Arrivée | G177: 1295.357328 | I177: TRUE | J177: TRUE | K177: 117 | O177: 4 | Q177: 0 | R177: 0 | S177: 0 | AA177: FALSE | AB177: FALSE | AC177: FALSE | AD177: FALSE | AE177: FALSE | AF177: FALSE | AH177: 1 | AQ177: 169999.991 | AR177: 13847.54545 | AS177: -13832.51712 | AT177: 85103.21594 | AU177: 111539.9819 | AV177: 74.16151471 | AW177: 74.16151471 | AX177: 84822.61351 | AY177: 184210.7517 | AZ177: 169999.991 | BA177: 13847.54545 | BB177: -13832.51712 | BC177: 85103.21594 | BD177: 111539.9819 | BE177: 74.16151471 | BF177: 74.16151471 | BG177: 84822.61351 | BH177: 184210.7517 | BI177: 2012-07-13T07:00:00 | BJ177: RDC - Arrivée | BK177: 1295.357328 | BL177: 1274.64312 | BM177: 1351.83372 | BN177: 1307.634409 | BO177: 42.556764 | BP177: 1.53326 | BR177: 125,RDC - Arrivée,RDC - Arrivée >>> RDC - Arrivée,TRUE,TRUE,X,X,X,X,FALSE,FALSE,FALSE,FALSE,FALSE,FALSE,100%
B178: 126 | C178: RDC - Arrivée | G178: 1295.357328 | I178: TRUE | J178: TRUE | K178: 118 | O178: 4 | Q178: 0 | R178: 0 | S178: 0 | AA178: FALSE | AB178: FALSE | AC178: FALSE | AD178: FALSE | AE178: FALSE | AF178: FALSE | AH178: 1 | AQ178: 169999.991 | AR178: 13847.54545 | AS178: -13832.51712 | AT178: 85103.21594 | AU178: 111539.9819 | AV178: 74.16151471 | AW178: 74.16151471 | AX178: 84822.61351 | AY178: 184210.7517 | AZ178: 169999.991 | BA178: 13847.54545 | BB178: -13832.51712 | BC178: 85103.21594 | BD178: 111539.9819 | BE178: 74.16151471 | BF178: 74.16151471 | BG178: 84822.61351 | BH178: 184210.7517 | BI178: 2012-07-13T07:00:00 | BJ178: RDC - Arrivée | BK178: 1295.357328 | BL178: 1274.64312 | BM178: 1351.83372 | BN178: 1307.634409 | BO178: 42.556764 | BP178: 1.53326 | BR178: 126,RDC - Arrivée,RDC - Arrivée >>> RDC - Arrivée,TRUE,TRUE,X,X,X,X,FALSE,FALSE,FALSE,FALSE,FALSE,FALSE,100%
B179: 127 | C179: RDC - Arrivée | G179: 1295.357328 | I179: TRUE | J179: TRUE | K179: 119 | O179: 4 | Q179: 0 | R179: 0 | S179: 0 | AA179: FALSE | AB179: FALSE | AC179: FALSE | AD179: FALSE | AE179: FALSE | AF179: FALSE | AH179: 1 | AQ179: 169999.991 | AR179: 13847.54545 | AS179: -13832.51712 | AT179: 85103.21594 | AU179: 111539.9819 | AV179: 74.16151471 | AW179: 74.16151471 | AX179: 84822.61351 | AY179: 184210.7517 | AZ179: 169999.991 | BA179: 13847.54545 | BB179: -13832.51712 | BC179: 85103.21594 | BD179: 111539.9819 | BE179: 74.16151471 | BF179: 74.16151471 | BG179: 84822.61351 | BH179: 184210.7517 | BI179: 2012-07-13T07:00:00 | BJ179: RDC - Arrivée | BK179: 1295.357328 | BL179: 1274.64312 | BM179: 1351.83372 | BN179: 1307.634409 | BO179: 42.556764 | BP179: 1.53326 | BR179: 127,RDC - Arrivée,RDC - Arrivée >>> RDC - Arrivée,TRUE,TRUE,X,X,X,X,FALSE,FALSE,FALSE,FALSE,FALSE,FALSE,100%
B180: 128 | C180: RDC - Arrivée | G180: 1295.357328 | I180: TRUE | J180: TRUE | K180: 120 | O180: 4 | Q180: 0 | R180: 0 | S180: 0 | AA180: FALSE | AB180: FALSE | AC180: FALSE | AD180: FALSE | AE180: FALSE | AF180: FALSE | AH180: 1 | AQ180: 169999.991 | AR180: 13847.54545 | AS180: -13832.51712 | AT180: 85103.21594 | AU180: 111539.9819 | AV180: 74.16151471 | AW180: 74.16151471 | AX180: 84822.61351 | AY180: 184210.7517 | AZ180: 169999.991 | BA180: 13847.54545 | BB180: -13832.51712 | BC180: 85103.21594 | BD180: 111539.9819 | BE180: 74.16151471 | BF180: 74.16151471 | BG180: 84822.61351 | BH180: 184210.7517 | BI180: 2012-07-13T07:00:00 | BJ180: RDC - Arrivée | BK180: 1295.357328 | BL180: 1274.64312 | BM180: 1351.83372 | BN180: 1307.634409 | BO180: 42.556764 | BP180: 1.53326 | BR180: 128,RDC - Arrivée,RDC - Arrivée >>> RDC - Arrivée,TRUE,TRUE,X,X,X,X,FALSE,FALSE,FALSE,FALSE,FALSE,FALSE,100%
B181: 129 | C181: =VLOOKUP($B181,RC_Table,C$52,TRUE) -> RDC - Arrivée | G181: =VLOOKUP($B181,RC_Table,G$52,TRUE) -> 1295.357328 | I181: TRUE | J181: TRUE | K181: 121 | O181: 4 | P181: =IF(AND($I181,$M181<>"",$N181<>""),MR_Input_Jour+$M181-1+$N181,"") ->  | Q181: 0 | R181: 0 | S181: 0 | AA181: FALSE | AB181: FALSE | AC181: FALSE | AD181: FALSE | AE181: FALSE | AF181: FALSE | AH181: 1 | AQ181: 169999.991 | AR181: 13847.54545 | AS181: -13832.51712 | AT181: 85103.21594 | AU181: 111539.9819 | AV181: 74.16151471 | AW181: 74.16151471 | AX181: 84822.61351 | AY181: 184210.7517 | AZ181: 169999.991 | BA181: 13847.54545 | BB181: -13832.51712 | BC181: 85103.21594 | BD181: 111539.9819 | BE181: 74.16151471 | BF181: 74.16151471 | BG181: 84822.61351 | BH181: 184210.7517 | BI181: 2012-07-13T07:00:00 | BJ181: RDC - Arrivée | BK181: 1295.357328 | BL181: =VLOOKUP($B181,RC_Table,BL$50,TRUE) -> 1274.64312 | BM181: 1351.83372 | BN181: 1307.634409 | BO181: 42.556764 | BP181: 1.53326 | BR181: 129,RDC - Arrivée,RDC - Arrivée >>> RDC - Arrivée,TRUE,TRUE,X,X,X,X,FALSE,FALSE,FALSE,FALSE,FALSE,FALSE,100% | BT181: =MATCH(CONCATENATE(IF($B181=1,"X",SUBSTITUTE($C180,",",";"))," >>> ",SUBSTITUTE($C181,",",";")),RBB_Liste_De_A,0) -> 
B182: =B181+1 -> 130 | C182: RDC - Arrivée | G182: 1295.357328 | I182: TRUE | J182: TRUE | K182: =K181+IF(AND(I182,J182),1,0) -> 122 | O182: 4 | Q182: 0 | R182: 0 | S182: 0 | Y182: =IF($X182<>"",$BI182+$X182,"") ->  | AA182: FALSE | AB182: FALSE | AC182: FALSE | AD182: FALSE | AE182: FALSE | AF182: FALSE | AH182: 1 | AQ182: 169999.991 | AR182: 13847.54545 | AS182: -13832.51712 | AT182: 85103.21594 | AU182: 111539.9819 | AV182: 74.16151471 | AW182: 74.16151471 | AX182: 84822.61351 | AY182: 184210.7517 | AZ182: =AZ181+IF($I182,AQ182-AQ181,0) -> 169999.991 | BA182: =BA181+IF($I182,AR182-AR181,0) -> 13847.54545 | BB182: =BB181+IF($I182,AS182-AS181,0) -> -13832.51712 | BC182: =BC181+IF($I182,AT182-AT181,0) -> 85103.21594 | BD182: =BD181+IF($I182,AU182-AU181,0) -> 111539.9819 | BE182: =BE181+IF($I182,AV182-AV181,0) -> 74.16151471 | BF182: =BF181+IF($I182,AW182-AW181,0) -> 74.16151471 | BG182: =BG181+IF($I182,AX182-AX181,0) -> 84822.61351 | BH182: =BH181+IF($I182,AY182-AY181,0) -> 184210.7517 | BI182: 2012-07-13T07:00:00 | BJ182: =$C182 -> RDC - Arrivée | BK182: =$G182 -> 1295.357328 | BL182: 1274.64312 | BM182: 1351.83372 | BN182: 1307.634409 | BO182: 42.556764 | BP182: 1.53326 | BR182: =CONCATENATE(TEXT($B182,"0"),",",SUBSTITUTE($C182,",",";"),",",IF($B182=1,"X",SUBSTITUTE($C181,",",";"))," >>> ",SUBSTITUTE($C182,",",";"),",",TEXT($I182,"0"),",",TEXT($J182,"0"),",",IF(ISBLANK($M182),"X",TEXT($M182,"0")),",",IF(ISBLANK($N182),"X",TEXT($N182,"[HH]:MM")),",",IF(ISBLANK($U182),"X",TEXT($U182,"[HH]:MM")),",",IF(ISBLANK($X182),"X",TEXT($X182,"[HH]:MM")),",",TEXT($AA182,"0"),",",TEXT($AB182,"0"),",",TEXT($AC182,"0"),",",TEXT($AD182,"0"),",",TEXT($AE182,"0"),",",TEXT($AF182,"0"),",",TEXT($AH182,"0%")) -> 130,RDC - Arrivée,RDC - Arrivée >>> RDC - Arrivée,TRUE,TRUE,X,X,X,X,FALSE,FALSE,FALSE,FALSE,FALSE,FALSE,100%
B183: 131 | C183: RDC - Arrivée | G183: 1295.357328 | I183: TRUE | J183: TRUE | K183: 123 | O183: 4 | Q183: 0 | R183: 0 | S183: 0 | AA183: FALSE | AB183: FALSE | AC183: FALSE | AD183: FALSE | AE183: FALSE | AF183: FALSE | AH183: 1 | AQ183: 169999.991 | AR183: 13847.54545 | AS183: -13832.51712 | AT183: 85103.21594 | AU183: 111539.9819 | AV183: 74.16151471 | AW183: 74.16151471 | AX183: 84822.61351 | AY183: 184210.7517 | AZ183: 169999.991 | BA183: 13847.54545 | BB183: -13832.51712 | BC183: 85103.21594 | BD183: 111539.9819 | BE183: 74.16151471 | BF183: 74.16151471 | BG183: 84822.61351 | BH183: 184210.7517 | BI183: 2012-07-13T07:00:00 | BJ183: RDC - Arrivée | BK183: 1295.357328 | BL183: 1274.64312 | BM183: 1351.83372 | BN183: 1307.634409 | BO183: 42.556764 | BP183: 1.53326 | BR183: 131,RDC - Arrivée,RDC - Arrivée >>> RDC - Arrivée,TRUE,TRUE,X,X,X,X,FALSE,FALSE,FALSE,FALSE,FALSE,FALSE,100%
B184: 132 | C184: RDC - Arrivée | G184: 1295.357328 | I184: TRUE | J184: TRUE | K184: 124 | O184: 4 | Q184: 0 | R184: 0 | S184: 0 | AA184: FALSE | AB184: FALSE | AC184: FALSE | AD184: FALSE | AE184: FALSE | AF184: FALSE | AH184: 1 | AQ184: 169999.991 | AR184: 13847.54545 | AS184: -13832.51712 | AT184: 85103.21594 | AU184: 111539.9819 | AV184: 74.16151471 | AW184: 74.16151471 | AX184: 84822.61351 | AY184: 184210.7517 | AZ184: 169999.991 | BA184: 13847.54545 | BB184: -13832.51712 | BC184: 85103.21594 | BD184: 111539.9819 | BE184: 74.16151471 | BF184: 74.16151471 | BG184: 84822.61351 | BH184: 184210.7517 | BI184: 2012-07-13T07:00:00 | BJ184: RDC - Arrivée | BK184: 1295.357328 | BL184: 1274.64312 | BM184: 1351.83372 | BN184: 1307.634409 | BO184: 42.556764 | BP184: 1.53326 | BR184: 132,RDC - Arrivée,RDC - Arrivée >>> RDC - Arrivée,TRUE,TRUE,X,X,X,X,FALSE,FALSE,FALSE,FALSE,FALSE,FALSE,100%
B185: 133 | C185: RDC - Arrivée | G185: 1295.357328 | I185: TRUE | J185: TRUE | K185: 125 | O185: 4 | Q185: 0 | R185: 0 | S185: 0 | AA185: FALSE | AB185: FALSE | AC185: FALSE | AD185: FALSE | AE185: FALSE | AF185: FALSE | AH185: 1 | AQ185: 169999.991 | AR185: 13847.54545 | AS185: -13832.51712 | AT185: 85103.21594 | AU185: 111539.9819 | AV185: 74.16151471 | AW185: 74.16151471 | AX185: 84822.61351 | AY185: 184210.7517 | AZ185: 169999.991 | BA185: 13847.54545 | BB185: -13832.51712 | BC185: 85103.21594 | BD185: 111539.9819 | BE185: 74.16151471 | BF185: 74.16151471 | BG185: 84822.61351 | BH185: 184210.7517 | BI185: 2012-07-13T07:00:00 | BJ185: RDC - Arrivée | BK185: 1295.357328 | BL185: 1274.64312 | BM185: 1351.83372 | BN185: 1307.634409 | BO185: 42.556764 | BP185: 1.53326 | BR185: 133,RDC - Arrivée,RDC - Arrivée >>> RDC - Arrivée,TRUE,TRUE,X,X,X,X,FALSE,FALSE,FALSE,FALSE,FALSE,FALSE,100%
B186: 134 | C186: RDC - Arrivée | G186: 1295.357328 | I186: TRUE | J186: TRUE | K186: 126 | O186: 4 | Q186: 0 | R186: 0 | S186: 0 | AA186: FALSE | AB186: FALSE | AC186: FALSE | AD186: FALSE | AE186: FALSE | AF186: FALSE | AH186: 1 | AQ186: 169999.991 | AR186: 13847.54545 | AS186: -13832.51712 | AT186: 85103.21594 | AU186: 111539.9819 | AV186: 74.16151471 | AW186: 74.16151471 | AX186: 84822.61351 | AY186: 184210.7517 | AZ186: 169999.991 | BA186: 13847.54545 | BB186: -13832.51712 | BC186: 85103.21594 | BD186: 111539.9819 | BE186: 74.16151471 | BF186: 74.16151471 | BG186: 84822.61351 | BH186: 184210.7517 | BI186: 2012-07-13T07:00:00 | BJ186: RDC - Arrivée | BK186: 1295.357328 | BL186: 1274.64312 | BM186: 1351.83372 | BN186: 1307.634409 | BO186: 42.556764 | BP186: 1.53326 | BR186: 134,RDC - Arrivée,RDC - Arrivée >>> RDC - Arrivée,TRUE,TRUE,X,X,X,X,FALSE,FALSE,FALSE,FALSE,FALSE,FALSE,100%
B187: 135 | C187: RDC - Arrivée | G187: 1295.357328 | I187: TRUE | J187: TRUE | K187: 127 | O187: 4 | Q187: 0 | R187: 0 | S187: 0 | AA187: FALSE | AB187: FALSE | AC187: FALSE | AD187: FALSE | AE187: FALSE | AF187: FALSE | AH187: 1 | AQ187: 169999.991 | AR187: 13847.54545 | AS187: -13832.51712 | AT187: 85103.21594 | AU187: 111539.9819 | AV187: 74.16151471 | AW187: 74.16151471 | AX187: 84822.61351 | AY187: 184210.7517 | AZ187: 169999.991 | BA187: 13847.54545 | BB187: -13832.51712 | BC187: 85103.21594 | BD187: 111539.9819 | BE187: 74.16151471 | BF187: 74.16151471 | BG187: 84822.61351 | BH187: 184210.7517 | BI187: 2012-07-13T07:00:00 | BJ187: RDC - Arrivée | BK187: 1295.357328 | BL187: 1274.64312 | BM187: 1351.83372 | BN187: 1307.634409 | BO187: 42.556764 | BP187: 1.53326 | BR187: 135,RDC - Arrivée,RDC - Arrivée >>> RDC - Arrivée,TRUE,TRUE,X,X,X,X,FALSE,FALSE,FALSE,FALSE,FALSE,FALSE,100%
B188: 136 | C188: RDC - Arrivée | G188: 1295.357328 | I188: TRUE | J188: TRUE | K188: 128 | O188: 4 | Q188: 0 | R188: 0 | S188: 0 | AA188: FALSE | AB188: FALSE | AC188: FALSE | AD188: FALSE | AE188: FALSE | AF188: FALSE | AH188: 1 | AQ188: 169999.991 | AR188: 13847.54545 | AS188: -13832.51712 | AT188: 85103.21594 | AU188: 111539.9819 | AV188: 74.16151471 | AW188: 74.16151471 | AX188: 84822.61351 | AY188: 184210.7517 | AZ188: 169999.991 | BA188: 13847.54545 | BB188: -13832.51712 | BC188: 85103.21594 | BD188: 111539.9819 | BE188: 74.16151471 | BF188: 74.16151471 | BG188: 84822.61351 | BH188: 184210.7517 | BI188: 2012-07-13T07:00:00 | BJ188: RDC - Arrivée | BK188: 1295.357328 | BL188: 1274.64312 | BM188: 1351.83372 | BN188: 1307.634409 | BO188: 42.556764 | BP188: 1.53326 | BR188: 136,RDC - Arrivée,RDC - Arrivée >>> RDC - Arrivée,TRUE,TRUE,X,X,X,X,FALSE,FALSE,FALSE,FALSE,FALSE,FALSE,100% | CG188: =VLOOKUP($BT188,RBB_Table,CG$52,FALSE) -> 
B189: 137 | C189: RDC - Arrivée | G189: 1295.357328 | I189: TRUE | J189: TRUE | K189: 129 | O189: 4 | Q189: 0 | R189: 0 | S189: 0 | AA189: FALSE | AB189: FALSE | AC189: FALSE | AD189: FALSE | AE189: FALSE | AF189: FALSE | AH189: 1 | AQ189: 169999.991 | AR189: 13847.54545 | AS189: -13832.51712 | AT189: 85103.21594 | AU189: 111539.9819 | AV189: 74.16151471 | AW189: 74.16151471 | AX189: 84822.61351 | AY189: 184210.7517 | AZ189: 169999.991 | BA189: 13847.54545 | BB189: -13832.51712 | BC189: 85103.21594 | BD189: 111539.9819 | BE189: 74.16151471 | BF189: 74.16151471 | BG189: 84822.61351 | BH189: 184210.7517 | BI189: 2012-07-13T07:00:00 | BJ189: RDC - Arrivée | BK189: 1295.357328 | BL189: 1274.64312 | BM189: 1351.83372 | BN189: 1307.634409 | BO189: 42.556764 | BP189: 1.53326 | BR189: 137,RDC - Arrivée,RDC - Arrivée >>> RDC - Arrivée,TRUE,TRUE,X,X,X,X,FALSE,FALSE,FALSE,FALSE,FALSE,FALSE,100%
B190: 138 | C190: RDC - Arrivée | G190: 1295.357328 | I190: TRUE | J190: TRUE | K190: 130 | O190: 4 | Q190: 0 | R190: 0 | S190: 0 | AA190: FALSE | AB190: FALSE | AC190: FALSE | AD190: FALSE | AE190: FALSE | AF190: FALSE | AH190: 1 | AQ190: 169999.991 | AR190: 13847.54545 | AS190: -13832.51712 | AT190: 85103.21594 | AU190: 111539.9819 | AV190: 74.16151471 | AW190: 74.16151471 | AX190: 84822.61351 | AY190: 184210.7517 | AZ190: 169999.991 | BA190: 13847.54545 | BB190: -13832.51712 | BC190: 85103.21594 | BD190: 111539.9819 | BE190: 74.16151471 | BF190: 74.16151471 | BG190: 84822.61351 | BH190: 184210.7517 | BI190: 2012-07-13T07:00:00 | BJ190: RDC - Arrivée | BK190: 1295.357328 | BL190: 1274.64312 | BM190: 1351.83372 | BN190: 1307.634409 | BO190: 42.556764 | BP190: 1.53326 | BR190: 138,RDC - Arrivée,RDC - Arrivée >>> RDC - Arrivée,TRUE,TRUE,X,X,X,X,FALSE,FALSE,FALSE,FALSE,FALSE,FALSE,100%
B191: 139 | C191: RDC - Arrivée | G191: 1295.357328 | I191: TRUE | J191: TRUE | K191: 131 | O191: 4 | Q191: 0 | R191: 0 | S191: 0 | AA191: FALSE | AB191: FALSE | AC191: FALSE | AD191: FALSE | AE191: FALSE | AF191: FALSE | AH191: 1 | AQ191: 169999.991 | AR191: 13847.54545 | AS191: -13832.51712 | AT191: 85103.21594 | AU191: 111539.9819 | AV191: 74.16151471 | AW191: 74.16151471 | AX191: 84822.61351 | AY191: 184210.7517 | AZ191: 169999.991 | BA191: 13847.54545 | BB191: -13832.51712 | BC191: 85103.21594 | BD191: 111539.9819 | BE191: 74.16151471 | BF191: 74.16151471 | BG191: 84822.61351 | BH191: 184210.7517 | BI191: 2012-07-13T07:00:00 | BJ191: RDC - Arrivée | BK191: 1295.357328 | BL191: 1274.64312 | BM191: 1351.83372 | BN191: 1307.634409 | BO191: 42.556764 | BP191: 1.53326 | BR191: 139,RDC - Arrivée,RDC - Arrivée >>> RDC - Arrivée,TRUE,TRUE,X,X,X,X,FALSE,FALSE,FALSE,FALSE,FALSE,FALSE,100%
B192: 140 | C192: RDC - Arrivée | G192: 1295.357328 | I192: TRUE | J192: TRUE | K192: 132 | O192: 4 | Q192: 0 | R192: 0 | S192: 0 | AA192: FALSE | AB192: FALSE | AC192: FALSE | AD192: FALSE | AE192: FALSE | AF192: FALSE | AH192: 1 | AQ192: 169999.991 | AR192: 13847.54545 | AS192: -13832.51712 | AT192: 85103.21594 | AU192: 111539.9819 | AV192: 74.16151471 | AW192: 74.16151471 | AX192: 84822.61351 | AY192: 184210.7517 | AZ192: 169999.991 | BA192: 13847.54545 | BB192: -13832.51712 | BC192: 85103.21594 | BD192: 111539.9819 | BE192: 74.16151471 | BF192: 74.16151471 | BG192: 84822.61351 | BH192: 184210.7517 | BI192: 2012-07-13T07:00:00 | BJ192: RDC - Arrivée | BK192: 1295.357328 | BL192: 1274.64312 | BM192: 1351.83372 | BN192: 1307.634409 | BO192: 42.556764 | BP192: 1.53326 | BR192: 140,RDC - Arrivée,RDC - Arrivée >>> RDC - Arrivée,TRUE,TRUE,X,X,X,X,FALSE,FALSE,FALSE,FALSE,FALSE,FALSE,100%
B193: 141 | C193: RDC - Arrivée | G193: 1295.357328 | I193: TRUE | J193: TRUE | K193: 133 | O193: 4 | Q193: 0 | R193: 0 | S193: 0 | AA193: FALSE | AB193: FALSE | AC193: FALSE | AD193: FALSE | AE193: FALSE | AF193: FALSE | AH193: 1 | AQ193: =VLOOKUP($B193,RC_Table,AQ$50,TRUE) -> 169999.991 | AR193: 13847.54545 | AS193: -13832.51712 | AT193: 85103.21594 | AU193: 111539.9819 | AV193: 74.16151471 | AW193: 74.16151471 | AX193: 84822.61351 | AY193: 184210.7517 | AZ193: 169999.991 | BA193: 13847.54545 | BB193: -13832.51712 | BC193: 85103.21594 | BD193: 111539.9819 | BE193: 74.16151471 | BF193: 74.16151471 | BG193: 84822.61351 | BH193: 184210.7517 | BI193: 2012-07-13T07:00:00 | BJ193: RDC - Arrivée | BK193: 1295.357328 | BL193: 1274.64312 | BM193: 1351.83372 | BN193: 1307.634409 | BO193: 42.556764 | BP193: 1.53326 | BR193: 141,RDC - Arrivée,RDC - Arrivée >>> RDC - Arrivée,TRUE,TRUE,X,X,X,X,FALSE,FALSE,FALSE,FALSE,FALSE,FALSE,100% | BU193: =VLOOKUP($BT193,RBB_Table,BU$52,FALSE) -> 
B194: 142 | C194: RDC - Arrivée | G194: 1295.357328 | I194: TRUE | J194: TRUE | K194: 134 | O194: 4 | Q194: 0 | R194: 0 | S194: 0 | AA194: FALSE | AB194: FALSE | AC194: FALSE | AD194: FALSE | AE194: FALSE | AF194: FALSE | AH194: 1 | AQ194: 169999.991 | AR194: 13847.54545 | AS194: -13832.51712 | AT194: 85103.21594 | AU194: 111539.9819 | AV194: 74.16151471 | AW194: 74.16151471 | AX194: 84822.61351 | AY194: 184210.7517 | AZ194: 169999.991 | BA194: 13847.54545 | BB194: -13832.51712 | BC194: 85103.21594 | BD194: 111539.9819 | BE194: 74.16151471 | BF194: 74.16151471 | BG194: 84822.61351 | BH194: 184210.7517 | BI194: =IF($O194<>$O193,$P193,BI193) -> 2012-07-13T07:00:00 | BJ194: RDC - Arrivée | BK194: 1295.357328 | BL194: 1274.64312 | BM194: 1351.83372 | BN194: 1307.634409 | BO194: 42.556764 | BP194: 1.53326 | BR194: 142,RDC - Arrivée,RDC - Arrivée >>> RDC - Arrivée,TRUE,TRUE,X,X,X,X,FALSE,FALSE,FALSE,FALSE,FALSE,FALSE,100%
B195: 143 | C195: RDC - Arrivée | G195: 1295.357328 | I195: TRUE | J195: TRUE | K195: 135 | O195: 4 | Q195: 0 | R195: 0 | S195: 0 | AA195: FALSE | AB195: FALSE | AC195: FALSE | AD195: FALSE | AE195: FALSE | AF195: FALSE | AH195: 1 | AQ195: 169999.991 | AR195: 13847.54545 | AS195: -13832.51712 | AT195: 85103.21594 | AU195: 111539.9819 | AV195: 74.16151471 | AW195: 74.16151471 | AX195: 84822.61351 | AY195: 184210.7517 | AZ195: 169999.991 | BA195: 13847.54545 | BB195: -13832.51712 | BC195: 85103.21594 | BD195: 111539.9819 | BE195: 74.16151471 | BF195: 74.16151471 | BG195: 84822.61351 | BH195: 184210.7517 | BI195: 2012-07-13T07:00:00 | BJ195: RDC - Arrivée | BK195: 1295.357328 | BL195: 1274.64312 | BM195: 1351.83372 | BN195: 1307.634409 | BO195: 42.556764 | BP195: 1.53326 | BR195: 143,RDC - Arrivée,RDC - Arrivée >>> RDC - Arrivée,TRUE,TRUE,X,X,X,X,FALSE,FALSE,FALSE,FALSE,FALSE,FALSE,100%
B196: 144 | C196: RDC - Arrivée | G196: 1295.357328 | I196: TRUE | J196: TRUE | K196: 136 | O196: 4 | Q196: 0 | R196: 0 | S196: 0 | AA196: FALSE | AB196: FALSE | AC196: FALSE | AD196: FALSE | AE196: FALSE | AF196: FALSE | AH196: 1 | AQ196: 169999.991 | AR196: 13847.54545 | AS196: -13832.51712 | AT196: 85103.21594 | AU196: 111539.9819 | AV196: 74.16151471 | AW196: 74.16151471 | AX196: 84822.61351 | AY196: 184210.7517 | AZ196: 169999.991 | BA196: 13847.54545 | BB196: -13832.51712 | BC196: 85103.21594 | BD196: 111539.9819 | BE196: 74.16151471 | BF196: 74.16151471 | BG196: 84822.61351 | BH196: 184210.7517 | BI196: 2012-07-13T07:00:00 | BJ196: RDC - Arrivée | BK196: 1295.357328 | BL196: 1274.64312 | BM196: 1351.83372 | BN196: 1307.634409 | BO196: 42.556764 | BP196: 1.53326 | BR196: 144,RDC - Arrivée,RDC - Arrivée >>> RDC - Arrivée,TRUE,TRUE,X,X,X,X,FALSE,FALSE,FALSE,FALSE,FALSE,FALSE,100%
B197: 145 | C197: RDC - Arrivée | G197: 1295.357328 | I197: TRUE | J197: TRUE | K197: 137 | O197: 4 | Q197: =IF($I197,($AQ197-$AQ196),0)+IF($O197=$O196,Q196,0) -> 0 | R197: =IF($I197,($AR197-$AR196),0)+IF($O197=$O196,R196,0) -> 0 | S197: =IF($I197,($AS197-$AS196),0)+IF($O197=$O196,S196,0) -> 0 | V197: =IF($U197<>"",$BI197+$U197,"") ->  | AA197: FALSE | AB197: FALSE | AC197: FALSE | AD197: FALSE | AE197: FALSE | AF197: FALSE | AH197: 1 | AQ197: 169999.991 | AR197: 13847.54545 | AS197: -13832.51712 | AT197: 85103.21594 | AU197: 111539.9819 | AV197: 74.16151471 | AW197: 74.16151471 | AX197: 84822.61351 | AY197: 184210.7517 | AZ197: 169999.991 | BA197: 13847.54545 | BB197: -13832.51712 | BC197: 85103.21594 | BD197: 111539.9819 | BE197: 74.16151471 | BF197: 74.16151471 | BG197: 84822.61351 | BH197: 184210.7517 | BI197: 2012-07-13T07:00:00 | BJ197: RDC - Arrivée | BK197: 1295.357328 | BL197: 1274.64312 | BM197: 1351.83372 | BN197: 1307.634409 | BO197: 42.556764 | BP197: 1.53326 | BR197: 145,RDC - Arrivée,RDC - Arrivée >>> RDC - Arrivée,TRUE,TRUE,X,X,X,X,FALSE,FALSE,FALSE,FALSE,FALSE,FALSE,100%
B198: 146 | C198: RDC - Arrivée | G198: 1295.357328 | I198: TRUE | J198: TRUE | K198: 138 | O198: =O197+IF(AND($I197,$M197<>"",$N197<>""),1,0) -> 4 | Q198: 0 | R198: 0 | S198: 0 | AA198: FALSE | AB198: FALSE | AC198: FALSE | AD198: FALSE | AE198: FALSE | AF198: FALSE | AH198: 1 | AQ198: 169999.991 | AR198: 13847.54545 | AS198: -13832.51712 | AT198: 85103.21594 | AU198: 111539.9819 | AV198: 74.16151471 | AW198: 74.16151471 | AX198: 84822.61351 | AY198: 184210.7517 | AZ198: 169999.991 | BA198: 13847.54545 | BB198: -13832.51712 | BC198: 85103.21594 | BD198: 111539.9819 | BE198: 74.16151471 | BF198: 74.16151471 | BG198: 84822.61351 | BH198: 184210.7517 | BI198: 2012-07-13T07:00:00 | BJ198: RDC - Arrivée | BK198: 1295.357328 | BL198: 1274.64312 | BM198: 1351.83372 | BN198: 1307.634409 | BO198: 42.556764 | BP198: 1.53326 | BR198: 146,RDC - Arrivée,RDC - Arrivée >>> RDC - Arrivée,TRUE,TRUE,X,X,X,X,FALSE,FALSE,FALSE,FALSE,FALSE,FALSE,100%
B199: 147 | C199: RDC - Arrivée | G199: 1295.357328 | I199: TRUE | J199: TRUE | K199: 139 | O199: 4 | Q199: 0 | R199: 0 | S199: 0 | AA199: FALSE | AB199: FALSE | AC199: FALSE | AD199: FALSE | AE199: FALSE | AF199: FALSE | AH199: 1 | AQ199: 169999.991 | AR199: 13847.54545 | AS199: -13832.51712 | AT199: 85103.21594 | AU199: 111539.9819 | AV199: 74.16151471 | AW199: 74.16151471 | AX199: 84822.61351 | AY199: 184210.7517 | AZ199: 169999.991 | BA199: 13847.54545 | BB199: -13832.51712 | BC199: 85103.21594 | BD199: 111539.9819 | BE199: 74.16151471 | BF199: 74.16151471 | BG199: 84822.61351 | BH199: 184210.7517 | BI199: 2012-07-13T07:00:00 | BJ199: RDC - Arrivée | BK199: 1295.357328 | BL199: 1274.64312 | BM199: 1351.83372 | BN199: 1307.634409 | BO199: 42.556764 | BP199: 1.53326 | BR199: 147,RDC - Arrivée,RDC - Arrivée >>> RDC - Arrivée,TRUE,TRUE,X,X,X,X,FALSE,FALSE,FALSE,FALSE,FALSE,FALSE,100%
B200: 148 | C200: RDC - Arrivée | G200: 1295.357328 | I200: TRUE | J200: TRUE | K200: 140 | O200: 4 | Q200: 0 | R200: 0 | S200: 0 | AA200: FALSE | AB200: FALSE | AC200: FALSE | AD200: FALSE | AE200: FALSE | AF200: FALSE | AH200: 1 | AQ200: 169999.991 | AR200: 13847.54545 | AS200: -13832.51712 | AT200: 85103.21594 | AU200: 111539.9819 | AV200: 74.16151471 | AW200: 74.16151471 | AX200: 84822.61351 | AY200: 184210.7517 | AZ200: 169999.991 | BA200: 13847.54545 | BB200: -13832.51712 | BC200: 85103.21594 | BD200: 111539.9819 | BE200: 74.16151471 | BF200: 74.16151471 | BG200: 84822.61351 | BH200: 184210.7517 | BI200: 2012-07-13T07:00:00 | BJ200: RDC - Arrivée | BK200: 1295.357328 | BL200: 1274.64312 | BM200: 1351.83372 | BN200: 1307.634409 | BO200: 42.556764 | BP200: 1.53326 | BR200: 148,RDC - Arrivée,RDC - Arrivée >>> RDC - Arrivée,TRUE,TRUE,X,X,X,X,FALSE,FALSE,FALSE,FALSE,FALSE,FALSE,100%
B201: 149 | C201: RDC - Arrivée | G201: 1295.357328 | I201: TRUE | J201: TRUE | K201: 141 | O201: 4 | Q201: 0 | R201: 0 | S201: 0 | AA201: FALSE | AB201: FALSE | AC201: FALSE | AD201: FALSE | AE201: FALSE | AF201: FALSE | AH201: 1 | AQ201: 169999.991 | AR201: 13847.54545 | AS201: -13832.51712 | AT201: 85103.21594 | AU201: 111539.9819 | AV201: 74.16151471 | AW201: 74.16151471 | AX201: 84822.61351 | AY201: 184210.7517 | AZ201: 169999.991 | BA201: 13847.54545 | BB201: -13832.51712 | BC201: 85103.21594 | BD201: 111539.9819 | BE201: 74.16151471 | BF201: 74.16151471 | BG201: 84822.61351 | BH201: 184210.7517 | BI201: 2012-07-13T07:00:00 | BJ201: RDC - Arrivée | BK201: 1295.357328 | BL201: 1274.64312 | BM201: 1351.83372 | BN201: 1307.634409 | BO201: 42.556764 | BP201: 1.53326 | BR201: 149,RDC - Arrivée,RDC - Arrivée >>> RDC - Arrivée,TRUE,TRUE,X,X,X,X,FALSE,FALSE,FALSE,FALSE,FALSE,FALSE,100%
B202: 150 | C202: RDC - Arrivée | G202: 1295.357328 | I202: TRUE | J202: TRUE | K202: 142 | O202: 4 | Q202: 0 | R202: 0 | S202: 0 | AA202: FALSE | AB202: FALSE | AC202: FALSE | AD202: FALSE | AE202: FALSE | AF202: FALSE | AH202: 1 | AQ202: 169999.991 | AR202: 13847.54545 | AS202: -13832.51712 | AT202: 85103.21594 | AU202: 111539.9819 | AV202: 74.16151471 | AW202: 74.16151471 | AX202: 84822.61351 | AY202: 184210.7517 | AZ202: 169999.991 | BA202: 13847.54545 | BB202: -13832.51712 | BC202: 85103.21594 | BD202: 111539.9819 | BE202: 74.16151471 | BF202: 74.16151471 | BG202: 84822.61351 | BH202: 184210.7517 | BI202: 2012-07-13T07:00:00 | BJ202: RDC - Arrivée | BK202: 1295.357328 | BL202: 1274.64312 | BM202: 1351.83372 | BN202: 1307.634409 | BO202: 42.556764 | BP202: 1.53326 | BR202: 150,RDC - Arrivée,RDC - Arrivée >>> RDC - Arrivée,TRUE,TRUE,X,X,X,X,FALSE,FALSE,FALSE,FALSE,FALSE,FALSE,100%
B203: 151 | C203: RDC - Arrivée | G203: 1295.357328 | I203: TRUE | J203: TRUE | K203: 143 | O203: 4 | Q203: 0 | R203: 0 | S203: 0 | AA203: FALSE | AB203: FALSE | AC203: FALSE | AD203: FALSE | AE203: FALSE | AF203: FALSE | AH203: 1 | AQ203: 169999.991 | AR203: 13847.54545 | AS203: -13832.51712 | AT203: 85103.21594 | AU203: 111539.9819 | AV203: 74.16151471 | AW203: 74.16151471 | AX203: 84822.61351 | AY203: 184210.7517 | AZ203: 169999.991 | BA203: 13847.54545 | BB203: -13832.51712 | BC203: 85103.21594 | BD203: 111539.9819 | BE203: 74.16151471 | BF203: 74.16151471 | BG203: 84822.61351 | BH203: 184210.7517 | BI203: 2012-07-13T07:00:00 | BJ203: RDC - Arrivée | BK203: 1295.357328 | BL203: 1274.64312 | BM203: 1351.83372 | BN203: 1307.634409 | BO203: 42.556764 | BP203: 1.53326 | BR203: 151,RDC - Arrivée,RDC - Arrivée >>> RDC - Arrivée,TRUE,TRUE,X,X,X,X,FALSE,FALSE,FALSE,FALSE,FALSE,FALSE,100%
... 99 more rows

Sheet Menu Coureur
C2: Vitesse de Course | H2: + | J2: – | V2: Temps de Passage | AB2: ►► | AD2: CALC | AK2: OK | AM2: i | AS2: ◄◄
C4: Nombre Maximum de Points | F4: 250
C5: Nombre de Points Roadbook | F5: =MR_Nbr_RB -> 63
C7: ▼ Titre de cette Estimation ▼ | L7: Graphe - Vitesse | O7: Graphe Pente | S7: Graphe - Altitude | AH7: ◄ Courabilité
D8: Exemple 45 | L8: Temps (H) | M8: V % | O8: Pente | P8: Min-Max | Q8: D x | S8: Alt | T8: V %
L9: 0 | M9: =IF(ME_Input_Décr_Linéaire,1-(1-ME_Input_Décr_Finale)*L9/40,ME_Input_Décr_Finale+(1-ME_Input_Décr_Finale)*(1-ME_Input_Taux_Final)^L9) -> 1 | O9: -60 | P9: =MIN(MAX(O9,100*P_RPO_Pente_Min),100*P_RPO_Pente_Max) -> -40 | Q9: =IF(ME_Input_Relief,(1+P_RPO_X*P9+P_RPO_X2*P9^2+P_RPO_X3*P9^3+P_RPO_X4*P9^4)*IF(P9<>O9,O9/P9,1),1) -> 3.774 | S9: 0 | T9: 1 | AH9: ◄ Altitude | DH9: ="Itération "&DH11&" >>>" -> Itération 1 >>> | FW9: ="Itération "&FW11&" >>>" -> Itération 2 >>> | IL9: ="Itération "&IL11&" >>>" -> Itération 3 >>> | LA9: ="Itération "&LA11&" >>>" -> Itération 4 >>> | NP9: ="Itération "&NP11&" >>>" -> Itération 5 >>> | QE9: ="Itération "&QE11&" >>>" -> Itération 6 >>>
B10: 1 | C10: ▼ Méthode de Calcul des Vitesses ▼ | L10: =L9+1 -> 1 | M10: 0.98 | O10: =O9+2 -> -58 | P10: -40 | Q10: 3.6482 | S10: =ME_Input_Alt_Montée_Seuil -> 1600 | T10: 1 | FN10: Correction | FQ10: Correction | IC10: Correction | IF10: Correction | KR10: Correction | KU10: Correction | NG10: Correction | NJ10: Correction | PV10: Correction | PY10: Correction | SK10: Correction | SN10: Correction
C11: Objectif ▼ | E11: V Init / Fin ▼ | G11: Manuel ▼ | L11: =L10+1 -> 2 | M11: 0.962 | O11: =O10+2 -> -56 | P11: -40 | Q11: 3.5224 | S11: 5000 | T11: =100%-ME_Input_Alt_Montée_Taux*(S11-S10)/1000 -> 0.626 | AH11: ◄ Grimpeur / D | DH11: 1 | DJ11: 1 | DQ11: 1 | FN11: =CHOOSE(ME_Input_Méthode,NA(),FN12/(Me_Input_Vitesse_Initiale*ME_Input_Décr_Finale),NA()) ->  | FQ11: =CHOOSE(ME_Input_Méthode,FQ17/FM17,NA(),NA()) -> 0.6120173606 | FW11: =DH11+1 -> 2 | FY11: =FQ11 -> 0.6120173606 | GF11: =FN11 ->  | IC11: =CHOOSE(ME_Input_Méthode,NA(),IC12/(Me_Input_Vitesse_Initiale*ME_Input_Décr_Finale),NA()) ->  | IF11: =CHOOSE(ME_Input_Méthode,IF17/IB17,NA(),NA()) -> 1.030590752 | IL11: =FW11+1 -> 3 | IN11: =IF11 -> 1.030590752 | IU11: =IC11 ->  | KR11: =CHOOSE(ME_Input_Méthode,NA(),KR12/(Me_Input_Vitesse_Initiale*ME_Input_Décr_Finale),NA()) ->  | KU11: =CHOOSE(ME_Input_Méthode,KU17/KQ17,NA(),NA()) -> 0.9984064023 | LA11: =IL11+1 -> 4 | LC11: =KU11 -> 0.9984064023 | LJ11: =KR11 ->  | NG11: =CHOOSE(ME_Input_Méthode,NA(),NG12/(Me_Input_Vitesse_Initiale*ME_Input_Décr_Finale),NA()) ->  | NJ11: =CHOOSE(ME_Input_Méthode,NJ17/NF17,NA(),NA()) -> 1.000085344 | NP11: =LA11+1 -> 5 | NR11: =NJ11 -> 1.000085344 | NY11: =NG11 ->  | PV11: =CHOOSE(ME_Input_Méthode,NA(),PV12/(Me_Input_Vitesse_Initiale*ME_Input_Décr_Finale),NA()) ->  | PY11: =CHOOSE(ME_Input_Méthode,PY17/PU17,NA(),NA()) -> 0.9999954361 | QE11: =NP11+1 -> 6 | QG11: =PY11 -> 0.9999954361 | QN11: =PV11 ->  | SK11: =CHOOSE(ME_Input_Méthode,NA(),SK12/(Me_Input_Vitesse_Initiale*ME_Input_Décr_Finale),NA()) ->  | SN11: =CHOOSE(ME_Input_Méthode,SN17/SJ17,NA(),NA()) -> 1.000000244
D12: =CHOOSE(ME_Input_Méthode,"Objectif de Temps","Vitesses Initiales et Finales","Choix Manuel des Vitesses") -> Objectif de Temps | L12: 3 | M12: 0.9458 | O12: -54 | P12: -40 | Q12: 3.3966 | S12: 0 | T12: 1 | FN12: =OFFSET(FN$20,1+ME_Nbr_RB,0) -> 13.02838198 | IC12: =OFFSET(IC$20,1+ME_Nbr_RB,0) -> 7.856791707 | KR12: =OFFSET(KR$20,1+ME_Nbr_RB,0) -> 8.100663255 | NG12: =OFFSET(NG$20,1+ME_Nbr_RB,0) -> 8.087558055 | PV12: =OFFSET(PV$20,1+ME_Nbr_RB,0) -> 8.088258742 | SK12: =OFFSET(SK$20,1+ME_Nbr_RB,0) -> 8.088221269
C13: Temps Visé | F13: 1.875 | L13: 4 | M13: 0.93122 | O13: -52 | P13: -40 | Q13: 3.2708 | S13: =ME_Input_Alt_Descente_Seuil -> 2500 | T13: 1 | AH13: ◄ Nuit
C14: Vitesse Initiale | F14: 8.6 | L14: 5 | M14: 0.918098 | O14: -50 | P14: -40 | Q14: 3.145 | S14: 5000 | T14: =100%-ME_Input_Alt_Descente_Taux*(S14-S13)/1000 -> 0.875 | DH14: Vitesse en début Etape | DL14: Première Estimation - Avec Tm = Ti | DX14: Vitesse en début Etape (idem) | EB14: Seconde Estimation - Avec Tm sur base To de la Première Estimation | EN14: Calcul de Coéficient de Correstion de Nuit | FE14: Vitesse en début Etape (idem) | FI14: Estimation Finale pour cette Itération | FW14: Vitesse en début Etape | GA14: Première Estimation - Avec Tm = Ti | GM14: Vitesse en début Etape (idem) | GQ14: Seconde Estimation - Avec Tm sur base To de la Première Estimation | HC14: Calcul de Coéficient de Correstion de Nuit | HT14: Vitesse en début Etape (idem) | HX14: Estimation Finale pour cette Itération | IL14: Vitesse en début Etape | IP14: Première Estimation - Avec Tm = Ti | JB14: Vitesse en début Etape (idem) | JF14: Seconde Estimation - Avec Tm sur base To de la Première Estimation | JR14: Calcul de Coéficient de Correstion de Nuit | KI14: Vitesse en début Etape (idem) | KM14: Estimation Finale pour cette Itération | LA14: Vitesse en début Etape | LE14: Première Estimation - Avec Tm = Ti | LQ14: Vitesse en début Etape (idem) | LU14: Seconde Estimation - Avec Tm sur base To de la Première Estimation | MG14: Calcul de Coéficient de Correstion de Nuit | MX14: Vitesse en début Etape (idem) | NB14: Estimation Finale pour cette Itération | NP14: Vitesse en début Etape | NT14: Première Estimation - Avec Tm = Ti | OF14: Vitesse en début Etape (idem) | OJ14: Seconde Estimation - Avec Tm sur base To de la Première Estimation | OV14: Calcul de Coéficient de Correstion de Nuit | PM14: Vitesse en début Etape (idem) | PQ14: Estimation Finale pour cette Itération | QE14: Vitesse en début Etape | QI14: Première Estimation - Avec Tm = Ti | QU14: Vitesse en début Etape (idem) | QY14: Seconde Estimation - Avec Tm sur base To de la Première Estimation | RK14: Calcul de Coéficient de Correstion de Nuit | SB14: Vitesse en début Etape (idem) | SF14: Estimation Finale pour cette Itération | ST14: Calcul des Temps Totaux ./. Aux Coéfficients | TA14: Calcul des coéfficients séparément Montée / Descente | TR14: Vitesses ascentionelles
L15: 6 | M15: 0.9062882 | O15: -48 | P15: -40 | Q15: 3.0192 | BI15: ◄ Passages | CE15: Determination des Facteurs de Correction - Sauf Vitesse de Nuit (qui dépend de l'heure)
C16: ▼ Décroissance de la Vitesse ▼ | L16: 7 | M16: 0.89565938 | O16: -46 | P16: -40 | Q16: 2.8934 | DH16: =ME_Input_Méthode -> 1 | DJ16: =CHOOSE(ME_Input_Méthode,16*DJ$11,Me_Input_Vitesse_Initiale,NA()) -> 16 | DP16: Décélération Linéaire | DT16: Total Hp | DX16: =ME_Input_Méthode -> 1 | DZ16: =DJ16 -> 16 | EF16: =DP16 -> Décélération Linéaire | EJ16: Total Hp | EN16: =ME_Input_Méthode -> 1 | FE16: =ME_Input_Méthode -> 1 | FG16: =DZ16 -> 16 | FM16: =EF16 -> Décélération Linéaire | FQ16: Total Hp | FW16: =ME_Input_Méthode -> 1 | FY16: =CHOOSE(ME_Input_Méthode,DJ16*FY$11,Me_Input_Vitesse_Initiale,NA()) -> 9.79227777 | GE16: Décélération Linéaire | GI16: Total Hp | GM16: =ME_Input_Méthode -> 1 | GO16: =FY16 -> 9.79227777 | GU16: =GE16 -> Décélération Linéaire | GY16: Total Hp | HC16: =ME_Input_Méthode -> 1 | HT16: =ME_Input_Méthode -> 1 | HV16: =GO16 -> 9.79227777 | IB16: =GU16 -> Décélération Linéaire | IF16: Total Hp | IL16: =ME_Input_Méthode -> 1 | IN16: =CHOOSE(ME_Input_Méthode,FY16*IN$11,Me_Input_Vitesse_Initiale,NA()) -> 10.09183092 | IT16: Décélération Linéaire | IX16: Total Hp | JB16: =ME_Input_Méthode -> 1 | JD16: =IN16 -> 10.09183092 | JJ16: =IT16 -> Décélération Linéaire | JN16: Total Hp | JR16: =ME_Input_Méthode -> 1 | KI16: =ME_Input_Méthode -> 1 | KK16: =JD16 -> 10.09183092 | KQ16: =JJ16 -> Décélération Linéaire | KU16: Total Hp | LA16: =ME_Input_Méthode -> 1 | LC16: =CHOOSE(ME_Input_Méthode,IN16*LC$11,Me_Input_Vitesse_Initiale,NA()) -> 10.0757486 | LI16: Décélération Linéaire | LM16: Total Hp | LQ16: =ME_Input_Méthode -> 1 | LS16: =LC16 -> 10.0757486 | LY16: =LI16 -> Décélération Linéaire | MC16: Total Hp | MG16: =ME_Input_Méthode -> 1 | MX16: =ME_Input_Méthode -> 1 | MZ16: =LS16 -> 10.0757486 | NF16: =LY16 -> Décélération Linéaire | NJ16: Total Hp | NP16: =ME_Input_Méthode -> 1 | NR16: =CHOOSE(ME_Input_Méthode,LC16*NR$11,Me_Input_Vitesse_Initiale,NA()) -> 10.0766085 | NX16: Décélération Linéaire | OB16: Total Hp | OF16: =ME_Input_Méthode -> 1 | OH16: =NR16 -> 10.0766085 | ON16: =NX16 -> Décélération Linéaire | OR16: Total Hp | OV16: =ME_Input_Méthode -> 1 | PM16: =ME_Input_Méthode -> 1 | PO16: =OH16 -> 10.0766085 | PU16: =ON16 -> Décélération Linéaire | PY16: Total Hp | QE16: =ME_Input_Méthode -> 1 | QG16: =CHOOSE(ME_Input_Méthode,NR16*QG$11,Me_Input_Vitesse_Initiale,NA()) -> 10.07656251 | QM16: Décélération Linéaire | QQ16: Total Hp | QU16: =ME_Input_Méthode -> 1 | QW16: =QG16 -> 10.07656251 | RC16: =QM16 -> Décélération Linéaire | RG16: Total Hp | RK16: =ME_Input_Méthode -> 1 | RT16: TP▲ | RU16: TP▲ | RX16: TP TG ▲ | SB16: =ME_Input_Méthode -> 1 | SD16: =QW16 -> 10.07656251 | SJ16: =RC16 -> Décélération Linéaire | SN16: Total Hp | SU16: Total | SV16: Total | SW16: Total | SX16: Total | SY16: Total | TR16: TP▲ | TS16: TP▲ | TU16: TP▲ | TV16: TP▲
B17: TRUE | C17: Globale ▼ | D17: Par Etape ▼ | F17: Linéaire ▼ | G17: Expo ▼ | L17: 8 | M17: 0.886093442 | O17: -44 | P17: -40 | Q17: 2.7676 | BB17: Barrières In Out | BD17: Avance / Retard Barrières | BI17: Lookup Table MR_Table_RB (en mètres) | BS17: Calcul des Différences par Point (en mètres) | CC17: Dist ≡ Eff | CE17: % Distances ≡ ▼ ► ▲ | CI17: Courabilité | CK17: Altitudes Min - Max - Moyenne | CN17: Préparation Coéfficient Altitude | CU17: Coéfficients Alt - G/D - Total | CZ17: Lat - Long pour Nuit | DC17: Barrières | DH17: =ME_Input_Décr_Globale -> TRUE | DP17: =ME_Input_Temps_Objectif-ME_Total_Pauses -> 1.715277778 | DQ17: =(ME_Total_Distance_Equivalente/1000)/(Me_Input_Vitesse_Initiale*((1+ME_Input_Décr_Finale)/2)*24) -> 1.592511279 | DT17: =SUM(OFFSET(DT$20,2,0,ME_Nbr_RB)) -> 1.047011928 | DX17: =ME_Input_Décr_Globale -> TRUE | EF17: =DP17 -> 1.715277778 | EG17: =DQ17 -> 1.592511279 | EJ17: =SUM(OFFSET(EJ$20,2,0,ME_Nbr_RB)) -> 1.049766664 | EN17: =ME_Input_Décr_Globale -> TRUE | FE17: =ME_Input_Décr_Globale -> TRUE | FM17: =EF17 -> 1.715277778 | FN17: =EG17 -> 1.592511279 | FQ17: =SUM(OFFSET(FQ$20,2,0,ME_Nbr_RB)) -> 1.049779778 | FW17: =ME_Input_Décr_Globale -> TRUE | GE17: =ME_Input_Temps_Objectif-ME_Total_Pauses -> 1.715277778 | GF17: =(ME_Total_Distance_Equivalente/1000)/(Me_Input_Vitesse_Initiale*24) -> 1.433260151 | GI17: =SUM(OFFSET(GI$20,2,0,ME_Nbr_RB)) -> 1.762488069 | GM17: =ME_Input_Décr_Globale -> TRUE | GU17: =GE17 -> 1.715277778 | GV17: =GF17 -> 1.433260151 | GY17: =SUM(OFFSET(GY$20,2,0,ME_Nbr_RB)) -> 1.767709436 | HC17: =ME_Input_Décr_Globale -> TRUE | HT17: =ME_Input_Décr_Globale -> TRUE | IB17: =GU17 -> 1.715277778 | IC17: =GV17 -> 1.433260151 | IF17: =SUM(OFFSET(IF$20,2,0,ME_Nbr_RB)) -> 1.767749416 | IL17: =ME_Input_Décr_Globale -> TRUE | IT17: =ME_Input_Temps_Objectif-ME_Total_Pauses -> 1.715277778 | IU17: =(ME_Total_Distance_Equivalente/1000)/(Me_Input_Vitesse_Initiale*24) -> 1.433260151 | IX17: =SUM(OFFSET(IX$20,2,0,ME_Nbr_RB)) -> 1.707475526 | JB17: =ME_Input_Décr_Globale -> TRUE | JJ17: =IT17 -> 1.715277778 | JK17: =IU17 -> 1.433260151 | JN17: =SUM(OFFSET(JN$20,2,0,ME_Nbr_RB)) -> 1.712506945 | JR17: =ME_Input_Décr_Globale -> TRUE | KI17: =ME_Input_Décr_Globale -> TRUE | KQ17: =JJ17 -> 1.715277778 | KR17: =JK17 -> 1.433260151 | KU17: =SUM(OFFSET(KU$20,2,0,ME_Nbr_RB)) -> 1.712544315 | LA17: =ME_Input_Décr_Globale -> TRUE | LI17: =ME_Input_Temps_Objectif-ME_Total_Pauses -> 1.715277778 | LJ17: =(ME_Total_Distance_Equivalente/1000)/(Me_Input_Vitesse_Initiale*24) -> 1.433260151 | LM17: =SUM(OFFSET(LM$20,2,0,ME_Nbr_RB)) -> 1.710345339 | LQ17: =ME_Input_Décr_Globale -> TRUE | LY17: =LI17 -> 1.715277778 | LZ17: =LJ17 -> 1.433260151 | MC17: =SUM(OFFSET(MC$20,2,0,ME_Nbr_RB)) -> 1.715386663 | MG17: =ME_Input_Décr_Globale -> TRUE | MX17: =ME_Input_Décr_Globale -> TRUE | NF17: =LY17 -> 1.715277778 | NG17: =LZ17 -> 1.433260151 | NJ17: =SUM(OFFSET(NJ$20,2,0,ME_Nbr_RB)) -> 1.715424167 | NP17: =ME_Input_Décr_Globale -> TRUE | NX17: =ME_Input_Temps_Objectif-ME_Total_Pauses -> 1.715277778 | NY17: =(ME_Total_Distance_Equivalente/1000)/(Me_Input_Vitesse_Initiale*24) -> 1.433260151 | OB17: =SUM(OFFSET(OB$20,2,0,ME_Nbr_RB)) -> 1.71019166 | OF17: =ME_Input_Décr_Globale -> TRUE | ON17: =NX17 -> 1.715277778 | OO17: =NY17 -> 1.433260151 | OR17: =SUM(OFFSET(OR$20,2,0,ME_Nbr_RB)) -> 1.715232452 | OV17: =ME_Input_Décr_Globale -> TRUE | PM17: =ME_Input_Décr_Globale -> TRUE | PU17: =ON17 -> 1.715277778 | PV17: =OO17 -> 1.433260151 | PY17: =SUM(OFFSET(PY$20,2,0,ME_Nbr_RB)) -> 1.715269949 | QE17: =ME_Input_Décr_Globale -> TRUE | QM17: =ME_Input_Temps_Objectif-ME_Total_Pauses -> 1.715277778 | QN17: =(ME_Total_Distance_Equivalente/1000)/(Me_Input_Vitesse_Initiale*24) -> 1.433260151 | QQ17: =SUM(OFFSET(QQ$20,2,0,ME_Nbr_RB)) -> 1.710199878 | QU17: =ME_Input_Décr_Globale -> TRUE | RC17: =QM17 -> 1.715277778 | RD17: =QN17 -> 1.433260151 | RG17: =SUM(OFFSET(RG$20,2,0,ME_Nbr_RB)) -> 1.715240699 | RK17: =ME_Input_Décr_Globale -> TRUE | SB17: =ME_Input_Décr_Globale -> TRUE | SJ17: =RC17 -> 1.715277778 | SK17: =RD17 -> 1.433260151 | SN17: =SUM(OFFSET(SN$20,2,0,ME_Nbr_RB)) -> 1.715278196 | SU17: =SUM(OFFSET(SU$20,2,0,ME_Nbr_RB)) -> 1.447123323 | SV17: =SUM(OFFSET(SV$20,2,0,ME_Nbr_RB)) -> 1.665115474 | SW17: =SUM(OFFSET(SW$20,2,0,ME_Nbr_RB)) -> 1.497286045 | SX17: =SUM(OFFSET(SX$20,2,0,ME_Nbr_RB)) -> 1.447123323 | SY17: =SUM(OFFSET(SY$20,2,0,ME_Nbr_RB)) -> 1.447123323
B18: FALSE | D18: =CONCATENATE("Décroissance ",IF(ME_Input_Décr_Linéaire,"linéaire","exponentielle")," ",IF(ME_Input_Décr_Globale,"globale","par étape")) -> Décroissance exponentielle globale | L18: 9 | M18: 0.8774840978 | O18: -42 | P18: -40 | Q18: 2.6418 | AJ18: RAZ | AK18: RAZ | AL18: Totaux ◄ ► Deltas | DH18: =ME_Input_Décr_Linéaire -> FALSE | DP18: =IF(ME_Input_Décr_Linéaire,DJ16*(1-ME_Input_Décr_Finale)/(DP17*24),NA()) ->  | DQ18: =IF(ME_Input_Décr_Linéaire,DQ$11*Me_Input_Vitesse_Initiale*(1-ME_Input_Décr_Finale)/(DQ17*24),NA()) ->  | DX18: =ME_Input_Décr_Linéaire -> FALSE | EN18: =ME_Input_Décr_Linéaire -> FALSE | FE18: =ME_Input_Décr_Linéaire -> FALSE | FW18: =ME_Input_Décr_Linéaire -> FALSE | GE18: =IF(ME_Input_Décr_Linéaire,FY16*(1-ME_Input_Décr_Finale)/(GE17*24),NA()) ->  | GF18: =IF(ME_Input_Décr_Linéaire,DQ18*GF$11,NA()) ->  | GM18: =ME_Input_Décr_Linéaire -> FALSE | HC18: =ME_Input_Décr_Linéaire -> FALSE | HT18: =ME_Input_Décr_Linéaire -> FALSE | IL18: =ME_Input_Décr_Linéaire -> FALSE | IT18: =IF(ME_Input_Décr_Linéaire,IN16*(1-ME_Input_Décr_Finale)/(IT17*24),NA()) ->  | IU18: =IF(ME_Input_Décr_Linéaire,GF18*IU$11,NA()) ->  | JB18: =ME_Input_Décr_Linéaire -> FALSE | JR18: =ME_Input_Décr_Linéaire -> FALSE | KI18: =ME_Input_Décr_Linéaire -> FALSE | LA18: =ME_Input_Décr_Linéaire -> FALSE | LI18: =IF(ME_Input_Décr_Linéaire,LC16*(1-ME_Input_Décr_Finale)/(LI17*24),NA()) ->  | LJ18: =IF(ME_Input_Décr_Linéaire,IU18*LJ$11,NA()) ->  | LQ18: =ME_Input_Décr_Linéaire -> FALSE | MG18: =ME_Input_Décr_Linéaire -> FALSE | MX18: =ME_Input_Décr_Linéaire -> FALSE | NP18: =ME_Input_Décr_Linéaire -> FALSE | NX18: =IF(ME_Input_Décr_Linéaire,NR16*(1-ME_Input_Décr_Finale)/(NX17*24),NA()) ->  | NY18: =IF(ME_Input_Décr_Linéaire,LJ18*NY$11,NA()) ->  | OF18: =ME_Input_Décr_Linéaire -> FALSE | OV18: =ME_Input_Décr_Linéaire -> FALSE | PM18: =ME_Input_Décr_Linéaire -> FALSE | QE18: =ME_Input_Décr_Linéaire -> FALSE | QM18: =IF(ME_Input_Décr_Linéaire,QG16*(1-ME_Input_Décr_Finale)/(QM17*24),NA()) ->  | QN18: =IF(ME_Input_Décr_Linéaire,NY18*QN$11,NA()) ->  | QU18: =ME_Input_Décr_Linéaire -> FALSE | RK18: =ME_Input_Décr_Linéaire -> FALSE | RL18: ◄ V Finale | SB18: =ME_Input_Décr_Linéaire -> FALSE | TZ18: Attention : Points en double
C19: Vitesse Initiale dernière Etape ► | F19: 0.8 | G19: de V initiale | L19: 10 | M19: 0.869735688 | O19: -40 | P19: -40 | Q19: 2.516 | AY19: ◄ V Finale | AZ19: ◄ V Finale | BB19: =COLUMN('Menu Roadbook'!$V$51)-COLUMN('Menu Roadbook'!$K$51)+1 -> 12 | BC19: =COLUMN('Menu Roadbook'!$Y$51)-COLUMN('Menu Roadbook'!$K$51)+1 -> 15 | BI19: =COLUMN('Menu Roadbook'!$AZ$51)-COLUMN('Menu Roadbook'!$K$51)+1 -> 42 | BJ19: =COLUMN('Menu Roadbook'!$BA$51)-COLUMN('Menu Roadbook'!$K$51)+1 -> 43 | BK19: =COLUMN('Menu Roadbook'!$BB$51)-COLUMN('Menu Roadbook'!$K$51)+1 -> 44 | BL19: =COLUMN('Menu Roadbook'!$BC$51)-COLUMN('Menu Roadbook'!$K$51)+1 -> 45 | BM19: =COLUMN('Menu Roadbook'!$BD$51)-COLUMN('Menu Roadbook'!$K$51)+1 -> 46 | BN19: =COLUMN('Menu Roadbook'!$BE$51)-COLUMN('Menu Roadbook'!$K$51)+1 -> 47 | BO19: =COLUMN('Menu Roadbook'!$BF$51)-COLUMN('Menu Roadbook'!$K$51)+1 -> 48 | BP19: =COLUMN('Menu Roadbook'!$BG$51)-COLUMN('Menu Roadbook'!$K$51)+1 -> 49 | BQ19: =COLUMN('Menu Roadbook'!$BH$51)-COLUMN('Menu Roadbook'!$K$51)+1 -> 50 | BS19: ◄ Val Finale | BT19: ◄ Val Finale | BU19: ◄ Val Finale | CC19: ◄ Val Finale | CI19: =COLUMN('Menu Roadbook'!$AH$51)-COLUMN('Menu Roadbook'!$K$51)+1 -> 24 | CK19: =COLUMN('Menu Roadbook'!$BL$51)-COLUMN('Menu Roadbook'!$K$51)+1 -> 54 | CL19: =COLUMN('Menu Roadbook'!$BM$51)-COLUMN('Menu Roadbook'!$K$51)+1 -> 55 | CM19: =COLUMN('Menu Roadbook'!$BN$51)-COLUMN('Menu Roadbook'!$K$51)+1 -> 56 | CZ19: =COLUMN('Menu Roadbook'!$BO$51)-COLUMN('Menu Roadbook'!$K$51)+1 -> 57 | DA19: =COLUMN('Menu Roadbook'!$BP$51)-COLUMN('Menu Roadbook'!$K$51)+1 -> 58 | DC19: =COLUMN('Menu Roadbook'!$V$51)-COLUMN('Menu Roadbook'!$K$51)+1 -> 12 | DD19: =COLUMN('Menu Roadbook'!$Y$51)-COLUMN('Menu Roadbook'!$K$51)+1 -> 15 | EO19: =COLUMN('Menu Roadbook'!$BI$51)-COLUMN('Menu Roadbook'!$K$51)+1 -> 51 | HD19: =COLUMN('Menu Roadbook'!$BI$51)-COLUMN('Menu Roadbook'!$K$51)+1 -> 51 | JS19: =COLUMN('Menu Roadbook'!$BI$51)-COLUMN('Menu Roadbook'!$K$51)+1 -> 51 | MH19: =COLUMN('Menu Roadbook'!$BI$51)-COLUMN('Menu Roadbook'!$K$51)+1 -> 51 | OW19: =COLUMN('Menu Roadbook'!$BI$51)-COLUMN('Menu Roadbook'!$K$51)+1 -> 51 | RL19: =COLUMN('Menu Roadbook'!$BI$51)-COLUMN('Menu Roadbook'!$K$51)+1 -> 51 | RX19: V Finale► | RZ19: V Finale► | SM19: ◄ V Finale | SN19: ◄ V Finale | SU19: ◄ Totaux | SV19: ◄ Totaux | SW19: ◄ Totaux | SX19: ◄ Totaux | SY19: ◄ Totaux
C20: Taux de Décroissance par Etape ► | F20: 0.15 | G20: par étape | L20: 11 | M20: 0.8627621192 | O20: -38 | P20: -38 | Q20: 2.3998896 | V20: RB | Y20: Nom | AB20: Altitude | AC20: Etape | AD20: E | AE20: L | AF20: C | AG20: BV | AH20: Sacs | AI20: Lits | AJ20: Pauses | AK20: Vitesses | AL20: Distance | AM20: D + | AN20: D - | AO20: Distance ≡ | AP20: Vitesse≡ | AQ20: Durée | AR20: Tps In | AS20: Tps Out | AT20: Date In | AU20: Date Out | AV20: A/R In | AW20: A/R Out | AY20: Déb Etape | AZ20: Fin Etape | BB20: =OFFSET(MR_Header_Table_RB,0,BB19-1,1,1) -> Barrière In | BC20: Barrière Out | BD20: In | BE20: A/R In | BF20: Out | BG20: A/R Out | BI20: =OFFSET(MR_Header_Table_RB,0,BI19-1,1,1) -> Dist Totale | BJ20: Tot D + | BK20: Tot D - | BL20: Tot Dist ▼ | BM20: Tot Dist ≡ ▼ | BN20: Tot Dist ► | BO20: Tot Dist ≡ ► | BP20: Tot Dist ▲ | BQ20: Tot Dist ≡ ▲ | BS20: Distance | BT20: D + | BU20: D - | BV20: Dist ▼ | BW20: Dist ≡ ▼ | BX20: Dist ► | BY20: Dist ≡ ► | BZ20: Dist ▲ | CA20: Dist ≡ ▲ | CC20: Dist ≡ | CE20: % Dist ≡ ▼ | CF20: % Dist ≡ ► | CG20: % Dist ≡ ▲ | CI20: Courabilité | CK20: =OFFSET(MR_Header_Table_RB,0,CK19-1,1,1) -> Alt Min | CL20: =OFFSET(MR_Header_Table_RB,0,CL19-1,1,1) -> Alt Max | CM20: =OFFSET(MR_Header_Table_RB,0,CM19-1,1,1) -> Alt Moy | CN20: Alt Moy ▲ | CO20: % seuil | CP20: % en ▲ | CQ20: Alt Moy ▼ | CR20: % seuil | CS20: % en ▼ | CU20: Corr Alt | CV20: Corr G/D | CW20: Alt & G/D | CX20: % All | CZ20: =OFFSET(MR_Header_Table_RB,0,CZ19-1,1,1) -> Latitude | DA20: =OFFSET(MR_Header_Table_RB,0,DA19-1,1,1) -> Longitude | DC20: =OFFSET(MR_Header_Table_RB,0,DC19-1,1,1) -> Barrière In | DD20: =OFFSET(MR_Header_Table_RB,0,DD19-1,1,1) -> Barrière Out | DH20: Etape | DI20: Taux Etape | DJ20: Vi Etape | DL20: TTi Hp | DM20: TEi Hp | DN20: TTm Hp | DO20: TEm Hp | DP20: V Obj (Ti) | DQ20: V Lin (Ti) | DR20: V Man | DS20: V (Ti) | DT20: Durée Hp | DU20: TTo Hp | DV20: TEo Hp | DX20: Etape | DY20: Taux Etape | DZ20: Vi Etape | EB20: TTi Hp | EC20: TEi Hp | ED20: TTm Hp | EE20: TEm Hp | EF20: V Obj (Ti) | EG20: V Lin (Ti) | EH20: V Man | EI20: V (Ti) | EJ20: Durée Hp | EK20: TTo Hp | EL20: TEo Hp | EN20: Etape | EO20: =OFFSET(MR_Header_Table_RB,0,EO19-1,1,1) -> Début Etape | EP20: Di | EQ20: Df | ER20: Do | ES20: ∆ Jour | ET20: ∆ H | EU20: Hm | EV20: Matin | EW20: Jour | EX20: Soir | EY20: Nuit | EZ20: Periode | FA20: % Nuit | FB20: Corr Nuit | FC20: % All | FE20: Etape | FF20: Taux Etape | FG20: Vi Etape | FI20: TTi Hp | FJ20: TEi Hp | FK20: TTm Hp | FL20: TEm Hp | FM20: V Obj (Ti) | FN20: V Lin (Ti) | FO20: V Man | FP20: V (Ti) | FQ20: Durée Hp | FR20: TTo Hp | FS20: TEo Hp | FW20: Etape | FX20: Taux Etape | FY20: Vi Etape | GA20: TTi Hp | GB20: TEi Hp | GC20: TTm Hp | GD20: TEm Hp | GE20: V Obj (Ti) | GF20: V Lin (Ti) | GG20: V Man | GH20: V (Ti) | GI20: Durée Hp | GJ20: TTo Hp | GK20: TEo Hp | GM20: Etape | GN20: Taux Etape | GO20: Vi Etape | GQ20: TTi Hp | GR20: TEi Hp | GS20: TTm Hp | GT20: TEm Hp | GU20: V Obj (Ti) | GV20: V Lin (Ti) | GW20: V Man | GX20: V (Ti) | GY20: Durée Hp | GZ20: TTo Hp | HA20: TEo Hp | HC20: Etape | HD20: =OFFSET(MR_Header_Table_RB,0,HD19-1,1,1) -> Début Etape | HE20: Di | HF20: Df | HG20: Do | HH20: ∆ Jour | HI20: ∆ H | HJ20: Hm | HK20: Matin | HL20: Jour | HM20: Soir | HN20: Nuit | HO20: Periode | HP20: % Nuit | HQ20: Corr Nuit | HR20: % All | HT20: Etape | HU20: Taux Etape | HV20: Vi Etape | HX20: TTi Hp | HY20: TEi Hp | HZ20: TTm Hp | IA20: TEm Hp | IB20: V Obj (Ti) | IC20: V Lin (Ti) | ID20: V Man | IE20: V (Ti) | IF20: Durée Hp | IG20: TTo Hp | IH20: TEo Hp | IL20: Etape | IM20: Taux Etape | IN20: Vi Etape | IP20: TTi Hp | IQ20: TEi Hp | IR20: TTm Hp | IS20: TEm Hp | IT20: V Obj (Ti) | IU20: V Lin (Ti) | IV20: V Man | IW20: V (Ti) | IX20: Durée Hp | IY20: TTo Hp | IZ20: TEo Hp | JB20: Etape | JC20: Taux Etape | JD20: Vi Etape | JF20: TTi Hp | JG20: TEi Hp | JH20: TTm Hp | JI20: TEm Hp | JJ20: V Obj (Ti) | JK20: V Lin (Ti) | JL20: V Man | JM20: V (Ti) | JN20: Durée Hp | JO20: TTo Hp | JP20: TEo Hp | JR20: Etape | JS20: =OFFSET(MR_Header_Table_RB,0,JS19-1,1,1) -> Début Etape | JT20: Di | JU20: Df | JV20: Do | JW20: ∆ Jour | JX20: ∆ H | JY20: Hm | JZ20: Matin | KA20: Jour | KB20: Soir | KC20: Nuit | KD20: Periode | KE20: % Nuit | KF20: Corr Nuit | KG20: % All | KI20: Etape | KJ20: Taux Etape | KK20: Vi Etape | KM20: TTi Hp | KN20: TEi Hp | KO20: TTm Hp | KP20: TEm Hp | KQ20: V Obj (Ti) | KR20: V Lin (Ti) | KS20: V Man | KT20: V (Ti) | KU20: Durée Hp | KV20: TTo Hp | KW20: TEo Hp | LA20: Etape | LB20: Taux Etape | LC20: Vi Etape | LE20: TTi Hp | LF20: TEi Hp | LG20: TTm Hp | LH20: TEm Hp | LI20: V Obj (Ti) | LJ20: V Lin (Ti) | LK20: V Man | LL20: V (Ti) | LM20: Durée Hp | LN20: TTo Hp | LO20: TEo Hp | LQ20: Etape | LR20: Taux Etape | LS20: Vi Etape | LU20: TTi Hp | LV20: TEi Hp | LW20: TTm Hp | LX20: TEm Hp | LY20: V Obj (Ti) | LZ20: V Lin (Ti) | MA20: V Man | MB20: V (Ti) | MC20: Durée Hp | MD20: TTo Hp | ME20: TEo Hp | MG20: Etape | MH20: =OFFSET(MR_Header_Table_RB,0,MH19-1,1,1) -> Début Etape | MI20: Di | MJ20: Df | MK20: Do | ML20: ∆ Jour | MM20: ∆ H | MN20: Hm | MO20: Matin | MP20: Jour | MQ20: Soir | MR20: Nuit | MS20: Periode | MT20: % Nuit | MU20: Corr Nuit | MV20: % All | MX20: Etape | MY20: Taux Etape | MZ20: Vi Etape | NB20: TTi Hp | NC20: TEi Hp | ND20: TTm Hp | NE20: TEm Hp | NF20: V Obj (Ti) | NG20: V Lin (Ti) | NH20: V Man | NI20: V (Ti) | NJ20: Durée Hp | NK20: TTo Hp | NL20: TEo Hp | NP20: Etape | NQ20: Taux Etape | NR20: Vi Etape | NT20: TTi Hp | NU20: TEi Hp | NV20: TTm Hp | NW20: TEm Hp | NX20: V Obj (Ti) | NY20: V Lin (Ti) | NZ20: V Man | OA20: V (Ti) | OB20: Durée Hp | OC20: TTo Hp | OD20: TEo Hp | OF20: Etape | OG20: Taux Etape | OH20: Vi Etape | OJ20: TTi Hp | OK20: TEi Hp | OL20: TTm Hp | OM20: TEm Hp | ON20: V Obj (Ti) | OO20: V Lin (Ti) | OP20: V Man | OQ20: V (Ti) | OR20: Durée Hp | OS20: TTo Hp | OT20: TEo Hp | OV20: Etape | OW20: =OFFSET(MR_Header_Table_RB,0,OW19-1,1,1) -> Début Etape | OX20: Di | OY20: Df | OZ20: Do | PA20: ∆ Jour | PB20: ∆ H | PC20: Hm | PD20: Matin | PE20: Jour | PF20: Soir | PG20: Nuit | PH20: Periode | PI20: % Nuit | PJ20: Corr Nuit | PK20: % All | PM20: Etape | PN20: Taux Etape | PO20: Vi Etape | PQ20: TTi Hp | PR20: TEi Hp | PS20: TTm Hp | PT20: TEm Hp | PU20: V Obj (Ti) | PV20: V Lin (Ti) | PW20: V Man | PX20: V (Ti) | PY20: Durée Hp | PZ20: TTo Hp | QA20: TEo Hp | QE20: Etape | QF20: Taux Etape | QG20: Vi Etape | QI20: TTi Hp | QJ20: TEi Hp | QK20: TTm Hp | QL20: TEm Hp | QM20: V Obj (Ti) | QN20: V Lin (Ti) | QO20: V Man | QP20: V (Ti) | QQ20: Durée Hp | QR20: TTo Hp | QS20: TEo Hp | QU20: Etape | QV20: Taux Etape | QW20: Vi Etape | QY20: TTi Hp | QZ20: TEi Hp | RA20: TTm Hp | RB20: TEm Hp | RC20: V Obj (Ti) | RD20: V Lin (Ti) | RE20: V Man | RF20: V (Ti) | RG20: Durée Hp | RH20: TTo Hp | RI20: TEo Hp | RK20: Etape | RL20: =OFFSET(MR_Header_Table_RB,0,RL19-1,1,1) -> Début Etape | RM20: Di | RN20: Df | RO20: Do | RP20: ∆ Jour | RQ20: ∆ H | RR20: Hm | RS20: Matin | RT20: Jour | RU20: Soir | RV20: Nuit | RW20: Periode | RX20: % Nuit | RY20: Corr Nuit | RZ20: % All | SB20: Etape | SC20: Taux Etape | SD20: Vi Etape | SF20: TTi Hp | SG20: TEi Hp | SH20: TTm Hp | SI20: TEm Hp | SJ20: V Obj (Ti) | SK20: V Lin (Ti) | SL20: V Man | SM20: V (Ti) | SN20: Durée Hp | SO20: TTo Hp | SP20: TEo Hp | ST20: V Base | SU20: D Base | SV20: D Coura | SW20: D Alti | SX20: D G/D | SY20: D Nuit | TA20: =$RZ20 -> % All | TB20: =$RX20 -> % Nuit | TD20: =$CG20 -> % Dist ≡ ▲ | TE20: Alt | TF20: Alt & G/D | TG20: Nuit | TH20: A+G+N ▲ | TI20: All ▲ | TK20: =$CE20 -> % Dist ≡ ▼ | TL20: Alt | TM20: Alt & G/D | TN20: Nuit | TO20: A+D+N ▼ | TP20: All ▼ | TR20: Temps ▲ | TS20: Temps ▼ | TU20: Vitesse ▲ | TV20: Vitesse ▼ | TZ20: RB Avant | UA20: RB Après | UB20: Distance | UC20: Courabilité | UD20: Altitude | UE20: G/D | UF20: Nuit | UG20: Total | UH20: V Finale | UI20: V Base
L21: 12 | M21: 0.8564859073 | O21: -36 | P21: -36 | Q21: 2.2754656 | V21: 0 | W21: =COLUMN('Menu Roadbook'!$BJ$51)-COLUMN('Menu Roadbook'!$K$51)+1 -> 52 | AB21: =COLUMN('Menu Roadbook'!$BK$51)-COLUMN('Menu Roadbook'!$K$51)+1 -> 53 | AC21: =COLUMN('Menu Roadbook'!$O$51)-COLUMN('Menu Roadbook'!$K$51)+1 -> 5 | AD21: =COLUMN('Menu Roadbook'!$AA$51)-COLUMN('Menu Roadbook'!$K$51)+1 -> 17 | AE21: =COLUMN('Menu Roadbook'!$AB$51)-COLUMN('Menu Roadbook'!$K$51)+1 -> 18 | AF21: =COLUMN('Menu Roadbook'!$AC$51)-COLUMN('Menu Roadbook'!$K$51)+1 -> 19 | AG21: =COLUMN('Menu Roadbook'!$AD$51)-COLUMN('Menu Roadbook'!$K$51)+1 -> 20 | AH21: =COLUMN('Menu Roadbook'!$AE$51)-COLUMN('Menu Roadbook'!$K$51)+1 -> 21 | AI21: =COLUMN('Menu Roadbook'!$AF$51)-COLUMN('Menu Roadbook'!$K$51)+1 -> 22 | AL21: FALSE | AM21: =ME_Input_Toggle -> FALSE | AN21: =ME_Input_Toggle -> FALSE | BI21: 0 | BJ21: 0 | BK21: 0 | BL21: 0 | BM21: 0 | BN21: 0 | BO21: 0 | BP21: 0 | BQ21: 0 | CC21: =ME_Input_Relief -> TRUE | CE21: =ME_Input_Relief -> TRUE | CF21: =ME_Input_Relief -> TRUE | CG21: =ME_Input_Relief -> TRUE | CI21: =ME_Input_Courabilité -> TRUE | DH21: 1 | DR21: =Me_Input_Vitesse_Initiale -> 8.6 | DU21: 0 | DV21: 0 | DX21: 1 | EH21: =Me_Input_Vitesse_Initiale -> 8.6 | EK21: 0 | EL21: 0 | EN21: 1 | ER21: =MR_Input_Jour+MR_Input_Heure -> 2012-07-06T08:00:00 | FE21: 1 | FO21: =Me_Input_Vitesse_Initiale -> 8.6 | FR21: 0 | FS21: 0 | FW21: 1 | GG21: =Me_Input_Vitesse_Initiale -> 8.6 | GJ21: 0 | GK21: 0 | GM21: 1 | GW21: =Me_Input_Vitesse_Initiale -> 8.6 | GZ21: 0 | HA21: 0 | HC21: 1 | HG21: =MR_Input_Jour+MR_Input_Heure -> 2012-07-06T08:00:00 | HT21: 1 | ID21: =Me_Input_Vitesse_Initiale -> 8.6 | IG21: 0 | IH21: 0 | IL21: 1 | IV21: =Me_Input_Vitesse_Initiale -> 8.6 | IY21: 0 | IZ21: 0 | JB21: 1 | JL21: =Me_Input_Vitesse_Initiale -> 8.6 | JO21: 0 | JP21: 0 | JR21: 1 | JV21: =MR_Input_Jour+MR_Input_Heure -> 2012-07-06T08:00:00 | KI21: 1 | KS21: =Me_Input_Vitesse_Initiale -> 8.6 | KV21: 0 | KW21: 0 | LA21: 1 | LK21: =Me_Input_Vitesse_Initiale -> 8.6 | LN21: 0 | LO21: 0 | LQ21: 1 | MA21: =Me_Input_Vitesse_Initiale -> 8.6 | MD21: 0 | ME21: 0 | MG21: 1 | MK21: =MR_Input_Jour+MR_Input_Heure -> 2012-07-06T08:00:00 | MX21: 1 | NH21: =Me_Input_Vitesse_Initiale -> 8.6 | NK21: 0 | NL21: 0 | NP21: 1 | NZ21: =Me_Input_Vitesse_Initiale -> 8.6 | OC21: 0 | OD21: 0 | OF21: 1 | OP21: =Me_Input_Vitesse_Initiale -> 8.6 | OS21: 0 | OT21: 0 | OV21: 1 | OZ21: =MR_Input_Jour+MR_Input_Heure -> 2012-07-06T08:00:00 | PM21: 1 | PW21: =Me_Input_Vitesse_Initiale -> 8.6 | PZ21: 0 | QA21: 0 | QE21: 1 | QO21: =Me_Input_Vitesse_Initiale -> 8.6 | QR21: 0 | QS21: 0 | QU21: 1 | RE21: =Me_Input_Vitesse_Initiale -> 8.6 | RH21: 0 | RI21: 0 | RK21: 1 | RO21: =MR_Input_Jour+MR_Input_Heure -> 2012-07-06T08:00:00 | SB21: 1 | SL21: =Me_Input_Vitesse_Initiale -> 8.6 | SO21: 0 | SP21: 0 | TZ21: 0 | UA21: 0 | UB21: =COLUMN($BI$20)-COLUMN($V$20)+1 -> 40 | UC21: =COLUMN($CI$20)-COLUMN($V$20)+1 -> 66 | UD21: =COLUMN($CU$20)-COLUMN($V$20)+1 -> 78 | UE21: =COLUMN($CV$20)-COLUMN($V$20)+1 -> 79 | UF21: =COLUMN($RY$20)-COLUMN($V$20)+1 -> 472 | UG21: =COLUMN($RZ$20)-COLUMN($V$20)+1 -> 473 | UH21: =COLUMN($SM$20)-COLUMN($V$20)+1 -> 486 | UI21: =COLUMN($ST$20)-COLUMN($V$20)+1 -> 493
C22: Vitesse Finale ► | F22: 0.8 | G22: de V initiale | L22: 13 | M22: 0.8508373166 | O22: -34 | P22: -34 | Q22: 2.1454736 | V22: =V21+1 -> 1 | W22: =VLOOKUP($V22,MR_Table_RB,W$21,FALSE) -> RDC - Ordino | AB22: =VLOOKUP($V22,MR_Table_RB,AB$21,FALSE) -> 1280 | AC22: 1 | AD22: FALSE | AE22: FALSE | AF22: FALSE | AG22: FALSE | AH22: FALSE | AI22: FALSE | AL22: =IF(AL$21,$BS22,$BI22) -> 0.001 | AM22: =IF(AM$21,$BT22,$BJ22) -> 0 | AN22: =IF(AN$21,$BU22,$BK22) -> 0 | AO22: =$CC22 -> 0.001 | AP22: =$SM22 -> 9.270437503 | AQ22: =$SN22 -> 4.494573924e-09 | AR22: =IF($AY22,0,AS21)+AQ22 -> 4.494573924e-09 | AS22: =AR22+IF($AZ22,0,$AJ22) -> 4.494573924e-09 | AT22: =IF($AY22,IF($V22=1,MR_Input_Jour+MR_Input_Heure,$RL22),AU21)+AQ22 -> 2012-07-06T08:00:00 | AU22: =AT22+IF($AZ22,0,$AJ22) -> 2012-07-06T08:00:00 | AV22: =$BE22 ->  | AW22: =$BG22 ->  | AY22: =IF($V22=1,TRUE,$AC22<>$AC21) -> TRUE | AZ22: =IF($V22=ME_Nbr_RB,TRUE,$AC23<>$AC22) -> FALSE | BB22: =VLOOKUP($V22,MR_Table_RB,BB$19,FALSE) ->  | BD22: =IF(BB22="","",SIGN($AT22-BB22)) ->  | BE22: =IF(BB22="","",ABS($AT22-BB22)) ->  | BF22: =IF(BC22="","",SIGN($AU22-BC22)) ->  | BG22: =IF(BC22="","",ABS($AU22-BC22)) ->  | BI22: 0.001 | BJ22: 0 | BK22: 0 | BL22: 0 | BM22: 0 | BN22: 0.001 | BO22: 0.001 | BP22: 0 | BQ22: 0 | BS22: =BI22-BI21 -> 0.001 | BT22: =BJ22-BJ21 -> 0 | BU22: =BK22-BK21 -> 0 | BV22: =BL22-BL21 -> 0 | BW22: =BM22-BM21 -> 0 | BX22: =BN22-BN21 -> 0.001 | BY22: =BO22-BO21 -> 0.001 | BZ22: =BP22-BP21 -> 0 | CA22: =BQ22-BQ21 -> 0 | CC22: =IF(CC$21,BW22+BY22+CA22,$BS22) -> 0.001 | CE22: =IF(CE$21,BW22,BV22)/IF($CC22=0,1,$CC22) -> 0 | CF22: =IF(CF$21,BY22,BX22)/IF($CC22=0,1,$CC22) -> 1 | CG22: =IF(CG$21,CA22,BZ22)/IF($CC22=0,1,$CC22) -> 0 | CI22: =IF(CI$21,VLOOKUP($V22,MR_Table_RB,CI$19,FALSE),1) -> 0.92 | CK22: =VLOOKUP($V22,MR_Table_RB,CK$19,FALSE) -> 1280.329003 | CL22: 1280.329003 | CM22: 1280.329003 | CN22: =IF($CL22<=ME_Input_Alt_Montée_Seuil,ME_Input_Alt_Montée_Seuil,IF($CK22>=ME_Input_Alt_Montée_Seuil,$CM22,($CL22+ME_Input_Alt_Montée_Seuil)/2)) -> 1600 | CO22: =IF($CL22<=ME_Input_Alt_Montée_Seuil,0,IF($CK22>=ME_Input_Alt_Montée_Seuil,1,($CL22-ME_Input_Alt_Montée_Seuil)/($CL22-$CK22))) -> 0 | CP22: =1-((CN22-ME_Input_Alt_Montée_Seuil)/1000*ME_Input_Alt_Montée_Taux)*CO22 -> 1 | CQ22: =IF($CL22<=ME_Input_Alt_Descente_Seuil,ME_Input_Alt_Descente_Seuil,IF($CK22>=ME_Input_Alt_Descente_Seuil,$CM22,($CL22+ME_Input_Alt_Descente_Seuil)/2)) -> 2500 | CR22: =IF($CL22<=ME_Input_Alt_Descente_Seuil,0,IF($CK22>=ME_Input_Alt_Descente_Seuil,1,($CL22-ME_Input_Alt_Descente_Seuil)/($CL22-$CK22))) -> 0 | CS22: =1-((CQ22-ME_Input_Alt_Descente_Seuil)/1000*ME_Input_Alt_Descente_Taux)*CR22 -> 1 | CU22: =IF($CC22=0,1,1/(($CG22+$CF22)/$CP22+$CE22/$CS22)) -> 1 | CV22: =IF($CC22=0,1,1/($CE22/ME_Input_Descendeur+$CF22+$CG22/ME_Input_Grimpeur)) -> 1 | CW22: =CU22*CV22/(CU22+CV22-CU22*CV22) -> 1 | CX22: =$CI22*CW22/($CI22+CW22-$CI22*CW22) -> 0.92 | CZ22: =VLOOKUP($V22,MR_Table_RB,CZ$19,FALSE) -> 42,556846 | DA22: 1,533385 | DH22: =IF(ME_Input_Décr_Globale,1,$AC22) -> 1 | DI22: =ME_Input_Décr_Etape+(1-ME_Input_Décr_Etape)*(1-ME_Input_Taux_Etape)^($DH22-1) -> 1 | DJ22: =DJ$16*DI22 -> 16 | DL22: =DU21 -> 0 | DM22: =IF(DH22=DH21,DV21,0) -> 0 | DN22: =DL22 -> 0 | DO22: =DM22 -> 0 | DP22: =IF(ME_Input_Décr_Linéaire,DJ22-DP$18*(DN22*24),DJ22*(ME_Input_Décr_Finale+(1-ME_Input_Décr_Finale)*(1-ME_Input_Taux_Final)^(DO22*24))) -> 16 | DQ22: =IF(ME_Input_Décr_Linéaire,DJ22-DQ$18*(DN22*24),DJ22*(ME_Input_Décr_Finale+(1-ME_Input_Décr_Finale)*(1-ME_Input_Taux_Final)^(DO22*24))) -> 16 | DR22: =IF(ISBLANK($AK22),DR21,$AK22) -> 8.6 | DS22: =$CX22*MAX(P_Estimation_Vitesse_Min,CHOOSE(ME_Input_Méthode,DP22,DQ22,DR22)) -> 14.72 | DT22: =($CC22/1000)/(DS22*24) -> 2.830615942e-09 | DU22: =DL22+DT22 -> 2.830615942e-09 | DV22: =DM22+DT22 -> 2.830615942e-09 | DX22: =IF(ME_Input_Décr_Globale,1,$AC22) -> 1 | DY22: =ME_Input_Décr_Etape+(1-ME_Input_Décr_Etape)*(1-ME_Input_Taux_Etape)^($DH22-1) -> 1 | DZ22: =DZ$16*DY22 -> 16 | EB22: =EK21 -> 0 | EC22: =IF(DX22=DX21,EL21,0) -> 0 | ED22: =EB22+DT22/2 -> 1.415307971e-09 | EE22: =EC22+DT22/2 -> 1.415307971e-09 | EF22: =IF(ME_Input_Décr_Linéaire,DZ22-EF$18*(ED22*24),DZ22*(ME_Input_Décr_Finale+(1-ME_Input_Décr_Finale)*(1-ME_Input_Taux_Final)^(EE22*24))) -> 15.99999999 | EG22: =IF(ME_Input_Décr_Linéaire,DZ22-EG$18*(ED22*24),DZ22*(ME_Input_Décr_Finale+(1-ME_Input_Décr_Finale)*(1-ME_Input_Taux_Final)^(EE22*24))) -> 15.99999999 | EH22: =IF(ISBLANK($AK22),EH21,$AK22) -> 8.6 | EI22: =$CX22*MAX(P_Estimation_Vitesse_Min,CHOOSE(ME_Input_Méthode,EF22,EG22,EH22)) -> 14.71999999 | EJ22: =($CC22/1000)/(EI22*24) -> 2.830615944e-09 | EK22: =EB22+EJ22 -> 2.830615944e-09 | EL22: =EC22+EJ22 -> 2.830615944e-09 | EN22: =$AC22 -> 1 | EO22: =VLOOKUP($V22,MR_Table_RB,EO$19,FALSE) -> 2012-07-06T08:00:00 | EP22: =IF(EN22=EN21,ER21,EO22) -> 2012-07-06T08:00:00 | EQ22: =EP22+EJ22 -> 2012-07-06T08:00:00 | ER22: =EQ22+$AJ22 -> 2012-07-06T08:00:00 | ES22: =INT(EQ22-EP22) -> 0 | ET22: =EQ22-EP22-ES22 -> 2.830347512e-09 | EU22: =MOD(EP22+ET22/2,1) -> 0.3333333348 | EV22: =time_Leversoleil(INT(EP22),$CZ22,$DA22,MR_Input_Delta_TU*24,P_Angle_Crépuscule) -> 0.242553764 | EW22: =time_Leversoleil(INT(EP22),$CZ22,$DA22,MR_Input_Delta_TU*24,P_Angle_LeverCoucher) -> 0.2664381734 | EX22: =time_Couchersoleil(INT(EP22),$CZ22,$DA22,MR_Input_Delta_TU*24,P_Angle_LeverCoucher) -> 0.8984903913 | EY22: =time_Couchersoleil(INT(EP22),$CZ22,$DA22,MR_Input_Delta_TU*24,P_Angle_Crépuscule) -> 0.9223748007 | EZ22: =IF(EU22<EV22,"Nuit",IF(EU22<EW22,"Matin",IF(EU22<EX22,"Jour",IF(EU22<EY22,"Soir","Nuit")))) -> Jour | FA22: =double_PourcentCourseNuit(EP22,EQ22,EV22,EY22) -> 0 | FB22: =FA22/($CE22/ME_Input_Nuit_Descente+($CF22+$CG22)/ME_Input_Nuit_Montée)+(1-FA22) -> 1 | FC22: =$CX22*FB22/($CX22+FB22-$CX22*FB22) -> 0.92 | FE22: =IF(ME_Input_Décr_Globale,1,$AC22) -> 1 | FF22: =ME_Input_Décr_Etape+(1-ME_Input_Décr_Etape)*(1-ME_Input_Taux_Etape)^($DH22-1) -> 1 | FG22: =FG$16*FF22 -> 16 | FI22: =FR21 -> 0 | FJ22: =IF(FE22=FE21,FS21,0) -> 0 | FK22: =FI22+EJ22/2 -> 1.415307972e-09 | FL22: =FJ22+EJ22/2 -> 1.415307972e-09 | FM22: =IF(ME_Input_Décr_Linéaire,FG22-FM$18*(FK22*24),FG22*(ME_Input_Décr_Finale+(1-ME_Input_Décr_Finale)*(1-ME_Input_Taux_Final)^(FL22*24))) -> 15.99999999 | FN22: =IF(ME_Input_Décr_Linéaire,FG22-FN$18*(FK22*24),FG22*(ME_Input_Décr_Finale+(1-ME_Input_Décr_Finale)*(1-ME_Input_Taux_Final)^(FL22*24))) -> 15.99999999 | FO22: =IF(ISBLANK($AK22),FO21,$AK22) -> 8.6 | FP22: =FC22*MAX(P_Estimation_Vitesse_Min,CHOOSE(ME_Input_Méthode,FM22,FN22,FO22)) -> 14.71999999 | FQ22: =($CC22/1000)/(FP22*24) -> 2.830615944e-09 | FR22: =FI22+FQ22 -> 2.830615944e-09 | FS22: =FJ22+FQ22 -> 2.830615944e-09 | FW22: =IF(ME_Input_Décr_Globale,1,$AC22) -> 1 | FX22: =ME_Input_Décr_Etape+(1-ME_Input_Décr_Etape)*(1-ME_Input_Taux_Etape)^($DH22-1) -> 1 | FY22: =FY$16*FX22 -> 9.79227777 | GA22: =GJ21 -> 0 | GB22: =IF(FW22=FW21,GK21,0) -> 0 | GC22: =GA22 -> 0 | GD22: =GB22 -> 0 | GE22: =IF(ME_Input_Décr_Linéaire,FY22-GE$18*(GC22*24),FY22*(ME_Input_Décr_Finale+(1-ME_Input_Décr_Finale)*(1-ME_Input_Taux_Final)^(GD22*24))) -> 9.79227777 | GF22: =IF(ME_Input_Décr_Linéaire,FY22-GF$18*(GC22*24),FY22*(ME_Input_Décr_Finale+(1-ME_Input_Décr_Finale)*(1-ME_Input_Taux_Final)^(GD22*24))) -> 9.79227777 | GG22: =IF(ISBLANK($AK22),GG21,$AK22) -> 8.6 | GH22: =$CX22*MAX(P_Estimation_Vitesse_Min,CHOOSE(ME_Input_Méthode,GE22,GF22,GG22)) -> 9.008895548 | GI22: =($CC22/1000)/(GH22*24) -> 4.625058249e-09 | GJ22: =GA22+GI22 -> 4.625058249e-09 | GK22: =GB22+GI22 -> 4.625058249e-09 | GM22: =IF(ME_Input_Décr_Globale,1,$AC22) -> 1 | GN22: =ME_Input_Décr_Etape+(1-ME_Input_Décr_Etape)*(1-ME_Input_Taux_Etape)^($DH22-1) -> 1 | GO22: =GO$16*GN22 -> 9.79227777 | GQ22: =GZ21 -> 0 | GR22: =IF(GM22=GM21,HA21,0) -> 0 | GS22: =GQ22+GI22/2 -> 2.312529124e-09 | GT22: =GR22+GI22/2 -> 2.312529124e-09 | GU22: =IF(ME_Input_Décr_Linéaire,GO22-GU$18*(GS22*24),GO22*(ME_Input_Décr_Finale+(1-ME_Input_Décr_Finale)*(1-ME_Input_Taux_Final)^(GT22*24))) -> 9.792277758 | GV22: =IF(ME_Input_Décr_Linéaire,GO22-GV$18*(GS22*24),GO22*(ME_Input_Décr_Finale+(1-ME_Input_Décr_Finale)*(1-ME_Input_Taux_Final)^(GT22*24))) -> 9.792277758 | GW22: =IF(ISBLANK($AK22),GW21,$AK22) -> 8.6 | GX22: =$CX22*MAX(P_Estimation_Vitesse_Min,CHOOSE(ME_Input_Méthode,GU22,GV22,GW22)) -> 9.008895538 | GY22: =($CC22/1000)/(GX22*24) -> 4.625058254e-09 | GZ22: =GQ22+GY22 -> 4.625058254e-09 | HA22: =GR22+GY22 -> 4.625058254e-09 | HC22: =$AC22 -> 1 | HD22: =VLOOKUP($V22,MR_Table_RB,HD$19,FALSE) -> 2012-07-06T08:00:00 | HE22: =IF(HC22=HC21,HG21,HD22) -> 2012-07-06T08:00:00 | HF22: =HE22+GY22 -> 2012-07-06T08:00:00 | HG22: =HF22+$AJ22 -> 2012-07-06T08:00:00 | HH22: =INT(HF22-HE22) -> 0 | HI22: =HF22-HE22-HH22 -> 4.627509043e-09 | HJ22: =MOD(HE22+HI22/2,1) -> 0.3333333356 | HK22: =time_Leversoleil(INT(HE22),$CZ22,$DA22,MR_Input_Delta_TU*24,P_Angle_Crépuscule) -> 0.242553764 | HL22: =time_Leversoleil(INT(HE22),$CZ22,$DA22,MR_Input_Delta_TU*24,P_Angle_LeverCoucher) -> 0.2664381734 | HM22: =time_Couchersoleil(INT(HE22),$CZ22,$DA22,MR_Input_Delta_TU*24,P_Angle_LeverCoucher) -> 0.8984903913 | HN22: =time_Couchersoleil(INT(HE22),$CZ22,$DA22,MR_Input_Delta_TU*24,P_Angle_Crépuscule) -> 0.9223748007 | HO22: =IF(HJ22<HK22,"Nuit",IF(HJ22<HL22,"Matin",IF(HJ22<HM22,"Jour",IF(HJ22<HN22,"Soir","Nuit")))) -> Jour | HP22: =double_PourcentCourseNuit(HE22,HF22,HK22,HN22) -> 0 | HQ22: =HP22/($CE22/ME_Input_Nuit_Descente+($CF22+$CG22)/ME_Input_Nuit_Montée)+(1-HP22) -> 1 | HR22: =$CX22*HQ22/($CX22+HQ22-$CX22*HQ22) -> 0.92 | HT22: =IF(ME_Input_Décr_Globale,1,$AC22) -> 1 | HU22: =ME_Input_Décr_Etape+(1-ME_Input_Décr_Etape)*(1-ME_Input_Taux_Etape)^($DH22-1) -> 1 | HV22: =HV$16*HU22 -> 9.79227777 | HX22: =IG21 -> 0 | HY22: =IF(HT22=HT21,IH21,0) -> 0 | HZ22: =HX22+GY22/2 -> 2.312529127e-09 | IA22: =HY22+GY22/2 -> 2.312529127e-09 | IB22: =IF(ME_Input_Décr_Linéaire,HV22-IB$18*(HZ22*24),HV22*(ME_Input_Décr_Finale+(1-ME_Input_Décr_Finale)*(1-ME_Input_Taux_Final)^(IA22*24))) -> 9.792277758 | IC22: =IF(ME_Input_Décr_Linéaire,HV22-IC$18*(HZ22*24),HV22*(ME_Input_Décr_Finale+(1-ME_Input_Décr_Finale)*(1-ME_Input_Taux_Final)^(IA22*24))) -> 9.792277758 | ID22: =IF(ISBLANK($AK22),ID21,$AK22) -> 8.6 | IE22: =HR22*MAX(P_Estimation_Vitesse_Min,CHOOSE(ME_Input_Méthode,IB22,IC22,ID22)) -> 9.008895538 | IF22: =($CC22/1000)/(IE22*24) -> 4.625058254e-09 | IG22: =HX22+IF22 -> 4.625058254e-09 | IH22: =HY22+IF22 -> 4.625058254e-09 | IL22: =IF(ME_Input_Décr_Globale,1,$AC22) -> 1 | IM22: =ME_Input_Décr_Etape+(1-ME_Input_Décr_Etape)*(1-ME_Input_Taux_Etape)^($DH22-1) -> 1 | IN22: =IN$16*IM22 -> 10.09183092 | IP22: =IY21 -> 0 | IQ22: =IF(IL22=IL21,IZ21,0) -> 0 | IR22: =IP22 -> 0 | IS22: =IQ22 -> 0 | IT22: =IF(ME_Input_Décr_Linéaire,IN22-IT$18*(IR22*24),IN22*(ME_Input_Décr_Finale+(1-ME_Input_Décr_Finale)*(1-ME_Input_Taux_Final)^(IS22*24))) -> 10.09183092 | IU22: =IF(ME_Input_Décr_Linéaire,IN22-IU$18*(IR22*24),IN22*(ME_Input_Décr_Finale+(1-ME_Input_Décr_Finale)*(1-ME_Input_Taux_Final)^(IS22*24))) -> 10.09183092 | IV22: =IF(ISBLANK($AK22),IV21,$AK22) -> 8.6 | IW22: =$CX22*MAX(P_Estimation_Vitesse_Min,CHOOSE(ME_Input_Méthode,IT22,IU22,IV22)) -> 9.284484442 | IX22: =($CC22/1000)/(IW22*24) -> 4.487773869e-09 | IY22: =IP22+IX22 -> 4.487773869e-09 | IZ22: =IQ22+IX22 -> 4.487773869e-09 | JB22: =IF(ME_Input_Décr_Globale,1,$AC22) -> 1 | JC22: =ME_Input_Décr_Etape+(1-ME_Input_Décr_Etape)*(1-ME_Input_Taux_Etape)^($DH22-1) -> 1 | JD22: =JD$16*JC22 -> 10.09183092 | JF22: =JO21 -> 0 | JG22: =IF(JB22=JB21,JP21,0) -> 0 | JH22: =JF22+IX22/2 -> 2.243886935e-09 | JI22: =JG22+IX22/2 -> 2.243886935e-09 | JJ22: =IF(ME_Input_Décr_Linéaire,JD22-JJ$18*(JH22*24),JD22*(ME_Input_Décr_Finale+(1-ME_Input_Décr_Finale)*(1-ME_Input_Taux_Final)^(JI22*24))) -> 10.0918309 | JK22: =IF(ME_Input_Décr_Linéaire,JD22-JK$18*(JH22*24),JD22*(ME_Input_Décr_Finale+(1-ME_Input_Décr_Finale)*(1-ME_Input_Taux_Final)^(JI22*24))) -> 10.0918309 | JL22: =IF(ISBLANK($AK22),JL21,$AK22) -> 8.6 | JM22: =$CX22*MAX(P_Estimation_Vitesse_Min,CHOOSE(ME_Input_Méthode,JJ22,JK22,JL22)) -> 9.284484431 | JN22: =($CC22/1000)/(JM22*24) -> 4.487773874e-09 | JO22: =JF22+JN22 -> 4.487773874e-09 | JP22: =JG22+JN22 -> 4.487773874e-09 | JR22: =$AC22 -> 1 | JS22: =VLOOKUP($V22,MR_Table_RB,JS$19,FALSE) -> 2012-07-06T08:00:00 | JT22: =IF(JR22=JR21,JV21,JS22) -> 2012-07-06T08:00:00 | JU22: =JT22+JN22 -> 2012-07-06T08:00:00 | JV22: =JU22+$AJ22 -> 2012-07-06T08:00:00 | JW22: =INT(JU22-JT22) -> 0 | JX22: =JU22-JT22-JW22 -> 4.489265848e-09 | JY22: =MOD(JT22+JX22/2,1) -> 0.3333333356 | JZ22: =time_Leversoleil(INT(JT22),$CZ22,$DA22,MR_Input_Delta_TU*24,P_Angle_Crépuscule) -> 0.242553764 | KA22: =time_Leversoleil(INT(JT22),$CZ22,$DA22,MR_Input_Delta_TU*24,P_Angle_LeverCoucher) -> 0.2664381734 | KB22: =time_Couchersoleil(INT(JT22),$CZ22,$DA22,MR_Input_Delta_TU*24,P_Angle_LeverCoucher) -> 0.8984903913 | KC22: =time_Couchersoleil(INT(JT22),$CZ22,$DA22,MR_Input_Delta_TU*24,P_Angle_Crépuscule) -> 0.9223748007 | KD22: =IF(JY22<JZ22,"Nuit",IF(JY22<KA22,"Matin",IF(JY22<KB22,"Jour",IF(JY22<KC22,"Soir","Nuit")))) -> Jour | KE22: =double_PourcentCourseNuit(JT22,JU22,JZ22,KC22) -> 0 | KF22: =KE22/($CE22/ME_Input_Nuit_Descente+($CF22+$CG22)/ME_Input_Nuit_Montée)+(1-KE22) -> 1 | KG22: =$CX22*KF22/($CX22+KF22-$CX22*KF22) -> 0.92 | KI22: =IF(ME_Input_Décr_Globale,1,$AC22) -> 1 | KJ22: =ME_Input_Décr_Etape+(1-ME_Input_Décr_Etape)*(1-ME_Input_Taux_Etape)^($DH22-1) -> 1 | KK22: =KK$16*KJ22 -> 10.09183092 | KM22: =KV21 -> 0 | KN22: =IF(KI22=KI21,KW21,0) -> 0 | KO22: =KM22+JN22/2 -> 2.243886937e-09 | KP22: =KN22+JN22/2 -> 2.243886937e-09 | KQ22: =IF(ME_Input_Décr_Linéaire,KK22-KQ$18*(KO22*24),KK22*(ME_Input_Décr_Finale+(1-ME_Input_Décr_Finale)*(1-ME_Input_Taux_Final)^(KP22*24))) -> 10.0918309 | KR22: =IF(ME_Input_Décr_Linéaire,KK22-KR$18*(KO22*24),KK22*(ME_Input_Décr_Finale+(1-ME_Input_Décr_Finale)*(1-ME_Input_Taux_Final)^(KP22*24))) -> 10.0918309 | KS22: =IF(ISBLANK($AK22),KS21,$AK22) -> 8.6 | KT22: =KG22*MAX(P_Estimation_Vitesse_Min,CHOOSE(ME_Input_Méthode,KQ22,KR22,KS22)) -> 9.284484431 | KU22: =($CC22/1000)/(KT22*24) -> 4.487773874e-09 | KV22: =KM22+KU22 -> 4.487773874e-09 | KW22: =KN22+KU22 -> 4.487773874e-09 | LA22: =IF(ME_Input_Décr_Globale,1,$AC22) -> 1 | LB22: =ME_Input_Décr_Etape+(1-ME_Input_Décr_Etape)*(1-ME_Input_Taux_Etape)^($DH22-1) -> 1 | LC22: =LC$16*LB22 -> 10.0757486 | LE22: =LN21 -> 0 | LF22: =IF(LA22=LA21,LO21,0) -> 0 | LG22: =LE22 -> 0 | LH22: =LF22 -> 0 | LI22: =IF(ME_Input_Décr_Linéaire,LC22-LI$18*(LG22*24),LC22*(ME_Input_Décr_Finale+(1-ME_Input_Décr_Finale)*(1-ME_Input_Taux_Final)^(LH22*24))) -> 10.0757486 | LJ22: =IF(ME_Input_Décr_Linéaire,LC22-LJ$18*(LG22*24),LC22*(ME_Input_Décr_Finale+(1-ME_Input_Décr_Finale)*(1-ME_Input_Taux_Final)^(LH22*24))) -> 10.0757486 | LK22: =IF(ISBLANK($AK22),LK21,$AK22) -> 8.6 | LL22: =$CX22*MAX(P_Estimation_Vitesse_Min,CHOOSE(ME_Input_Méthode,LI22,LJ22,LK22)) -> 9.269688709 | LM22: =($CC22/1000)/(LL22*24) -> 4.49493699e-09 | LN22: =LE22+LM22 -> 4.49493699e-09 | LO22: =LF22+LM22 -> 4.49493699e-09 | LQ22: =IF(ME_Input_Décr_Globale,1,$AC22) -> 1 | LR22: =ME_Input_Décr_Etape+(1-ME_Input_Décr_Etape)*(1-ME_Input_Taux_Etape)^($DH22-1) -> 1 | LS22: =LS$16*LR22 -> 10.0757486 | LU22: =MD21 -> 0 | LV22: =IF(LQ22=LQ21,ME21,0) -> 0 | LW22: =LU22+LM22/2 -> 2.247468495e-09 | LX22: =LV22+LM22/2 -> 2.247468495e-09 | LY22: =IF(ME_Input_Décr_Linéaire,LS22-LY$18*(LW22*24),LS22*(ME_Input_Décr_Finale+(1-ME_Input_Décr_Finale)*(1-ME_Input_Taux_Final)^(LX22*24))) -> 10.07574859 | LZ22: =IF(ME_Input_Décr_Linéaire,LS22-LZ$18*(LW22*24),LS22*(ME_Input_Décr_Finale+(1-ME_Input_Décr_Finale)*(1-ME_Input_Taux_Final)^(LX22*24))) -> 10.07574859 | MA22: =IF(ISBLANK($AK22),MA21,$AK22) -> 8.6 | MB22: =$CX22*MAX(P_Estimation_Vitesse_Min,CHOOSE(ME_Input_Méthode,LY22,LZ22,MA22)) -> 9.269688698 | MC22: =($CC22/1000)/(MB22*24) -> 4.494936995e-09 | MD22: =LU22+MC22 -> 4.494936995e-09 | ME22: =LV22+MC22 -> 4.494936995e-09 | MG22: =$AC22 -> 1 | MH22: =VLOOKUP($V22,MR_Table_RB,MH$19,FALSE) -> 2012-07-06T08:00:00 | MI22: =IF(MG22=MG21,MK21,MH22) -> 2012-07-06T08:00:00 | MJ22: =MI22+MC22 -> 2012-07-06T08:00:00 | MK22: =MJ22+$AJ22 -> 2012-07-06T08:00:00 | ML22: =INT(MJ22-MI22) -> 0 | MM22: =MJ22-MI22-ML22 -> 4.496541806e-09 | MN22: =MOD(MI22+MM22/2,1) -> 0.3333333356 | MO22: =time_Leversoleil(INT(MI22),$CZ22,$DA22,MR_Input_Delta_TU*24,P_Angle_Crépuscule) -> 0.242553764 | MP22: =time_Leversoleil(INT(MI22),$CZ22,$DA22,MR_Input_Delta_TU*24,P_Angle_LeverCoucher) -> 0.2664381734 | MQ22: =time_Couchersoleil(INT(MI22),$CZ22,$DA22,MR_Input_Delta_TU*24,P_Angle_LeverCoucher) -> 0.8984903913 | MR22: =time_Couchersoleil(INT(MI22),$CZ22,$DA22,MR_Input_Delta_TU*24,P_Angle_Crépuscule) -> 0.9223748007 | MS22: =IF(MN22<MO22,"Nuit",IF(MN22<MP22,"Matin",IF(MN22<MQ22,"Jour",IF(MN22<MR22,"Soir","Nuit")))) -> Jour | MT22: =double_PourcentCourseNuit(MI22,MJ22,MO22,MR22) -> 0 | MU22: =MT22/($CE22/ME_Input_Nuit_Descente+($CF22+$CG22)/ME_Input_Nuit_Montée)+(1-MT22) -> 1 | MV22: =$CX22*MU22/($CX22+MU22-$CX22*MU22) -> 0.92 | MX22: =IF(ME_Input_Décr_Globale,1,$AC22) -> 1 | MY22: =ME_Input_Décr_Etape+(1-ME_Input_Décr_Etape)*(1-ME_Input_Taux_Etape)^($DH22-1) -> 1 | MZ22: =MZ$16*MY22 -> 10.0757486 | NB22: =NK21 -> 0 | NC22: =IF(MX22=MX21,NL21,0) -> 0 | ND22: =NB22+MC22/2 -> 2.247468498e-09 | NE22: =NC22+MC22/2 -> 2.247468498e-09 | NF22: =IF(ME_Input_Décr_Linéaire,MZ22-NF$18*(ND22*24),MZ22*(ME_Input_Décr_Finale+(1-ME_Input_Décr_Finale)*(1-ME_Input_Taux_Final)^(NE22*24))) -> 10.07574859 | NG22: =IF(ME_Input_Décr_Linéaire,MZ22-NG$18*(ND22*24),MZ22*(ME_Input_Décr_Finale+(1-ME_Input_Décr_Finale)*(1-ME_Input_Taux_Final)^(NE22*24))) -> 10.07574859 | NH22: =IF(ISBLANK($AK22),NH21,$AK22) -> 8.6 | NI22: =MV22*MAX(P_Estimation_Vitesse_Min,CHOOSE(ME_Input_Méthode,NF22,NG22,NH22)) -> 9.269688698 | NJ22: =($CC22/1000)/(NI22*24) -> 4.494936995e-09 | NK22: =NB22+NJ22 -> 4.494936995e-09 | NL22: =NC22+NJ22 -> 4.494936995e-09 | NP22: =IF(ME_Input_Décr_Globale,1,$AC22) -> 1 | NQ22: =ME_Input_Décr_Etape+(1-ME_Input_Décr_Etape)*(1-ME_Input_Taux_Etape)^($DH22-1) -> 1 | NR22: =NR$16*NQ22 -> 10.0766085 | NT22: =OC21 -> 0 | NU22: =IF(NP22=NP21,OD21,0) -> 0 | NV22: =NT22 -> 0 | NW22: =NU22 -> 0 | NX22: =IF(ME_Input_Décr_Linéaire,NR22-NX$18*(NV22*24),NR22*(ME_Input_Décr_Finale+(1-ME_Input_Décr_Finale)*(1-ME_Input_Taux_Final)^(NW22*24))) -> 10.0766085 | NY22: =IF(ME_Input_Décr_Linéaire,NR22-NY$18*(NV22*24),NR22*(ME_Input_Décr_Finale+(1-ME_Input_Décr_Finale)*(1-ME_Input_Taux_Final)^(NW22*24))) -> 10.0766085 | NZ22: =IF(ISBLANK($AK22),NZ21,$AK22) -> 8.6 | OA22: =$CX22*MAX(P_Estimation_Vitesse_Min,CHOOSE(ME_Input_Méthode,NX22,NY22,NZ22)) -> 9.270479823 | OB22: =($CC22/1000)/(OA22*24) -> 4.494553406e-09 | OC22: =NT22+OB22 -> 4.494553406e-09 | OD22: =NU22+OB22 -> 4.494553406e-09 | OF22: =IF(ME_Input_Décr_Globale,1,$AC22) -> 1 | OG22: =ME_Input_Décr_Etape+(1-ME_Input_Décr_Etape)*(1-ME_Input_Taux_Etape)^($DH22-1) -> 1 | OH22: =OH$16*OG22 -> 10.0766085 | OJ22: =OS21 -> 0 | OK22: =IF(OF22=OF21,OT21,0) -> 0 | OL22: =OJ22+OB22/2 -> 2.247276703e-09 | OM22: =OK22+OB22/2 -> 2.247276703e-09 | ON22: =IF(ME_Input_Décr_Linéaire,OH22-ON$18*(OL22*24),OH22*(ME_Input_Décr_Finale+(1-ME_Input_Décr_Finale)*(1-ME_Input_Taux_Final)^(OM22*24))) -> 10.07660849 | OO22: =IF(ME_Input_Décr_Linéaire,OH22-OO$18*(OL22*24),OH22*(ME_Input_Décr_Finale+(1-ME_Input_Décr_Finale)*(1-ME_Input_Taux_Final)^(OM22*24))) -> 10.07660849 | OP22: =IF(ISBLANK($AK22),OP21,$AK22) -> 8.6 | OQ22: =$CX22*MAX(P_Estimation_Vitesse_Min,CHOOSE(ME_Input_Méthode,ON22,OO22,OP22)) -> 9.270479813 | OR22: =($CC22/1000)/(OQ22*24) -> 4.494553411e-09 | OS22: =OJ22+OR22 -> 4.494553411e-09 | OT22: =OK22+OR22 -> 4.494553411e-09 | OV22: =$AC22 -> 1 | OW22: =VLOOKUP($V22,MR_Table_RB,OW$19,FALSE) -> 2012-07-06T08:00:00 | OX22: =IF(OV22=OV21,OZ21,OW22) -> 2012-07-06T08:00:00 | OY22: =OX22+OR22 -> 2012-07-06T08:00:00 | OZ22: =OY22+$AJ22 -> 2012-07-06T08:00:00 | PA22: =INT(OY22-OX22) -> 0 | PB22: =OY22-OX22-PA22 -> 4.496541806e-09 | PC22: =MOD(OX22+PB22/2,1) -> 0.3333333356 | PD22: =time_Leversoleil(INT(OX22),$CZ22,$DA22,MR_Input_Delta_TU*24,P_Angle_Crépuscule) -> 0.242553764 | PE22: =time_Leversoleil(INT(OX22),$CZ22,$DA22,MR_Input_Delta_TU*24,P_Angle_LeverCoucher) -> 0.2664381734 | PF22: =time_Couchersoleil(INT(OX22),$CZ22,$DA22,MR_Input_Delta_TU*24,P_Angle_LeverCoucher) -> 0.8984903913 | PG22: =time_Couchersoleil(INT(OX22),$CZ22,$DA22,MR_Input_Delta_TU*24,P_Angle_Crépuscule) -> 0.9223748007 | PH22: =IF(PC22<PD22,"Nuit",IF(PC22<PE22,"Matin",IF(PC22<PF22,"Jour",IF(PC22<PG22,"Soir","Nuit")))) -> Jour | PI22: =double_PourcentCourseNuit(OX22,OY22,PD22,PG22) -> 0 | PJ22: =PI22/($CE22/ME_Input_Nuit_Descente+($CF22+$CG22)/ME_Input_Nuit_Montée)+(1-PI22) -> 1 | PK22: =$CX22*PJ22/($CX22+PJ22-$CX22*PJ22) -> 0.92 | PM22: =IF(ME_Input_Décr_Globale,1,$AC22) -> 1 | PN22: =ME_Input_Décr_Etape+(1-ME_Input_Décr_Etape)*(1-ME_Input_Taux_Etape)^($DH22-1) -> 1 | PO22: =PO$16*PN22 -> 10.0766085 | PQ22: =PZ21 -> 0 | PR22: =IF(PM22=PM21,QA21,0) -> 0 | PS22: =PQ22+OR22/2 -> 2.247276706e-09 | PT22: =PR22+OR22/2 -> 2.247276706e-09 | PU22: =IF(ME_Input_Décr_Linéaire,PO22-PU$18*(PS22*24),PO22*(ME_Input_Décr_Finale+(1-ME_Input_Décr_Finale)*(1-ME_Input_Taux_Final)^(PT22*24))) -> 10.07660849 | PV22: =IF(ME_Input_Décr_Linéaire,PO22-PV$18*(PS22*24),PO22*(ME_Input_Décr_Finale+(1-ME_Input_Décr_Finale)*(1-ME_Input_Taux_Final)^(PT22*24))) -> 10.07660849 | PW22: =IF(ISBLANK($AK22),PW21,$AK22) -> 8.6 | PX22: =PK22*MAX(P_Estimation_Vitesse_Min,CHOOSE(ME_Input_Méthode,PU22,PV22,PW22)) -> 9.270479813 | PY22: =($CC22/1000)/(PX22*24) -> 4.494553411e-09 | PZ22: =PQ22+PY22 -> 4.494553411e-09 | QA22: =PR22+PY22 -> 4.494553411e-09 | QE22: =IF(ME_Input_Décr_Globale,1,$AC22) -> 1 | QF22: =ME_Input_Décr_Etape+(1-ME_Input_Décr_Etape)*(1-ME_Input_Taux_Etape)^($DH22-1) -> 1 | QG22: =QG$16*QF22 -> 10.07656251 | QI22: =QR21 -> 0 | QJ22: =IF(QE22=QE21,QS21,0) -> 0 | QK22: =QI22 -> 0 | QL22: =QJ22 -> 0 | QM22: =IF(ME_Input_Décr_Linéaire,QG22-QM$18*(QK22*24),QG22*(ME_Input_Décr_Finale+(1-ME_Input_Décr_Finale)*(1-ME_Input_Taux_Final)^(QL22*24))) -> 10.07656251 | QN22: =IF(ME_Input_Décr_Linéaire,QG22-QN$18*(QK22*24),QG22*(ME_Input_Décr_Finale+(1-ME_Input_Décr_Finale)*(1-ME_Input_Taux_Final)^(QL22*24))) -> 10.07656251 | QO22: =IF(ISBLANK($AK22),QO21,$AK22) -> 8.6 | QP22: =$CX22*MAX(P_Estimation_Vitesse_Min,CHOOSE(ME_Input_Méthode,QM22,QN22,QO22)) -> 9.270437514 | QQ22: =($CC22/1000)/(QP22*24) -> 4.494573919e-09 | QR22: =QI22+QQ22 -> 4.494573919e-09 | QS22: =QJ22+QQ22 -> 4.494573919e-09 | QU22: =IF(ME_Input_Décr_Globale,1,$AC22) -> 1 | QV22: =ME_Input_Décr_Etape+(1-ME_Input_Décr_Etape)*(1-ME_Input_Taux_Etape)^($DH22-1) -> 1 | QW22: =QW$16*QV22 -> 10.07656251 | QY22: =RH21 -> 0 | QZ22: =IF(QU22=QU21,RI21,0) -> 0 | RA22: =QY22+QQ22/2 -> 2.24728696e-09 | RB22: =QZ22+QQ22/2 -> 2.24728696e-09 | RC22: =IF(ME_Input_Décr_Linéaire,QW22-RC$18*(RA22*24),QW22*(ME_Input_Décr_Finale+(1-ME_Input_Décr_Finale)*(1-ME_Input_Taux_Final)^(RB22*24))) -> 10.0765625 | RD22: =IF(ME_Input_Décr_Linéaire,QW22-RD$18*(RA22*24),QW22*(ME_Input_Décr_Finale+(1-ME_Input_Décr_Finale)*(1-ME_Input_Taux_Final)^(RB22*24))) -> 10.0765625 | RE22: =IF(ISBLANK($AK22),RE21,$AK22) -> 8.6 | RF22: =$CX22*MAX(P_Estimation_Vitesse_Min,CHOOSE(ME_Input_Méthode,RC22,RD22,RE22)) -> 9.270437503 | RG22: =($CC22/1000)/(RF22*24) -> 4.494573924e-09 | RH22: =QY22+RG22 -> 4.494573924e-09 | RI22: =QZ22+RG22 -> 4.494573924e-09 | RK22: =$AC22 -> 1 | RL22: =VLOOKUP($V22,MR_Table_RB,RL$19,FALSE) -> 2012-07-06T08:00:00 | RM22: =IF(RK22=RK21,RO21,RL22) -> 2012-07-06T08:00:00 | RN22: =RM22+RG22 -> 2012-07-06T08:00:00 | RO22: =RN22+$AJ22 -> 2012-07-06T08:00:00 | RP22: =INT(RN22-RM22) -> 0 | RQ22: =RN22-RM22-RP22 -> 4.496541806e-09 | RR22: =MOD(RM22+RQ22/2,1) -> 0.3333333356 | RS22: =time_Leversoleil(INT(RM22),$CZ22,$DA22,MR_Input_Delta_TU*24,P_Angle_Crépuscule) -> 0.242553764 | RT22: =time_Leversoleil(INT(RM22),$CZ22,$DA22,MR_Input_Delta_TU*24,P_Angle_LeverCoucher) -> 0.2664381734 | RU22: =time_Couchersoleil(INT(RM22),$CZ22,$DA22,MR_Input_Delta_TU*24,P_Angle_LeverCoucher) -> 0.8984903913 | RV22: =time_Couchersoleil(INT(RM22),$CZ22,$DA22,MR_Input_Delta_TU*24,P_Angle_Crépuscule) -> 0.9223748007 | RW22: =IF(RR22<RS22,"Nuit",IF(RR22<RT22,"Matin",IF(RR22<RU22,"Jour",IF(RR22<RV22,"Soir","Nuit")))) -> Jour | RX22: =double_PourcentCourseNuit(RM22,RN22,RS22,RV22) -> 0 | RY22: =RX22/($CE22/ME_Input_Nuit_Descente+($CF22+$CG22)/ME_Input_Nuit_Montée)+(1-RX22) -> 1 | RZ22: =$CX22*RY22/($CX22+RY22-$CX22*RY22) -> 0.92 | SB22: =IF(ME_Input_Décr_Globale,1,$AC22) -> 1 | SC22: =ME_Input_Décr_Etape+(1-ME_Input_Décr_Etape)*(1-ME_Input_Taux_Etape)^($DH22-1) -> 1 | SD22: =SD$16*SC22 -> 10.07656251 | SF22: =SO21 -> 0 | SG22: =IF(SB22=SB21,SP21,0) -> 0 | SH22: =SF22+RG22/2 -> 2.247286962e-09 | SI22: =SG22+RG22/2 -> 2.247286962e-09 | SJ22: =IF(ME_Input_Décr_Linéaire,SD22-SJ$18*(SH22*24),SD22*(ME_Input_Décr_Finale+(1-ME_Input_Décr_Finale)*(1-ME_Input_Taux_Final)^(SI22*24))) -> 10.0765625 | SK22: =IF(ME_Input_Décr_Linéaire,SD22-SK$18*(SH22*24),SD22*(ME_Input_Décr_Finale+(1-ME_Input_Décr_Finale)*(1-ME_Input_Taux_Final)^(SI22*24))) -> 10.0765625 | SL22: =IF(ISBLANK($AK22),SL21,$AK22) -> 8.6 | SM22: =RZ22*MAX(P_Estimation_Vitesse_Min,CHOOSE(ME_Input_Méthode,SJ22,SK22,SL22)) -> 9.270437503 | SN22: =($CC22/1000)/(SM22*24) -> 4.494573924e-09 | SO22: =SF22+SN22 -> 4.494573924e-09 | SP22: =SG22+SN22 -> 4.494573924e-09 | ST22: =CHOOSE(ME_Input_Méthode,$SJ22,$SK22,$SL22) -> 10.0765625 | SU22: =($CC22/1000)/(ST22*24) -> 4.13500801e-09 | SV22: =($CC22/1000)/(ST22*24*$CI22) -> 4.494573924e-09 | SW22: =($CC22/1000)/(ST22*24*$CU22) -> 4.13500801e-09 | SX22: =($CC22/1000)/(ST22*24*$CV22) -> 4.13500801e-09 | SY22: =($CC22/1000)/(ST22*24*$RY22) -> 4.13500801e-09 | TA22: =$RZ22 -> 0.92 | TB22: =$RX22 -> 0 | TD22: =$CG22 -> 0 | TE22: =$CP22 -> 1 | TF22: =TE22*ME_Input_Grimpeur/(TE22+ME_Input_Grimpeur-TE22*ME_Input_Grimpeur) -> 1 | TG22: =(1-$TB22)+$TB22*ME_Input_Nuit_Montée -> 1 | TH22: =TG22*TF22/(TG22+TF22-TG22*TF22) -> 1 | TI22: =TH22*$CI22/(TH22+$CI22-TH22*$CI22) -> 0.92 | TK22: =$CE22 -> 0 | TL22: =$CS22 -> 1 | TM22: =TL22*ME_Input_Descendeur/(TL22+ME_Input_Descendeur-TL22*ME_Input_Descendeur) -> 1 | TN22: =(1-$TB22)+$TB22*ME_Input_Nuit_Descente -> 1 | TO22: =TN22*TM22/(TN22+TM22-TN22*TM22) -> 1 | TP22: =TO22*$CI22/(TO22+$CI22-TO22*$CI22) -> 0.92 | TR22: =($TD22/$TI22)/(1/$TA22) -> 0 | TS22: =($TK22/$TP22)/(1/$TA22) -> 0 | TU22: =IF($SN22*$TR22=0,0,$BT22/($SN22*24*$TR22)) -> 0 | TV22: =IF($SN22*$TS22=0,0,$BU22/($SN22*24*$TS22)) -> 0 | TZ22: =TZ21 -> 0 | UA22: =UA21+1 -> 1 | UB22: 0 | UC22: =IF($UA22>ME_Nbr_RB,"",VLOOKUP($UA22,ME_Table,UC$21,FALSE)) -> 0.92 | UD22: 1 | UE22: 1 | UF22: 1 | UG22: 0.92 | UH22: =IF($UA22>ME_Nbr_RB,"",VLOOKUP($UA22,ME_Table,UH$21,FALSE)) -> 9.270437503 | UI22: 10.0765625
C23: Taux de Décroissance ► | F23: 0.1 | G23: par heure | L23: 14 | M23: 0.8457535849 | O23: -32 | P23: -32 | Q23: 2.0125056 | V23: =V22+1 -> 2 | W23: RDC - Camp Remugat | AB23: 1630 | AC23: 1 | AD23: FALSE | AE23: FALSE | AF23: FALSE | AG23: FALSE | AH23: FALSE | AI23: FALSE | AL23: =IF(AL$21,$BS23,$BI23) -> 5528.438797 | AM23: =IF(AM$21,$BT23,$BJ23) -> 561.0370323 | AN23: =IF(AN$21,$BU23,$BK23) -> -215.0742705 | AO23: 9725.478576 | AP23: =$SM23 -> 9.168950011 | AQ23: =$SN23 -> 0.044195712 | AR23: =IF($AY23,0,AS22)+AQ23 -> 0.04419571649 | AS23: =AR23+IF($AZ23,0,$AJ23) -> 0.04419571649 | AT23: 2012-07-06T09:03:38.510 | AU23: =AT23+IF($AZ23,0,$AJ23) -> 2012-07-06T09:03:38.510 | AV23: =$BE23 ->  | AW23: =$BG23 ->  | AY23: =IF($V23=1,TRUE,$AC23<>$AC22) -> FALSE | AZ23: FALSE | BD23: =IF(BB23="","",SIGN($AT23-BB23)) ->  | BE23: =IF(BB23="","",ABS($AT23-BB23)) ->  | BF23: =IF(BC23="","",SIGN($AU23-BC23)) ->  | BG23: =IF(BC23="","",ABS($AU23-BC23)) ->  | BI23: 5528.438797 | BJ23: 561.0370323 | BK23: -215.0742705 | BL23: 1610.03804 | BM23: 1985.996516 | BN23: 0.001 | BO23: 0.001 | BP23: 3918.399758 | BQ23: 7739.48206 | BS23: =BI23-BI22 -> 5528.437797 | BT23: 561.0370323 | BU23: -215.0742705 | BV23: 1610.03804 | BW23: 1985.996516 | BX23: 0 | BY23: 0 | BZ23: 3918.399758 | CA23: 7739.48206 | CC23: 9725.478576 | CE23: =IF(CE$21,BW23,BV23)/IF($CC23=0,1,$CC23) -> 0.2042055309 | CF23: =IF(CF$21,BY23,BX23)/IF($CC23=0,1,$CC23) -> 0 | CG23: =IF(CG$21,CA23,BZ23)/IF($CC23=0,1,$CC23) -> 0.7957944691 | CI23: 0.92 | CK23: 1280.329003 | CL23: 1626.291764 | CM23: 1435.030309 | CN23: =IF($CL23<=ME_Input_Alt_Montée_Seuil,ME_Input_Alt_Montée_Seuil,IF($CK23>=ME_Input_Alt_Montée_Seuil,$CM23,($CL23+ME_Input_Alt_Montée_Seuil)/2)) -> 1613.145882 | CO23: 0.07599593746 | CP23: 0.9998901063 | CQ23: 2500 | CR23: 0 | CS23: 1 | CU23: =IF($CC23=0,1,1/(($CG23+$CF23)/$CP23+$CE23/$CS23)) -> 0.9999125452 | CV23: 1 | CW23: =CU23*CV23/(CU23+CV23-CU23*CV23) -> 0.9999125452 | CX23: =$CI23*CW23/($CI23+CW23-$CI23*CW23) -> 0.9199259778 | CZ23: 42,562045 | DA23: 1,537952 | DH23: 1 | DI23: 1 | DJ23: 16 | DL23: =DU22 -> 2.830615942e-09 | DM23: 2.830615942e-09 | DN23: =DL23 -> 2.830615942e-09 | DO23: =DM23 -> 2.830615942e-09 | DP23: 15.99999998 | DQ23: 15.99999998 | DR23: 8.6 | DS23: =$CX23*MAX(P_Estimation_Vitesse_Min,CHOOSE(ME_Input_Méthode,DP23,DQ23,DR23)) -> 14.71881562 | DT23: 0.02753130988 | DU23: 0.02753131271 | DV23: =DM23+DT23 -> 0.02753131271 | DX23: 1 | DY23: 1 | DZ23: 16 | EB23: =EK22 -> 2.830615944e-09 | EC23: 2.830615944e-09 | ED23: =EB23+DT23/2 -> 0.01376565777 | EE23: =EC23+DT23/2 -> 0.01376565777 | EF23: 15.89052892 | EG23: 15.89052892 | EH23: 8.6 | EI23: 14.61811035 | EJ23: 0.02772097517 | EK23: 0.027720978 | EL23: =EC23+EJ23 -> 0.027720978 | EN23: 1 | EO23: 2012-07-06T08:00:00 | EP23: =IF(EN23=EN22,ER22,EO23) -> 2012-07-06T08:00:00 | EQ23: =EP23+EJ23 -> 2012-07-06T08:39:55.092 | ER23: 2012-07-06T08:39:55.092 | ES23: =INT(EQ23-EP23) -> 0 | ET23: =EQ23-EP23-ES23 -> 0.02772097517 | EU23: =MOD(EP23+ET23/2,1) -> 0.3471938237 | EV23: 0.2425255639 | EW23: 0.2664130865 | EX23: 0.898490106 | EY23: 0.9223776285 | EZ23: =IF(EU23<EV23,"Nuit",IF(EU23<EW23,"Matin",IF(EU23<EX23,"Jour",IF(EU23<EY23,"Soir","Nuit")))) -> Jour | FA23: =double_PourcentCourseNuit(EP23,EQ23,EV23,EY23) -> 0 | FB23: 1 | FC23: =$CX23*FB23/($CX23+FB23-$CX23*FB23) -> 0.9199259778 | FE23: 1 | FF23: 1 | FG23: 16 | FI23: =FR22 -> 2.830615944e-09 | FJ23: 2.830615944e-09 | FK23: =FI23+EJ23/2 -> 0.01386049041 | FL23: =FJ23+EJ23/2 -> 0.01386049041 | FM23: 15.8897879 | FN23: 15.8897879 | FO23: 8.6 | FP23: 14.61742867 | FQ23: 0.02772226793 | FR23: 0.02772227076 | FS23: =FJ23+FQ23 -> 0.02772227076 | FW23: 1 | FX23: 1 | FY23: 9.79227777 | GA23: =GJ22 -> 4.625058249e-09 | GB23: 4.625058249e-09 | GC23: =GA23 -> 4.625058249e-09 | GD23: =GB23 -> 4.625058249e-09 | GE23: 9.792277747 | GF23: 9.792277747 | GG23: 8.6 | GH23: 9.008170681 | GI23: 0.04498452442 | GJ23: 0.04498452905 | GK23: =GB23+GI23 -> 0.04498452905 | GM23: 1 | GN23: 1 | GO23: 9.79227777 | GQ23: =GZ22 -> 4.625058254e-09 | GR23: 4.625058254e-09 | GS23: =GQ23+GI23/2 -> 0.02249226684 | GT23: =GR23+GI23/2 -> 0.02249226684 | GU23: 9.683998746 | GV23: 9.683998746 | GW23: 8.6 | GX23: 8.908562015 | GY23: 0.04548750666 | GZ23: 0.04548751129 | HA23: =GR23+GY23 -> 0.04548751129 | HC23: 1 | HD23: 2012-07-06T08:00:00 | HE23: =IF(HC23=HC22,HG22,HD23) -> 2012-07-06T08:00:00 | HF23: =HE23+GY23 -> 2012-07-06T09:05:30.121 | HG23: 2012-07-06T09:05:30.121 | HH23: =INT(HF23-HE23) -> 0 | HI23: =HF23-HE23-HH23 -> 0.04548750666 | HJ23: =MOD(HE23+HI23/2,1) -> 0.3560770913 | HK23: 0.2425255639 | HL23: 0.2664130865 | HM23: 0.898490106 | HN23: 0.9223776285 | HO23: =IF(HJ23<HK23,"Nuit",IF(HJ23<HL23,"Matin",IF(HJ23<HM23,"Jour",IF(HJ23<HN23,"Soir","Nuit")))) -> Jour | HP23: =double_PourcentCourseNuit(HE23,HF23,HK23,HN23) -> 0 | HQ23: 1 | HR23: =$CX23*HQ23/($CX23+HQ23-$CX23*HQ23) -> 0.9199259778 | HT23: 1 | HU23: 1 | HV23: 9.79227777 | HX23: =IG22 -> 4.625058254e-09 | HY23: 4.625058254e-09 | HZ23: =HX23+GY23/2 -> 0.02274375796 | IA23: =HY23+GY23/2 -> 0.02274375796 | IB23: 9.68282253 | IC23: 9.68282253 | ID23: 8.6 | IE23: 8.907479984 | IF23: 0.04549303223 | IG23: 0.04549303686 | IH23: =HY23+IF23 -> 0.04549303686 | IL23: 1 | IM23: 1 | IN23: 10.09183092 | IP23: =IY22 -> 4.487773869e-09 | IQ23: 4.487773869e-09 | IR23: =IP23 -> 4.487773869e-09 | IS23: =IQ23 -> 4.487773869e-09 | IT23: 10.09183089 | IU23: 10.09183089 | IV23: 8.6 | IW23: 9.283737401 | IX23: 0.04364926069 | IY23: 0.04364926518 | IZ23: =IQ23+IX23 -> 0.04364926518 | JB23: 1 | JC23: 1 | JD23: 10.09183092 | JF23: =JO22 -> 4.487773874e-09 | JG23: 4.487773874e-09 | JH23: =JF23+IX23/2 -> 0.02182463483 | JI23: =JG23+IX23/2 -> 0.02182463483 | JJ23: 9.983461308 | JK23: 9.983461308 | JL23: 8.6 | JM23: 9.184045405 | JN23: 0.04412306953 | JO23: 0.04412307402 | JP23: =JG23+JN23 -> 0.04412307402 | JR23: 1 | JS23: 2012-07-06T08:00:00 | JT23: =IF(JR23=JR22,JV22,JS23) -> 2012-07-06T08:00:00 | JU23: =JT23+JN23 -> 2012-07-06T09:03:32.234 | JV23: 2012-07-06T09:03:32.234 | JW23: =INT(JU23-JT23) -> 0 | JX23: =JU23-JT23-JW23 -> 0.04412306954 | JY23: =MOD(JT23+JX23/2,1) -> 0.3553948726 | JZ23: 0.2425255639 | KA23: 0.2664130865 | KB23: 0.898490106 | KC23: 0.9223776285 | KD23: =IF(JY23<JZ23,"Nuit",IF(JY23<KA23,"Matin",IF(JY23<KB23,"Jour",IF(JY23<KC23,"Soir","Nuit")))) -> Jour | KE23: =double_PourcentCourseNuit(JT23,JU23,JZ23,KC23) -> 0 | KF23: 1 | KG23: =$CX23*KF23/($CX23+KF23-$CX23*KF23) -> 0.9199259778 | KI23: 1 | KJ23: 1 | KK23: 10.09183092 | KM23: =KV22 -> 4.487773874e-09 | KN23: 4.487773874e-09 | KO23: =KM23+JN23/2 -> 0.02206153925 | KP23: =KN23+JN23/2 -> 0.02206153925 | KQ23: 9.982317469 | KR23: 9.982317469 | KS23: 8.6 | KT23: 9.182993158 | KU23: 0.04412812544 | KV23: 0.04412812993 | KW23: =KN23+KU23 -> 0.04412812993 | LA23: 1 | LB23: 1 | LC23: 10.0757486 | LE23: =LN22 -> 4.49493699e-09 | LF23: 4.49493699e-09 | LG23: =LE23 -> 4.49493699e-09 | LH23: =LF23 -> 4.49493699e-09 | LI23: 10.07574857 | LJ23: 10.07574857 | LK23: 8.6 | LL23: 9.268942858 | LM23: 0.04371893108 | LN23: 0.04371893557 | LO23: =LF23+LM23 -> 0.04371893557 | LQ23: 1 | LR23: 1 | LS23: 10.0757486 | LU23: =MD22 -> 4.494936995e-09 | LV23: 4.494936995e-09 | LW23: =LU23+LM23/2 -> 0.02185947003 | LX23: =LV23+LM23/2 -> 0.02185947003 | LY23: 9.967383718 | LZ23: 9.967383718 | MA23: 8.6 | MB23: 9.169255213 | MC23: 0.04419424093 | MD23: 0.04419424542 | ME23: =LV23+MC23 -> 0.04419424542 | MG23: 1 | MH23: 2012-07-06T08:00:00 | MI23: =IF(MG23=MG22,MK22,MH23) -> 2012-07-06T08:00:00 | MJ23: =MI23+MC23 -> 2012-07-06T09:03:38.383 | MK23: 2012-07-06T09:03:38.383 | ML23: =INT(MJ23-MI23) -> 0 | MM23: =MJ23-MI23-ML23 -> 0.04419424093 | MN23: =MOD(MI23+MM23/2,1) -> 0.3554304583 | MO23: 0.2425255639 | MP23: 0.2664130865 | MQ23: 0.898490106 | MR23: 0.9223776285 | MS23: =IF(MN23<MO23,"Nuit",IF(MN23<MP23,"Matin",IF(MN23<MQ23,"Jour",IF(MN23<MR23,"Soir","Nuit")))) -> Jour | MT23: =double_PourcentCourseNuit(MI23,MJ23,MO23,MR23) -> 0 | MU23: 1 | MV23: =$CX23*MU23/($CX23+MU23-$CX23*MU23) -> 0.9199259778 | MX23: 1 | MY23: 1 | MZ23: 10.0757486 | NB23: =NK22 -> 4.494936995e-09 | NC23: 4.494936995e-09 | ND23: =NB23+MC23/2 -> 0.02209712496 | NE23: =NC23+MC23/2 -> 0.02209712496 | NF23: 9.966238186 | NG23: 9.966238186 | NH23: 8.6 | NI23: 9.168201408 | NJ23: 0.04419932067 | NK23: 0.04419932516 | NL23: =NC23+NJ23 -> 0.04419932516 | NP23: 1 | NQ23: 1 | NR23: 10.0766085 | NT23: =OC22 -> 4.494553406e-09 | NU23: 4.494553406e-09 | NV23: =NT23 -> 4.494553406e-09 | NW23: =NU23 -> 4.494553406e-09 | NX23: 10.07660848 | NY23: 10.07660848 | NZ23: 8.6 | OA23: 9.269733909 | OB23: 0.04371520024 | OC23: 0.04371520473 | OD23: =NU23+OB23 -> 0.04371520473 | OF23: 1 | OG23: 1 | OH23: 10.0766085 | OJ23: =OS22 -> 4.494553411e-09 | OK23: 4.494553411e-09 | OL23: =OJ23+OB23/2 -> 0.02185760461 | OM23: =OK23+OB23/2 -> 0.02185760461 | ON23: 9.968243372 | OO23: 9.968243372 | OP23: 8.6 | OQ23: 9.17004603 | OR23: 0.04419042965 | OS23: 0.04419043415 | OT23: =OK23+OR23 -> 0.04419043415 | OV23: 1 | OW23: 2012-07-06T08:00:00 | OX23: =IF(OV23=OV22,OZ22,OW23) -> 2012-07-06T08:00:00 | OY23: =OX23+OR23 -> 2012-07-06T09:03:38.054 | OZ23: 2012-07-06T09:03:38.054 | PA23: =INT(OY23-OX23) -> 0 | PB23: =OY23-OX23-PA23 -> 0.04419042965 | PC23: =MOD(OX23+PB23/2,1) -> 0.3554285527 | PD23: 0.2425255639 | PE23: 0.2664130865 | PF23: 0.898490106 | PG23: 0.9223776285 | PH23: =IF(PC23<PD23,"Nuit",IF(PC23<PE23,"Matin",IF(PC23<PF23,"Jour",IF(PC23<PG23,"Soir","Nuit")))) -> Jour | PI23: =double_PourcentCourseNuit(OX23,OY23,PD23,PG23) -> 0 | PJ23: 1 | PK23: =$CX23*PJ23/($CX23+PJ23-$CX23*PJ23) -> 0.9199259778 | PM23: 1 | PN23: 1 | PO23: 10.0766085 | PQ23: =PZ22 -> 4.494553411e-09 | PR23: 4.494553411e-09 | PS23: =PQ23+OR23/2 -> 0.02209521932 | PT23: =PR23+OR23/2 -> 0.02209521932 | PU23: 9.96709793 | PV23: 9.96709793 | PW23: 8.6 | PX23: 9.168992309 | PY23: 0.04419550811 | PZ23: 0.04419551261 | QA23: =PR23+PY23 -> 0.04419551261 | QE23: 1 | QF23: 1 | QG23: 10.07656251 | QI23: =QR22 -> 4.494573919e-09 | QJ23: 4.494573919e-09 | QK23: =QI23 -> 4.494573919e-09 | QL23: =QJ23 -> 4.494573919e-09 | QM23: 10.07656249 | QN23: 10.07656249 | QO23: 8.6 | QP23: 9.269691603 | QQ23: 0.04371539975 | QR23: 0.04371540425 | QS23: =QJ23+QQ23 -> 0.04371540425 | QU23: 1 | QV23: 1 | QW23: 10.07656251 | QY23: =RH22 -> 4.494573924e-09 | QZ23: 4.494573924e-09 | RA23: =QY23+QQ23/2 -> 0.02185770437 | RB23: =QZ23+QQ23/2 -> 0.02185770437 | RC23: 9.968197396 | RD23: 9.968197396 | RE23: 8.6 | RF23: 9.170003737 | RG23: 0.04419063347 | RH23: 0.04419063796 | RI23: =QZ23+RG23 -> 0.04419063796 | RK23: 1 | RL23: 2012-07-06T08:00:00 | RM23: =IF(RK23=RK22,RO22,RL23) -> 2012-07-06T08:00:00 | RN23: =RM23+RG23 -> 2012-07-06T09:03:38.071 | RO23: 2012-07-06T09:03:38.071 | RP23: =INT(RN23-RM23) -> 0 | RQ23: =RN23-RM23-RP23 -> 0.04419063347 | RR23: =MOD(RM23+RQ23/2,1) -> 0.3554286546 | RS23: 0.2425255639 | RT23: 0.2664130865 | RU23: 0.898490106 | RV23: 0.9223776285 | RW23: =IF(RR23<RS23,"Nuit",IF(RR23<RT23,"Matin",IF(RR23<RU23,"Jour",IF(RR23<RV23,"Soir","Nuit")))) -> Jour | RX23: =double_PourcentCourseNuit(RM23,RN23,RS23,RV23) -> 0 | RY23: 1 | RZ23: =$CX23*RY23/($CX23+RY23-$CX23*RY23) -> 0.9199259778 | SB23: 1 | SC23: 1 | SD23: 10.07656251 | SF23: =SO22 -> 4.494573924e-09 | SG23: 4.494573924e-09 | SH23: =SF23+RG23/2 -> 0.02209532123 | SI23: =SG23+RG23/2 -> 0.02209532123 | SJ23: 9.96705195 | SK23: 9.96705195 | SL23: 8.6 | SM23: 9.168950011 | SN23: 0.044195712 | SO23: 0.04419571649 | SP23: =SG23+SN23 -> 0.04419571649 | ST23: 9.96705195 | SU23: =($CC23/1000)/(ST23*24) -> 0.04065678357 | SV23: =($CC23/1000)/(ST23*24*$CI23) -> 0.04419215606 | SW23: =($CC23/1000)/(ST23*24*$CU23) -> 0.04066033951 | SX23: 0.04065678357 | SY23: =($CC23/1000)/(ST23*24*$RY23) -> 0.04065678357 | TA23: =$RZ23 -> 0.9199259778 | TB23: =$RX23 -> 0 | TD23: =$CG23 -> 0.7957944691 | TE23: =$CP23 -> 0.9998901063 | TF23: 0.9998901063 | TG23: 1 | TH23: =TG23*TF23/(TG23+TF23-TG23*TF23) -> 0.9998901063 | TI23: =TH23*$CI23/(TH23+$CI23-TH23*$CI23) -> 0.9199069852 | TK23: =$CE23 -> 0.2042055309 | TL23: =$CS23 -> 1 | TM23: 1 | TN23: 1 | TO23: =TN23*TM23/(TN23+TM23-TN23*TM23) -> 1 | TP23: =TO23*$CI23/(TO23+$CI23-TO23*$CI23) -> 0.92 | TR23: =($TD23/$TI23)/(1/$TA23) -> 0.7958108993 | TS23: =($TK23/$TP23)/(1/$TA23) -> 0.2041891007 | TU23: =IF($SN23*$TR23=0,0,$BT23/($SN23*24*$TR23)) -> 664.6458069 | TV23: =IF($SN23*$TS23=0,0,$BU23/($SN23*24*$TS23)) -> -993.034931 | TZ23: =TZ22+1 -> 1 | UA23: =UA22 -> 1 | UB23: =IF($UA23>ME_Nbr_RB,"",VLOOKUP($TZ23,ME_Table,UB$21,FALSE)) -> 0.001 | UC23: 0.92 | UD23: 1 | UE23: 1 | UF23: 1 | UG23: 0.92 | UH23: 9.270437503 | UI23: 10.0765625
L24: 15 | M24: 0.8411782264 | O24: -30 | P24: -30 | Q24: 1.879 | V24: 3 | W24: RDC - Ensegur | AB24: 1890 | AC24: 1 | AD24: FALSE | AE24: FALSE | AF24: FALSE | AG24: FALSE | AH24: FALSE | AI24: FALSE | AL24: 11637.8227 | AM24: 1293.375398 | AN24: -680.6985838 | AO24: 12741.84808 | AP24: 8.477641952 | AQ24: 0.06262476519 | AR24: 0.1068204817 | AS24: 0.1068204817 | AT24: 2012-07-06T10:33:49.290 | AU24: 2012-07-06T10:33:49.290 | AY24: FALSE | AZ24: FALSE | BI24: 11637.8227 | BJ24: 1293.375398 | BK24: -680.6985838 | BL24: 4293.250736 | BM24: 5672.218858 | BN24: 0.001 | BO24: 0.001 | BP24: 7344.570968 | BQ24: 16795.1078 | BS24: 6109.383906 | BT24: 732.3383652 | BU24: -465.6243134 | BV24: 2683.212697 | BW24: 3686.222343 | BX24: 0 | BY24: 0 | BZ24: 3426.17121 | CA24: 9055.625737 | CC24: 12741.84808 | CE24: 0.2893004468 | CF24: 0 | CG24: 0.7106995532 | CI24: 0.88 | CK24: 1464.10172 | CL24: 1975.008797 | CM24: 1711.44904 | CN24: 1787.504399 | CO24: 0.734005877 | CP24: 0.9848607736 | CQ24: 2500 | CR24: 0 | CS24: 1 | CU24: 0.9891932272 | CV24: 1 | CW24: 0.9891932272 | CX24: 0.8716203684 | CZ24: 42,589140 | DA24: 1,544834 | DH24: 1 | DI24: 1 | DJ24: 16 | DL24: 0.02753131271 | DM24: 0.02753131271 | DN24: 0.02753131271 | DO24: 0.02753131271 | DP24: 15.78480283 | DQ24: 15.78480283 | DR24: 8.6 | DS24: 13.75835566 | DT24: 0.03858821141 | DU24: 0.06611952412 | DV24: 0.06611952412 | DX24: 1 | DY24: 1 | DZ24: 16 | EB24: 0.027720978 | EC24: 0.027720978 | ED24: 0.0470150837 | EE24: 0.0470150837 | EF24: 15.64131225 | EG24: 15.64131225 | EH24: 8.6 | EI24: 13.63328635 | EJ24: 0.03894221269 | EK24: 0.06666319069 | EL24: 0.06666319069 | EN24: 1 | EO24: 2012-07-06T08:00:00 | EP24: 2012-07-06T08:39:55.092 | EQ24: 2012-07-06T09:35:59.700 | ER24: 2012-07-06T09:35:59.700 | ES24: 0 | ET24: 0.03894221269 | EU24: 0.3805254177 | EV24: 0.2424255337 | EW24: 0.2663293012 | EX24: 0.8985356579 | EY24: 0.9224394255 | EZ24: Jour | FA24: 0 | FB24: 1 | FC24: 0.8716203684 | FE24: 1 | FF24: 1 | FG24: 16 | FI24: 0.02772227076 | FJ24: 0.02772227076 | FK24: 0.0471933771 | FL24: 0.0471933771 | FM24: 15.64003156 | FN24: 15.64003156 | FO24: 8.6 | FP24: 13.63217007 | FQ24: 0.0389454015 | FR24: 0.06666767226 | FS24: 0.06666767226 | FW24: 1 | FX24: 1 | FY24: 9.79227777 | GA24: 0.04498452905 | GB24: 0.04498452905 | GC24: 0.04498452905 | GD24: 0.04498452905 | GE24: 9.581706269 | GF24: 9.581706269 | GG24: 8.6 | GH24: 8.351610347 | GI24: 0.06356981643 | GJ24: 0.1085543455 | GK24: 0.1085543455 | GM24: 1 | GN24: 1 | GO24: 9.79227777 | GQ24: 0.04548751129 | GR24: 0.04548751129 | GS24: 0.0772724195 | GT24: 0.0772724195 | GU24: 9.444670771 | GV24: 9.444670771 | GW24: 8.6 | GX24: 8.232167416 | GY24: 0.06449216954 | GZ24: 0.1099796808 | HA24: 0.1099796808 | HC24: 1 | HD24: 2012-07-06T08:00:00 | HE24: 2012-07-06T09:05:30.121 | HF24: 2012-07-06T10:38:22.244 | HG24: 2012-07-06T10:38:22.244 | HH24: 0 | HI24: 0.06449216953 | HJ24: 0.4110669294 | HK24: 0.2424255337 | HL24: 0.2663293012 | HM24: 0.8985356579 | HN24: 0.9224394255 | HO24: Jour | HP24: 0 | HQ24: 1 | HR24: 0.8716203684 | HT24: 1 | HU24: 1 | HV24: 9.79227777 | HX24: 0.04549303686 | HY24: 0.04549303686 | HZ24: 0.07773912162 | IA24: 0.07773912162 | IB24: 9.442770885 | IC24: 9.442770885 | ID24: 8.6 | IE24: 8.230511437 | IF24: 0.06450514536 | IG24: 0.1099981822 | IH24: 0.1099981822 | IL24: 1 | IM24: 1 | IN24: 10.09183092 | IP24: 0.04364926518 | IQ24: 0.04364926518 | IR24: 0.04364926518 | IS24: 0.04364926518 | IT24: 9.880910274 | IU24: 9.880910274 | IV24: 8.6 | IW24: 8.612402653 | IX24: 0.06164485777 | IY24: 0.105294123 | IZ24: 0.105294123 | JB24: 1 | JC24: 1 | JD24: 10.09183092 | JF24: 0.04412307402 | JG24: 0.04412307402 | JH24: 0.07494550291 | JI24: 0.07494550291 | JJ24: 9.743387268 | JK24: 9.743387268 | JL24: 8.6 | JM24: 8.4925348 | JN24: 0.06251494391 | JO24: 0.1066380179 | JP24: 0.1066380179 | JR24: 1 | JS24: 2012-07-06T08:00:00 | JT24: 2012-07-06T09:03:32.234 | JU24: 2012-07-06T10:33:33.525 | JV24: 2012-07-06T10:33:33.525 | JW24: 0 | JX24: 0.06251494391 | JY24: 0.4087138793 | JZ24: 0.2424255337 | KA24: 0.2663293012 | KB24: 0.8985356579 | KC24: 0.9224394255 | KD24: Jour | KE24: 0 | KF24: 1 | KG24: 0.8716203684 | KI24: 1 | KJ24: 1 | KK24: 10.09183092 | KM24: 0.04412812993 | KN24: 0.04412812993 | KO24: 0.07538560188 | KP24: 0.07538560188 | KQ24: 9.741529917 | KR24: 9.741529917 | KS24: 8.6 | KT24: 8.490915894 | KU24: 0.06252686321 | KV24: 0.1066549931 | KW24: 0.1066549931 | LA24: 1 | LB24: 1 | LC24: 10.0757486 | LE24: 0.04371893557 | LF24: 0.04371893557 | LG24: 0.04371893557 | LH24: 0.04371893557 | LI24: 9.864846192 | LJ24: 9.864846192 | LK24: 8.6 | LL24: 8.598400872 | LM24: 0.0617452413 | LN24: 0.1054641769 | LO24: 0.1054641769 | LQ24: 1 | LR24: 1 | LS24: 10.0757486 | LU24: 0.04419424542 | LV24: 0.04419424542 | LW24: 0.07506686607 | LX24: 0.07506686607 | LY24: 9.727348649 | LZ24: 9.727348649 | MA24: 8.6 | MB24: 8.478555213 | MC24: 0.06261801962 | MD24: 0.106812265 | ME24: 0.106812265 | MG24: 1 | MH24: 2012-07-06T08:00:00 | MI24: 2012-07-06T09:03:38.383 | MJ24: 2012-07-06T10:33:48.580 | MK24: 2012-07-06T10:33:48.580 | ML24: 0 | MM24: 0.06261801962 | MN24: 0.4088365886 | MO24: 0.2424255337 | MP24: 0.2663293012 | MQ24: 0.8985356579 | MR24: 0.9224394255 | MS24: Jour | MT24: 0 | MU24: 1 | MV24: 0.8716203684 | MX24: 1 | MY24: 1 | MZ24: 10.0757486 | NB24: 0.04419932516 | NC24: 0.04419932516 | ND24: 0.07550833497 | NE24: 0.07550833497 | NF24: 9.725489059 | NG24: 9.725489059 | NH24: 8.6 | NI24: 8.476934356 | NJ24: 0.06262999268 | NK24: 0.1068293178 | NL24: 0.1068293178 | NP24: 1 | NQ24: 1 | NR24: 10.0766085 | NT24: 0.04371520473 | NU24: 0.04371520473 | NV24: 0.04371520473 | NW24: 0.04371520473 | NX24: 9.865705122 | NY24: 9.865705122 | NZ24: 8.6 | OA24: 8.599149533 | OB24: 0.06173986562 | OC24: 0.1054550704 | OD24: 0.1054550704 | OF24: 1 | OG24: 1 | OH24: 10.0766085 | OJ24: 0.04419043415 | OK24: 0.04419043415 | OL24: 0.07506036696 | OM24: 0.07506036696 | ON24: 9.728206216 | OO24: 9.728206216 | OP24: 8.6 | OQ24: 8.479302686 | OR24: 0.06261249967 | OS24: 0.1068029338 | OT24: 0.1068029338 | OV24: 1 | OW24: 2012-07-06T08:00:00 | OX24: 2012-07-06T09:03:38.054 | OY24: 2012-07-06T10:33:47.773 | OZ24: 2012-07-06T10:33:47.773 | PA24: 0 | PB24: 0.06261249967 | PC24: 0.4088300173 | PD24: 0.2424255337 | PE24: 0.2663293012 | PF24: 0.8985356579 | PG24: 0.9224394255 | PH24: Jour | PI24: 0 | PJ24: 1 | PK24: 0.8716203684 | PM24: 1 | PN24: 1 | PO24: 10.0766085 | PQ24: 0.04419551261 | PR24: 0.04419551261 | PS24: 0.07550176245 | PT24: 0.07550176245 | PU24: 9.726346746 | PV24: 9.726346746 | PW24: 8.6 | PX24: 8.477681933 | PY24: 0.06262446985 | PZ24: 0.1068199825 | QA24: 0.1068199825 | QE24: 1 | QF24: 1 | QG24: 10.07656251 | QI24: 0.04371540425 | QJ24: 0.04371540425 | QK24: 0.04371540425 | QL24: 0.04371540425 | QM24: 9.865659186 | QN24: 9.865659186 | QO24: 8.6 | QP24: 8.599109494 | QQ24: 0.0617401531 | QR24: 0.1054555573 | QS24: 0.1054555573 | QU24: 1 | QV24: 1 | QW24: 10.07656251 | QY24: 0.04419063796 | QZ24: 0.04419063796 | RA24: 0.07506071451 | RB24: 0.07506071451 | RC24: 9.728160353 | RD24: 9.728160353 | RE24: 8.6 | RF24: 8.47926271 | RG24: 0.06261279486 | RH24: 0.1068034328 | RI24: 0.1068034328 | RK24: 1 | RL24: 2012-07-06T08:00:00 | RM24: 2012-07-06T09:03:38.071 | RN24: 2012-07-06T10:33:47.817 | RO24: 2012-07-06T10:33:47.817 | RP24: 0 | RQ24: 0.06261279486 | RR24: 0.4088303687 | RS24: 0.2424255337 | RT24: 0.2663293012 | RU24: 0.8985356579 | RV24: 0.9224394255 | RW24: Jour | RX24: 0 | RY24: 1 | RZ24: 0.8716203684 | SB24: 1 | SC24: 1 | SD24: 10.07656251 | SF24: 0.04419571649 | SG24: 0.04419571649 | SH24: 0.07550211392 | SI24: 0.07550211392 | SJ24: 9.726300876 | SK24: 9.726300876 | SL24: 8.6 | SM24: 8.477641952 | SN24: 0.06262476519 | SO24: 0.1068204817 | SP24: 0.1068204817 | ST24: 9.726300876 | SU24: 0.05458502091 | SV24: 0.06202843285 | SW24: 0.05518135325 | SX24: 0.05458502091 | SY24: 0.05458502091 | TA24: 0.8716203684 | TB24: 0 | TD24: 0.7106995532 | TE24: 0.9848607736 | TF24: 0.9848607736 | TG24: 1 | TH24: 0.9848607736 | TI24: 0.8682548456 | TK24: 0.2893004468 | TL24: 1 | TM24: 1 | TN24: 1 | TO24: 1 | TP24: 0.88 | TR24: 0.7134543613 | TS24: 0.2865456387 | TU24: 682.9489425 | TV24: -1081.146371 | TZ24: 1 | UA24: =UA23+1 -> 2 | UB24: 0.001 | UC24: 0.92 | UD24: 0.9999125452 | UE24: 1 | UF24: 1 | UG24: 0.9199259778 | UH24: 9.168950011 | UI24: 9.96705195
B25: TRUE | C25: Prendre en compte le Relief ► | F25: =IF(ME_Input_Relief,"Oui","Non") -> Oui | L25: 16 | M25: 0.8370604038 | O25: -28 | P25: -28 | Q25: 1.7472416 | V25: 4 | W25: Coll d'Arenes | AB25: 2550 | AC25: 1 | AD25: FALSE | AE25: FALSE | AF25: FALSE | AG25: FALSE | AH25: FALSE | AI25: FALSE | AL25: 14561.97329 | AM25: 1948.089535 | AN25: -681.2929438 | AO25: 7851.769445 | AP25: 7.884486261 | AQ25: 0.04149377009 | AR25: 0.1483142518 | AS25: 0.1483142518 | AT25: 2012-07-06T11:33:34.351 | AU25: 2012-07-06T11:33:34.351 | AY25: FALSE | AZ25: FALSE | BI25: 14561.97329 | BJ25: 1948.089535 | BK25: -681.2929438 | BL25: 4332.17196 | BM25: 5709.693578 | BN25: 0.001 | BO25: 0.001 | BP25: 10229.80033 | BQ25: 24609.40252 | BS25: 2924.150589 | BT25: 654.7141371 | BU25: -0.59436 | BV25: 38.92122352 | BW25: 37.47471922 | BX25: 0 | BY25: 0 | BZ25: 2885.229366 | CA25: 7814.294726 | CC25: 7851.769445 | CE25: 0.004772773766 | CF25: 0 | CG25: 0.9952272262 | CI25: 0.88 | CK25: 1893.005816 | CL25: 2547.125593 | CM25: 2206.843128 | CN25: 2206.843128 | CO25: 1 | CP25: 0.933247256 | CQ25: 2523.562797 | CR25: 0.07204428758 | CS25: 0.9999151218 | CU25: 0.9335443263 | CV25: 1 | CW25: 0.9335443263 | CX25: 0.8281230239 | CZ25: 42,594853 | DA25: 1,574918 | DH25: 1 | DI25: 1 | DJ25: 16 | DL25: 0.06611952412 | DM25: 0.06611952412 | DN25: 0.06611952412 | DO25: 0.06611952412 | DP25: 15.5073154 | DQ25: 15.5073154 | DR25: 8.6 | DS25: 12.84196493 | DT25: 0.02547562325 | DU25: 0.09159514737 | DV25: 0.09159514737 | DX25: 1 | DY25: 1 | DZ25: 16 | EB25: 0.06666319069 | EC25: 0.06666319069 | ED25: 0.07940100231 | EE25: 0.07940100231 | EF25: 15.41790211 | EG25: 15.41790211 | EH25: 8.6 | EI25: 12.76791972 | EJ25: 0.02562336445 | EK25: 0.09228655513 | EL25: 0.09228655513 | EN25: 1 | EO25: 2012-07-06T08:00:00 | EP25: 2012-07-06T09:35:59.700 | EQ25: 2012-07-06T10:12:53.558 | ER25: 2012-07-06T10:12:53.558 | ES25: 0 | ET25: 0.02562336445 | EU25: 0.4128082062 | EV25: 0.2423248932 | EW25: 0.2662320903 | EX25: 0.8984657355 | EY25: 0.9223729326 | EZ25: Jour | FA25: 0 | FB25: 1 | FC25: 0.8281230239 | FE25: 1 | FF25: 1 | FG25: 16 | FI25: 0.06666767226 | FJ25: 0.06666767226 | FK25: 0.07947935448 | FL25: 0.07947935448 | FM25: 15.41738349 | FN25: 15.41738349 | FO25: 8.6 | FP25: 12.76749024 | FQ25: 0.02562422638 | FR25: 0.09229189864 | FS25: 0.09229189864 | FW25: 1 | FX25: 1 | FY25: 9.79227777 | GA25: 0.1085543455 | GB25: 0.1085543455 | GC25: 0.1085543455 | GD25: 0.1085543455 | GE25: 9.32216009 | GF25: 9.32216009 | GG25: 8.6 | GH25: 7.719895403 | GI25: 0.04237843172 | GJ25: 0.1509327772 | GK25: 0.1509327772 | GM25: 1 | GN25: 1 | GO25: 9.79227777 | GQ25: 0.1099796808 | GR25: 0.1099796808 | GS25: 0.1311688967 | GT25: 0.1311688967 | GU25: 9.239438211 | GV25: 9.239438211 | GW25: 8.6 | GX25: 7.651391511 | GY25: 0.04275785127 | GZ25: 0.1527375321 | HA25: 0.1527375321 | HC25: 1 | HD25: 2012-07-06T08:00:00 | HE25: 2012-07-06T10:38:22.244 | HF25: 2012-07-06T11:39:56.523 | HG25: 2012-07-06T11:39:56.523 | HH25: 0 | HI25: 0.04275785127 | HJ25: 0.4646919398 | HK25: 0.2423248932 | HL25: 0.2662320903 | HM25: 0.8984657355 | HN25: 0.9223729326 | HO25: Jour | HP25: 0 | HQ25: 1 | HR25: 0.8281230239 | HT25: 1 | HU25: 1 | HV25: 9.79227777 | HX25: 0.1099981822 | HY25: 0.1099981822 | HZ25: 0.1313771078 | IA25: 0.1313771078 | IB25: 9.238698358 | IC25: 9.238698358 | ID25: 8.6 | IE25: 7.650778822 | IF25: 0.0427612754 | IG25: 0.1527594576 | IH25: 0.1527594576 | IL25: 1 | IM25: 1 | IN25: 10.09183092 | IP25: 0.105294123 | IQ25: 0.105294123 | IR25: 0.105294123 | IS25: 0.105294123 | IT25: 9.620029403 | IU25: 9.620029403 | IV25: 8.6 | IW25: 7.966567839 | IX25: 0.04106624921 | IY25: 0.1463603722 | IZ25: 0.1463603722 | JB25: 1 | JC25: 1 | JD25: 10.09183092 | JF25: 0.1066380179 | JG25: 0.1066380179 | JH25: 0.1271711425 | JI25: 0.1271711425 | JJ25: 9.536797793 | JK25: 9.536797793 | JL25: 8.6 | JM25: 7.897641827 | JN25: 0.04142465148 | JO25: 0.1480626694 | JP25: 0.1480626694 | JR25: 1 | JS25: 2012-07-06T08:00:00 | JT25: 2012-07-06T10:33:33.525 | JU25: 2012-07-06T11:33:12.615 | JV25: 2012-07-06T11:33:12.615 | JW25: 0 | JX25: 0.04142465148 | JY25: 0.460683677 | JZ25: 0.2423248932 | KA25: 0.2662320903 | KB25: 0.8984657355 | KC25: 0.9223729326 | KD25: Jour | KE25: 0 | KF25: 1 | KG25: 0.8281230239 | KI25: 1 | KJ25: 1 | KK25: 10.09183092 | KM25: 0.1066549931 | KN25: 0.1066549931 | KO25: 0.1273673189 | KP25: 0.1273673189 | KQ25: 9.536072069 | KR25: 9.536072069 | KS25: 8.6 | KT25: 7.897040838 | KU25: 0.04142780402 | KV25: 0.1480827972 | KW25: 0.1480827972 | LA25: 1 | LB25: 1 | LC25: 10.0757486 | LE25: 0.1054641769 | LF25: 0.1054641769 | LG25: 0.1054641769 | LH25: 0.1054641769 | LI25: 9.604035115 | LJ25: 9.604035115 | LK25: 8.6 | LL25: 7.953322601 | LM25: 0.04113463978 | LN25: 0.1465988167 | LO25: 0.1465988167 | LQ25: 1 | LR25: 1 | LS25: 10.0757486 | LU25: 0.106812265 | LV25: 0.106812265 | LW25: 0.1273795849 | LX25: 0.1273795849 | LY25: 9.520830115 | LZ25: 9.520830115 | MA25: 8.6 | MB25: 7.884418625 | MC25: 0.04149412605 | MD25: 0.1483063911 | ME25: 0.1483063911 | MG25: 1 | MH25: 2012-07-06T08:00:00 | MI25: 2012-07-06T10:33:48.580 | MJ25: 2012-07-06T11:33:33.672 | MK25: 2012-07-06T11:33:33.672 | ML25: 0 | MM25: 0.04149412605 | MN25: 0.4608926614 | MO25: 0.2423248932 | MP25: 0.2662320903 | MQ25: 0.8984657355 | MR25: 0.9223729326 | MS25: Jour | MT25: 0 | MU25: 1 | MV25: 0.8281230239 | MX25: 1 | MY25: 1 | MZ25: 10.0757486 | NB25: 0.1068293178 | NC25: 0.1068293178 | ND25: 0.1275763809 | NE25: 0.1275763809 | NF25: 9.520103643 | NG25: 9.520103643 | NH25: 8.6 | NI25: 7.883817017 | NJ25: 0.04149729243 | NK25: 0.1483266103 | NL25: 0.1483266103 | NP25: 1 | NQ25: 1 | NR25: 10.0766085 | NT25: 0.1054550704 | NU25: 0.1054550704 | NV25: 0.1054550704 | NW25: 0.1054550704 | NX25: 9.604890308 | NY25: 9.604890308 | NZ25: 8.6 | OA25: 7.954030806 | OB25: 0.04113097726 | OC25: 0.1465860476 | OD25: 0.1465860476 | OF25: 1 | OG25: 1 | OH25: 10.0766085 | OJ25: 0.1068029338 | OK25: 0.1068029338 | OL25: 0.1273684224 | OM25: 0.1273684224 | ON25: 9.521683883 | OO25: 9.521683883 | OP25: 8.6 | OQ25: 7.88512565 | OR25: 0.04149040545 | OS25: 0.1482933393 | OT25: 0.1482933393 | OV25: 1 | OW25: 2012-07-06T08:00:00 | OX25: 2012-07-06T10:33:47.773 | OY25: 2012-07-06T11:33:32.545 | OZ25: 2012-07-06T11:33:32.545 | PA25: 0 | PB25: 0.04149040545 | PC25: 0.4608814699 | PD25: 0.2423248932 | PE25: 0.2662320903 | PF25: 0.8984657355 | PG25: 0.9223729326 | PH25: Jour | PI25: 0 | PJ25: 1 | PK25: 0.8281230239 | PM25: 1 | PN25: 1 | PO25: 10.0766085 | PQ25: 0.1068199825 | PR25: 0.1068199825 | PS25: 0.1275651852 | PT25: 0.1275651852 | PU25: 9.520957451 | PV25: 9.520957451 | PW25: 8.6 | PX25: 7.884524075 | PY25: 0.04149357109 | PZ25: 0.1483135535 | QA25: 0.1483135535 | QE25: 1 | QF25: 1 | QG25: 10.07656251 | QI25: 0.1054555573 | QJ25: 0.1054555573 | QK25: 0.1054555573 | QL25: 0.1054555573 | QM25: 9.604844571 | QN25: 9.604844571 | QO25: 8.6 | QP25: 7.953992931 | QQ25: 0.04113117312 | QR25: 0.1465867305 | QS25: 0.1465867305 | QU25: 1 | QV25: 1 | QW25: 10.07656251 | QY25: 0.1068034328 | QZ25: 0.1068034328 | RA25: 0.1273690194 | RB25: 0.1273690194 | RC25: 9.521638223 | RD25: 9.521638223 | RE25: 8.6 | RF25: 7.885087838 | RG25: 0.04149060441 | RH25: 0.1482940372 | RI25: 0.1482940372 | RK25: 1 | RL25: 2012-07-06T08:00:00 | RM25: 2012-07-06T10:33:47.817 | RN25: 2012-07-06T11:33:32.605 | RO25: 2012-07-06T11:33:32.605 | RP25: 0 | RQ25: 0.04149060441 | RR25: 0.4608820684 | RS25: 0.2423248932 | RT25: 0.2662320903 | RU25: 0.8984657355 | RV25: 0.9223729326 | RW25: Jour | RX25: 0 | RY25: 1 | RZ25: 0.8281230239 | SB25: 1 | SC25: 1 | SD25: 10.07656251 | SF25: 0.1068204817 | SG25: 0.1068204817 | SH25: 0.1275657839 | SI25: 0.1275657839 | SJ25: 9.520911789 | SK25: 9.520911789 | SL25: 8.6 | SM25: 7.884486261 | SN25: 0.04149377009 | SO25: 0.1483142518 | SP25: 0.1483142518 | ST25: 9.520911789 | SU25: 0.03436194636 | SV25: 0.03904766632 | SW25: 0.03680805013 | SX25: 0.03436194636 | SY25: 0.03436194636 | TA25: 0.8281230239 | TB25: 0 | TD25: 0.9952272262 | TE25: 0.933247256 | TF25: 0.933247256 | TG25: 1 | TH25: 0.933247256 | TI25: 0.8278892508 | TK25: 0.004772773766 | TL25: 0.9999151218 | TM25: 0.9999151218 | TN25: 1 | TO25: 0.9999151218 | TP25: 0.8799342696 | TR25: 0.995508251 | TS25: 0.004491748964 | TU25: 660.4085948 | TV25: -132.8739849 | TZ25: =TZ24+1 -> 2 | UA25: 2 | UB25: 5528.438797 | UC25: 0.92 | UD25: 0.9999125452 | UE25: 1 | UF25: 1 | UG25: 0.9199259778 | UH25: 9.168950011 | UI25: 9.96705195
B26: TRUE | C26: Prendre en compte la Courabilité ► | F26: =IF(ME_Input_Courabilité,"Oui","Non") -> Oui | L26: 17 | M26: 0.8333543634 | O26: -26 | P26: -26 | Q26: 1.6193616 | V26: 5 | W26: RDC - Collada Ferreroles | AB26: 2532 | AC26: 1 | AD26: FALSE | AE26: FALSE | AF26: FALSE | AG26: FALSE | AH26: FALSE | AI26: FALSE | AL26: 16313.02375 | AM26: 2056.598718 | AN26: -805.6119555 | AO26: 2513.102244 | AP26: 7.73990581 | AQ26: 0.01352892349 | AR26: 0.1618431753 | AS26: 0.1618431753 | AT26: 2012-07-06T11:53:03.250 | AU26: 2012-07-06T11:53:03.250 | AY26: FALSE | AZ26: FALSE | BI26: 16313.02375 | BJ26: 2056.598718 | BK26: -805.6119555 | BL26: 4960.486741 | BM26: 6520.091912 | BN26: 0.001 | BO26: 0.001 | BP26: 11352.53601 | BQ26: 26312.10643 | BS26: 1751.050458 | BT26: 108.5091832 | BU26: -124.3190117 | BV26: 628.3147809 | BW26: 810.3983347 | BX26: 0 | BY26: 0 | BZ26: 1122.735677 | CA26: 1702.703909 | CC26: 2513.102244 | CE26: 0.3224693053 | CF26: 0 | CG26: 0.6775306947 | CI26: 0.88 | CK26: 2495.38744 | CL26: 2619.706452 | CM26: 2561.528892 | CN26: 2561.528892 | CO26: 1 | CP26: 0.8942318219 | CQ26: 2559.853226 | CR26: 0.9628973885 | CS26: 0.9971183743 | CU26: 0.9250102783 | CV26: 1 | CW26: 0.9250102783 | CX26: 0.8214006376 | CZ26: 42,606427 | DA26: 1,569241 | DH26: 1 | DI26: 1 | DJ26: 16 | DL26: 0.09159514737 | DM26: 0.09159514737 | DN26: 0.09159514737 | DO26: 0.09159514737 | DP26: 15.33841158 | DQ26: 15.33841158 | DR26: 8.6 | DS26: 12.59898105 | DT26: 0.008311195411 | DU26: 0.09990634278 | DV26: 0.09990634278 | DX26: 1 | DY26: 1 | DZ26: 16 | EB26: 0.09228655513 | EC26: 0.09228655513 | ED26: 0.09644215284 | EE26: 0.09644215284 | EF26: 15.30748969 | EG26: 15.30748969 | EH26: 8.6 | EI26: 12.57358179 | EJ26: 0.008327984436 | EK26: 0.1006145396 | EL26: 0.1006145396 | EN26: 1 | EO26: 2012-07-06T08:00:00 | EP26: 2012-07-06T10:12:53.558 | EQ26: 2012-07-06T10:24:53.096 | ER26: 2012-07-06T10:24:53.096 | ES26: 0 | ET26: 0.008327984433 | EU26: 0.4297838807 | EV26: 0.2423060586 | EW26: 0.2662202086 | EX26: 0.8985091561 | EY26: 0.9224233061 | EZ26: Jour | FA26: 0 | FB26: 1 | FC26: 0.8214006376 | FE26: 1 | FF26: 1 | FG26: 16 | FI26: 0.09229189864 | FJ26: 0.09229189864 | FK26: 0.09645589086 | FL26: 0.09645589086 | FM26: 15.30740259 | FN26: 15.30740259 | FO26: 8.6 | FP26: 12.57351025 | FQ26: 0.008328031825 | FR26: 0.1006199305 | FS26: 0.1006199305 | FW26: 1 | FX26: 1 | FY26: 9.79227777 | GA26: 0.1509327772 | GB26: 0.1509327772 | GC26: 0.1509327772 | GD26: 0.1509327772 | GE26: 9.170917623 | GF26: 9.170917623 | GG26: 8.6 | GH26: 7.532997582 | GI26: 0.01390052132 | GJ26: 0.1648332985 | GK26: 0.1648332985 | GM26: 1 | GN26: 1 | GO26: 9.79227777 | GQ26: 0.1527375321 | GR26: 0.1527375321 | GS26: 0.1596877927 | GT26: 0.1596877927 | GU26: 9.141641738 | GV26: 9.141641738 | GW26: 8.6 | GX26: 7.508950352 | GY26: 0.0139450374 | GZ26: 0.1666825695 | HA26: 0.1666825695 | HC26: 1 | HD26: 2012-07-06T08:00:00 | HE26: 2012-07-06T11:39:56.523 | HF26: 2012-07-06T12:00:01.374 | HG26: 2012-07-06T12:00:01.374 | HH26: 0 | HI26: 0.0139450374 | HJ26: 0.4930433841 | HK26: 0.2423060586 | HL26: 0.2662202086 | HM26: 0.8985091561 | HN26: 0.9224233061 | HO26: Jour | HP26: 0 | HQ26: 1 | HR26: 0.8214006376 | HT26: 1 | HU26: 1 | HV26: 9.79227777 | HX26: 0.1527594576 | HY26: 0.1527594576 | HZ26: 0.1597319763 | IA26: 0.1597319763 | IB26: 9.14149563 | IC26: 9.14149563 | ID26: 8.6 | IE26: 7.508830339 | IF26: 0.01394526028 | IG26: 0.1667047179 | IH26: 0.1667047179 | IL26: 1 | IM26: 1 | IN26: 10.09183092 | IP26: 0.1463603722 | IQ26: 0.1463603722 | IR26: 0.1463603722 | IS26: 0.1463603722 | IT26: 9.467487801 | IU26: 9.467487801 | IV26: 8.6 | IW26: 7.776600516 | IX26: 0.01346508584 | IY26: 0.159825458 | IZ26: 0.159825458 | JB26: 1 | JC26: 1 | JD26: 10.09183092 | JF26: 0.1480626694 | JG26: 0.1480626694 | JH26: 0.1547952123 | JI26: 0.1547952123 | JJ26: 9.438069832 | JK26: 9.438069832 | JL26: 8.6 | JM26: 7.752436577 | JN26: 0.01350705581 | JO26: 0.1615697252 | JP26: 0.1615697252 | JR26: 1 | JS26: 2012-07-06T08:00:00 | JT26: 2012-07-06T11:33:12.615 | JU26: 2012-07-06T11:52:39.624 | JV26: 2012-07-06T11:52:39.624 | JW26: 0 | JX26: 0.01350705581 | JY26: 0.4881495307 | JZ26: 0.2423060586 | KA26: 0.2662202086 | KB26: 0.8985091561 | KC26: 0.9224233061 | KD26: Jour | KE26: 0 | KF26: 1 | KG26: 0.8214006376 | KI26: 1 | KJ26: 1 | KK26: 10.09183092 | KM26: 0.1480827972 | KN26: 0.1480827972 | KO26: 0.1548363251 | KP26: 0.1548363251 | KQ26: 9.437927975 | KR26: 9.437927975 | KS26: 8.6 | KT26: 7.752320056 | KU26: 0.01350725882 | KV26: 0.161590056 | KW26: 0.161590056 | LA26: 1 | LB26: 1 | LC26: 10.0757486 | LE26: 0.1465988167 | LF26: 0.1465988167 | LG26: 0.1465988167 | LH26: 0.1465988167 | LI26: 9.45156151 | LJ26: 9.45156151 | LK26: 8.6 | LL26: 7.76351865 | LM26: 0.01348777509 | LN26: 0.1600865917 | LO26: 0.1600865917 | LQ26: 1 | LR26: 1 | LS26: 10.0757486 | LU26: 0.1483063911 | LV26: 0.1483063911 | LW26: 0.1550502786 | LX26: 0.1550502786 | LY26: 9.422150896 | LZ26: 9.422150896 | MA26: 8.6 | MB26: 7.739360754 | MC26: 0.01352987628 | MD26: 0.1618362674 | ME26: 0.1618362674 | MG26: 1 | MH26: 2012-07-06T08:00:00 | MI26: 2012-07-06T11:33:33.672 | MJ26: 2012-07-06T11:53:02.654 | MK26: 2012-07-06T11:53:02.654 | ML26: 0 | MM26: 0.01352987628 | MN26: 0.4884046626 | MO26: 0.2423060586 | MP26: 0.2662202086 | MQ26: 0.8985091561 | MR26: 0.9224233061 | MS26: Jour | MT26: 0 | MU26: 1 | MV26: 0.8214006376 | MX26: 1 | MY26: 1 | MZ26: 10.0757486 | NB26: 0.1483266103 | NC26: 0.1483266103 | ND26: 0.1550915484 | NE26: 0.1550915484 | NF26: 9.422008816 | NG26: 9.422008816 | NH26: 8.6 | NI26: 7.739244049 | NJ26: 0.01353008031 | NK26: 0.1618566906 | NL26: 0.1618566906 | NP26: 1 | NQ26: 1 | NR26: 10.0766085 | NT26: 0.1465860476 | NU26: 0.1465860476 | NV26: 0.1465860476 | NW26: 0.1465860476 | NX26: 9.452413063 | NY26: 9.452413063 | NZ26: 8.6 | OA26: 7.764218116 | OB26: 0.01348656 | OC26: 0.1600726076 | OD26: 0.1600726076 | OF26: 1 | OG26: 1 | OH26: 10.0766085 | OJ26: 0.1482933393 | OK26: 0.1482933393 | OL26: 0.1550366193 | OM26: 0.1550366193 | ON26: 9.423002055 | OO26: 9.423002055 | OP26: 8.6 | OQ26: 7.740059896 | OR26: 0.01352865416 | OS26: 0.1618219934 | OT26: 0.1618219934 | OV26: 1 | OW26: 2012-07-06T08:00:00 | OX26: 2012-07-06T11:33:32.545 | OY26: 2012-07-06T11:53:01.420 | OZ26: 2012-07-06T11:53:01.420 | PA26: 0 | PB26: 0.01352865416 | PC26: 0.4883909997 | PD26: 0.2423060586 | PE26: 0.2662202086 | PF26: 0.8985091561 | PG26: 0.9224233061 | PH26: Jour | PI26: 0 | PJ26: 1 | PK26: 0.8214006376 | PM26: 1 | PN26: 1 | PO26: 10.0766085 | PQ26: 0.1483135535 | PR26: 0.1483135535 | PS26: 0.1550778806 | PT26: 0.1550778806 | PU26: 9.422859987 | PV26: 9.422859987 | PW26: 8.6 | PX26: 7.739943201 | PY26: 0.01352885813 | PZ26: 0.1618424117 | QA26: 0.1618424117 | QE26: 1 | QF26: 1 | QG26: 10.07656251 | QI26: 0.1465867305 | QJ26: 0.1465867305 | QK26: 0.1465867305 | QL26: 0.1465867305 | QM26: 9.452367521 | QN26: 9.452367521 | QO26: 8.6 | QP26: 7.764180708 | QQ26: 0.01348662498 | QR26: 0.1600733554 | QS26: 0.1600733554 | QU26: 1 | QV26: 1 | QW26: 10.07656251 | QY26: 0.1482940372 | QZ26: 0.1482940372 | RA26: 0.1550373497 | RB26: 0.1550373497 | RC26: 9.422956534 | RD26: 9.422956534 | RE26: 8.6 | RF26: 7.740022505 | RG26: 0.01352871951 | RH26: 0.1618227567 | RI26: 0.1618227567 | RK26: 1 | RL26: 2012-07-06T08:00:00 | RM26: 2012-07-06T11:33:32.605 | RN26: 2012-07-06T11:53:01.486 | RO26: 2012-07-06T11:53:01.486 | RP26: 0 | RQ26: 0.01352871952 | RR26: 0.4883917303 | RS26: 0.2423060586 | RT26: 0.2662202086 | RU26: 0.8985091561 | RV26: 0.9224233061 | RW26: Jour | RX26: 0 | RY26: 1 | RZ26: 0.8214006376 | SB26: 1 | SC26: 1 | SD26: 10.07656251 | SF26: 0.1483142518 | SG26: 0.1483142518 | SH26: 0.1550786115 | SI26: 0.1550786115 | SJ26: 9.422814465 | SK26: 9.422814465 | SL26: 8.6 | SM26: 7.73990581 | SN26: 0.01352892349 | SO26: 0.1618431753 | SP26: 0.1618431753 | ST26: 9.422814465 | SU26: 0.01111266638 | SV26: 0.01262802997 | SW26: 0.01201355989 | SX26: 0.01111266638 | SY26: 0.01111266638 | TA26: 0.8214006376 | TB26: 0 | TD26: 0.6775306947 | TE26: 0.8942318219 | TF26: 0.8942318219 | TG26: 1 | TH26: 0.8942318219 | TI26: 0.7970401818 | TK26: 0.3224693053 | TL26: 0.9971183743 | TM26: 0.9971183743 | TN26: 1 | TO26: 0.9971183743 | TP26: 0.8777676971 | TR26: 0.6982385045 | TS26: 0.3017614955 | TU26: 478.6171072 | TV26: -1268.817744 | TZ26: =TZ25 -> 2 | UA26: =UA25+1 -> 3 | UB26: 5528.438797 | UC26: 0.88 | UD26: 0.9891932272 | UE26: 1 | UF26: 1 | UG26: 0.8716203684 | UH26: 8.477641952 | UI26: 9.726300876
L27: 18 | M27: 0.8300189271 | O27: -24 | P27: -24 | Q27: 1.4973376 | V27: 6 | W27: RDC - Refuge Sorteny - Aller | AB27: 1962 | AC27: 1 | AD27: TRUE | AE27: TRUE | AF27: FALSE | AG27: FALSE | AH27: FALSE | AI27: FALSE | AJ27: 0.006944444444 | AL27: 19264.86729 | AM27: 2058.580826 | AN27: -1376.314933 | AO27: 4217.744921 | AP27: 7.478067139 | AQ27: 0.02350064106 | AR27: 0.1853438163 | AS27: 0.1922882608 | AT27: 2012-07-06T12:26:53.706 | AU27: 2012-07-06T12:36:53.706 | AY27: FALSE | AZ27: FALSE | BI27: 19264.86729 | BJ27: 2058.580826 | BK27: -1376.314933 | BL27: 7823.784573 | BM27: 10642.63443 | BN27: 0.001 | BO27: 0.001 | BP27: 11441.08172 | BQ27: 26407.30883 | BS27: 2951.843542 | BT27: 1.98210841 | BU27: -570.7029779 | BV27: 2863.297832 | BW27: 4122.542521 | BX27: 0 | BY27: 0 | BZ27: 88.54570951 | CA27: 95.20240014 | CC27: 4217.744921 | CE27: 0.9774281276 | CF27: 0 | CG27: 0.02257187239 | CI27: 0.8 | CK27: 1962.451747 | CL27: 2531.315765 | CM27: 2233.357576 | CN27: 2233.357576 | CO27: 1 | CP27: 0.9303306667 | CQ27: 2515.657882 | CR27: 0.05504964945 | CS27: 0.999956902 | CU27: 0.9982705376 | CV27: 1 | CW27: 0.9982705376 | CX27: 0.7988927611 | CZ27: 42,622442 | DA27: 1,564311 | DH27: 1 | DI27: 1 | DJ27: 16 | DL27: 0.09990634278 | DM27: 0.09990634278 | DN27: 0.09990634278 | DO27: 0.09990634278 | DP27: 15.28562068 | DQ27: 15.28562068 | DR27: 8.6 | DS27: 12.21157171 | DT27: 0.01439121645 | DU27: 0.1142975592 | DV27: 0.1142975592 | DX27: 1 | DY27: 1 | DZ27: 16 | EB27: 0.1006145396 | EC27: 0.1006145396 | ED27: 0.1078101478 | EE27: 0.1078101478 | EF27: 15.23643626 | EG27: 15.23643626 | EH27: 8.6 | EI27: 12.17227863 | EJ27: 0.01443767243 | EK27: 0.115052212 | EL27: 0.115052212 | EN27: 1 | EO27: 2012-07-06T08:00:00 | EP27: 2012-07-06T10:24:53.096 | EQ27: 2012-07-06T10:45:40.511 | ER27: 2012-07-06T10:55:40.511 | ES27: 0 | ET27: 0.01443767243 | EU27: 0.4411667091 | EV27: 0.2422718402 | EW27: 0.2661956212 | EX27: 0.8985611324 | EY27: 0.9224849133 | EZ27: Jour | FA27: 0 | FB27: 1 | FC27: 0.7988927611 | FE27: 1 | FF27: 1 | FG27: 16 | FI27: 0.1006199305 | FJ27: 0.1006199305 | FK27: 0.1078387667 | FL27: 0.1078387667 | FM27: 15.23625995 | FN27: 15.23625995 | FO27: 8.6 | FP27: 12.17213778 | FQ27: 0.0144378395 | FR27: 0.11505777 | FS27: 0.11505777 | FW27: 1 | FX27: 1 | FY27: 9.79227777 | GA27: 0.1648332985 | GB27: 0.1648332985 | GC27: 0.1648332985 | GD27: 0.1648332985 | GE27: 9.124735665 | GF27: 9.124735665 | GG27: 8.6 | GH27: 7.28968527 | GI27: 0.02410795051 | GJ27: 0.188941249 | GK27: 0.188941249 | GM27: 1 | GN27: 1 | GO27: 9.79227777 | GQ27: 0.1666825695 | GR27: 0.1666825695 | GS27: 0.1787365447 | GT27: 0.1787365447 | GU27: 9.0801402 | GV27: 9.0801402 | GW27: 8.6 | GX27: 7.254058275 | GY27: 0.02422635234 | GZ27: 0.1909089218 | HA27: 0.1909089218 | HC27: 1 | HD27: 2012-07-06T08:00:00 | HE27: 2012-07-06T12:00:01.374 | HF27: 2012-07-06T12:34:54.531 | HG27: 2012-07-06T12:44:54.531 | HH27: 0 | HI27: 0.02422635235 | HJ27: 0.512129079 | HK27: 0.2422718402 | HL27: 0.2661956212 | HM27: 0.8985611324 | HN27: 0.9224849133 | HO27: Jour | HP27: 0 | HQ27: 1 | HR27: 0.7988927611 | HT27: 1 | HU27: 1 | HV27: 9.79227777 | HX27: 0.1667047179 | HY27: 0.1667047179 | HZ27: 0.1788178941 | IA27: 0.1788178941 | IB27: 9.079883853 | IC27: 9.079883853 | ID27: 8.6 | IE27: 7.253853482 | IF27: 0.02422703631 | IG27: 0.1909317542 | IH27: 0.1909317542 | IL27: 1 | IM27: 1 | IN27: 10.09183092 | IP27: 0.159825458 | IQ27: 0.159825458 | IR27: 0.159825458 | IS27: 0.159825458 | IT27: 9.420822331 | IU27: 9.420822331 | IV27: 8.6 | IW27: 7.526226763 | IX27: 0.02335026265 | IY27: 0.1831757206 | IZ27: 0.1831757206 | JB27: 1 | JC27: 1 | JD27: 10.09183092 | JF27: 0.1615697252 | JG27: 0.1615697252 | JH27: 0.1732448565 | JI27: 0.1732448565 | JJ27: 9.375869459 | JK27: 9.375869459 | JL27: 8.6 | JM27: 7.49031424 | JN27: 0.02346221615 | JO27: 0.1850319414 | JP27: 0.1850319414 | JR27: 1 | JS27: 2012-07-06T08:00:00 | JT27: 2012-07-06T11:52:39.624 | JU27: 2012-07-06T12:26:26.760 | JV27: 2012-07-06T12:36:26.760 | JW27: 0 | JX27: 0.02346221614 | JY27: 0.5066341666 | JZ27: 0.2422718402 | KA27: 0.2661956212 | KB27: 0.8985611324 | KC27: 0.9224849133 | KD27: Jour | KE27: 0 | KF27: 1 | KG27: 0.7988927611 | KI27: 1 | KJ27: 1 | KK27: 10.09183092 | KM27: 0.161590056 | KN27: 0.161590056 | KO27: 0.1733211641 | KP27: 0.1733211641 | KQ27: 9.375618178 | KR27: 9.375618178 | KS27: 8.6 | KT27: 7.490113493 | KU27: 0.02346284497 | KV27: 0.185052901 | KW27: 0.185052901 | LA27: 1 | LB27: 1 | LC27: 10.0757486 | LE27: 0.1600865917 | LF27: 0.1600865917 | LG27: 0.1600865917 | LH27: 0.1600865917 | LI27: 9.404921358 | LJ27: 9.404921358 | LK27: 8.6 | LL27: 7.513523592 | LM27: 0.02338974112 | LN27: 0.1834763329 | LO27: 0.1834763329 | LQ27: 1 | LR27: 1 | LS27: 10.0757486 | LU27: 0.1618362674 | LV27: 0.1618362674 | LW27: 0.1735311379 | LX27: 0.1735311379 | LY27: 9.35998712 | LZ27: 9.35998712 | MA27: 8.6 | MB27: 7.477625954 | MC27: 0.02350202762 | MD27: 0.185338295 | ME27: 0.185338295 | MG27: 1 | MH27: 2012-07-06T08:00:00 | MI27: 2012-07-06T11:53:02.654 | MJ27: 2012-07-06T12:26:53.229 | MK27: 2012-07-06T12:36:53.229 | ML27: 0 | MM27: 0.02350202762 | MN27: 0.5069206145 | MO27: 0.2422718402 | MP27: 0.2661956212 | MQ27: 0.8985611324 | MR27: 0.9224849133 | MS27: Jour | MT27: 0 | MU27: 1 | MV27: 0.7988927611 | MX27: 1 | MY27: 1 | MZ27: 10.0757486 | NB27: 0.1618566906 | NC27: 0.1618566906 | ND27: 0.1736077044 | NE27: 0.1736077044 | NF27: 9.359735569 | NG27: 9.359735569 | NH27: 8.6 | NI27: 7.477424992 | NJ27: 0.02350265926 | NK27: 0.1853593498 | NL27: 0.1853593498 | NP27: 1 | NQ27: 1 | NR27: 10.0766085 | NT27: 0.1600726076 | NU27: 0.1600726076 | NV27: 0.1600726076 | NW27: 0.1600726076 | NX27: 9.405771555 | NY27: 9.405771555 | NZ27: 8.6 | OA27: 7.514202808 | OB27: 0.0233876269 | OC27: 0.1834602345 | OD27: 0.1834602345 | OF27: 1 | OG27: 1 | OH27: 10.0766085 | OJ27: 0.1618219934 | OK27: 0.1618219934 | OL27: 0.1735158069 | OM27: 0.1735158069 | ON27: 9.360836319 | OO27: 9.360836319 | OP27: 8.6 | OQ27: 7.478304373 | OR27: 0.02349989556 | OS27: 0.185321889 | OT27: 0.185321889 | OV27: 1 | OW27: 2012-07-06T08:00:00 | OX27: 2012-07-06T11:53:01.420 | OY27: 2012-07-06T12:26:51.811 | OZ27: 2012-07-06T12:36:51.811 | PA27: 0 | PB27: 0.02349989556 | PC27: 0.5069052745 | PD27: 0.2422718402 | PE27: 0.2661956212 | PF27: 0.8985611324 | PG27: 0.9224849133 | PH27: Jour | PI27: 0 | PJ27: 1 | PK27: 0.7988927611 | PM27: 1 | PN27: 1 | PO27: 10.0766085 | PQ27: 0.1618424117 | PR27: 0.1618424117 | PS27: 0.1735923595 | PT27: 0.1735923595 | PU27: 9.360584783 | PV27: 9.360584783 | PW27: 8.6 | PX27: 7.478103423 | PY27: 0.02350052704 | PZ27: 0.1853429387 | QA27: 0.1853429387 | QE27: 1 | QF27: 1 | QG27: 10.07656251 | QI27: 0.1600733554 | QJ27: 0.1600733554 | QK27: 0.1600733554 | QL27: 0.1600733554 | QM27: 9.405726086 | QN27: 9.405726086 | QO27: 8.6 | QP27: 7.514166483 | QQ27: 0.02338773996 | QR27: 0.1834610954 | QS27: 0.1834610954 | QU27: 1 | QV27: 1 | QW27: 10.07656251 | QY27: 0.1618227567 | QZ27: 0.1618227567 | RA27: 0.1735166267 | RB27: 0.1735166267 | RC27: 9.360790903 | RD27: 9.360790903 | RE27: 8.6 | RF27: 7.47826809 | RG27: 0.02350000957 | RH27: 0.1853227663 | RI27: 0.1853227663 | RK27: 1 | RL27: 2012-07-06T08:00:00 | RM27: 2012-07-06T11:53:01.486 | RN27: 2012-07-06T12:26:51.887 | RO27: 2012-07-06T12:36:51.887 | RP27: 0 | RQ27: 0.02350000957 | RR27: 0.5069060949 | RS27: 0.2422718402 | RT27: 0.2661956212 | RU27: 0.8985611324 | RV27: 0.9224849133 | RW27: Jour | RX27: 0 | RY27: 1 | RZ27: 0.7988927611 | SB27: 1 | SC27: 1 | SD27: 10.07656251 | SF27: 0.1618431753 | SG27: 0.1618431753 | SH27: 0.17359318 | SI27: 0.17359318 | SJ27: 9.360539366 | SK27: 9.360539366 | SL27: 8.6 | SM27: 7.478067139 | SN27: 0.02350064106 | SO27: 0.1853438163 | SP27: 0.1853438163 | ST27: 9.360539366 | SU27: 0.01877449203 | SV27: 0.02346811503 | SW27: 0.01880701806 | SX27: 0.01877449203 | SY27: 0.01877449203 | TA27: 0.7988927611 | TB27: 0 | TD27: 0.02257187239 | TE27: 0.9303306667 | TF27: 0.9303306667 | TG27: 1 | TH27: 0.9303306667 | TI27: 0.754781559 | TK27: 0.9774281276 | TL27: 0.999956902 | TM27: 0.999956902 | TN27: 1 | TO27: 0.999956902 | TP27: 0.799972417 | TR27: 0.02389102548 | TS27: 0.9761089745 | TU27: 147.0962705 | TV27: -1036.623099 | TZ27: =TZ26+1 -> 3 | UA27: 3 | UB27: 11637.8227 | UC27: 0.88 | UD27: 0.9891932272 | UE27: 1 | UF27: 1 | UG27: 0.8716203684 | UH27: 8.477641952 | UI27: 9.726300876
C28: ▼ Perte de Vitesse due à l'Altitude ▼ | L28: 19 | M28: 0.8270170344 | O28: -22 | P28: -22 | Q28: 1.3829936 | V28: 7 | W28: RDC - Rialp | AB28: 1980 | AC28: 1 | AD28: FALSE | AE28: FALSE | AF28: FALSE | AG28: FALSE | AH28: FALSE | AI28: FALSE | AL28: 21964.97481 | AM28: 2276.364282 | AN28: -1576.472013 | AO28: 4598.043249 | AP28: 7.970504726 | AQ28: 0.02403676329 | AR28: 0.2163250241 | AS28: 0.2163250241 | AT28: 2012-07-06T13:11:30.482 | AU28: 2012-07-06T13:11:30.482 | AY28: FALSE | AZ28: FALSE | BI28: 21964.97481 | BJ28: 2276.364282 | BK28: -1576.472013 | BL28: 8506.236217 | BM28: 11968.09325 | BN28: 0.001 | BO28: 0.001 | BP28: 13458.7376 | BQ28: 29679.89327 | BS28: 2700.10752 | BT28: 217.7834555 | BU28: -200.15708 | BV28: 682.4516439 | BW28: 1325.458813 | BX28: 0 | BY28: 0 | BZ28: 2017.655876 | CA28: 3272.584436 | CC28: 4598.043249 | CE28: 0.2882658428 | CF28: 0 | CG28: 0.7117341572 | CI28: 0.88 | CK28: 1857.20228 | CL28: 2056.0538 | CM28: 1950.305039 | CN28: 1950.305039 | CO28: 1 | CP28: 0.9614664457 | CQ28: 2500 | CR28: 0 | CS28: 1 | CU28: 0.9722662897 | CV28: 1 | CW28: 0.9722662897 | CX28: 0.8584512997 | CZ28: 42,640373 | DA28: 1,561214 | DH28: 1 | DI28: 1 | DJ28: 16 | DL28: 0.1142975592 | DM28: 0.1142975592 | DN28: 0.1142975592 | DO28: 0.1142975592 | DP28: 15.19679401 | DQ28: 15.19679401 | DR28: 8.6 | DS28: 13.04570757 | DT28: 0.01468568373 | DU28: 0.128983243 | DV28: 0.128983243 | DX28: 1 | DY28: 1 | DZ28: 16 | EB28: 0.115052212 | EC28: 0.115052212 | ED28: 0.1223950539 | EE28: 0.1223950539 | EF28: 15.14821688 | EG28: 15.14821688 | EH28: 8.6 | EI28: 13.00400647 | EJ28: 0.01473277761 | EK28: 0.1297849896 | EL28: 0.1297849896 | EN28: 1 | EO28: 2012-07-06T08:00:00 | EP28: 2012-07-06T10:55:40.511 | EQ28: 2012-07-06T11:16:53.423 | ER28: 2012-07-06T11:16:53.423 | ES28: 0 | ET28: 0.01473277761 | EU28: 0.4626963786 | EV28: 0.2422267552 | EW28: 0.2661613336 | EX28: 0.8986126255 | EY28: 0.922547204 | EZ28: Jour | FA28: 0 | FB28: 1 | FC28: 0.8584512997 | FE28: 1 | FF28: 1 | FG28: 16 | FI28: 0.11505777 | FJ28: 0.11505777 | FK28: 0.1224241588 | FL28: 0.1224241588 | FM28: 15.14804407 | FN28: 15.14804407 | FO28: 8.6 | FP28: 13.00385812 | FQ28: 0.01473294569 | FR28: 0.1297907157 | FS28: 0.1297907157 | FW28: 1 | FX28: 1 | FY28: 9.79227777 | GA28: 0.188941249 | GB28: 0.188941249 | GC28: 0.188941249 | GD28: 0.188941249 | GE28: 9.048391411 | GF28: 9.048391411 | GG28: 8.6 | GH28: 7.767603367 | GI28: 0.02466463931 | GJ28: 0.2136058883 | GK28: 0.2136058883 | GM28: 1 | GN28: 1 | GO28: 9.79227777 | GQ28: 0.1909089218 | GR28: 0.1909089218 | GS28: 0.2032412415 | GT28: 0.2032412415 | GU28: 9.005257496 | GV28: 9.005257496 | GW28: 8.6 | GX28: 7.730575001 | GY28: 0.02478277946 | GZ28: 0.2156917013 | HA28: 0.2156917013 | HC28: 1 | HD28: 2012-07-06T08:00:00 | HE28: 2012-07-06T12:44:54.531 | HF28: 2012-07-06T13:20:35.763 | HG28: 2012-07-06T13:20:35.763 | HH28: 0 | HI28: 0.02478277946 | HJ28: 0.5435780893 | HK28: 0.2422267552 | HL28: 0.2661613336 | HM28: 0.8986126255 | HN28: 0.922547204 | HO28: Jour | HP28: 0 | HQ28: 1 | HR28: 0.8584512997 | HT28: 1 | HU28: 1 | HV28: 9.79227777 | HX28: 0.1909317542 | HY28: 0.1909317542 | HZ28: 0.2033231439 | IA28: 0.2033231439 | IB28: 9.005014913 | IC28: 9.005014913 | ID28: 8.6 | IE28: 7.730366756 | IF28: 0.02478344707 | IG28: 0.2157152013 | IH28: 0.2157152013 | IL28: 1 | IM28: 1 | IN28: 10.09183092 | IP28: 0.1831757206 | IQ28: 0.1831757206 | IR28: 0.1831757206 | IS28: 0.1831757206 | IT28: 9.343571089 | IU28: 9.343571089 | IV28: 8.6 | IW28: 8.021000745 | IX28: 0.02388544041 | IY28: 0.2070611611 | IZ28: 0.2070611611 | JB28: 1 | JC28: 1 | JD28: 10.09183092 | JF28: 0.1850319414 | JG28: 0.1850319414 | JH28: 0.1969746616 | JI28: 0.1969746616 | JJ28: 9.300017882 | JK28: 9.300017882 | JL28: 8.6 | JM28: 7.983612438 | JN28: 0.02399729907 | JO28: 0.2090292404 | JP28: 0.2090292404 | JR28: 1 | JS28: 2012-07-06T08:00:00 | JT28: 2012-07-06T12:36:26.760 | JU28: 2012-07-06T13:11:00.126 | JV28: 2012-07-06T13:11:00.126 | JW28: 0 | JX28: 0.02399729907 | JY28: 0.5373083687 | JZ28: 0.2422267552 | KA28: 0.2661613336 | KB28: 0.8986126255 | KC28: 0.922547204 | KD28: Jour | KE28: 0 | KF28: 1 | KG28: 0.8584512997 | KI28: 1 | KJ28: 1 | KK28: 10.09183092 | KM28: 0.185052901 | KN28: 0.185052901 | KO28: 0.1970515505 | KP28: 0.1970515505 | KQ28: 9.299779432 | KR28: 9.299779432 | KS28: 8.6 | KT28: 7.98340774 | KU28: 0.02399791437 | KV28: 0.2090508153 | KW28: 0.2090508153 | LA28: 1 | LB28: 1 | LC28: 10.0757486 | LE28: 0.1834763329 | LF28: 0.1834763329 | LG28: 0.1834763329 | LH28: 0.1834763329 | LI28: 9.327717637 | LJ28: 9.327717637 | LK28: 8.6 | LL28: 8.007391329 | LM28: 0.02392603627 | LN28: 0.2074023691 | LO28: 0.2074023691 | LQ28: 1 | LR28: 1 | LS28: 10.0757486 | LU28: 0.185338295 | LV28: 0.185338295 | LW28: 0.1973013131 | LX28: 0.1973013131 | LY28: 9.284186308 | LZ28: 9.284186308 | MA28: 8.6 | MB28: 7.970021803 | MC28: 0.02403821973 | MD28: 0.2093765147 | ME28: 0.2093765147 | MG28: 1 | MH28: 2012-07-06T08:00:00 | MI28: 2012-07-06T12:36:53.229 | MJ28: 2012-07-06T13:11:30.131 | MK28: 2012-07-06T13:11:30.131 | ML28: 0 | MM28: 0.02403821973 | MN28: 0.5376351826 | MO28: 0.2422267552 | MP28: 0.2661613336 | MQ28: 0.8986126255 | MR28: 0.922547204 | MS28: Jour | MT28: 0 | MU28: 1 | MV28: 0.8584512997 | MX28: 1 | MY28: 1 | MZ28: 10.0757486 | NB28: 0.1853593498 | NC28: 0.1853593498 | ND28: 0.1973784597 | NE28: 0.1973784597 | NF28: 9.283947638 | NG28: 9.283947638 | NH28: 8.6 | NI28: 7.969816916 | NJ28: 0.0240388377 | NK28: 0.2093981875 | NL28: 0.2093981875 | NP28: 1 | NQ28: 1 | NR28: 10.0766085 | NT28: 0.1834602345 | NU28: 0.1834602345 | NV28: 0.1834602345 | NW28: 0.1834602345 | NX28: 9.32856529 | NY28: 9.32856529 | NZ28: 8.6 | OA28: 8.008118998 | OB28: 0.0239238622 | OC28: 0.2073840967 | OD28: 0.2073840967 | OF28: 1 | OG28: 1 | OH28: 10.0766085 | OJ28: 0.185321889 | OK28: 0.185321889 | OL28: 0.1972838201 | OM28: 0.1972838201 | ON28: 9.285032789 | OO28: 9.285032789 | OP28: 8.6 | OQ28: 7.970748466 | OR28: 0.02403602826 | OS28: 0.2093579172 | OT28: 0.2093579172 | OV28: 1 | OW28: 2012-07-06T08:00:00 | OX28: 2012-07-06T12:36:51.811 | OY28: 2012-07-06T13:11:28.524 | OZ28: 2012-07-06T13:11:28.524 | PA28: 0 | PB28: 0.02403602826 | PC28: 0.5376176809 | PD28: 0.2422267552 | PE28: 0.2661613336 | PF28: 0.8986126255 | PG28: 0.922547204 | PH28: Jour | PI28: 0 | PJ28: 1 | PK28: 0.8584512997 | PM28: 1 | PN28: 1 | PO28: 10.0766085 | PQ28: 0.1853429387 | PR28: 0.1853429387 | PS28: 0.1973609528 | PT28: 0.1973609528 | PU28: 9.284794131 | PV28: 9.284794131 | PW28: 8.6 | PX28: 7.970543589 | PY28: 0.02403664609 | PZ28: 0.2093795848 | QA28: 0.2093795848 | QE28: 1 | QF28: 1 | QG28: 10.07656251 | QI28: 0.1834610954 | QJ28: 0.1834610954 | QK28: 0.1834610954 | QL28: 0.1834610954 | QM28: 9.328519957 | QN28: 9.328519957 | QO28: 8.6 | QP28: 8.008080081 | QQ28: 0.02392397846 | QR28: 0.2073850739 | QS28: 0.2073850739 | QU28: 1 | QV28: 1 | QW28: 10.07656251 | QY28: 0.1853227663 | QZ28: 0.1853227663 | RA28: 0.1972847555 | RB28: 0.1972847555 | RC28: 9.284987519 | RD28: 9.284987519 | RE28: 8.6 | RF28: 7.970709603 | RG28: 0.02403614545 | RH28: 0.2093589118 | RI28: 0.2093589118 | RK28: 1 | RL28: 2012-07-06T08:00:00 | RM28: 2012-07-06T12:36:51.887 | RN28: 2012-07-06T13:11:28.610 | RO28: 2012-07-06T13:11:28.610 | RP28: 0 | RQ28: 0.02403614545 | RR28: 0.5376186168 | RS28: 0.2422267552 | RT28: 0.2661613336 | RU28: 0.8986126255 | RV28: 0.922547204 | RW28: Jour | RX28: 0 | RY28: 1 | RZ28: 0.8584512997 | SB28: 1 | SC28: 1 | SD28: 10.07656251 | SF28: 0.1853438163 | SG28: 0.1853438163 | SH28: 0.1973618891 | SI28: 0.1973618891 | SJ28: 9.284748859 | SK28: 9.284748859 | SL28: 8.6 | SM28: 7.970504726 | SN28: 0.02403676329 | SO28: 0.2093805796 | SP28: 0.2093805796 | ST28: 9.284748859 | SU28: 0.02063439068 | SV28: 0.02344817123 | SW28: 0.02122298274 | SX28: 0.02063439068 | SY28: 0.02063439068 | TA28: 0.8584512997 | TB28: 0 | TD28: 0.7117341572 | TE28: 0.9614664457 | TF28: 0.9614664457 | TG28: 1 | TH28: 0.9614664457 | TI28: 0.8500209918 | TK28: 0.2882658428 | TL28: 1 | TM28: 1 | TN28: 1 | TO28: 1 | TP28: 0.88 | TR28: 0.7187929688 | TS28: 0.2812070312 | TU28: 525.2110272 | TV28: -1233.836328 | TZ28: =TZ27 -> 3 | UA28: =UA27+1 -> 4 | UB28: 11637.8227 | UC28: 0.88 | UD28: 0.9335443263 | UE28: 1 | UF28: 1 | UG28: 0.8281230239 | UH28: 7.884486261 | UI28: 9.520911789
C29: Montée ► | D29: 0.11 | E29: par 1000 m au-delà de | G29: 1600 | L29: 20 | M29: 0.8243153309 | O29: -20 | P29: -20 | Q29: 1.278 | V29: 8 | W29: RDC - Portella Rialb | AB29: 2508 | AC29: 1 | AD29: FALSE | AE29: FALSE | AF29: FALSE | AG29: FALSE | AH29: FALSE | AI29: FALSE | AL29: 24824.34597 | AM29: 2803.984308 | AN29: -1580.206938 | AO29: 6615.095297 | AP29: 7.626484423 | AQ29: 0.03614102585 | AR29: 0.2524660499 | AS29: 0.2524660499 | AT29: 2012-07-06T14:03:33.067 | AU29: 2012-07-06T14:03:33.067 | AY29: FALSE | AZ29: FALSE | BI29: 24824.34597 | BJ29: 2803.984308 | BK29: -1580.206938 | BL29: 8633.317336 | BM29: 12088.33158 | BN29: 0.001 | BO29: 0.001 | BP29: 16191.02763 | BQ29: 36174.75023 | BS29: 2859.371159 | BT29: 527.6200264 | BU29: -3.734924214 | BV29: 127.0811193 | BW29: 120.238338 | BX29: 0 | BY29: 0 | BZ29: 2732.290039 | CA29: 6494.856959 | CC29: 6615.095297 | CE29: 0.01817635765 | CF29: 0 | CG29: 0.9818236424 | CI29: 0.88 | CK29: 1980.221271 | CL29: 2504.106373 | CM29: 2199.506035 | CN29: 2199.506035 | CO29: 1 | CP29: 0.9340543361 | CQ29: 2502.053186 | CR29: 0.007838308274 | CS29: 0.9999991953 | CU29: 0.935175273 | CV29: 1 | CW29: 0.935175273 | CX29: 0.8294061636 | CZ29: 42,640330 | DA29: 1,536466 | DH29: 1 | DI29: 1 | DJ29: 16 | DL29: 0.128983243 | DM29: 0.128983243 | DN29: 0.128983243 | DO29: 0.128983243 | DP29: 15.10942142 | DQ29: 15.10942142 | DR29: 8.6 | DS29: 12.53184726 | DT29: 0.02199428106 | DU29: 0.150977524 | DV29: 0.150977524 | DX29: 1 | DY29: 1 | DZ29: 16 | EB29: 0.1297849896 | EC29: 0.1297849896 | ED29: 0.1407821301 | EE29: 0.1407821301 | EF29: 15.04153689 | EG29: 15.04153689 | EH29: 8.6 | EI29: 12.47554341 | EJ29: 0.02209354428 | EK29: 0.1518785339 | EL29: 0.1518785339 | EN29: 1 | EO29: 2012-07-06T08:00:00 | EP29: 2012-07-06T11:16:53.423 | EQ29: 2012-07-06T11:48:42.305 | ER29: 2012-07-06T11:48:42.305 | ES29: 0 | ET29: 0.02209354428 | EU29: 0.4811095395 | EV29: 0.2422956284 | EW29: 0.2662301809 | EX29: 0.8986812671 | EY29: 0.9226158196 | EZ29: Jour | FA29: 0 | FB29: 1 | FC29: 0.8294061636 | FE29: 1 | FF29: 1 | FG29: 16 | FI29: 0.1297907157 | FJ29: 0.1297907157 | FK29: 0.1408374878 | FL29: 0.1408374878 | FM29: 15.04122314 | FN29: 15.04122314 | FO29: 8.6 | FP29: 12.47528318 | FQ29: 0.02209400514 | FR29: 0.1518847208 | FS29: 0.1518847208 | FW29: 1 | FX29: 1 | FY29: 9.79227777 | GA29: 0.2136058883 | GB29: 0.2136058883 | GC29: 0.2136058883 | GD29: 0.2136058883 | GE29: 8.974954662 | GF29: 8.974954662 | GG29: 8.6 | GH29: 7.443882715 | GI29: 0.03702758107 | GJ29: 0.2506334694 | GK29: 0.2506334694 | GM29: 1 | GN29: 1 | GO29: 9.79227777 | GQ29: 0.2156917013 | GR29: 0.2156917013 | GS29: 0.2342054918 | GT29: 0.2342054918 | GU29: 8.917035521 | GV29: 8.917035521 | GW29: 8.6 | GX29: 7.395844223 | GY29: 0.03726808764 | GZ29: 0.2529597889 | HA29: 0.2529597889 | HC29: 1 | HD29: 2012-07-06T08:00:00 | HE29: 2012-07-06T13:20:35.763 | HF29: 2012-07-06T14:14:15.726 | HG29: 2012-07-06T14:14:15.726 | HH29: 0 | HI29: 0.03726808765 | HJ29: 0.5746035229 | HK29: 0.2422956284 | HL29: 0.2662301809 | HM29: 0.8986812671 | HN29: 0.9226158196 | HO29: Jour | HP29: 0 | HQ29: 1 | HR29: 0.8294061636 | HT29: 1 | HU29: 1 | HV29: 9.79227777 | HX29: 0.2157152013 | HY29: 0.2157152013 | HZ29: 0.2343492451 | IA29: 0.2343492451 | IB29: 8.916641843 | IC29: 8.916641843 | ID29: 8.6 | IE29: 7.395517703 | IF29: 0.03726973307 | IG29: 0.2529849343 | IH29: 0.2529849343 | IL29: 1 | IM29: 1 | IN29: 10.09183092 | IP29: 0.2070611611 | IQ29: 0.2070611611 | IR29: 0.2070611611 | IS29: 0.2070611611 | IT29: 9.269129913 | IU29: 9.269129913 | IV29: 8.6 | IW29: 7.687873481 | IX29: 0.03585243323 | IY29: 0.2429135943 | IZ29: 0.2429135943 | JB29: 1 | JC29: 1 | JD29: 10.09183092 | JF29: 0.2090292404 | JG29: 0.2090292404 | JH29: 0.2269554571 | JI29: 0.2269554571 | JJ29: 9.210468932 | JK29: 9.210468932 | JL29: 8.6 | JM29: 7.639219702 | JN29: 0.03608077545 | JO29: 0.2451100159 | JP29: 0.2451100159 | JR29: 1 | JS29: 2012-07-06T08:00:00 | JT29: 2012-07-06T13:11:00.126 | JU29: 2012-07-06T14:02:57.505 | JV29: 2012-07-06T14:02:57.505 | JW29: 0 | JX29: 0.03608077546 | JY29: 0.567347406 | JZ29: 0.2422956284 | KA29: 0.2662301809 | KB29: 0.8986812671 | KC29: 0.9226158196 | KD29: Jour | KE29: 0 | KF29: 1 | KG29: 0.8294061636 | KI29: 1 | KJ29: 1 | KK29: 10.09183092 | KM29: 0.2090508153 | KN29: 0.2090508153 | KO29: 0.2270912031 | KP29: 0.2270912031 | KQ29: 9.210078717 | KR29: 9.210078717 | KS29: 8.6 | KT29: 7.638896055 | KU29: 0.03608230413 | KV29: 0.2451331195 | KW29: 0.2451331195 | LA29: 1 | LB29: 1 | LC29: 10.0757486 | LE29: 0.2074023691 | LF29: 0.2074023691 | LG29: 0.2074023691 | LH29: 0.2074023691 | LI29: 9.253329121 | LJ29: 9.253329121 | LK29: 8.6 | LL29: 7.674768207 | LM29: 0.0359136541 | LN29: 0.2433160232 | LO29: 0.2433160232 | LQ29: 1 | LR29: 1 | LS29: 10.0757486 | LU29: 0.2093765147 | LV29: 0.2093765147 | LW29: 0.2273333418 | LX29: 0.2273333418 | LY29: 9.194706947 | LZ29: 9.194706947 | MA29: 8.6 | MB29: 7.626146615 | MC29: 0.03614262676 | MD29: 0.2455191415 | ME29: 0.2455191415 | MG29: 1 | MH29: 2012-07-06T08:00:00 | MI29: 2012-07-06T13:11:30.131 | MJ29: 2012-07-06T14:03:32.854 | MK29: 2012-07-06T14:03:32.854 | ML29: 0 | MM29: 0.03614262676 | MN29: 0.5677256059 | MO29: 0.2422956284 | MP29: 0.2662301809 | MQ29: 0.8986812671 | MR29: 0.9226158196 | MS29: Jour | MT29: 0 | MU29: 1 | MV29: 0.8294061636 | MX29: 1 | MY29: 1 | MZ29: 10.0757486 | NB29: 0.2093981875 | NC29: 0.2093981875 | ND29: 0.2274695009 | NE29: 0.2274695009 | NF29: 9.194316542 | NG29: 9.194316542 | NH29: 8.6 | NI29: 7.62582281 | NJ29: 0.03614416143 | NK29: 0.245542349 | NL29: 0.245542349 | NP29: 1 | NQ29: 1 | NR29: 10.0766085 | NT29: 0.2073840967 | NU29: 0.2073840967 | NV29: 0.2073840967 | NW29: 0.2073840967 | NX29: 9.254173955 | NY29: 9.254173955 | NZ29: 8.6 | OA29: 7.675468917 | OB29: 0.03591037546 | OC29: 0.2432944722 | OD29: 0.2432944722 | OF29: 1 | OG29: 1 | OH29: 10.0766085 | OJ29: 0.2093579172 | OK29: 0.2093579172 | OL29: 0.227313105 | OM29: 0.227313105 | ON29: 9.195549703 | OO29: 9.195549703 | OP29: 8.6 | OQ29: 7.626845602 | OR29: 0.03613931435 | OS29: 0.2454972316 | OT29: 0.2454972316 | OV29: 1 | OW29: 2012-07-06T08:00:00 | OX29: 2012-07-06T13:11:28.524 | OY29: 2012-07-06T14:03:30.961 | OZ29: 2012-07-06T14:03:30.961 | PA29: 0 | PB29: 0.03613931435 | PC29: 0.5677053522 | PD29: 0.2422956284 | PE29: 0.2662301809 | PF29: 0.8986812671 | PG29: 0.9226158196 | PH29: Jour | PI29: 0 | PJ29: 1 | PK29: 0.8294061636 | PM29: 1 | PN29: 1 | PO29: 10.0766085 | PQ29: 0.2093795848 | PR29: 0.2093795848 | PS29: 0.227449242 | PT29: 0.227449242 | PU29: 9.195159308 | PV29: 9.195159308 | PW29: 8.6 | PX29: 7.626521806 | PY29: 0.0361408487 | PZ29: 0.2455204335 | QA29: 0.2455204335 | QE29: 1 | QF29: 1 | QG29: 10.07656251 | QI29: 0.2073850739 | QJ29: 0.2073850739 | QK29: 0.2073850739 | QL29: 0.2073850739 | QM29: 9.254128772 | QN29: 9.254128772 | QO29: 8.6 | QP29: 7.675431443 | QQ29: 0.03591055079 | QR29: 0.2432956247 | QS29: 0.2432956247 | QU29: 1 | QV29: 1 | QW29: 10.07656251 | QY29: 0.2093589118 | QZ29: 0.2093589118 | RA29: 0.2273141872 | RB29: 0.2273141872 | RC29: 9.195504631 | RD29: 9.195504631 | RE29: 8.6 | RF29: 7.626808219 | RG29: 0.03613949149 | RH29: 0.2454984033 | RI29: 0.2454984033 | RK29: 1 | RL29: 2012-07-06T08:00:00 | RM29: 2012-07-06T13:11:28.610 | RN29: 2012-07-06T14:03:31.062 | RO29: 2012-07-06T14:03:31.062 | RP29: 0 | RQ29: 0.03613949149 | RR29: 0.5677064353 | RS29: 0.2422956284 | RT29: 0.2662301809 | RU29: 0.8986812671 | RV29: 0.9226158196 | RW29: Jour | RX29: 0 | RY29: 1 | RZ29: 0.8294061636 | SB29: 1 | SC29: 1 | SD29: 10.07656251 | SF29: 0.2093805796 | SG29: 0.2093805796 | SH29: 0.2274503254 | SI29: 0.2274503254 | SJ29: 9.195114236 | SK29: 9.195114236 | SL29: 8.6 | SM29: 7.626484423 | SN29: 0.03614102585 | SO29: 0.2455216055 | SP29: 0.2455216055 | ST29: 9.195114236 | SU29: 0.0299755896 | SV29: 0.03406317 | SW29: 0.03205344545 | SX29: 0.0299755896 | SY29: 0.0299755896 | TA29: 0.8294061636 | TB29: 0 | TD29: 0.9818236424 | TE29: 0.9340543361 | TF29: 0.9340543361 | TG29: 1 | TH29: 0.9340543361 | TI29: 0.8285243262 | TK29: 0.01817635765 | TL29: 0.9999991953 | TM29: 0.9999991953 | TN29: 1 | TO29: 0.9999991953 | TP29: 0.8799993769 | TR29: 0.9828686435 | TS29: 0.01713135653 | TU29: 618.8908671 | TV29: -251.3496722 | TZ29: =TZ28+1 -> 4 | UA29: 4 | UB29: 14561.97329 | UC29: 0.88 | UD29: 0.9335443263 | UE29: 1 | UF29: 1 | UG29: 0.8281230239 | UH29: 7.884486261 | UI29: 9.520911789
C30: Descente ► | D30: 0.05 | E30: par 1000 m au-delà de | G30: 2500 | L30: 21 | M30: 0.8218837978 | O30: -18 | P30: -18 | Q30: 1.1838736 | V30: 9 | W30: RDC - Lac Esbalçat | AB30: 2300 | AC30: 1 | AD30: FALSE | AE30: FALSE | AF30: FALSE | AG30: FALSE | AH30: FALSE | AI30: FALSE | AL30: 28412.3481 | AM30: 3106.933252 | AN30: -2088.172555 | AO30: 7285.212163 | AP30: 7.761061827 | AQ30: 0.03911198152 | AR30: 0.2915780314 | AS30: 0.2915780314 | AT30: 2012-07-06T14:59:52.342 | AU30: 2012-07-06T14:59:52.342 | AY30: FALSE | AZ30: FALSE | BI30: 28412.3481 | BJ30: 3106.933252 | BK30: -2088.172555 | BL30: 11024.10284 | BM30: 15683.75711 | BN30: 0.001 | BO30: 0.001 | BP30: 17388.24426 | BQ30: 39864.53687 | BS30: 3588.002127 | BT30: 302.9489435 | BU30: -507.9656174 | BV30: 2390.785504 | BW30: 3595.425522 | BX30: 0 | BY30: 0 | BZ30: 1197.216623 | CA30: 3689.786641 | CC30: 7285.212163 | CE30: 0.4935237906 | CF30: 0 | CG30: 0.5064762094 | CI30: 0.88 | CK30: 2019.33556 | CL30: 2504.106373 | CM30: 2190.001797 | CN30: 2190.001797 | CO30: 1 | CP30: 0.9350998023 | CQ30: 2502.053186 | CR30: 0.00847075117 | CS30: 0.9999991304 | CU30: 0.9660415233 | CV30: 1 | CW30: 0.9660415233 | CX30: 0.8535949546 | CZ30: 42,639423 | DA30: 1,513180 | DH30: 1 | DI30: 1 | DJ30: 16 | DL30: 0.150977524 | DM30: 0.150977524 | DN30: 0.150977524 | DO30: 0.150977524 | DP30: 14.98448725 | DQ30: 14.98448725 | DR30: 8.6 | DS30: 12.79068272 | DT30: 0.02373215828 | DU30: 0.1747096823 | DV30: 0.1747096823 | DX30: 1 | DY30: 1 | DZ30: 16 | EB30: 0.1518785339 | EC30: 0.1518785339 | ED30: 0.163744613 | EE30: 0.163744613 | EF30: 14.91509051 | EG30: 14.91509051 | EH30: 8.6 | EI30: 12.73144601 | EJ30: 0.02384257897 | EK30: 0.1757211129 | EL30: 0.1757211129 | EN30: 1 | EO30: 2012-07-06T08:00:00 | EP30: 2012-07-06T11:48:42.305 | EQ30: 2012-07-06T12:23:02.304 | ER30: 2012-07-06T12:23:02.304 | ES30: 0 | ET30: 0.02384257897 | EU30: 0.5040776012 | EV30: 0.2423630285 | EW30: 0.2662970345 | EX30: 0.8987437802 | EY30: 0.9226777862 | EZ30: Jour | FA30: 0 | FB30: 1 | FC30: 0.8535949546 | FE30: 1 | FF30: 1 | FG30: 16 | FI30: 0.1518847208 | FJ30: 0.1518847208 | FK30: 0.1638060103 | FL30: 0.1638060103 | FM30: 14.91476216 | FN30: 14.91476216 | FO30: 8.6 | FP30: 12.73116573 | FQ30: 0.02384310386 | FR30: 0.1757278247 | FS30: 0.1757278247 | FW30: 1 | FX30: 1 | FY30: 9.79227777 | GA30: 0.2506334694 | GB30: 0.2506334694 | GC30: 0.2506334694 | GD30: 0.2506334694 | GE30: 8.872959944 | GF30: 8.872959944 | GG30: 8.6 | GH30: 7.573913841 | GI30: 0.0400784209 | GJ30: 0.2907118903 | GK30: 0.2907118903 | GM30: 1 | GN30: 1 | GO30: 9.79227777 | GQ30: 0.2529597889 | GR30: 0.2529597889 | GS30: 0.2729989994 | GT30: 0.2729989994 | GU30: 8.815822788 | GV30: 8.815822788 | GW30: 8.6 | GX30: 7.525141852 | GY30: 0.04033817737 | GZ30: 0.2932979663 | HA30: 0.2932979663 | HC30: 1 | HD30: 2012-07-06T08:00:00 | HE30: 2012-07-06T14:14:15.726 | HF30: 2012-07-06T15:12:20.944 | HG30: 2012-07-06T15:12:20.944 | HH30: 0 | HI30: 0.04033817737 | HJ30: 0.6134066554 | HK30: 0.2423630285 | HL30: 0.2662970345 | HM30: 0.8987437802 | HN30: 0.9226777862 | HO30: Jour | HP30: 0 | HQ30: 1 | HR30: 0.8535949546 | HT30: 1 | HU30: 1 | HV30: 9.79227777 | HX30: 0.2529849343 | HY30: 0.2529849343 | HZ30: 0.273154023 | IA30: 0.273154023 | IB30: 8.815437918 | IC30: 8.815437918 | ID30: 8.6 | IE30: 7.524813329 | IF30: 0.04033993848 | IG30: 0.2933248728 | IH30: 0.2933248728 | IL30: 1 | IM30: 1 | IN30: 10.09183092 | IP30: 0.2429135943 | IQ30: 0.2429135943 | IR30: 0.2429135943 | IS30: 0.2429135943 | IT30: 9.165501259 | IU30: 9.165501259 | IV30: 8.6 | IW30: 7.823625631 | IX30: 0.03879921166 | IY30: 0.281712806 | IZ30: 0.281712806 | JB30: 1 | JC30: 1 | JD30: 10.09183092 | JF30: 0.2451100159 | JG30: 0.2451100159 | JH30: 0.2645096217 | JI30: 0.2645096217 | JJ30: 9.107465461 | JK30: 9.107465461 | JL30: 8.6 | JM30: 7.774086566 | JN30: 0.03904645314 | JO30: 0.284156469 | JP30: 0.284156469 | JR30: 1 | JS30: 2012-07-06T08:00:00 | JT30: 2012-07-06T14:02:57.505 | JU30: 2012-07-06T14:59:11.119 | JV30: 2012-07-06T14:59:11.119 | JW30: 0 | JX30: 0.03904645314 | JY30: 0.6049110203 | JZ30: 0.2423630285 | KA30: 0.2662970345 | KB30: 0.8987437802 | KC30: 0.9226777862 | KD30: Jour | KE30: 0 | KF30: 1 | KG30: 0.8535949546 | KI30: 1 | KJ30: 1 | KK30: 10.09183092 | KM30: 0.2451331195 | KN30: 0.2451331195 | KO30: 0.264656346 | KP30: 0.264656346 | KQ30: 9.107081902 | KR30: 9.107081902 | KS30: 8.6 | KT30: 7.773759163 | KU30: 0.03904809764 | KV30: 0.2841812171 | KW30: 0.2841812171 | LA30: 1 | LB30: 1 | LC30: 10.0757486 | LE30: 0.2433160232 | LF30: 0.2433160232 | LG30: 0.2433160232 | LH30: 0.2433160232 | LI30: 9.149786213 | LJ30: 9.149786213 | LK30: 8.6 | LL30: 7.810211347 | LM30: 0.03886585052 | LN30: 0.2821818738 | LO30: 0.2821818738 | LQ30: 1 | LR30: 1 | LS30: 10.0757486 | LU30: 0.2455191415 | LV30: 0.2455191415 | LW30: 0.2649520667 | LX30: 0.2649520667 | LY30: 9.091797485 | LZ30: 9.091797485 | MA30: 8.6 | MB30: 7.760712461 | MC30: 0.03911374224 | MD30: 0.2846328837 | ME30: 0.2846328837 | MG30: 1 | MH30: 2012-07-06T08:00:00 | MI30: 2012-07-06T14:03:32.854 | MJ30: 2012-07-06T14:59:52.281 | MK30: 2012-07-06T14:59:52.281 | ML30: 0 | MM30: 0.03911374223 | MN30: 0.6053537904 | MO30: 0.2423630285 | MP30: 0.2662970345 | MQ30: 0.8987437802 | MR30: 0.9226777862 | MS30: Jour | MT30: 0 | MU30: 1 | MV30: 0.8535949546 | MX30: 1 | MY30: 1 | MZ30: 10.0757486 | NB30: 0.245542349 | NC30: 0.245542349 | ND30: 0.2650992201 | NE30: 0.2650992201 | NF30: 9.091413847 | NG30: 9.091413847 | NH30: 8.6 | NI30: 7.76038499 | NJ30: 0.03911539275 | NK30: 0.2846577417 | NL30: 0.2846577417 | NP30: 1 | NQ30: 1 | NR30: 10.0766085 | NT30: 0.2432944722 | NU30: 0.2432944722 | NV30: 0.2432944722 | NW30: 0.2432944722 | NX30: 9.150626457 | NY30: 9.150626457 | NZ30: 8.6 | OA30: 7.810928575 | OB30: 0.03886228172 | OC30: 0.2821567539 | OD30: 0.2821567539 | OF30: 1 | OG30: 1 | OH30: 10.0766085 | OJ30: 0.2454972316 | OK30: 0.2454972316 | OL30: 0.2649283724 | OM30: 0.2649283724 | ON30: 9.092635208 | OO30: 9.092635208 | OP30: 8.6 | OQ30: 7.761427537 | OR30: 0.03911013861 | OS30: 0.2846073702 | OT30: 0.2846073702 | OV30: 1 | OW30: 2012-07-06T08:00:00 | OX30: 2012-07-06T14:03:30.961 | OY30: 2012-07-06T14:59:50.077 | OZ30: 2012-07-06T14:59:50.077 | PA30: 0 | PB30: 0.0391101386 | PC30: 0.6053300787 | PD30: 0.2423630285 | PE30: 0.2662970345 | PF30: 0.8987437802 | PG30: 0.9226777862 | PH30: Jour | PI30: 0 | PJ30: 1 | PK30: 0.8535949546 | PM30: 1 | PN30: 1 | PO30: 10.0766085 | PQ30: 0.2455204335 | PR30: 0.2455204335 | PS30: 0.2650755028 | PT30: 0.2650755028 | PU30: 9.092251575 | PV30: 9.092251575 | PW30: 8.6 | PX30: 7.76110007 | PY30: 0.0391117888 | PZ30: 0.2846322223 | QA30: 0.2846322223 | QE30: 1 | QF30: 1 | QG30: 10.07656251 | QI30: 0.2432956247 | QJ30: 0.2432956247 | QK30: 0.2432956247 | QL30: 0.2432956247 | QM30: 9.150581519 | QN30: 9.150581519 | QO30: 8.6 | QP30: 7.810890217 | QQ30: 0.03886247257 | QR30: 0.2821580972 | QS30: 0.2821580972 | QU30: 1 | QV30: 1 | QW30: 10.07656251 | QY30: 0.2454984033 | QZ30: 0.2454984033 | RA30: 0.2649296395 | RB30: 0.2649296395 | RC30: 9.092590405 | RD30: 9.092590405 | RE30: 8.6 | RF30: 7.761389294 | RG30: 0.03911033132 | RH30: 0.2846087346 | RI30: 0.2846087346 | RK30: 1 | RL30: 2012-07-06T08:00:00 | RM30: 2012-07-06T14:03:31.062 | RN30: 2012-07-06T14:59:50.195 | RO30: 2012-07-06T14:59:50.195 | RP30: 0 | RQ30: 0.03911033132 | RR30: 0.6053313467 | RS30: 0.2423630285 | RT30: 0.2662970345 | RU30: 0.8987437802 | RV30: 0.9226777862 | RW30: Jour | RX30: 0 | RY30: 1 | RZ30: 0.8535949546 | SB30: 1 | SC30: 1 | SD30: 10.07656251 | SF30: 0.2455216055 | SG30: 0.2455216055 | SH30: 0.2650767711 | SI30: 0.2650767711 | SJ30: 9.092206772 | SK30: 9.092206772 | SL30: 8.6 | SM30: 7.761061827 | SN30: 0.03911198152 | SO30: 0.284633587 | SP30: 0.284633587 | ST30: 9.092206772 | SU30: 0.03338579009 | SV30: 0.03793839783 | SW30: 0.03455937378 | SX30: 0.03338579009 | SY30: 0.03338579009 | TA30: 0.8535949546 | TB30: 0 | TD30: 0.5064762094 | TE30: 0.9350998023 | TF30: 0.9350998023 | TG30: 1 | TH30: 0.9350998023 | TI30: 0.8293467986 | TK30: 0.4935237906 | TL30: 0.9999991304 | TM30: 0.9999991304 | TN30: 1 | TO30: 0.9999991304 | TP30: 0.8799993266 | TR30: 0.5212843863 | TS30: 0.4787156137 | TU30: 619.1183332 | TV30: -1130.409149 | TZ30: =TZ29 -> 4 | UA30: =UA29+1 -> 5 | UB30: 14561.97329 | UC30: 0.88 | UD30: 0.9250102783 | UE30: 1 | UF30: 1 | UG30: 0.8214006376 | UH30: 7.73990581 | UI30: 9.422814465
